Workbook

Sheet Input - Instructions
L2: Overview of the MAC DSA Framework
A5: Overview of the MAC DSA Framework
A7: Market-access country (MAC) public debt sustainability analysis (DSA) is a risk-based tool.
A8: See Figure 1, to the right, extracted from the Guidance Note. | F8: Guidance Note
A9: Depth of analysis depends on the extent of vulnerabilities or use of Fund resources.
A10: Higher Scrutiny - for exceptional access, high debt-burden, or high-vulnerability countries:
A11: Analysis includes the basic DSA, standard alternative scenarios, the outcome of all modules in this template, the heat map and a write-up.
A12: Lower Scrutiny - for all other countries:
A13: ● Analysis includes the basic DSA and standard alternative scenarios, as well as contingent liabilities shock when relevant. All other modules are optional. Write-up is optional.
A14: ● As debt vulnerabilities may emerge at lower debt levels than the ones suggested in Figure 1, some "Lower Scrutiny" countries may be reclassified as "Higher Scrutiny". Conversely, some countries with high gross debt burden may be treated as "Lower Scrutiny". See Guidance Note for details on possible reclassification.
A15: Components of the DSA:
A16: 1 - Basic DSA Module (for all MACs)
A17: ● This includes baseline and standard alternative scenarios.
A18: ● Where relevant, the basic DSA may also include a contingent liabilities shock and customized scenarios.
A19: 2 - Risk Identification and Analysis Modules (for Higher Scrutiny countries)
A20: ● Vulnerabilities are identified through four different modules (a-d):
A21: a - Realism of baseline scenario
A22: b - Vulnerability of debt profile
A23: c - Sensitivity to macro-fiscal risks
A24: d - Contingent liabilities
A25: 3 - Risk Reporting Module (for Higher Scrutiny countries)
A26: ● Heat Map
A27: ● Fan Charts
A28: ● Write-Up
A30: Instructions for the Input
A32: 1. Go to Sheet "Input 1 - Basics"
B34: Populate the yellow-shaded cells.
B35: 1.a. | C35: Select country from the drop-down menu.
B36: 1.b. | C36: Is the country seeking or does it currently have exceptional access to Fund resources?
C37: Use the drop-down menu to answer the question. (Select "Yes" for countries under PPM after exceptional access.)
B38: 1.c. | C38: Select the definition of "public sector" that is covered by the fiscal data that will be entered.
B39: 1.d. | C39: Select whether the definition of "public sector" includes guarantees and, if it does, provide a description of these guarantees.
B40: 1.e. | C40: Select whether you wish to use complementary analyses of net debt and/or debt-to-potential GDP.
C41: If selected, the complementary analysis results will be presented in: (i) the basic DSA table in "Output - Basic1" (line 12); and (ii) the basic DSA debt-to-GDP chart in "Output - Basic2." The rest of the DSA outputs will remain unchanged.
B43: 1.f. | C43: Select first year of projection.
B44: 1.g. | C44: Enter estimate of REER overvaluation from the latest exchange rate assessment.
C45: This is an input for the calibration of the exchange rate shock in the macro-fiscal risks module.
B46: 1.h. | C46: Enter the latest risk ratings (Moody's, S&P and Fitch) using drop-down menus.
B47: 1.i. | C47: Enter market spread information in the appropriate cells. Use the drop-down menu to define "bond spread."
C48: EMs may use EMBI Global spreads while AEs may use bond spreads over US or German bonds at similar maturity.
B49: 1.j. | C49: Enter the scale of the macroeconomic and fiscal variables that will be entered in "Input 2 - Data" (e.g., millions, billions).
A51: 2. Go to Sheet "Input 2 - Data"
B53: Populate the yellow-shaded cells.
B54: 2.a. | C54: Ensure that the fiscal series are consistent with the definition of the public sector selected in Step 1.
B55: 2.b. | C55: Ensure that data are consistent with the scales and units specified in columns A and B.
C56: Note that, unless otherwise specified, all series should be denominated in local currency units (LCU), including interest on foreign-currency denominated debt.
A58: 3. Go to Sheet "Input 3 - Debt and Banking"
B60: Populate the yellow-shaded cells.
B61: 3.a. | C61: Please provide as much data as available. This information is used to generate a historical perspective on the maturity and currency composition of debt (see graphs in "Output - Basic"). This input sheet distinguishes between:
D62: (i) domestic and external debt (residency criterion);
D63: (ii) local-currency and foreign-currency denominated debt;
D64: (iii) short-term and long-term debt.
B65: 3.b. | C65: Please provide historical data on public guarantees broken down by currency; guarantees are assumed to remain constant in LCU terms at the last entered value over the projection horizon. This information is used to compute the country's average nominal interest rate on debt.
B67: 3.c. | C67: Please provide information on the banking sector.
C68: Private sector credit and loan-to-deposit ratio are used to determine potential contingent liabilities arising from the banking sector.
C69: Bank gross foreign assets are used for the calibration of the size of the contingent liability shock.
A71: 4. Go to Sheet "Input 4 - Forecast"
B73: Populate the yellow-shaded cells.
B74: 4.a. | C74: "Input 4 - Forecast" is divided into two basic parts:
D75: (i) calculation of gross financing needs based on the fiscal assumptions;
D76: (ii) financing assumptions.
B77: 4.b. | C77: Gross financing assumptions include debt service on the outstanding stock of debt (existing debt).
C78: This includes interest payments on existing domestic- and foreign-currency denominated debt (rows 24 and 25) as well as amortization payments (rows 27 and 28).
C79: Data on debt service of existing debt should preferably come from the fiscal files or authorities' debt management office.
C80: They may also be computed from a loan-by-loan breakdown of outstanding debt available from databases like Bloomberg, Datastream, Dealogic, BEL etc.
C81: The breakdown between domestic- and foreign-currency denominated debt is important for capturing exchange rate risks.
C82: The breakdown between existing and new debt (debt to be issued over the projection period) is important for capturing roll-over risks and interest rate risks.
B83: 4.c. | C83: Gross financing needs of the government are calculated automatically in row 37 (including debt service on new debt).
C84: After adjusting for possible one-off financing factors (change in arrears, debt relief, privatization/drawdown of deposits and any other factors specified) in rows 39-43, the template calculates the gross financing needs to be met by the issuance of new debt (row 45).
B86: 4.d. | C86: The template allows a wide range of debt instruments to finance the government, which can be differentiated by interest rate, grace period, maturity, currency and residency.
C87: Not all debt instruments in the template need to be filled in. In principle, a single summary instrument could be used as an approximation.
C88: Ensure that the terms and conditions of new debt are appropriate (cells J54-R89):
D89: (i) Use the drop-down menu to select whether payments are annual or semi-annual (column J).
D90: (ii) Fill in grace period and maturity (columns K and L) for each instrument. Amortization of projected debt is assumed to take place at the end of the year for annual payment schedule and at mid-year and the year-end for semi-annual payment schedule. If grace is set equal to maturity, the template calculates amortization as only one payment at maturity (bullet bond).
D92: (iii) Columns M-R determine the interest rate on new issuances; the interest rate can vary by instrument as well as by year of issuance.
C93: Lines marked "ZERO-COUPON BOND" should be used only for such instruments to ensure the appropriate calculations of interest and amortization payments.
B94: 4.e. | C94: By construction, residual financing needs will be met by the issuance of domestic short-term debt (row 89). The use of this line should be minimized as much as possible. Because this residual too represents debt issuance, it should not be allowed to become negative; please use row 42 or 43 to represent any accumulation of deposits arising from debt issuance in excess of projected financing needs.
A96: 5. Go to Sheet "Input 5 - Scenario Design"
B98: Populate the yellow-shaded cells:
B99: 5.a. | C99: Required shocks for scenario analysis depend on the country's level of scrutiny (see the Overview of the Framework, and the Guidance Note).
C100: Based on information regarding debt burden and exceptional access status provided in "Input 1 - Basics," the template automatically determines the level of scrutiny for the country (cell J7).
B101: 5.b. | C101: If the country is reclassified from Lower to Higher Scrutiny (or vice versa) because of risk-mitigating or risk-amplifying factors, the final scrutiny classification can be specified in cell J8. (See Guidance Note for details on possible reclassification.)
B102: 5.c. | C102: Based on the level of scrutiny, required shocks are denoted in cells K13-K20, along with their respective descriptions in column M.
C103: The template builds in interactions among shock variables (explained in column M). Sizes of shocks and interactions can be customized (see 5.g. below).
C104: Additional shocks (if relevant), whether they are required, and their descriptions can be customized in rows 23-27.
B105: 5.d. | C105: As discussed in the Guidance Note, the MAC DSA framework includes a number of standardized alternative scenarios as well as a number of stress tests.
C106: Standardized alternative scenarios are a historical scenario and a constant primary balance scenario (rows 13-14).
C107: The macro-fiscal risk module includes five stress tests (rows 16-20):
D108: (i) primary balance shock;
D109: (ii) real GDP growth shock;
D110: (iii) interest rate shock;
D111: (iv) exchange rate shock;
D112: (v) combined shock.
B113: 5.e. | C113: The financial sector contingent liability stress test is automatically triggered by developments in private sector credit growth and loan-to-deposit ratios.
C114: If the shock was not triggered but needs to be included due other vulnerabilities not identified by the default indicators or their benchmarks, users can select "Yes" from the yellow-shaded drop-down menu (cell J23) to manually trigger the contingent liability stress test.
B115: 5.f. | C115: The template allows for two additional customized scenarios (including contingent liability shocks from non-financial sectors).
C116: To run one or two customized shocks, select "Yes" from the drop-down menus in cells J25 and/or J27.
C117: Users have the option to name the customized shocks in cells T25 and T27, which will appear in output tables and charts.
B118: 5.g. | C118: All possible shock scenarios are shown under Shock Assumptions (E32-J150), regardless of whether the shock is required.
C119: Interactions between the variables are described in column B. If applicable, users may tailor the sizes of shocks and interactions in the yellow-shaded cells under Shock Assumptions (column B), to reflect country-specific information.
C120: For example, under the primary balance shock scenario, the revenue-to-GDP ratio is assumed to remain unchanged compared to the baseline and interest rate on new debt increases by 25 bps per 1 percent of GDP deterioration in the primary balance. But users may wish to increase the impact on interest rate of a deterioration in the primary balance (cell B50), and include impact on real GDP growth (cells F43-J43).
A122: 6. Go to Sheet "Fan Chart"
B124: 6.a. | C124: Fan charts are generated based on the calculations of historical averages, variances and covariances of relevant macroeconomic variables: real GDP growth, effective real interest rate, primary balance and the change in real exchange rate.
B125: 6.b. | C125: By default, averages, variances and covariances are calculated from the same historical data as the rest of the DSA (the last 11 years). For better results, users may wish to extend the historical period in order to better capture country-specific circumstances by populating the yellow-shaded cells not covered in the default period.
B126: 6.c. | C126: Click on the blue button to generate the fan chart. Individual shocks can be turned off, using cells B42-B45, to analyze the source of uncertainty. (Note: macros must be enabled.)
B127: 6.d. | C127: To generate asymmetric fan charts, users may place restrictions on the magnitude of positive shocks in cells D42-D45.

Sheet Input 1 - Basics
A1: Basic Data Input
A3: Select country | D3: Example
A4: IFS Code | D4: =VLOOKUP(Country,'Lists-Modules-ChartData'!$I$13:$K$128,2,FALSE) -> 136
A5: Emerging Market (EM) or Advanced Economy (AE) | D5: =IF(AEStatus=1,"AE","EM") -> AE
A7: Exceptional Access? | D7: No
A9: Definition of the public sector | D9: general government
B10: Includes public guarantees? | D10: No
B11: =IF(Guarantees="Yes","Specify or define the guarantees","") -> 
A13: Use of complementary analysis?
B14: Net debt-to-GDP? | D14: No
B15: Gross debt-to-potential GDP? | D15: Yes
A17: First year of projection | D17: 2014
A19: Estimate of REER overvaluation (in percent) | D19: 0.05
A21: Sovereign risk rating
A23: Latest information, available as of… | D23: 2013-08-30
D24: Foreign currency | E24: National currency
B25: Moody's | D25: Baa2 | E25: Baa2
B26: S&Ps | D26: BBB | E26: BBB
B27: Fitch | D27: BBB+ | E27: BBB+
A29: Market information
A31: Latest information, available as of… | D31: =D23 -> 2013-08-30
B32: 5Y CDS (basis points) | D32: 258
B33: Market perception or bond spread, defined as:
B34: Long-term bond spread over German bonds (bp) | D34: 276
A36: Historical information over the last 3 months… | D36: =IF(ISBLANK(D23),"",TEXT(D23-90,"dd-mmm-yy")&" through "&TEXT(D23,"dd-mmm-yy")) -> 01-Jun-13 through 30-Aug-13
B37: ="Average "&SpreadDefinition -> Average Long-term bond spread over German bonds (bp) | D37: 273
A40: Scale of macroeconomic and fiscal variables
B41: Scale | D41: Billions

Sheet Input 2 - Data
A1: 1 - Please fill the yellow-shaded cells. (Light-yellow cells should be filled if available and may be required in certain cases; please see "Notes" column.)
Q2: First Year of projection
A3: Units | B3: Scale | C3: Notes | D3: Variable | E3: =F3-1 -> 2002 | F3: 2003 | G3: 2004 | H3: 2005 | I3: 2006 | J3: 2007 | K3: 2008 | L3: 2009 | M3: 2010 | N3: 2011 | O3: 2012 | P3: =Q3-1 -> 2013 | Q3: =FirstYear -> 2014 | R3: =Q3+1 -> 2015 | S3: =R3+1 -> 2016 | T3: =S3+1 -> 2017 | U3: =T3+1 -> 2018 | V3: =U3+1 -> 2019
A5: National Currency | B5: =Scale -> Billions | D5: GDP at constant prices (level) | E5: 1393.278 | F5: 1399.567 | G5: 1398.916 | H5: 1423.127 | I5: 1436.38 | J5: 1467.965 | K5: 1492.671 | L5: 1475.412 | M5: 1394.348 | N5: 1418.376 | O5: 1423.674 | P5: 1389.948 | Q5: 1365.262092 | R5: 1375.489569 | S5: 1390.069758 | T5: 1409.531764 | U5: 1429.276034 | V5: 1446.427346
A6: Index Number | B6: Unit | D6: GDP deflator (level) | E6: 90.1283161 | F6: 93.01976969 | G6: 95.92077008 | H6: 98.21519794 | I6: 100 | J6: 101.7075339 | K6: 104.1220068 | L6: 106.7596034 | M6: 108.9896496 | N6: 109.4129483 | O6: 110.8749615 | P6: 112.660042 | Q6: 114.2548856 | R6: 115.7401991 | S6: 117.2448217 | T6: 118.8862492 | U6: 120.6100998 | V6: 122.3830683
A7: National Currency | B7: =Scale -> Billions | D7: GDP at current prices (level) | E7: 1255.738 | F7: 1301.874 | G7: 1341.851 | H7: 1397.727 | I7: 1436.38 | J7: 1493.031 | K7: 1554.199 | L7: 1575.144 | M7: 1519.695 | N7: 1551.887 | O7: 1578.498 | P7: 1565.916 | Q7: 1559.878641 | R7: 1591.994366 | S7: 1629.784809 | T7: 1675.739445 | U7: 1723.85125 | V7: 1770.182166
A8: National Currency | B8: =Scale -> Billions | C8: Required for Higher Scrutiny countries and complementary debt-to-potential GDP analysis. | D8: Potential GDP at current prices (level) | E8: 1226.12544 | F8: 1282.609606 | G8: 1337.805062 | H8: 1387.431101 | I8: 1423.734 | J8: 1459.776705 | K8: 1507.822017 | L8: 1550.113143 | M8: 1577.956507 | N8: 1582.513872 | O8: 1607.518412 | P8: 1620.956063 | Q8: 1638.278857 | R8: 1658.299408 | S8: 1683.08473 | T8: 1711.088768 | U8: 1742.470818 | V8: 1776.594965
A10: US Dollars | B10: =Scale -> Billions | C10: Required only for Higher Scrutiny countries. | D10: Balance on current account | O10: -48.262 | P10: -11.57
A11: (NC/USD) | B11: Unit | D11: Nominal exchange rate (national currency per US dollar) -- average | E11: 1.116540808 | F11: 1.058851869 | G11: 0.8843081726 | H11: 0.8043084121 | I11: 0.8027260577 | J11: 0.7964012742 | K11: 0.7295885042 | L11: 0.6794795966 | M11: 0.7179795138 | N11: 0.7536397126 | O11: 0.7186966143 | P11: 0.7774852254 | Q11: 0.7576682675 | R11: 0.751442424 | S11: 0.7440267393 | T11: 0.7369787851 | U11: 0.7310378163 | V11: 0.7251450761
A12: (NC/USD) | B12: Unit | D12: Nominal exchange rate (national currency per US dollar) -- end of period | E12: 1.120611406 | F12: 0.9820674484 | G12: 0.8135968302 | H12: 0.7458456398 | I12: 0.8434405627 | J12: 0.75686 | K12: 0.68593 | L12: 0.73408 | M12: 0.6849748784 | N12: 0.7565146127 | O12: 0.7587802 | P12: 0.7579202668 | Q12: 0.7557957551 | R12: 0.7479505234 | S12: 0.7407077535 | T12: 0.7341606865 | U12: 0.7282932232 | V12: 0.7224768259
A13: Index Number | B13: Unit | C13: Required only for Higher Scrutiny countries. | D13: Real exchange rate index (national currency per U.S. Dollar) | E13: 1.120611406 | F13: 0.9820674484 | G13: 0.8135968302 | H13: 0.7458456398 | I13: 0.8434405627 | J13: 0.75686 | K13: 0.68593 | L13: 0.73408 | M13: 0.6849748784 | N13: 0.7565146127 | O13: 0.7587802 | P13: 0.7579202668 | Q13: 0.7557957551 | R13: 0.7479505234 | S13: 0.7407077535 | T13: 0.7341606865 | U13: 0.7282932232 | V13: 0.7282932232
A15: National Currency | B15: =Scale -> Billions | D15: Public sector revenues and grants | E15: =SUM(E16:E17) -> 559.097 | F15: =SUM(F16:F17) -> 572.214 | G15: 596.196 | H15: 614.439 | I15: 623.725 | J15: 672.447 | K15: 715.564 | L15: 723.432 | M15: 706.775 | N15: 714.817 | O15: 728.412 | P15: 746.3713095 | Q15: 748.5695538 | R15: 765.90297 | S15: 785.181116 | T15: 808.8206591 | U15: 833.5774016 | V15: 857.4478377
A16: National Currency | B16: =Scale -> Billions | D16: Public sector non-interest revenues and grants | E16: 555.344 | F16: 569.159 | G16: 593.342 | H16: 612.38 | I16: 621.115 | J16: 669.25 | K16: 711.938 | L16: 719.803 | M16: 703.56 | N16: 712.206 | O16: 725.325 | P16: 743.2745595 | Q16: 745.5630538 | R16: 762.89647 | S16: 782.406116 | T16: 806.0456591 | U16: 830.8024016 | V16: 854.6728377
A17: National Currency | B17: Billions | C17: If available. Otherwise, assume zero. | D17: Public sector interest revenues | E17: 3.753 | F17: 3.055 | G17: 2.854 | H17: 2.059 | I17: 2.61 | J17: 3.197 | K17: 3.626 | L17: 3.629 | M17: 3.215 | N17: 2.611 | O17: 3.087 | P17: 3.09675 | Q17: 3.0065 | R17: 3.0065 | S17: 2.775 | T17: 2.775 | U17: 2.775 | V17: 2.775
A18: National Currency | B18: Billions | D18: Public sector expenditures | E18: =SUM(E19:E20) -> 599.118 | F18: =SUM(F19:F20) -> 613.403 | G18: 645.124 | H18: 664.298 | I18: 688.251 | J18: 723.375 | K18: 740.269 | L18: 765.537 | M18: 788.361 | N18: 782.043 | O18: 786.25 | P18: 793.8173095
A19: National Currency | B19: Billions | D19: Public sector non-interest expenditures | E19: 520.122 | F19: 539.999 | G19: 576.075 | H19: 597.568 | I19: 621.108 | J19: 654.538 | K19: 663.385 | L19: 684.82 | M19: 718.664 | N19: 712.837 | O19: 709.861 | P19: 707.1003095 | Q19: 712.862408 | R19: 713.9789813 | S19: 726.2410806 | T19: 733.1165621 | U19: 745.546646 | V19: 759.0307245
A20: National Currency | B20: Billions | D20: Public sector interest expenditures (historical only) | E20: 78.996 | F20: 73.404 | G20: 69.049 | H20: 66.73 | I20: 67.143 | J20: 68.837 | K20: 76.884 | L20: 80.717 | M20: 69.697 | N20: 69.206 | O20: 76.389 | P20: 86.717
A21: National Currency | B21: Billions | C21: If available. Otherwise, contribution of exchange rate depreciation in debt dynamics is calculated based on effective interest rate on total debt. | D21: Public sector interest expenditures denominated in local currency (historical only) | E21: 78.996 | F21: 73.404 | G21: 69.049 | H21: 66.73 | I21: 67.143 | J21: 68.837 | K21: 76.884 | L21: 80.717 | M21: 69.697 | N21: 69.206 | O21: 76.389 | P21: 86.717
A22: National Currency | B22: Billions | C22: If available. Otherwise, contribution of exchange rate depreciation in debt dynamics is calculated based on effective interest rate on total debt. | D22: Public sector interest expenditures denominated in foreign currency (historical only) | E22: 0 | F22: 0 | G22: 0 | H22: 0 | I22: 0 | J22: 0 | K22: 0 | L22: 0 | M22: 0 | N22: 0 | O22: 0 | P22: 0
A23: National Currency | B23: Billions | D23: Public sector principal payments (historical only) | E23: 298.79856 | F23: 298.44905 | G23: 344.09875 | H23: 298.98851 | I23: 282.1563 | J23: 275.72558 | K23: 289.80962 | L23: 322.81632 | M23: 316.33763 | N23: 316.86984 | O23: 314.16529 | P23: 361.93419
A24: National Currency | B24: Billions | D24: Public sector debt service (sum of interest and amortization payments; historical only) | E24: =SUM(E20,E23) -> 377.79456 | F24: 371.85305 | G24: 413.14775 | H24: 365.71851 | I24: 349.2993 | J24: 344.56258 | K24: 366.69362 | L24: 403.53332 | M24: 386.03463 | N24: 386.07584 | O24: 390.55429 | P24: 448.65119
A25: National Currency | B25: Billions | D25: Cyclically-adjusted primary balance | E25: 23.94919963 | F25: 22.75135006 | G25: 18.18736728 | H25: 11.91553495 | I25: -3.460326695 | J25: 0.8994859263 | K25: 27.75317703 | L25: 25.57718431 | M25: 16.63399273 | N25: 17.26327226 | O25: 32.93677793 | P25: 67.3691809 | Q25: 75.33836702 | R25: 85.79914624 | S25: 86.47023357 | T25: 94.22650718 | U25: 97.91439052 | V25: 101.8523274
A26: National Currency | B26: Billions | C26: If available. Otherwise, assume zero. | D26: Recognition of implicit contingent liability | E26: 0 | F26: 0 | G26: 0 | H26: 0 | I26: 0 | J26: 0 | K26: 0 | L26: 0 | M26: 0 | N26: 0 | O26: 0 | P26: 0 | Q26: 0 | R26: 0 | S26: 0 | T26: 0 | U26: 0 | V26: 0
A28: National Currency | B28: Billions | C28: If available. Otherwise, assume zero. | D28: Change in domestic arrears | P28: 0 | Q28: -12.2 | R28: -20 | S28: 0 | T28: 0 | U28: 0 | V28: 0
A29: National Currency | B29: Billions | C29: If available. Otherwise, assume zero. | D29: Change in external arrears | P29: 0 | Q29: 0 | R29: 0 | S29: 0 | T29: 0 | U29: 0 | V29: 0
A30: National Currency | B30: Billions | C30: If available. Otherwise, assume zero. | D30: Debt relief | P30: 0 | Q30: 0 | R30: 0 | S30: 0 | T30: 0 | U30: 0 | V30: 0
A31: National Currency | B31: Billions | C31: If available. Otherwise, assume zero. | D31: Please specify (1) (e.g., privatization receipts) (+ reduces financing needs) | E31: 4.658 | F31: 1.952 | G31: 16.866 | H31: 8.316 | I31: 4.618 | J31: 0.038 | K31: 3.5 | L31: 0.019 | M31: 0.799 | N31: 0.008 | O31: 1.56 | P31: 7.875 | Q31: 0 | R31: 0 | S31: 0 | T31: 0 | U31: 0 | V31: 0
A32: National Currency | B32: Billions | C32: If available. Otherwise, assume zero. | D32: Please specify (2) (e.g., other debt flows) (+ increases financing needs) | E32: 9.383 | F32: 5.329 | G32: 8.536 | H32: 0.53 | I32: 1.864 | J32: 0.243 | K32: 3.129 | L32: 1.654 | M32: 1.519 | N32: 4.095 | O32: 6.147 | P32: 6.004 | Q32: 5.7 | R32: 2.9 | S32: 0 | T32: 0 | U32: 0 | V32: 0
A33: National Currency | B33: Billions | C33: Required only for complementary net debt analysis. | D33: Highly-liquid assets available to repay debt | E33: 50 | F33: 51 | G33: 52 | H33: 53 | I33: 54 | J33: 55 | K33: 56 | L33: 57 | M33: 58 | N33: 59 | O33: 60 | P33: 61 | Q33: 62 | R33: 63 | S33: 64 | T33: 65 | U33: 66 | V33: 67
A34: US Dollars | B34: Billions | C34: Required for Higher Scrutiny countries. | D34: External debt: short-term, on original maturity basis, private and public | O34: 740.8856385 | P34: 747.0469933
A35: US Dollars | B35: Billions | C35: Required for Higher Scrutiny countries. | D35: Amortization of MLT external debt, private and public | O35: 311.1605722 | P35: 277.5193852

Sheet Input 3 - Debt and Banking
A1: 1 - Please fill the yellow-shaded cells. All data should be entered in local currency units (LCU) unless otherwise specified.
A3: Historical Debt Data | C3: =D3-1 -> 2002 | D3: 2003 | E3: 2004 | F3: 2005 | G3: 2006 | H3: 2007 | I3: 2008 | J3: 2009 | K3: 2010 | L3: =M3-1 -> 2011 | M3: =N3-1 -> 2012 | N3: =FirstYear-1 -> 2013 | O3: =FirstYear -> 2014
A5: Stock of total public debt | B5: =Scale&" LCU" -> Billions LCU | C5: =C11+C13 -> 1360.228 | D5: 1371.595 | E5: 1397.371 | F5: 1449.606 | G5: 1518.556 | H5: 1587.781 | I5: 1605.126 | J5: 1670.993 | K5: 1769.226 | L5: 1851.217 | M5: 1906.846 | N5: 1988.363
A6: =IF(Guarantees="Yes","of which: public guarantees","") ->  | B6: =IF(Guarantees="Yes",Scale&" LCU","") ->  | C6: =IF(Guarantees="Yes",SUM(C12,C14),"") -> 
A8: Short-term debt 1/ | B8: =Scale&" LCU" -> Billions LCU | C8: 252.59 | D8: 263.511 | E8: 231.687 | F8: 247.171 | G8: 266.99 | H8: 279.321 | I8: 270.898 | J8: 294.623 | K8: 295.706 | L8: 286.688 | M8: 284.061 | N8: 311.792
A9: =IF(Guarantees="Yes","Long-term debt, incl. guarantees 2/","Long-term debt 2/") -> Long-term debt 2/ | B9: =Scale&" LCU" -> Billions LCU | C9: 1107.638 | D9: 1108.084 | E9: 1165.684 | F9: 1202.435 | G9: 1251.566 | H9: 1308.46 | I9: 1334.228 | J9: 1376.37 | K9: 1473.52 | L9: 1564.529 | M9: 1622.785 | N9: 1676.571
A11: =IF(Guarantees="Yes","Denominated in local currency, incl. guarantees","Denominated in local currency") -> Denominated in local currency | B11: =Scale&" LCU" -> Billions LCU | C11: 1360.228 | D11: 1371.595 | E11: 1397.371 | F11: 1449.606 | G11: 1518.556 | H11: 1587.781 | I11: 1605.126 | J11: 1670.993 | K11: 1769.226 | L11: 1851.217 | M11: 1906.846 | N11: 1988.363
A12: =IF(Guarantees="Yes","of which: public guarantees","") ->  | B12: =IF(Guarantees="Yes",Scale&" LCU","") -> 
A13: =IF(Guarantees="Yes","Denominated in foreign currency, incl. guarantees","Denominated in foreign currency") -> Denominated in foreign currency | B13: =Scale&" LCU" -> Billions LCU | C13: 0 | D13: 0 | E13: 0 | F13: 0 | G13: 0 | H13: 0 | I13: 0 | J13: 0 | K13: 0 | L13: 0 | M13: 0 | N13: 0
A14: =IF(Guarantees="Yes","of which: public guarantees","") ->  | B14: =IF(Guarantees="Yes",Scale&" LCU","") -> 
A16: =IF(Guarantees="Yes","Domestic debt (held by residents), including guarantees 3/","Domestic debt (held by residents) 3/") -> Domestic debt (held by residents) 3/ | B16: =Scale&" LCU" -> Billions LCU | N16: 1324.363
A17: =IF(Guarantees="Yes","External debt (held by non-residents), including guarantees 3/", "External debt (held by non-residents) 3/") -> External debt (held by non-residents) 3/ | B17: =Scale&" LCU" -> Billions LCU | N17: 664
A19: Banking Sector Data | C19: =D19-1 -> 2002 | D19: =E19-1 -> 2003 | E19: =F19-1 -> 2004 | F19: =G19-1 -> 2005 | G19: =H19-1 -> 2006 | H19: =I19-1 -> 2007 | I19: =J19-1 -> 2008 | J19: =K19-1 -> 2009 | K19: =L19-1 -> 2010 | L19: =M19-1 -> 2011 | M19: =N19-1 -> 2012 | N19: =FirstYear-1 -> 2013
A20: Banking system assets (excluding claims on government) | B20: Percent of GDP | N20: =N23+N22 -> 118.275362
A22: Private sector credit | B22: Percent of GDP | K22: 102.1647765 | L22: 108.3943076 | M22: 108.4890193 | N22: 110.0073631
A23: Bank gross foreign assets | B23: Percent of GDP | N23: 8.267998879
A25: Loan-to-deposit ratio | B25: Ratio (%) | N25: 1.62
A27: Nominal GDP | B27: =Scale&" LCU" -> Billions LCU | C27: ='Input 2 - Data'!E7 -> 1255.738 | D27: ='Input 2 - Data'!F7 -> 1301.874 | E27: ='Input 2 - Data'!G7 -> 1341.851 | F27: ='Input 2 - Data'!H7 -> 1397.727 | G27: ='Input 2 - Data'!I7 -> 1436.38 | H27: ='Input 2 - Data'!J7 -> 1493.031 | I27: ='Input 2 - Data'!K7 -> 1554.199 | J27: ='Input 2 - Data'!L7 -> 1575.144 | K27: ='Input 2 - Data'!M7 -> 1519.695 | L27: ='Input 2 - Data'!N7 -> 1551.887 | M27: ='Input 2 - Data'!O7 -> 1578.498 | N27: ='Input 2 - Data'!P7 -> 1565.916
A29: 1/ Maturity one year or less, based on original maturity.
A30: 2/ Maturity of more than one year.
A31: 3/ Domestic and external debt based on residency criterion.

Sheet Input 4 - Forecast
A1: 1 - Please fill the yellow-shaded cells in rows 24, 25, 27, 28 with debt service forecast (principal and interest payments) on existing debt, i.e., disbursed debt that is outstanding. Values should be entered in local currency units (LCU), unless otherwise specified. Data on debt service of existing debt may be obtained from authorities' debt management office or computed based on a loan-by-loan breakdown of outstanding debt obtained from databases like Bloomberg, Datastream, BEL, etc.
A2: 2 - Distribute the financing needs (identified in row 45) as new debts in yellow-shaded cells in rows 54-87.
A3: 3 - Please enter the terms and conditions of new debt in columns J-R. Note that new debt is assumed to be disbursed at the beginning of the year. Amortization of projected debt is assumed to take place at the end of the year for annual payment schedule and at mid-year and the year-end for semi-annual payment schedule. If grace is set equal to maturity, the template calculates amortization as only one payment at maturity (bullet bond).
A4: 4 - Residual financing need is assumed to be filled by domestic short-term debt issuance (row 89). Please minimize this residual as a source of financing as it does not assume any interest/amortization payments in the year of disbursement. Because this residual too represents debt issuance, it should not be allowed to become negative; please use row 42 or 43 to represent any accumulation of deposits arising from debt issuance in excess of projected financing needs.
C8: First Year of projection
C9: =FirstYear -> 2014 | D9: =C9+1 -> 2015 | E9: =D9+1 -> 2016 | F9: =E9+1 -> 2017 | G9: =F9+1 -> 2018 | H9: =G9+1 -> 2019
A12: Macro and Debt Service Forecast
A14: GDP at constant prices (level) in LCU | B14: =Scale&" LCU" -> Billions LCU | C14: ='Input 2 - Data'!Q5 -> 1365.262092 | D14: ='Input 2 - Data'!R5 -> 1375.489569 | E14: ='Input 2 - Data'!S5 -> 1390.069758 | F14: ='Input 2 - Data'!T5 -> 1409.531764 | G14: ='Input 2 - Data'!U5 -> 1429.276034 | H14: ='Input 2 - Data'!V5 -> 1446.427346
A15: GDP deflator in LCU | B15: Index | C15: ='Input 2 - Data'!Q6 -> 114.2548856 | D15: ='Input 2 - Data'!R6 -> 115.7401991 | E15: ='Input 2 - Data'!S6 -> 117.2448217 | F15: ='Input 2 - Data'!T6 -> 118.8862492 | G15: ='Input 2 - Data'!U6 -> 120.6100998 | H15: ='Input 2 - Data'!V6 -> 122.3830683
A16: Nominal GDP in LCU | B16: =Scale&" LCU" -> Billions LCU | C16: ='Input 2 - Data'!Q7 -> 1559.878641 | D16: ='Input 2 - Data'!R7 -> 1591.994366 | E16: ='Input 2 - Data'!S7 -> 1629.784809 | F16: ='Input 2 - Data'!T7 -> 1675.739445 | G16: ='Input 2 - Data'!U7 -> 1723.85125 | H16: ='Input 2 - Data'!V7 -> 1770.182166
A17: Nominal exchange rate -- average (LCU/USD) | B17: LCU/USD | C17: ='Input 2 - Data'!Q11 -> 0.7576682675 | D17: ='Input 2 - Data'!R11 -> 0.751442424 | E17: ='Input 2 - Data'!S11 -> 0.7440267393 | F17: ='Input 2 - Data'!T11 -> 0.7369787851 | G17: ='Input 2 - Data'!U11 -> 0.7310378163 | H17: ='Input 2 - Data'!V11 -> 0.7251450761
A18: Nominal exchange rate -- end of period (LCU/USD) | B18: LCU/USD | C18: ='Input 2 - Data'!Q12 -> 0.7557957551 | D18: ='Input 2 - Data'!R12 -> 0.7479505234 | E18: ='Input 2 - Data'!S12 -> 0.7407077535 | F18: ='Input 2 - Data'!T12 -> 0.7341606865 | G18: ='Input 2 - Data'!U12 -> 0.7282932232 | H18: ='Input 2 - Data'!V12 -> 0.7224768259
A20: Public sector non-interest revenues and grants | B20: =Scale&" LCU" -> Billions LCU | C20: ='Input 2 - Data'!Q16 -> 745.5630538 | D20: ='Input 2 - Data'!R16 -> 762.89647 | E20: ='Input 2 - Data'!S16 -> 782.406116 | F20: ='Input 2 - Data'!T16 -> 806.0456591 | G20: ='Input 2 - Data'!U16 -> 830.8024016 | H20: ='Input 2 - Data'!V16 -> 854.6728377
A21: Public sector interest revenue | B21: =Scale&" LCU" -> Billions LCU | C21: ='Input 2 - Data'!Q17 -> 3.0065 | D21: ='Input 2 - Data'!R17 -> 3.0065 | E21: ='Input 2 - Data'!S17 -> 2.775 | F21: ='Input 2 - Data'!T17 -> 2.775 | G21: ='Input 2 - Data'!U17 -> 2.775 | H21: ='Input 2 - Data'!V17 -> 2.775
A22: Public sector non-interest expenditures | B22: =Scale&" LCU" -> Billions LCU | C22: ='Input 2 - Data'!Q19 -> 712.862408 | D22: ='Input 2 - Data'!R19 -> 713.9789813 | E22: ='Input 2 - Data'!S19 -> 726.2410806 | F22: ='Input 2 - Data'!T19 -> 733.1165621 | G22: ='Input 2 - Data'!U19 -> 745.546646 | H22: ='Input 2 - Data'!V19 -> 759.0307245
A24: Interest expenditures on EXISTING debt denominated in local currency | B24: =Scale&" LCU" -> Billions LCU | C24: 84.00685929 | D24: 73.31114464 | E24: 67.48490232 | F24: 63.30965184 | G24: 58.92468968 | H24: 54.56804552
A25: Interest expenditures on EXISTING debt denominated in foreign currency | B25: =Scale&" LCU" -> Billions LCU | C25: 0 | D25: 0 | E25: 0 | F25: 0 | G25: 0 | H25: 0
A27: Principal payments on EXISTING debt denominated in local currency | B27: =Scale&" LCU" -> Billions LCU | C27: 310.8700998 | D27: 176.4577074 | E27: 179.7179593 | F27: 119.2502342 | G27: 135.1321902 | H27: 64.92998278
A28: Principal payments on EXISTING debt denominated in foreign currency | B28: =Scale&" LCU" -> Billions LCU | C28: 0 | D28: 0 | E28: 0 | F28: 0 | G28: 0 | H28: 0
A30: Recognition of implicit contingent liability | B30: =Scale&" LCU" -> Billions LCU | C30: ='Input 2 - Data'!Q26 -> 0 | D30: ='Input 2 - Data'!R26 -> 0 | E30: ='Input 2 - Data'!S26 -> 0 | F30: ='Input 2 - Data'!T26 -> 0 | G30: ='Input 2 - Data'!U26 -> 0 | H30: ='Input 2 - Data'!V26 -> 0
A32: Interest expenditures on NEW debt denominated in local currency | B32: =Scale&" LCU" -> Billions LCU | C32: =Baseline!B22 -> 1.149799971 | D32: =Baseline!C22 -> 10.7498915 | E32: =Baseline!D22 -> 19.98833062 | F32: =Baseline!E22 -> 29.49599156 | G32: =Baseline!F22 -> 37.1794557 | H32: =Baseline!G22 -> 45.22765726
A33: Interest expenditures on NEW debt denominated in foreign currency | B33: =Scale&" LCU" -> Billions LCU | C33: =Baseline!B23 -> 0 | D33: =Baseline!C23 -> 0 | E33: =Baseline!D23 -> 0 | F33: =Baseline!E23 -> 0 | G33: =Baseline!F23 -> 0 | H33: =Baseline!G23 -> 0
A34: Principal payments on NEW debt denominated in local currency | B34: =Scale&" LCU" -> Billions LCU | C34: =Baseline!B24 -> 0 | D34: =Baseline!C24 -> 151.0488233 | E34: =Baseline!D24 -> 181.4435783 | F34: =Baseline!E24 -> 228.1655252 | G34: =Baseline!F24 -> 236.5173058 | H34: =Baseline!G24 -> 298.9228859
A35: Principal payments on NEW debt denominated in foreign currency | B35: =Scale&" LCU" -> Billions LCU | C35: =Baseline!B25 -> 0 | D35: =Baseline!C25 -> 0 | E35: =Baseline!D25 -> 0 | F35: =Baseline!E25 -> 0 | G35: =Baseline!F25 -> 0 | H35: =Baseline!G25 -> 0
A37: Gross financing requirements | B37: =Scale&" LCU" -> Billions LCU | C37: =SUM(C22:C25,C27:C28,C30,C32:C35)-SUM(C20:C21) -> 360.3196133 | D37: 359.6435783 | E37: 389.6947352 | F37: 364.5173058 | G37: 379.7228859 | H37: 365.2314582
A39: Change in domestic arrears (+ reduces financing needs) | B39: =Scale&" LCU" -> Billions LCU | C39: ='Input 2 - Data'!Q28 -> -12.2 | D39: ='Input 2 - Data'!R28 -> -20 | E39: ='Input 2 - Data'!S28 -> 0 | F39: ='Input 2 - Data'!T28 -> 0 | G39: ='Input 2 - Data'!U28 -> 0 | H39: ='Input 2 - Data'!V28 -> 0
A40: Change in external arrears (+ reduces financing needs) | B40: =Scale&" LCU" -> Billions LCU | C40: ='Input 2 - Data'!Q29 -> 0 | D40: ='Input 2 - Data'!R29 -> 0 | E40: ='Input 2 - Data'!S29 -> 0 | F40: ='Input 2 - Data'!T29 -> 0 | G40: ='Input 2 - Data'!U29 -> 0 | H40: ='Input 2 - Data'!V29 -> 0
A41: Debt relief (+ reduces financing needs) | B41: =Scale&" LCU" -> Billions LCU | C41: ='Input 2 - Data'!Q30 -> 0 | D41: ='Input 2 - Data'!R30 -> 0 | E41: ='Input 2 - Data'!S30 -> 0 | F41: ='Input 2 - Data'!T30 -> 0 | G41: ='Input 2 - Data'!U30 -> 0 | H41: ='Input 2 - Data'!V30 -> 0
A42: ='Input 2 - Data'!D31 -> Please specify (1) (e.g., privatization receipts) (+ reduces financing needs) | B42: =Scale&" LCU" -> Billions LCU | C42: ='Input 2 - Data'!Q31 -> 0 | D42: ='Input 2 - Data'!R31 -> 0 | E42: ='Input 2 - Data'!S31 -> 0 | F42: ='Input 2 - Data'!T31 -> 0 | G42: ='Input 2 - Data'!U31 -> 0 | H42: ='Input 2 - Data'!V31 -> 0
A43: ='Input 2 - Data'!D32 -> Please specify (2) (e.g., other debt flows) (+ increases financing needs) | B43: =Scale&" LCU" -> Billions LCU | C43: ='Input 2 - Data'!Q32 -> 5.7 | D43: ='Input 2 - Data'!R32 -> 2.9 | E43: ='Input 2 - Data'!S32 -> 0 | F43: ='Input 2 - Data'!T32 -> 0 | G43: ='Input 2 - Data'!U32 -> 0 | H43: ='Input 2 - Data'!V32 -> 0
A45: Financing needs to be filled with new issuance | B45: =Scale&" LCU" -> Billions LCU | C45: =C37-C39-C40-C41-C42+C43 -> 378.2196133 | D45: 382.5435783 | E45: 389.6947352 | F45: 364.5173058 | G45: 379.7228859 | H45: 365.2314582
C47: First Year of projection
C48: =FirstYear -> 2014 | D48: =C48+1 -> 2015 | E48: =D48+1 -> 2016 | F48: =E48+1 -> 2017 | G48: =F48+1 -> 2018 | H48: =G48+1 -> 2019
A50: Issuance of New Debt to Fill Fiscal Needs | J50: Semi-annual or annual payments | K50: Grace period | L50: Maturity | M50: =CONCATENATE("Interest Rate on debt issued in ",C9) -> Interest Rate on debt issued in 2014 | N50: Interest Rate on debt issued in 2015 | O50: Interest Rate on debt issued in 2016 | P50: Interest Rate on debt issued in 2017 | Q50: Interest Rate on debt issued in 2018 | R50: Interest Rate on debt issued in 2019
A52: Total New Debt Issuance (domestic and external) | B52: =Scale&" LCU" -> Billions LCU | C52: =C54+C71 -> 378.17079 | D52: =D54+D71 -> 382.5 | E52: 389.6 | F52: 364 | G52: 379.5 | H52: 365.2191879
A54: New Issuance of Domestic Debt (new debt) 1/ | B54: =Scale&" LCU" -> Billions LCU | C54: =C55+C58 -> 378.17079 | D54: =D55+D58 -> 382.5 | E54: 389.6 | F54: 364 | G54: 379.5 | H54: 365.2191879
A55: Short-term debt 2/ | B55: Billions LCU | C55: =C56+C57 -> 151 | D55: =D56+D57 -> 151 | E55: 151 | F55: 151 | G55: 151 | H55: 151
A56: Denominated in local currency | B56: Billions LCU | C56: 151 | D56: 151 | E56: 151 | F56: 151 | G56: 151 | H56: 151 | J56: Semi-annual | K56: 1 | L56: 1 | M56: 0.01522913869 | N56: 0.0168625 | O56: 0.019825 | P56: 0.0238 | Q56: 0.0270125 | R56: 0.0299375
A57: Denominated in foreign currency | B57: Billions LCU | C57: 0 | D57: 0 | E57: 0 | F57: 0 | G57: 0 | H57: 0 | J57: Semi-annual | K57: 1 | L57: 1 | M57: 0.03 | N57: 0.03 | O57: 0.03 | P57: 0.03 | Q57: 0.03 | R57: 0.03
A58: Long-term debt 3/ | B58: Billions LCU | C58: =C59+C65 -> 227.17079 | D58: =D59+D65 -> 231.5 | E58: 238.6 | F58: 213 | G58: 228.5 | H58: 214.2191879
A59: Denominated in local currency | B59: Billions LCU | C59: =SUM(C60:C64) -> 227.17079 | D59: =SUM(D60:D64) -> 231.5 | E59: 238.6 | F59: 213 | G59: 228.5 | H59: 214.2191879
A60: Type 1 | B60: Billions LCU | C60: 30.4 | D60: 35 | E60: 40 | F60: 35 | G60: 40 | H60: 30.5 | J60: Annual | K60: 2 | L60: 2 | M60: 0.02561456935 | N60: 0.02743125 | O60: 0.0304125 | P60: 0.0329 | Q60: 0.03500625 | R60: 0.03646875
A61: Type 2 | B61: Billions LCU | C61: 42.07079001 | D61: 45 | E61: 48 | F61: 40 | G61: 45 | H61: 38.31918794 | J61: Annual | K61: 3 | L61: 3 | M61: 0.02561456935 | N61: 0.02743125 | O61: 0.0304125 | P61: 0.0329 | Q61: 0.03500625 | R61: 0.03646875
A62: Type 3 | B62: Billions LCU | C62: 64.7 | D62: 57.5 | E62: 59.6 | F62: 48 | G62: 53.5 | H62: 55.4 | J62: Annual | K62: 5 | L62: 5 | M62: 0.036 | N62: 0.038 | O62: 0.041 | P62: 0.042 | Q62: 0.043 | R62: 0.043
A63: Type 4 | B63: Billions LCU | C63: 90 | D63: 94 | E63: 91 | F63: 90 | G63: 90 | H63: 90 | J63: Annual | K63: 10 | L63: 10 | M63: 0.046 | N63: 0.048 | O63: 0.051 | P63: 0.052 | Q63: 0.053 | R63: 0.053
A64: ZERO-COUPON BOND | B64: Billions LCU | C64: 0 | D64: 0 | E64: 0 | F64: 0 | G64: 0 | H64: 0 | K64: =L64 -> 3 | L64: 3 | M64: 0.12 | N64: 0.125 | O64: 0.13 | P64: 0.13 | Q64: 0.13 | R64: 0.13
A65: Denominated in foreign currency | B65: Billions LCU | C65: =SUM(C66:C70) -> 0 | D65: =SUM(D66:D70) -> 0 | E65: =SUM(E66:E70) -> 0 | F65: =SUM(F66:F70) -> 0 | G65: =SUM(G66:G70) -> 0 | H65: =SUM(H66:H70) -> 0
A66: Type 6 | B66: Billions LCU | C66: 0 | D66: 0 | E66: 0 | F66: 0 | G66: 0 | H66: 0 | J66: Annual | K66: 2 | L66: 2 | M66: 0.04 | N66: 0.045 | O66: 0.05 | P66: 0.05 | Q66: 0.05 | R66: 0.05
A67: Type 7 | B67: Billions LCU | C67: 0 | D67: 0 | E67: 0 | F67: 0 | G67: 0 | H67: 0 | J67: Annual | K67: 3 | L67: 3 | M67: 0.04 | N67: 0.045 | O67: 0.05 | P67: 0.05 | Q67: 0.05 | R67: 0.05
A68: Type 8 | B68: Billions LCU | C68: 0 | D68: 0 | E68: 0 | F68: 0 | G68: 0 | H68: 0 | J68: Annual | K68: 5 | L68: 5 | M68: 0.04 | N68: 0.045 | O68: 0.05 | P68: 0.05 | Q68: 0.05 | R68: 0.05
A69: Type 9 | B69: Billions LCU | C69: 0 | D69: 0 | E69: 0 | F69: 0 | G69: 0 | H69: 0 | J69: Annual | K69: 10 | L69: 10 | M69: 0.04 | N69: 0.045 | O69: 0.05 | P69: 0.05 | Q69: 0.05 | R69: 0.05
A70: ZERO-COUPON BOND | B70: Billions LCU | C70: 0 | D70: 0 | E70: 0 | F70: 0 | G70: 0 | H70: 0 | K70: =L70 -> 3 | L70: 3 | M70: 0.06 | N70: 0.065 | O70: 0.07 | P70: 0.07 | Q70: 0.07 | R70: 0.07
A71: New Issuance of External Debt (new debt) 1/ | B71: Billions LCU | C71: =C72+C75 -> 0 | D71: =D72+D75 -> 0 | E71: 0 | F71: 0 | G71: 0 | H71: 0
A72: Short-term debt 2/ | B72: Billions LCU | C72: =C73+C74 -> 0 | D72: =D73+D74 -> 0 | E72: 0 | F72: 0 | G72: 0 | H72: 0
A73: Denominated in local currency | B73: Billions LCU | C73: 0 | D73: 0 | E73: 0 | F73: 0 | G73: 0 | H73: 0 | J73: Semi-annual | K73: 1 | L73: 1 | M73: 0.07 | N73: 0.075 | O73: 0.08 | P73: 0.08 | Q73: 0.08 | R73: 0.08
A74: Denominated in foreign currency | B74: Billions LCU | C74: 0 | D74: 0 | E74: 0 | F74: 0 | G74: 0 | H74: 0 | J74: Semi-annual | K74: 1 | L74: 1 | M74: 0.01 | N74: 0.015 | O74: 0.02 | P74: 0.02 | Q74: 0.02 | R74: 0.02
A75: Long-term debt 3/ | B75: Billions LCU | C75: =C76+C82 -> 0 | D75: 0 | E75: 0 | F75: 0 | G75: 0 | H75: 0
A76: Denominated in local currency | B76: Billions LCU | C76: =SUM(C77:C81) -> 0 | D76: =SUM(D77:D81) -> 0 | E76: =SUM(E77:E81) -> 0 | F76: =SUM(F77:F81) -> 0 | G76: =SUM(G77:G81) -> 0 | H76: =SUM(H77:H81) -> 0
A77: Type 11 | B77: Billions LCU | C77: 0 | D77: 0 | E77: 0 | F77: 0 | G77: 0 | H77: 0 | J77: Annual | K77: 2 | L77: 2 | M77: 0.1 | N77: 0.105 | O77: 0.11 | P77: 0.11 | Q77: 0.11 | R77: 0.11
A78: Type 12 | B78: Billions LCU | C78: 0 | D78: 0 | E78: 0 | F78: 0 | G78: 0 | H78: 0 | J78: Annual | K78: 3 | L78: 3 | M78: 0.105 | N78: 0.11 | O78: 0.115 | P78: 0.115 | Q78: 0.115 | R78: 0.115
A79: Type 13 | B79: Billions LCU | C79: 0 | D79: 0 | E79: 0 | F79: 0 | G79: 0 | H79: 0 | J79: Annual | K79: 5 | L79: 5 | M79: 0.11 | N79: 0.115 | O79: 0.12 | P79: 0.12 | Q79: 0.12 | R79: 0.12
A80: Type 14 | B80: Billions LCU | C80: 0 | D80: 0 | E80: 0 | F80: 0 | G80: 0 | H80: 0 | J80: Annual | K80: 10 | L80: 10 | M80: 0.115 | N80: 0.12 | O80: 0.125 | P80: 0.125 | Q80: 0.125 | R80: 0.125
A81: ZERO-COUPON BOND | B81: Billions LCU | C81: 0 | D81: 0 | E81: 0 | F81: 0 | G81: 0 | H81: 0 | K81: =L81 -> 3 | L81: 3 | M81: 0.12 | N81: 0.125 | O81: 0.13 | P81: 0.13 | Q81: 0.13 | R81: 0.13
A82: Denominated in foreign currency | B82: Billions LCU | C82: =SUM(C83:C87) -> 0 | D82: =SUM(D83:D87) -> 0 | E82: =SUM(E83:E87) -> 0 | F82: =SUM(F83:F87) -> 0 | G82: =SUM(G83:G87) -> 0 | H82: =SUM(H83:H87) -> 0
A83: Type 16 | B83: Billions LCU | C83: 0 | D83: 0 | E83: 0 | F83: 0 | G83: 0 | H83: 0 | J83: Annual | K83: 2 | L83: 2 | M83: 0.04 | N83: 0.045 | O83: 0.05 | P83: 0.05 | Q83: 0.05 | R83: 0.05
A84: Type 17 | B84: Billions LCU | C84: 0 | D84: 0 | E84: 0 | F84: 0 | G84: 0 | H84: 0 | J84: Annual | K84: 3 | L84: 3 | M84: 0.045 | N84: 0.05 | O84: 0.055 | P84: 0.055 | Q84: 0.055 | R84: 0.055
A85: Type 18 | B85: Billions LCU | C85: 0 | D85: 0 | E85: 0 | F85: 0 | G85: 0 | H85: 0 | J85: Annual | K85: 5 | L85: 5 | M85: 0.05 | N85: 0.055 | O85: 0.06 | P85: 0.06 | Q85: 0.06 | R85: 0.06
A86: Type 19 | B86: Billions LCU | C86: 0 | D86: 0 | E86: 0 | F86: 0 | G86: 0 | H86: 0 | J86: Annual | K86: 10 | L86: 10 | M86: 0.055 | N86: 0.06 | O86: 0.065 | P86: 0.065 | Q86: 0.065 | R86: 0.065
A87: ZERO-COUPON BOND | B87: Billions LCU | C87: 0 | D87: 0 | E87: 0 | F87: 0 | G87: 0 | H87: 0 | K87: =L87 -> 3 | L87: 3 | M87: 0.06 | N87: 0.065 | O87: 0.07 | P87: 0.07 | Q87: 0.07 | R87: 0.07
A89: Domestic Residual Financing (annual payments, no interest or amortization in current year) | B89: =Scale&" LCU" -> Billions LCU | C89: =C45-C52 -> 0.04882330788 | D89: 0.04357825631 | E89: 0.09473515516 | F89: 0.517305839 | G89: 0.2228859253 | H89: 0.01227027935 | K89: 1 | L89: 1 | M89: 0.03 | N89: 0.0325 | O89: 0.0325 | P89: 0.035 | Q89: 0.035 | R89: 0.035
A91: 1/ Domestic and external debt based on residency criterion.
A92: 2/ Maturity of one year or less, based on original maturity.
A93: 3/ Maturity of more than one year.

Sheet Input 5 - Scenario Design
A1: 1 - Scrutiny level is automatically determined in cell J7. If users wish to override this classification (see Guidance Note for guidelines on reclassifying between Higher and Lower Scrutiny), please select an alternate scrutiny level in cell J8.
A2: 2 - Based on the scrutiny classification, the template automatically determines the relevant required shocks in the "Shock Scenario" section. To manually trigger non-default stress tests, use drop-down menus in cells J23, J25, J27 (contingent liability and customized shocks). Enter the short name(s) for customized shock(s) in cells T25 and T27.
A3: 3 - Click on colored buttons in column A to navigate to the "Shock Assumptions" section.
A4: 4 - In the "Shock Assumptions" section, users can change default values in the yellow-shaded cells (column B) to tailor shocks and pass-through interactions based on country-specific information. All possible shock scenarios are shown in this sheet, but only the required/triggered shocks will be automatically presented in the outputs.
A5: Scrutiny Classification
A7: Scrutiny classification based on debt burden indicators and exceptional access: | J7: =ScrutinyClassification_Auto -> Higher | K7: Scrutiny country
A8: Final scrutiny classification taking into account risk-amplifying or risk-mitigating factors, where relevant: | J8: Higher | K8: Scrutiny country
A11: Shock Scenario | D11: Shock Trigger (where relevant) | I11: Required? | M11: Shock Description
D13: Always required for all countries. | K13: Yes | M13: Real GDP growth rate, real interest rate, and primary balance are set to historical averages.
D14: Always required for all countries. | K14: Yes | M14: Constant primary balance as in the first year of projection in the baseline.
D16: Always required for High Scrutiny countries. Optional for Low Scrutiny countries. | K16: =IF(ScrutinyClassification_Final="Higher","Yes","No") -> Yes | M16: Minimum shock equivalent to 50% of planned adjustment (50% implemented), or baseline minus half of the 10-year historical standard deviation, whichever is larger. There is an increase in interest rates of 25bp for every 1% of GDP worsening in the primary balance.
D17: Always required for High Scrutiny countries. Optional for Low Scrutiny countries. | K17: =IF(ScrutinyClassification_Final="Higher","Yes","No") -> Yes | M17: Real GDP growth is reduced by 1 standard deviation for 2 consecutive years; revenue-to-GDP ratio remains the same as in the baseline; level of non-interest expenditures is the same as in the baseline; deterioration in primary balance lead to higher interest rate (see above); decline in growth leads to lower inflation (0.25 percentage points per 1 percentage point decrease in GDP growth).
D18: Always required for High Scrutiny countries. Optional for Low Scrutiny countries. | K18: =IF(ScrutinyClassification_Final="Higher","Yes","No") -> Yes | M18: Interest rate increases by difference between average real interest rate level over projection and maximum real historical level, or by 200bp, whichever is larger.
D19: Always required for High Scrutiny countries. Optional for Low Scrutiny countries. | K19: =IF(ScrutinyClassification_Final="Higher","Yes","No") -> Yes | M19: Estimate of overvaluation or maximum historical movement of the exchange rate, whichever is higher; pass-through to inflation with default elasticity of 0.25 for EMs and 0.03 for AEs.
D20: Always required for High Scrutiny countries. Optional for Low Scrutiny countries. | K20: =IF(ScrutinyClassification_Final="Higher","Yes","No") -> Yes | M20: Shock size and duration based on the underlying shocks.
J21: Select:
D23: Three year cumulative increase of the credit-to-GDP or loan-to-deposit ratio is greater than the threshold. Use the yellow drop-down menu to manually change the automatic trigger. | K23: =IF(CLTrigger_Auto=1, "Yes", "No") -> Yes | M23: One-time increase in non-interest expenditures equivalent to 10% of banking sector assets leads to a real GDP growth shock (see above): growth is reduced by 1 standard deviation for 2 consecutive years; revenue-to-GDP ratio remains the same as in the baseline; deterioration in primary balance lead to higher interest rate; decline in growth leads to lower inflation.
D25: Select "Yes" from the yellow drop-down menu to the right if you would like to run a customized shock | M25: Any custom size and duration of shock, to any variables. Short name:
D27: Select "Yes" from the yellow drop-down menu to the right if you would like to run a customized shock | M27: Any custom size and duration of shock, to any variables. Short name:
A29: Shock Assumptions | M29: Debt Burden Indicators
E31: First year of projection | M31: Nominal Debt-to-GDP | R31: Gross Financing Need-to-GDP
D32: Baseline | E32: =FirstYear -> 2014 | F32: =E32+1 -> 2015 | G32: =F32+1 -> 2016 | H32: 2017 | I32: 2018 | J32: 2019
D33: Real GDP growth | E33: ='Baseline debt'!P52 -> -0.01776031073 | F33: ='Baseline debt'!Q52 -> 0.007491219022 | G33: ='Baseline debt'!R52 -> 0.0106 | H33: ='Baseline debt'!S52 -> 0.01400074 | I33: ='Baseline debt'!T52 -> 0.01400768 | J33: ='Baseline debt'!U52 -> 0.012
D34: Inflation (GDP Deflator change) | E34: ='Baseline debt'!P54 -> 0.0141562491 | F34: ='Baseline debt'!Q54 -> 0.013 | G34: ='Baseline debt'!R54 -> 0.013 | H34: ='Baseline debt'!S54 -> 0.014 | I34: ='Baseline debt'!T54 -> 0.0145 | J34: ='Baseline debt'!U54 -> 0.0147
D35: Non-interest revenue-to-GDP ratio | E35: ='Input 4 - Forecast'!C20/'Input 4 - Forecast'!C16 -> 0.4779622173 | F35: ='Input 4 - Forecast'!D20/'Input 4 - Forecast'!D16 -> 0.4792080214 | G35: ='Input 4 - Forecast'!E20/'Input 4 - Forecast'!E16 -> 0.48006713 | H35: ='Input 4 - Forecast'!F20/'Input 4 - Forecast'!F16 -> 0.481008943 | I35: ='Input 4 - Forecast'!G20/'Input 4 - Forecast'!G16 -> 0.4819455283 | J35: ='Input 4 - Forecast'!H20/'Input 4 - Forecast'!H16 -> 0.4828163192
D36: Non-interest expenditure-to-GDP ratio | E36: ='Input 4 - Forecast'!C22/'Input 4 - Forecast'!C16 -> 0.456998634 | F36: ='Input 4 - Forecast'!D22/'Input 4 - Forecast'!D16 -> 0.4484808469 | G36: ='Input 4 - Forecast'!E22/'Input 4 - Forecast'!E16 -> 0.4456055035 | H36: ='Input 4 - Forecast'!F22/'Input 4 - Forecast'!F16 -> 0.4374883962 | I36: ='Input 4 - Forecast'!G22/'Input 4 - Forecast'!G16 -> 0.4324889667 | J36: ='Input 4 - Forecast'!H22/'Input 4 - Forecast'!H16 -> 0.4287867876
D37: Primary Balance | E37: =E35-E36 -> 0.02096358328 | F37: =F35-F36 -> 0.03072717447 | G37: 0.03446162649 | H37: 0.04352054682 | I37: 0.04945656159 | J37: 0.05402953159
D38: Nominal Exchange Rate -- average (LCU/USD) | E38: ='Input 4 - Forecast'!C17 -> 0.7576682675 | F38: ='Input 4 - Forecast'!D17 -> 0.751442424 | G38: ='Input 4 - Forecast'!E17 -> 0.7440267393 | H38: ='Input 4 - Forecast'!F17 -> 0.7369787851 | I38: ='Input 4 - Forecast'!G17 -> 0.7310378163 | J38: ='Input 4 - Forecast'!H17 -> 0.7251450761
D39: Nominal Exchange Rate -- end of period (LCU/USD) | E39: ='Input 4 - Forecast'!C18 -> 0.7557957551 | F39: ='Input 4 - Forecast'!D18 -> 0.7479505234 | G39: ='Input 4 - Forecast'!E18 -> 0.7407077535 | H39: ='Input 4 - Forecast'!F18 -> 0.7341606865 | I39: ='Input 4 - Forecast'!G18 -> 0.7282932232 | J39: ='Input 4 - Forecast'!H18 -> 0.7224768259
A42: Primary Balance Shock | D42: Primary Balance Shock | E42: =E32 -> 2014 | F42: =F32 -> 2015 | G42: =G32 -> 2016 | H42: 2017 | I42: 2018 | J42: 2019
D43: Real GDP growth | E43: =E33 -> -0.01776031073 | F43: =F33 -> 0.007491219022 | G43: =G33 -> 0.0106 | H43: 0.01400074 | I43: 0.01400768 | J43: 0.012
D44: Inflation (GDP Deflator change) | E44: =E34 -> 0.0141562491 | F44: 0.013 | G44: 0.013 | H44: 0.014 | I44: 0.0145 | J44: 0.0147
A45: Impact on revenue | B45: 0 | D45: Non-interest revenue-to-GDP ratio | E45: 0.4779622173 | F45: =F$35-$B$45*(F$37-F47) -> 0.4792080214 | G45: =G$35-$B$45*(G$37-G47) -> 0.48006713 | H45: =H$35-$B$45*(H$37-H47) -> 0.481008943 | I45: =I$35-$B$45*(I$37-I47) -> 0.4819455283 | J45: =J$35-$B$45*(J$37-J47) -> 0.4828163192
D46: Non-interest expenditure-to-GDP ratio | E46: 0.456998634 | F46: =F45-F47 -> 0.4533626425 | G46: =G45-G47 -> 0.4474727295 | H46: =H45-H47 -> 0.4420178563 | I46: =I45-I47 -> 0.4354569741 | J46: =J45-J47 -> 0.4310732726
D47: Primary Balance | E47: =E37 -> 0.02096358328 | F47: =IF($B$54>$B$60,F53,F59) -> 0.02584537887 | G47: =IF($B$54>$B$60,G53,G59) -> 0.03259440048 | H47: 0.03899108666 | I47: 0.0464885542 | J47: 0.05174304659
D48: Nominal Exchange Rate -- average (LCU/USD) | E48: 0.7576682675 | F48: =F38 -> 0.751442424 | G48: 0.7440267393 | H48: 0.7369787851 | I48: 0.7310378163 | J48: 0.7251450761
D49: Nominal Exchange Rate -- end of period (LCU/USD) | E49: 0.7557957551 | F49: 0.7479505234 | G49: 0.7407077535 | H49: 0.7341606865 | I49: 0.7282932232 | J49: 0.7224768259
A50: Interest rate shock (bps) | B50: 25 | D50: Interest rate shock (bps) compared to baseline | E50: 0 | F50: =$B50*(F$37-F47)*100 -> 12.20448899 | G50: =$B50*(G$37-G47)*100 -> 4.668065023 | H50: =$B50*(H$37-H47)*100 -> 11.32365041 | I50: =$B50*(I$37-I47)*100 -> 7.420018457 | J50: =$B50*(J$37-J47)*100 -> 5.716212498
A52: Based on planned adjustment | D52: Based on planned adjustment | E52: =E42 -> 2014 | F52: 2015 | G52: 2016 | H52: 2017 | I52: 2018 | J52: =J42 -> 2019
A53: Size of primary balance shock | B53: 0.5 | D53: Primary Balance | E53: =E37 -> 0.02096358328 | F53: =IF(F37-E37>0,F37-$B$53*(F37-E37),F37) -> 0.02584537887 | G53: =IF(G37-F37>0,G37-$B$53*(G37-F37),G37) -> 0.03259440048 | H53: =IF(H37-G37>0,H37-$B$53*(H37-G37),H37) -> 0.03899108666 | I53: =IF(I37-H37>0,I37-$B$53*(I37-H37),I37) -> 0.0464885542 | J53: =IF(J37-I37>0,J37-$B$53*(J37-I37),J37) -> 0.05174304659
A54: Cumulative shock impact | B54: =SUM(E54:J54) -> 0.01653297415 | D54: deterioration from baseline | E54: =E37-E53 -> 0 | F54: =F37-F53 -> 0.004881795597 | G54: =G37-G53 -> 0.001867226009 | H54: =H37-H53 -> 0.004529460166 | I54: =I37-I53 -> 0.002968007383 | J54: =J37-J53 -> 0.002286484999
A58: Based on 10Y historical st. dev. | D58: Based on 10Y historical st. dev. | E58: =E52 -> 2014 | F58: =F52 -> 2015 | G58: 2016 | H58: 2017 | I58: 2018 | J58: 2019
D59: Primary Balance | E59: =E37 -> 0.02096358328 | F59: =F37-0.5*'Baseline debt'!$E$103 -> 0.02454129311 | G59: =G37-0.5*'Baseline debt'!$E$103 -> 0.02827574513 | H59: =H37 -> 0.04352054682 | I59: =I37 -> 0.04945656159 | J59: 0.05402953159
A60: Cumulative shock impact | B60: =SUM(E60:J60) -> 0.01237176272 | D60: deterioration from baseline | E60: =E37-E59 -> 0 | F60: =F37-F59 -> 0.006185881358 | G60: =G37-G59 -> 0.006185881358 | H60: 0 | I60: 0 | J60: 0
A62: Real GDP Growth Shock | D62: Real GDP Growth Shock | E62: =E42 -> 2014 | F62: 2015 | G62: 2016 | H62: 2017 | I62: 2018 | J62: 2019
A63: Size of real GDP growth shock | B63: 1 | D63: Real GDP growth | E63: =E33 -> -0.01776031073 | F63: =F33-$B$63*'Baseline debt'!$E100 -> -0.01649025214 | G63: =G33-$B$63*'Baseline debt'!$E100 -> -0.01338147116 | H63: =H33 -> 0.01400074 | I63: =I33 -> 0.01400768 | J63: =J33 -> 0.012
A64: Inflation shock (bps) | B64: 25 | D64: Inflation (GDP Deflator change) | E64: =E34 -> 0.0141562491 | F64: =F34-(F33-F63)*$B$64/100 -> 0.007004632209 | G64: =G34-(G33-G63)*$B$64/100 -> 0.007004632209 | H64: =H34-(H33-H63)*$B$64/100 -> 0.014 | I64: =I34-(I33-I63)*$B$64/100 -> 0.0145 | J64: =J34-(J33-J63)*$B$64/100 -> 0.0147
A65: Impact on non-interest revenue | D65: Non-interest revenue-to-GDP ratio | E65: =E35 -> 0.4779622173 | F65: =F35 -> 0.4792080214 | G65: =G35 -> 0.48006713 | H65: =H35 -> 0.481008943 | I65: =I35 -> 0.4819455283 | J65: =J35 -> 0.4828163192
A66: Impact on non-interest expenditures | D66: Non-interest expenditure-to-GDP ratio | E66: 0.456998634 | F66: ='Input 4 - Forecast'!D22/growth!C35 -> 0.4621516187 | G66: ='Input 4 - Forecast'!E22/growth!D35 -> 0.4731503086 | H66: =H36 -> 0.4374883962 | I66: 0.4324889667 | J66: 0.4287867876
D67: Primary Balance | E67: 0.02096358328 | F67: =F65-F66 -> 0.01705640264 | G67: =G65-G66 -> 0.006916821427 | H67: 0.04352054682 | I67: 0.04945656159 | J67: 0.05402953159
D68: Nominal Exchange Rate -- average (LCU/USD) | E68: 0.7576682675 | F68: =F38 -> 0.751442424 | G68: =G38 -> 0.7440267393 | H68: 0.7369787851 | I68: 0.7310378163 | J68: 0.7251450761
D69: Nominal Exchange Rate -- end of period (LCU/USD) | E69: 0.7557957551 | F69: =F39 -> 0.7479505234 | G69: =G39 -> 0.7407077535 | H69: 0.7341606865 | I69: 0.7282932232 | J69: 0.7224768259
A70: Interest rate shock (bps) | B70: 25 | D70: Interest rate shock (bps) compared to baseline | E70: 0 | F70: =$B70*(F$37-F67)*100 -> 34.17692958 | G70: =$B70*(G$37-G67)*100 -> 68.86201266 | H70: =$B70*(H$37-H67)*100 -> 0 | I70: =$B70*(I$37-I67)*100 -> 0 | J70: =$B70*(J$37-J67)*100 -> 0
A72: Interest Rate Shock | D72: Interest Rate Shock | E72: =E62 -> 2014 | F72: =F62 -> 2015 | G72: 2016 | H72: 2017 | I72: 2018 | J72: 2019
D73: Real GDP growth | E73: =E33 -> -0.01776031073 | F73: =F33 -> 0.007491219022 | G73: 0.0106 | H73: 0.01400074 | I73: 0.01400768 | J73: 0.012
D74: Inflation (GDP Deflator change) | E74: =E34 -> 0.0141562491 | F74: 0.013 | G74: 0.013 | H74: 0.014 | I74: 0.0145 | J74: 0.0147
D75: Non-interest revenue-to-GDP ratio | E75: 0.4779622173 | F75: =F35 -> 0.4792080214 | G75: =G35 -> 0.48006713 | H75: =H35 -> 0.481008943 | I75: =I35 -> 0.4819455283 | J75: =J35 -> 0.4828163192
D76: Non-interest expenditure-to-GDP ratio | E76: 0.456998634 | F76: 0.4484808469 | G76: 0.4456055035 | H76: 0.4374883962 | I76: 0.4324889667 | J76: 0.4287867876
D77: Primary Balance | E77: 0.02096358328 | F77: 0.03072717447 | G77: 0.03446162649 | H77: 0.04352054682 | I77: 0.04945656159 | J77: 0.05402953159
D78: Nominal Exchange Rate -- average (LCU/USD) | E78: 0.7576682675 | F78: 0.751442424 | G78: 0.7440267393 | H78: 0.7369787851 | I78: 0.7310378163 | J78: 0.7251450761
D79: Nominal Exchange Rate -- end of period (LCU/USD) | E79: 0.7557957551 | F79: 0.7479505234 | G79: 0.7407077535 | H79: 0.7341606865 | I79: 0.7282932232 | J79: 0.7224768259
A80: Interest rate shock (bps) | B80: =MAX('Baseline debt'!U99,200) -> 200 | D80: Interest rate shock (bps) compared to baseline | E80: 0 | F80: =$B$80 -> 200 | G80: =$B$80 -> 200 | H80: =$B$80 -> 200 | I80: =$B$80 -> 200 | J80: =$B$80 -> 200
A82: Real Exchange Rate Shock | D82: Exchange Rate Shock | E82: =E72 -> 2014 | F82: =F72 -> 2015 | G82: 2016 | H82: 2017 | I82: 2018 | J82: 2019
D83: Real GDP growth | E83: =E33 -> -0.01776031073 | F83: 0.007491219022 | G83: 0.0106 | H83: 0.01400074 | I83: 0.01400768 | J83: 0.012
A84: Pass-through to inflation | B84: =IF(AEStatus=1,0.03,0.25) -> 0.03 | D84: Inflation (GDP Deflator change) | E84: =E34 -> 0.0141562491 | F84: =F$34+B84*B90 -> 0.01704694955 | G84: =G34 -> 0.013 | H84: 0.014 | I84: 0.0145 | J84: 0.0147
D85: Non-interest revenue-to-GDP ratio | E85: 0.4779622173 | F85: =F35 -> 0.4792080214 | G85: =G35 -> 0.48006713 | H85: =H35 -> 0.481008943 | I85: =I35 -> 0.4819455283 | J85: =J35 -> 0.4828163192
D86: Non-interest expenditure-to-GDP ratio | E86: 0.456998634 | F86: =F36 -> 0.4484808469 | G86: 0.4456055035 | H86: 0.4374883962 | I86: 0.4324889667 | J86: 0.4287867876
D87: Primary Balance | E87: 0.02096358328 | F87: =F37 -> 0.03072717447 | G87: 0.03446162649 | H87: 0.04352054682 | I87: 0.04945656159 | J87: 0.05402953159
D88: Nominal Exchange Rate -- average (LCU/USD) | E88: 0.7576682675 | F88: =F38*(1+B$90) -> 0.8528107434 | G88: =F88*G38/F38 -> 0.8443946953 | H88: 0.836395984 | I88: 0.8296535885 | J88: 0.8229659275
A89: Real Exchange Rate Shock | B89: =MAX(MAX('Baseline debt'!F75:O75),REER) -> 0.1308513689 | D89: Nominal Exchange Rate -- end of period (LCU/USD) | E89: 0.7557957551 | F89: =F39*(1+B$90) -> 0.8488477913 | G89: 0.8406279839 | H89: 0.8331977286 | I89: 0.8265387543 | J89: 0.8199377348
A90: Nominal exchange rate shock | B90: =B89/(1-B84) -> 0.1348983185 | D90: Interest rate shock (bps) compared to baseline | E90: 0 | F90: 0 | G90: 0 | H90: 0 | I90: 0 | J90: 0
A92: Combined Macro-Fiscal Shock | D92: Combined Macro-Fiscal Shock | E92: =E82 -> 2014 | F92: =F82 -> 2015 | G92: =G82 -> 2016 | H92: 2017 | I92: 2018 | J92: 2019
D93: Real GDP growth | E93: =E33 -> -0.01776031073 | F93: =MIN(F33,F43,F63,F73,F83) -> -0.01649025214 | G93: -0.01338147116 | H93: 0.01400074 | I93: 0.01400768 | J93: 0.012
D94: Inflation (GDP Deflator change) | E94: 0.0141562491 | F94: 0.007004632209 | G94: 0.007004632209 | H94: 0.014 | I94: 0.0145 | J94: 0.0147
D95: Non-interest revenue-to-GDP ratio | E95: =E35 -> 0.4779622173 | F95: 0.4792080214 | G95: 0.48006713 | H95: 0.481008943 | I95: 0.4819455283 | J95: 0.4828163192
D96: Non-interest expenditure-to-GDP ratio | E96: 0.456998634 | F96: =MAX(F36,F46,F66,F76,F86) -> 0.4621516187 | G96: =MAX(G36,G46,G66,G76,G86) -> 0.4731503086 | H96: =MAX(H36,H46,H66,H76,H86) -> 0.4420178563 | I96: =MAX(I36,I46,I66,I76,I86) -> 0.4354569741 | J96: =MAX(J36,J46,J66,J76,J86) -> 0.4310732726
D97: Primary Balance | E97: 0.02096358328 | F97: =F95-F96 -> 0.01705640264 | G97: =G95-G96 -> 0.006916821427 | H97: 0.03899108666 | I97: 0.0464885542 | J97: 0.05174304659
D98: Nominal Exchange Rate -- average (LCU/USD) | E98: 0.7576682675 | F98: =MAX(F38,F48,F68,F78,F88) -> 0.8528107434 | G98: 0.8443946953 | H98: 0.836395984 | I98: 0.8296535885 | J98: 0.8229659275
D99: Nominal Exchange Rate -- end of period (LCU/USD) | E99: 0.7557957551 | F99: 0.8488477913 | G99: 0.8406279839 | H99: 0.8331977286 | I99: 0.8265387543 | J99: 0.8199377348
D100: Interest rate shock (bps) compared to baseline | E100: 0 | F100: 200 | G100: 200 | H100: 200 | I100: 200 | J100: 200
A102: Financial Contingent Liability Shock | D102: Financial Contingent Liability Shock | E102: =E92 -> 2014 | F102: =F92 -> 2015 | G102: 2016 | H102: 2017 | I102: 2018 | J102: 2019
A103: Size of real GDP growth shock | B103: 1 | D103: Real GDP growth | E103: =E33 -> -0.01776031073 | F103: =F33-$B$103*'Baseline debt'!$E100 -> -0.01649025214 | G103: =G33-$B$103*'Baseline debt'!$E100 -> -0.01338147116 | H103: 0.01400074 | I103: 0.01400768 | J103: 0.012
A104: Inflation shock (bps) | B104: 25 | D104: Inflation (GDP Deflator change) | E104: =E34 -> 0.0141562491 | F104: =F34-(F33-F103)*$B$104/100 -> 0.007004632209 | G104: =G34-(G33-G103)*$B$104/100 -> 0.007004632209 | H104: =H34-(H33-H103)*$B$104/100 -> 0.014 | I104: =I34-(I33-I103)*$B$104/100 -> 0.0145 | J104: 0.0147
A105: Impact on revenue | D105: Non-interest revenue-to-GDP ratio | E105: 0.4779622173 | F105: 0.4792080214 | G105: 0.48006713 | H105: 0.481008943 | I105: 0.4819455283 | J105: 0.4828163192
A106: Impact on expenditures | B106: 0.1 | D106: Non-interest expenditure-to-GDP ratio | E106: 0.456998634 | F106: =F36+B106*('Input 3 - Debt and Banking'!$N$20/100) -> 0.5667562089 | G106: =G36 -> 0.4456055035 | H106: 0.4374883962 | I106: 0.4324889667 | J106: 0.4287867876
D107: Primary Balance | E107: 0.02096358328 | F107: =F105-F106 -> -0.08754818751 | G107: 0.03446162649 | H107: 0.04352054682 | I107: 0.04945656159 | J107: 0.05402953159
D108: Nominal Exchange Rate -- average (LCU/USD) | E108: 0.7576682675 | F108: =F38 -> 0.751442424 | G108: 0.7440267393 | H108: 0.7369787851 | I108: 0.7310378163 | J108: 0.7251450761
D109: Nominal Exchange Rate -- end of period (LCU/USD) | E109: 0.7557957551 | F109: =F39 -> 0.7479505234 | G109: 0.7407077535 | H109: 0.7341606865 | I109: 0.7282932232 | J109: 0.7224768259
A110: Interest rate shock (bps) | B110: 25 | D110: Interest rate shock (bps) compared to baseline | E110: 0 | F110: =$B110*(F$37-F107)*100 -> 295.6884049 | G110: =$B110*(G$37-G107)*100 -> 0 | H110: =$B110*(H$37-H107)*100 -> 0 | I110: =$B110*(I$37-I107)*100 -> 0 | J110: =$B110*(J$37-J107)*100 -> 0
A112: =IF(ISBLANK(Custom1Name), "Customized Shock 1",Custom1Name) -> Customized Shock 1 | D112: =IF(ISBLANK(Custom1Name), "Customized Shock 1",Custom1Name) -> Customized Shock 1 | E112: =E102 -> 2014 | F112: =F102 -> 2015 | G112: 2016 | H112: 2017 | I112: 2018 | J112: 2019
D113: Real GDP growth | E113: =E33 -> -0.01776031073 | F113: =F33-2% -> -0.01250878098 | G113: =G33-2% -> -0.0094 | H113: =H33-2% -> -0.00599926 | I113: =I33-2% -> -0.00599232 | J113: =J33-2% -> -0.008
D114: Inflation (GDP Deflator change) | E114: 0.0141562491 | F114: =F34 -> 0.013 | G114: =G34 -> 0.013 | H114: =H34 -> 0.014 | I114: =I34 -> 0.0145 | J114: =J34 -> 0.0147
D115: Non-interest revenue-to-GDP ratio | E115: 0.4779622173 | F115: =F35-2% -> 0.4592080214 | G115: =G35-2% -> 0.46006713 | H115: 0.461008943 | I115: 0.4619455283 | J115: 0.4628163192
D116: Non-interest expenditure-to-GDP ratio | E116: 0.456998634 | F116: =F36 -> 0.4484808469 | G116: =G36 -> 0.4456055035 | H116: =H36 -> 0.4374883962 | I116: =I36 -> 0.4324889667 | J116: =J36 -> 0.4287867876
D117: Primary Balance | E117: 0.02096358328 | F117: =F115-F116 -> 0.01072717447 | G117: =G115-G116 -> 0.01446162649 | H117: =H115-H116 -> 0.02352054682 | I117: =I115-I116 -> 0.02945656159 | J117: =J115-J116 -> 0.03402953159
D118: Nominal Exchange Rate -- average (LCU/USD) | E118: 0.7576682675 | F118: =F38 -> 0.751442424 | G118: 0.7440267393 | H118: 0.7369787851 | I118: 0.7310378163 | J118: 0.7251450761
D119: Nominal Exchange Rate -- end of period (LCU/USD) | E119: 0.7557957551 | F119: 0.7479505234 | G119: 0.7407077535 | H119: 0.7341606865 | I119: 0.7282932232 | J119: 0.7224768259
D120: Interest rate shock (bps) compared to baseline | E120: 0 | F120: 25 | G120: 25 | H120: 25 | I120: 25 | J120: 25
A122: =IF(ISBLANK(Custom2Name), "Customized Shock 2",Custom2Name) -> Customized Shock 2 | D122: =IF(ISBLANK(Custom2Name), "Customized Shock 2",Custom2Name) -> Customized Shock 2 | E122: =E112 -> 2014 | F122: =F112 -> 2015 | G122: 2016 | H122: 2017 | I122: 2018 | J122: 2019
D123: Real GDP growth | E123: =E33 -> -0.01776031073 | F123: =F33-1% -> -0.002508780978 | G123: =G33-1% -> 0.0006 | H123: 0.00400074 | I123: 0.00400768 | J123: 0.002
D124: Inflation (GDP Deflator change) | E124: =E34 -> 0.0141562491 | F124: 0.013 | G124: 0.013 | H124: 0.014 | I124: 0.0145 | J124: 0.0147
D125: Non-interest revenue-to-GDP ratio | E125: 0.4779622173 | F125: =F35-5% -> 0.4292080214 | G125: =G35-5% -> 0.43006713 | H125: 0.431008943 | I125: 0.4319455283 | J125: 0.4328163192
D126: Non-interest expenditure-to-GDP ratio | E126: 0.456998634 | F126: 0.4484808469 | G126: 0.4456055035 | H126: 0.4374883962 | I126: 0.4324889667 | J126: 0.4287867876
D127: Primary Balance | E127: 0.02096358328 | F127: 0.03072717447 | G127: 0.03446162649 | H127: 0.04352054682 | I127: 0.04945656159 | J127: 0.05402953159
D128: Nominal Exchange Rate -- average (LCU/USD) | E128: 0.7576682675 | F128: 0.751442424 | G128: 0.7440267393 | H128: 0.7369787851 | I128: 0.7310378163 | J128: 0.7251450761
D129: Nominal Exchange Rate -- end of period (LCU/USD) | E129: 0.7557957551 | F129: 0.7479505234 | G129: 0.7407077535 | H129: 0.7341606865 | I129: 0.7282932232 | J129: 0.7224768259
D130: Interest rate shock (bps) compared to baseline | E130: 0 | F130: 25 | G130: 25 | H130: 25 | I130: 25 | J130: 25
D132: Historical Scenario | E132: =E112 -> 2014 | F132: =F112 -> 2015 | G132: 2016 | H132: 2017 | I132: 2018 | J132: 2019
D133: Real GDP growth | E133: =E33 -> -0.01776031073 | F133: ='Baseline debt'!$D$100 -> -0.0004253691574 | G133: ='Baseline debt'!$D$100 -> -0.0004253691574 | H133: ='Baseline debt'!$D$100 -> -0.0004253691574 | I133: ='Baseline debt'!$D$100 -> -0.0004253691574 | J133: ='Baseline debt'!$D$100 -> -0.0004253691574
D134: Inflation (GDP Deflator change) | E134: =E34 -> 0.0141562491 | F134: =F34 -> 0.013 | G134: 0.013 | H134: 0.014 | I134: 0.0145 | J134: 0.0147
D135: Non-interest revenue-to-GDP ratio | E135: 0.4779622173 | F135: 0.4792080214 | G135: 0.48006713 | H135: 0.481008943 | I135: 0.4819455283 | J135: 0.4828163192
D136: Non-interest expenditure-to-GDP ratio | E136: 0.456998634 | F136: =F135-F137 -> 0.4682754792 | G136: =G135-G137 -> 0.4691345878 | H136: =H135-H137 -> 0.4700764008 | I136: =I135-I137 -> 0.4710129861 | J136: =J135-J137 -> 0.471883777
D137: Primary Balance | E137: 0.02096358328 | F137: ='Baseline debt'!$D$103 -> 0.01093254216 | G137: ='Baseline debt'!$D$103 -> 0.01093254216 | H137: ='Baseline debt'!$D$103 -> 0.01093254216 | I137: ='Baseline debt'!$D$103 -> 0.01093254216 | J137: ='Baseline debt'!$D$103 -> 0.01093254216
D138: Nominal Exchange Rate -- average (LCU/USD) | E138: 0.7576682675 | F138: =F38 -> 0.751442424 | G138: 0.7440267393 | H138: 0.7369787851 | I138: 0.7310378163 | J138: 0.7251450761
D139: Nominal Exchange Rate -- end of period (LCU/USD) | E139: 0.7557957551 | F139: 0.7479505234 | G139: 0.7407077535 | H139: 0.7341606865 | I139: 0.7282932232 | J139: 0.7224768259
D140: Interest rate shock (bps) compared to baseline | E140: =E90 -> 0 | F140: ='Baseline debt'!$T$99 -> -31.41388639 | G140: ='Baseline debt'!$T$99 -> -31.41388639 | H140: ='Baseline debt'!$T$99 -> -31.41388639 | I140: ='Baseline debt'!$T$99 -> -31.41388639 | J140: ='Baseline debt'!$T$99 -> -31.41388639
D142: Constant Primary Balance Scenario | E142: =E132 -> 2014 | F142: =F132 -> 2015 | G142: 2016 | H142: 2017 | I142: 2018 | J142: 2019
D143: Real GDP growth | E143: =E33 -> -0.01776031073 | F143: =F33 -> 0.007491219022 | G143: =G33 -> 0.0106 | H143: 0.01400074 | I143: 0.01400768 | J143: 0.012
D144: Inflation (GDP Deflator change) | E144: 0.0141562491 | F144: =F34 -> 0.013 | G144: 0.013 | H144: 0.014 | I144: 0.0145 | J144: 0.0147
D145: Non-interest revenue-to-GDP ratio | E145: =$E$35 -> 0.4779622173 | F145: =$E$35 -> 0.4779622173 | G145: 0.4779622173 | H145: 0.4779622173 | I145: 0.4779622173 | J145: 0.4779622173
D146: Non-interest expenditure-to-GDP ratio | E146: =$E$36 -> 0.456998634 | F146: =$E$36 -> 0.456998634 | G146: 0.456998634 | H146: 0.456998634 | I146: 0.456998634 | J146: 0.456998634
D147: Primary Balance | E147: =$E$37 -> 0.02096358328 | F147: =$E$37 -> 0.02096358328 | G147: =$E$37 -> 0.02096358328 | H147: 0.02096358328 | I147: 0.02096358328 | J147: 0.02096358328
D148: Nominal Exchange Rate -- average (LCU/USD) | E148: =E38 -> 0.7576682675 | F148: 0.751442424 | G148: 0.7440267393 | H148: 0.7369787851 | I148: 0.7310378163 | J148: 0.7251450761
D149: Nominal Exchange Rate -- end of period (LCU/USD) | E149: 0.7557957551 | F149: 0.7479505234 | G149: 0.7407077535 | H149: 0.7341606865 | I149: 0.7282932232 | J149: 0.7224768259
D150: Interest rate shock (bps) compared to baseline | E150: 0 | F150: 0 | G150: 0 | H150: 0 | I150: 0 | J150: 0

Sheet Fan Chart
A1: 1 - Fan charts are generated based on the calculations of historical averages, variances and covariances of relevant macroeconomic variables (real GDP growth, effective real interest rate, primary balance and the change in real exchange rate).
A2: 2 - As a default, averages, variances and covariances are calculated based on the same historical data as the rest of the DSA (last 11 years). For better results, users may wish to extend the historical period in order to better capture country-specific circumstances by populating the yellow-shaded cells in rows 7-10.
A3: 3 - Click on the blue button to generate the fan charts. Individual shocks can be turned off, using cells B42-B45, to identify the source of uncertainty. To generate asymmetric fan charts, specify restrictions on the magnitude of positive shocks in cells D42-D45.
A5: Fan Chart (Optional) | BB5: First Year of projection
A6: Series | B6: Units | C6: =D6-1 -> 1963 | D6: 1964 | E6: 1965 | F6: 1966 | G6: 1967 | H6: 1968 | I6: 1969 | J6: 1970 | K6: 1971 | L6: 1972 | M6: 1973 | N6: 1974 | O6: 1975 | P6: 1976 | Q6: 1977 | R6: 1978 | S6: 1979 | T6: 1980 | U6: 1981 | V6: 1982 | W6: 1983 | X6: 1984 | Y6: 1985 | Z6: 1986 | AA6: 1987 | AB6: 1988 | AC6: 1989 | AD6: 1990 | AE6: 1991 | AF6: 1992 | AG6: 1993 | AH6: 1994 | AI6: 1995 | AJ6: 1996 | AK6: 1997 | AL6: 1998 | AM6: 1999 | AN6: 2000 | AO6: 2001 | AP6: 2002 | AQ6: 2003 | AR6: 2004 | AS6: 2005 | AT6: 2006 | AU6: 2007 | AV6: 2008 | AW6: 2009 | AX6: 2010 | AY6: 2011 | AZ6: 2012 | BA6: =BB6-1 -> 2013 | BB6: =FirstYear -> 2014 | BC6: =BB6+1 -> 2015 | BD6: 2016 | BE6: 2017 | BF6: 2018 | BG6: 2019
A7: Real GDP growth rate (g) | B7: Percent | AQ7: ='Baseline debt'!E52*100 -> 0.451381562 | AR7: ='Baseline debt'!F52*100 -> -0.04651438624 | AS7: ='Baseline debt'!G52*100 -> 1.730697197 | AT7: ='Baseline debt'!H52*100 -> 0.9312591216 | AU7: ='Baseline debt'!I52*100 -> 2.198930645 | AV7: ='Baseline debt'!J52*100 -> 1.683010154 | AW7: ='Baseline debt'!K52*100 -> -1.156249435 | AX7: ='Baseline debt'!L52*100 -> -5.494329719 | AY7: ='Baseline debt'!M52*100 -> 1.723242691 | AZ7: ='Baseline debt'!N52*100 -> 0.3735257788 | BA7: ='Baseline debt'!O52*100 -> -2.368941204 | BB7: ='Baseline debt'!P52*100 -> -1.776031073 | BC7: ='Baseline debt'!Q52*100 -> 0.7491219022 | BD7: ='Baseline debt'!R52*100 -> 1.06 | BE7: ='Baseline debt'!S52*100 -> 1.400074 | BF7: ='Baseline debt'!T52*100 -> 1.400768 | BG7: ='Baseline debt'!U52*100 -> 1.2
A8: Effective real interest rate (r) | B8: Percent | AQ8: ='Baseline debt'!E67*100 -> 2.12027438 | AR8: ='Baseline debt'!F67*100 -> 1.857587262 | AS8: ='Baseline debt'!G67*100 -> 2.327713925 | AT8: ='Baseline debt'!H67*100 -> 2.764339594 | AU8: ='Baseline debt'!I67*100 -> 2.778085749 | AV8: ='Baseline debt'!J67*100 -> 2.411055449 | AW8: ='Baseline debt'!K67*100 -> 2.433868725 | AX8: ='Baseline debt'!L67*100 -> 2.039541646 | AY8: ='Baseline debt'!M67*100 -> 3.509638837 | AZ8: ='Baseline debt'!N67*100 -> 2.753394639 | BA8: ='Baseline debt'!O67*100 -> 2.891125549 | BB8: ='Baseline debt'!P67*100 -> 2.827106029 | BC8: ='Baseline debt'!Q67*100 -> 2.753350023 | BD8: ='Baseline debt'!R67*100 -> 2.807678838 | BE8: ='Baseline debt'!S67*100 -> 2.897599888 | BF8: ='Baseline debt'!T67*100 -> 2.963751849 | BG8: ='Baseline debt'!U67*100 -> 3.095157381
A9: Primary balance (pb) | B9: Percent of GDP | AQ9: ='Baseline debt'!E58*100 -> 2.239848096 | AR9: ='Baseline debt'!F58*100 -> 1.286804571 | AS9: ='Baseline debt'!G58*100 -> 1.059720532 | AT9: ='Baseline debt'!H58*100 -> 0.0004873362202 | AU9: ='Baseline debt'!I58*100 -> 0.9853780665 | AV9: ='Baseline debt'!J58*100 -> 3.123988627 | AW9: ='Baseline debt'!K58*100 -> 2.2209398 | AX9: ='Baseline debt'!L58*100 -> -0.9938836411 | AY9: ='Baseline debt'!M58*100 -> -0.04066017693 | AZ9: ='Baseline debt'!N58*100 -> 0.9796654795 | BA9: ='Baseline debt'!O58*100 -> 2.310101564 | BB9: ='Baseline debt'!P58*100 -> 2.096358328 | BC9: ='Baseline debt'!Q58*100 -> 3.072717447 | BD9: ='Baseline debt'!R58*100 -> 3.446162649 | BE9: ='Baseline debt'!S58*100 -> 4.352054682 | BF9: ='Baseline debt'!T58*100 -> 4.945656159 | BG9: ='Baseline debt'!U58*100 -> 5.402953159
A10: Change in real exchange rate (z) (+ is depreciation) | B10: Percent | AQ10: =IF(ISNUMBER(('Input 2 - Data'!F13/'Input 2 - Data'!E13-1)*100),('Input 2 - Data'!F13/'Input 2 - Data'!E13-1)*100,"") -> -12.36324711 | AR10: =IF(ISNUMBER(('Input 2 - Data'!G13/'Input 2 - Data'!F13-1)*100),('Input 2 - Data'!G13/'Input 2 - Data'!F13-1)*100,"") -> -17.15468917 | AS10: =IF(ISNUMBER(('Input 2 - Data'!H13/'Input 2 - Data'!G13-1)*100),('Input 2 - Data'!H13/'Input 2 - Data'!G13-1)*100,"") -> -8.327366568 | AT10: =IF(ISNUMBER(('Input 2 - Data'!I13/'Input 2 - Data'!H13-1)*100),('Input 2 - Data'!I13/'Input 2 - Data'!H13-1)*100,"") -> 13.08513689 | AU10: =IF(ISNUMBER(('Input 2 - Data'!J13/'Input 2 - Data'!I13-1)*100),('Input 2 - Data'!J13/'Input 2 - Data'!I13-1)*100,"") -> -10.26516468 | AV10: =IF(ISNUMBER(('Input 2 - Data'!K13/'Input 2 - Data'!J13-1)*100),('Input 2 - Data'!K13/'Input 2 - Data'!J13-1)*100,"") -> -9.371614301 | AW10: =IF(ISNUMBER(('Input 2 - Data'!L13/'Input 2 - Data'!K13-1)*100),('Input 2 - Data'!L13/'Input 2 - Data'!K13-1)*100,"") -> 7.01966673 | AX10: =IF(ISNUMBER(('Input 2 - Data'!M13/'Input 2 - Data'!L13-1)*100),('Input 2 - Data'!M13/'Input 2 - Data'!L13-1)*100,"") -> -6.689341985 | AY10: =IF(ISNUMBER(('Input 2 - Data'!N13/'Input 2 - Data'!M13-1)*100),('Input 2 - Data'!N13/'Input 2 - Data'!M13-1)*100,"") -> 10.44413987 | AZ10: =IF(ISNUMBER(('Input 2 - Data'!O13/'Input 2 - Data'!N13-1)*100),('Input 2 - Data'!O13/'Input 2 - Data'!N13-1)*100,"") -> 0.2994770033 | BA10: =IF(ISNUMBER(('Input 2 - Data'!P13/'Input 2 - Data'!O13-1)*100),('Input 2 - Data'!P13/'Input 2 - Data'!O13-1)*100,"") -> -0.1133310031 | BB10: =IF(ISNUMBER(('Input 2 - Data'!Q13/'Input 2 - Data'!P13-1)*100),('Input 2 - Data'!Q13/'Input 2 - Data'!P13-1)*100,"") -> -0.2803080692 | BC10: =IF(ISNUMBER(('Input 2 - Data'!R13/'Input 2 - Data'!Q13-1)*100),('Input 2 - Data'!R13/'Input 2 - Data'!Q13-1)*100,"") -> -1.0380095 | BD10: =IF(ISNUMBER(('Input 2 - Data'!S13/'Input 2 - Data'!R13-1)*100),('Input 2 - Data'!S13/'Input 2 - Data'!R13-1)*100,"") -> -0.9683487991 | BE10: =IF(ISNUMBER(('Input 2 - Data'!T13/'Input 2 - Data'!S13-1)*100),('Input 2 - Data'!T13/'Input 2 - Data'!S13-1)*100,"") -> -0.8838933994 | BF10: =IF(ISNUMBER(('Input 2 - Data'!U13/'Input 2 - Data'!T13-1)*100),('Input 2 - Data'!U13/'Input 2 - Data'!T13-1)*100,"") -> -0.7992069687 | BG10: =IF(ISNUMBER(('Input 2 - Data'!V13/'Input 2 - Data'!U13-1)*100),('Input 2 - Data'!V13/'Input 2 - Data'!U13-1)*100,"") -> 0
C12: Moments Calculated Based on Historical Data | K12: Moments Calculated Based on Draws | Q12: Difference Between History and Draws
C14: Means (Mu) | K14: Means | Q14: means
C15: g | D15: =AVERAGE('Fan Chart'!$C7:$BA7) -> 0.002364764055 | K15: g | L15: =AVERAGE(B$69:B$6068) -> 0.01611096665 | Q15: g | R15: =L15-D15 -> 0.01374620259
C16: r | D16: =AVERAGE('Fan Chart'!$C8:$BA8) -> 2.535147796 | K16: r | L16: =AVERAGE(C$69:C$6068) -> 2.528906842 | Q16: r | R16: =L16-D16 -> -0.006240953922
C17: pb | D17: =AVERAGE('Fan Chart'!$C9:$BA9) -> 1.197490023 | K17: pb | L17: =AVERAGE(D$69:D$6068) -> 1.194462062 | Q17: pb | R17: =L17-D17 -> -0.00302796069
C18: z | D18: =AVERAGE('Fan Chart'!$C10:$BA10) -> -3.039666756 | K18: z | L18: =AVERAGE(E$69:E$6068) -> -3.177483571 | Q18: z | R18: =L18-D18 -> -0.1378168151
C20: Var-Covar (Sigma) | K20: Var-Covar (Sigma) | Q20: Var-Covar (Sigma)
E21: g | F21: r | G21: pb | H21: z | I21: Obs | L21: g | M21: r | N21: pb | O21: z
D22: g | E22: =VAR('Fan Chart'!$C$7:$BA$7) -> 5.198176402 | F22: =E23 -> 0.3781679351 | G22: =E24 -> 0.7895145627 | H22: =E25 -> 0.1740152324 | I22: =COUNT(C7:BA7) -> 11 | K22: g | L22: =VAR(B$69:B$6068) -> 5.193933178 | M22: =L23 -> 0.3868505242 | N22: =L24 -> 0.8047367749 | O22: =L25 -> 0.02288743457 | Q22: g | R22: =L22-E22 -> -0.004243223968 | S22: 0.008682589127 | T22: 0.01522221221 | U22: -0.1511277978
D23: r | E23: =COVAR('Fan Chart'!$C$7:$BA$7,'Fan Chart'!$C8:$BA8)*(MIN($I$22,$I$23))/(MIN($I$22,$I$23)-1) -> 0.3781679351 | F23: =VAR('Fan Chart'!$C$8:$BA$8) -> 0.2181051221 | G23: =F24 -> -0.09049582009 | H23: =F25 -> 3.295512541 | I23: =COUNT(C8:BA8) -> 11 | K23: r | L23: =(6000/5999)*COVAR($B$69:$B$6068,$C$69:$C$6068) -> 0.3868505242 | M23: =VAR(C$69:C$6068) -> 0.2150315286 | N23: =M24 -> -0.08232900462 | O23: =M25 -> 3.225803312 | Q23: r | R23: 0.008682589127 | S23: -0.003073593442 | T23: 0.008166815474 | U23: -0.06970922824
D24: pb | E24: =COVAR('Fan Chart'!$C$7:$BA$7,'Fan Chart'!$C9:$BA9)*(MIN($I$22,$I$24))/(MIN($I$22,$I$24)-1) -> 0.7895145627 | F24: =COVAR('Fan Chart'!$C$8:$BA$8,'Fan Chart'!$C9:$BA9)*(MIN($I$24,$I$23))/(MIN($I$24,$I$23)-1) -> -0.09049582009 | G24: =VAR('Fan Chart'!$C$9:$BA$9) -> 1.497060753 | H24: =G25 -> -3.609143488 | I24: =COUNT(C9:BA9) -> 11 | K24: pb | L24: =(6000/5999)*COVAR($B$69:$B$6068,$D$69:$D$6068) -> 0.8047367749 | M24: =(6000/5999)*COVAR($C$69:$C$6068,$D$69:$D$6068) -> -0.08232900462 | N24: =VAR(D$69:D$6068) -> 1.511761681 | O24: =N25 -> -3.568613632 | Q24: pb | R24: 0.01522221221 | S24: 0.008166815474 | T24: 0.01470092843 | U24: 0.04052985651
D25: z | E25: =COVAR('Fan Chart'!$C$7:$BA$7,'Fan Chart'!$C10:$BA10)*(MIN($I$22,$I$25))/(MIN($I$22,$I$25)-1) -> 0.1740152324 | F25: =COVAR('Fan Chart'!$C$8:$BA$8,'Fan Chart'!$C10:$BA10)*(MIN($I$23,$I$25))/(MIN($I$23,$I$25)-1) -> 3.295512541 | G25: =COVAR('Fan Chart'!$C$9:$BA$9,'Fan Chart'!$C10:$BA10)*(MIN($I$24,$I$25))/(MIN($I$24,$I$25)-1) -> -3.609143488 | H25: =VAR('Fan Chart'!$C$10:$BA$10) -> 98.24701326 | I25: =COUNT(C10:BA10) -> 11 | K25: z | L25: =(6000/5999)*COVAR($B$69:$B$6068,$E$69:$E$6068) -> 0.02288743457 | M25: =(6000/5999)*COVAR($C$69:$C$6068,$E$69:$E$6068) -> 3.225803312 | N25: =(6000/5999)*COVAR($D$69:$D$6068,$E$69:$E$6068) -> -3.568613632 | O25: =VAR(E$69:E$6068) -> 97.38115159 | Q25: z | R25: -0.1511277978 | S25: -0.06970922824 | T25: 0.04052985651 | U25: -0.8658616758
M27: Option A: No restrictions on the distribution | AA27: Chart data | AT27: Option B: Restrictions on the distribution | BH27: Chart data
AA28: Percentile | AB28: =AC28-1 -> 2009 | AC28: 2010 | AD28: 2011 | AE28: 2012 | AF28: =AG28-1 -> 2013 | AG28: =FirstYear -> 2014 | AH28: =AG28+1 -> 2015 | AI28: =AH28+1 -> 2016 | AJ28: 2017 | AK28: 2018 | AL28: 2019 | BH28: Percentile | BI28: =BJ28-1 -> 2009 | BJ28: 2010 | BK28: 2011 | BL28: 2012 | BM28: =BN28-1 -> 2013 | BN28: =FirstYear -> 2014 | BO28: =BN28+1 -> 2015 | BP28: =BO28+1 -> 2016 | BQ28: 2017 | BR28: 2018 | BS28: 2019
AA29: 0 | AB29: =O$53/100 -> 1.060850944 | AC29: =P$53/100 -> 1.164198079 | AD29: =Q$53/100 -> 1.192881312 | AE29: =R$53/100 -> 1.208012934 | AF29: =S$53/100 -> 1.269776284 | AG29: =PERCENTILE(AG$69:AG$1068,$AA29)/100 -> 1.224961123 | AH29: =PERCENTILE(AH$69:AH$1068,$AA29)/100 -> 1.174587811 | AI29: 1.129205799 | AJ29: 1.068550219 | AK29: 0.9837860803 | AL29: 0.9007674533 | BH29: 0 | BI29: =O$53/100 -> 1.060850944 | BJ29: =P$53/100 -> 1.164198079 | BK29: =Q$53/100 -> 1.192881312 | BL29: =R$53/100 -> 1.208012934 | BM29: =S$53/100 -> 1.269776284 | BN29: =PERCENTILE(BN$69:BN$1068,$BH29)/100 -> 1.241092907 | BO29: 1.200584319 | BP29: 1.149069975 | BQ29: 1.099066094 | BR29: 1.024371752 | BS29: 0.9731525854
AA30: 0.05 | AB30: 1.060850944 | AC30: 1.164198079 | AD30: 1.192881312 | AE30: 1.208012934 | AF30: 1.269776284 | AG30: =PERCENTILE(AG$69:AG$1068,$AA30)/100 -> 1.262769488 | AH30: 1.248850608 | AI30: 1.213019283 | AJ30: 1.173323607 | AK30: 1.133903593 | AL30: 1.080462568 | BH30: 0.05 | BI30: =O$53/100 -> 1.060850944 | BJ30: 1.164198079 | BK30: 1.192881312 | BL30: 1.208012934 | BM30: 1.269776284 | BN30: =PERCENTILE(BN$69:BN$1068,$BH30)/100 -> 1.274186122 | BO30: 1.266198931 | BP30: 1.23901119 | BQ30: 1.20294208 | BR30: 1.172374373 | BS30: 1.122180194
AA31: 0.1 | AB31: 1.060850944 | AC31: 1.164198079 | AD31: 1.192881312 | AE31: 1.208012934 | AF31: 1.269776284 | AG31: 1.273767846 | AH31: 1.265683383 | AI31: 1.23724208 | AJ31: 1.196356638 | AK31: 1.159008435 | AL31: 1.113756601 | BH31: 0.1 | BI31: 1.060850944 | BJ31: 1.164198079 | BK31: 1.192881312 | BL31: 1.208012934 | BM31: 1.269776284 | BN31: 1.283014594 | BO31: 1.279097594 | BP31: 1.256386274 | BQ31: 1.228118172 | BR31: 1.19225721 | BS31: 1.155418219
AA32: 0.25 | AB32: 1.060850944 | AC32: 1.164198079 | AD32: 1.192881312 | AE32: 1.208012934 | AF32: 1.269776284 | AG32: =PERCENTILE(AG$69:AG$1068,$AA32)/100 -> 1.29345499 | AH32: 1.291349065 | AI32: 1.269946147 | AJ32: 1.239119975 | AK32: 1.20407857 | AL32: 1.164430193 | BH32: 0.25 | BI32: 1.060850944 | BJ32: 1.164198079 | BK32: 1.192881312 | BL32: 1.208012934 | BM32: 1.269776284 | BN32: 1.299676857 | BO32: 1.304482055 | BP32: 1.287568534 | BQ32: 1.261502985 | BR32: 1.239249278 | BS32: 1.201317569
AA33: 0.5 | AB33: 1.060850944 | AC33: 1.164198079 | AD33: 1.192881312 | AE33: 1.208012934 | AF33: 1.269776284 | AG33: 1.318297218 | AH33: 1.327278264 | AI33: 1.314879339 | AJ33: 1.289269035 | AK33: 1.257293119 | AL33: 1.224164434 | BH33: 0.5 | BI33: 1.060850944 | BJ33: 1.164198079 | BK33: 1.192881312 | BL33: 1.208012934 | BM33: 1.269776284 | BN33: 1.322637742 | BO33: 1.335124586 | BP33: 1.329373301 | BQ33: 1.308151103 | BR33: 1.279814884 | BS33: 1.253897108
AA34: 0.75 | AB34: 1.060850944 | AC34: 1.164198079 | AD34: 1.192881312 | AE34: 1.208012934 | AF34: 1.269776284 | AG34: 1.343079102 | AH34: 1.362075816 | AI34: 1.356608732 | AJ34: 1.338756537 | AK34: 1.312315662 | AL34: 1.285326375 | BH34: 0.75 | BI34: 1.060850944 | BJ34: 1.164198079 | BK34: 1.192881312 | BL34: 1.208012934 | BM34: 1.269776284 | BN34: 1.344879612 | BO34: 1.366891867 | BP34: 1.368098157 | BQ34: 1.351525386 | BR34: 1.333104992 | BS34: 1.310860692
AA35: 0.9 | AB35: 1.060850944 | AC35: 1.164198079 | AD35: 1.192881312 | AE35: 1.208012934 | AF35: 1.269776284 | AG35: 1.36572066 | AH35: 1.391859838 | AI35: 1.397017327 | AJ35: 1.379127598 | AK35: 1.361028476 | AL35: 1.340443416 | BH35: 0.9 | BI35: 1.060850944 | BJ35: 1.164198079 | BK35: 1.192881312 | BL35: 1.208012934 | BM35: 1.269776284 | BN35: 1.366894462 | BO35: 1.396812327 | BP35: 1.402366059 | BQ35: 1.393351807 | BR35: 1.375969793 | BS35: 1.360989985
AA36: 0.95 | AB36: 1.060850944 | AC36: 1.164198079 | AD36: 1.192881312 | AE36: 1.208012934 | AF36: 1.269776284 | AG36: 1.381398449 | AH36: 1.410494499 | AI36: 1.415604106 | AJ36: 1.404444937 | AK36: 1.393089648 | AL36: 1.374108708 | BH36: 0.95 | BI36: 1.060850944 | BJ36: 1.164198079 | BK36: 1.192881312 | BL36: 1.208012934 | BM36: 1.269776284 | BN36: 1.38170935 | BO36: 1.413493343 | BP36: 1.422652339 | BQ36: 1.415087135 | BR36: 1.406367633 | BS36: 1.394094442
AA37: 1 | AB37: 1.060850944 | AC37: 1.164198079 | AD37: 1.192881312 | AE37: 1.208012934 | AF37: 1.269776284 | AG37: 1.457538234 | AH37: 1.501773482 | AI37: 1.53258685 | AJ37: 1.541948428 | AK37: 1.510825928 | AL37: 1.528962459 | BH37: 1 | BI37: 1.060850944 | BJ37: 1.164198079 | BK37: 1.192881312 | BL37: 1.208012934 | BM37: 1.269776284 | BN37: 1.457538234 | BO37: 1.501773482 | BP37: 1.53258685 | BQ37: 1.542558406 | BR37: 1.512230884 | BS37: 1.539680812
A40: Turning-off shocks | D40: Restrictions on good shocks | AA40: Transform for chart | BH40: Transform for chart | BU40: chart legend
Z41: Series Name | AA41: Percentile | AB41: =AB28 -> 2009 | AC41: 2010 | AD41: 2011 | AE41: 2012 | AF41: 2013 | AG41: 2014 | AH41: 2015 | AI41: 2016 | AJ41: 2017 | AK41: 2018 | AL41: 2019 | BG41: Series Name | BH41: Percentile | BI41: =BI28 -> 2009 | BJ41: 2010 | BK41: 2011 | BL41: 2012 | BM41: 2013 | BN41: 2014 | BO41: 2015 | BP41: 2016 | BQ41: 2017 | BR41: 2018 | BS41: 2019 | BU41: Restrictions on upside shocks:
A42: Real GDP growth rate (g) | B42: On | E42: is the max positive growth rate shock (percent) | AA42: 0.1 | AB42: =AB31*100 -> 106.0850944 | AC42: 116.4198079 | AD42: 119.2881312 | AE42: 120.8012934 | AF42: 126.9776284 | AG42: 127.3767846 | AH42: 126.5683383 | AI42: 123.724208 | AJ42: 119.6356638 | AK42: 115.9008435 | AL42: 111.3756601 | BH42: 0.1 | BI42: =BI31*100 -> 106.0850944 | BJ42: 116.4198079 | BK42: 119.2881312 | BL42: 120.8012934 | BM42: 126.9776284 | BN42: 128.3014594 | BO42: 127.9097594 | BP42: 125.6386274 | BQ42: 122.8118172 | BR42: 119.225721 | BS42: 115.5418219
A43: Effective real interest rate (r) | B43: On | E43: is the max negative interest rate shock (percent) | Z43: 10th-25th | AA43: 0.25 | AB43: =(AB32-AB31)*100 -> 0 | AC43: 0 | AD43: 0 | AE43: 0 | AF43: 0 | AG43: 1.968714389 | AH43: 2.566568204 | AI43: 3.270406748 | AJ43: 4.276333739 | AK43: 4.507013447 | AL43: 5.067359176 | BG43: 10th-25th | BH43: 0.25 | BI43: =(BI32-BI31)*100 -> 0 | BJ43: 0 | BK43: 0 | BL43: 0 | BM43: 0 | BN43: 1.666226355 | BO43: 2.53844611 | BP43: 3.118225981 | BQ43: 3.338481366 | BR43: 4.699206864 | BS43: 4.589935048 | BU43: =IF(ISNUMBER(D42),D42&" "&E42,"no restriction on the growth rate shock") -> no restriction on the growth rate shock
A44: Primary balance (pb) | B44: On | D44: 0 | E44: is the max positive pb shock (percent GDP) | Z44: 25th-50th | AA44: 0.5 | AB44: =(AB33-AB32)*100 -> 0 | AC44: 0 | AD44: 0 | AE44: 0 | AF44: 0 | AG44: 2.48422279 | AH44: 3.592919851 | AI44: 4.493319151 | AJ44: 5.014905942 | AK44: 5.321454926 | AL44: 5.973424166 | BG44: 25th-50th | BH44: 0.5 | BI44: =(BI33-BI32)*100 -> 0 | BJ44: 0 | BK44: 0 | BL44: 0 | BM44: 0 | BN44: 2.296088462 | BO44: 3.064253146 | BP44: 4.18047674 | BQ44: 4.664811727 | BR44: 4.056560538 | BS44: 5.257953842 | BU44: =IF(ISNUMBER(D43),D43&" "&E43,"no restriction on the interest rate shock") -> no restriction on the interest rate shock
A45: Change in real exchange rate (z) | B45: On | E45: is the max real appreciation shock (percent) | Z45: 50th-75th | AA45: 0.75 | AB45: =(AB34-AB33)*100 -> 0 | AC45: 0 | AD45: 0 | AE45: 0 | AF45: 0 | AG45: 2.478188448 | AH45: 3.479755175 | AI45: 4.1729393 | AJ45: 4.948750221 | AK45: 5.50225435 | AL45: 6.116194051 | BG45: 50th-75th | BH45: 0.75 | BI45: =(BI34-BI33)*100 -> 0 | BJ45: 0 | BK45: 0 | BL45: 0 | BM45: 0 | BN45: 2.224187049 | BO45: 3.176728072 | BP45: 3.872485555 | BQ45: 4.337428368 | BR45: 5.329010778 | BS45: 5.696358443 | BU45: =IF(ISNUMBER(D44),D44&" "&E44,"no restriction on the primary balance shock") -> 0 is the max positive pb shock (percent GDP)
Z46: 75th-90th | AA46: 0.9 | AB46: =(AB35-AB34)*100 -> 0 | AC46: 0 | AD46: 0 | AE46: 0 | AF46: 0 | AG46: 2.264155743 | AH46: 2.978402254 | AI46: 4.040859485 | AJ46: 4.03710611 | AK46: 4.87128136 | AL46: 5.511704128 | BG46: 75th-90th | BH46: 0.9 | BI46: =(BI35-BI34)*100 -> 0 | BJ46: 0 | BK46: 0 | BL46: 0 | BM46: 0 | BN46: 2.201484946 | BO46: 2.992046019 | BP46: 3.42679022 | BQ46: 4.182642045 | BR46: 4.286480158 | BS46: 5.012929305 | BU46: =IF(ISNUMBER(D45),D45&" "&E45,"no restriction on the exchange rate shock") -> no restriction on the exchange rate shock
T51: First Year of projection
H52: =I52-1 -> 2002 | I52: 2003 | J52: 2004 | K52: 2005 | L52: 2006 | M52: 2007 | N52: 2008 | O52: 2009 | P52: 2010 | Q52: 2011 | R52: 2012 | S52: =T52-1 -> 2013 | T52: =FirstYear -> 2014 | U52: =BC6 -> 2015 | V52: 2016 | W52: 2017 | X52: 2018 | Y52: 2019
A53: d: Public debt/GDP | H53: ='Baseline debt'!D83*100 -> 108.3210033 | I53: ='Baseline debt'!E83*100 -> 105.3554338 | J53: ='Baseline debt'!F83*100 -> 104.1375682 | K53: ='Baseline debt'!G83*100 -> 103.711669 | L53: ='Baseline debt'!H83*100 -> 105.7210487 | M53: ='Baseline debt'!I83*100 -> 106.3461509 | N53: ='Baseline debt'!J83*100 -> 103.2767361 | O53: ='Baseline debt'!K83*100 -> 106.0850944 | P53: ='Baseline debt'!L83*100 -> 116.4198079 | Q53: ='Baseline debt'!M83*100 -> 119.2881312 | R53: ='Baseline debt'!N83*100 -> 120.8012934 | S53: ='Baseline debt'!O83*100 -> 126.9776284 | T53: ='Baseline debt'!P83*100 -> 131.7866955 | U53: ='Baseline debt'!Q83*100 -> 132.5852407 | V53: ='Baseline debt'!R83*100 -> 131.26167 | W53: ='Baseline debt'!S83*100 -> 128.6825533 | X53: ='Baseline debt'!T83*100 -> 125.5594237 | Y53: ='Baseline debt'!U83*100 -> 122.3510397
A54: g: Real GDP growth rate | H54: =AP7 -> 0 | I54: 0.451381562 | J54: -0.04651438624 | K54: 1.730697197 | L54: 0.9312591216 | M54: 2.198930645 | N54: 1.683010154 | O54: -1.156249435 | P54: -5.494329719 | Q54: 1.723242691 | R54: =AZ7 -> 0.3735257788 | S54: -2.368941204 | T54: -1.776031073 | U54: 0.7491219022 | V54: 1.06 | W54: 1.400074 | X54: 1.400768 | Y54: 1.2
A55: r: Effective real interest rate | H55: 0 | I55: 2.12027438 | J55: 1.857587262 | K55: 2.327713925 | L55: =AT8 -> 2.764339594 | M55: 2.778085749 | N55: 2.411055449 | O55: 2.433868725 | P55: 2.039541646 | Q55: 3.509638837 | R55: 2.753394639 | S55: 2.891125549 | T55: 2.827106029 | U55: 2.753350023 | V55: =BD8 -> 2.807678838 | W55: =BE8 -> 2.897599888 | X55: =BF8 -> 2.963751849 | Y55: 3.095157381
A56: pb: Primary balance | H56: 0 | I56: 2.239848096 | J56: 1.286804571 | K56: 1.059720532 | L56: 0.0004873362202 | M56: 0.9853780665 | N56: 3.123988627 | O56: 2.2209398 | P56: -0.9938836411 | Q56: -0.04066017693 | R56: 0.9796654795 | S56: 2.310101564 | T56: 2.096358328 | U56: =BC9 -> 3.072717447 | V56: 3.446162649 | W56: 4.352054682 | X56: =BF9 -> 4.945656159 | Y56: 5.402953159
A57: z: Real exchange rate change | H57: 0 | I57: -12.36324711 | J57: -17.15468917 | K57: -8.327366568 | L57: 13.08513689 | M57: -10.26516468 | N57: -9.371614301 | O57: 7.01966673 | P57: -6.689341985 | Q57: 10.44413987 | R57: 0.2994770033 | S57: -0.1133310031 | T57: -0.2803080692 | U57: -1.0380095 | V57: -0.9683487991 | W57: =BE10 -> -0.8838933994 | X57: -0.7992069687 | Y57: 0
A58: sfa: Stock-flow adjustment | H58: =H53-H61 -> 108.3210033 | I58: =I53-I61 -> -2.525359597 | J58: -1.93806913 | K58: 0.02267967922 | L58: 0.1262897005 | M58: 1.011365471 | N58: -0.7068592889 | O58: 1.278168853 | P58: 0.8838615643 | Q58: 0.7831755791 | R58: -0.3355088191 | S58: 1.978027557 | T58: 0.9547858155 | U58: 1.249596131 | V58: -0.1702678773 | W58: -0.1655985367 | X58: -0.1609767664 | Y58: -0.1567635271
A61: Calculated debt/GDP ratio (excl. stock-flow adjustment) | H61: =B53*(1+H55/100)*((1+H57/100)*B62+(1-B62))/(1+H54/100)-H56 -> 0 | I61: =H53*(1+I55/100)*((1+I57/100)*H62+(1-H62))/(1+I54/100)-I56 -> 107.8807934 | J61: =I53*(1+J55/100)*((1+J57/100)*I62+(1-I62))/(1+J54/100)-J56 -> 106.0756373 | K61: 103.6889893 | L61: 105.594759 | M61: 105.3347854 | N61: 103.9835954 | O61: 104.8069256 | P61: 115.5359464 | Q61: 118.5049556 | R61: 121.1368022 | S61: 124.9996009 | T61: 130.8319096 | U61: 131.3356445 | V61: 131.4319379 | W61: 128.8481519 | X61: 125.7204004 | Y61: 122.5078032
A62: Foreign currency debt share | H62: =('Baseline debt'!D13+'Baseline debt'!D20)/'Baseline debt'!D7 -> 0 | I62: =('Baseline debt'!E13+'Baseline debt'!E20)/'Baseline debt'!E7 -> 0 | J62: =('Baseline debt'!F13+'Baseline debt'!F20)/'Baseline debt'!F7 -> 0 | K62: =('Baseline debt'!G13+'Baseline debt'!G20)/'Baseline debt'!G7 -> 0 | L62: =('Baseline debt'!H13+'Baseline debt'!H20)/'Baseline debt'!H7 -> 0 | M62: =('Baseline debt'!I13+'Baseline debt'!I20)/'Baseline debt'!I7 -> 0 | N62: =('Baseline debt'!J13+'Baseline debt'!J20)/'Baseline debt'!J7 -> 0 | O62: =('Baseline debt'!K13+'Baseline debt'!K20)/'Baseline debt'!K7 -> 0 | P62: =('Baseline debt'!L13+'Baseline debt'!L20)/'Baseline debt'!L7 -> 0 | Q62: =('Baseline debt'!M13+'Baseline debt'!M20)/'Baseline debt'!M7 -> 0 | R62: =('Baseline debt'!N13+'Baseline debt'!N20)/'Baseline debt'!N7 -> 0 | S62: =('Baseline debt'!O13+'Baseline debt'!O20)/'Baseline debt'!O7 -> 0 | T62: =('Baseline debt'!P13+'Baseline debt'!P20)/'Baseline debt'!P7 -> 0 | U62: =('Baseline debt'!Q13+'Baseline debt'!Q20)/'Baseline debt'!Q7 -> 0 | V62: =('Baseline debt'!R13+'Baseline debt'!R20)/'Baseline debt'!R7 -> 0 | W62: =('Baseline debt'!S13+'Baseline debt'!S20)/'Baseline debt'!S7 -> 0 | X62: =('Baseline debt'!T13+'Baseline debt'!T20)/'Baseline debt'!T7 -> 0 | Y62: =('Baseline debt'!U13+'Baseline debt'!U20)/'Baseline debt'!U7 -> 0
A65: For z, Use RER if 0, REER if 1
B67: g | C67: r | D67: pb | E67: z | H67: g shocks | N67: r shocks | T67: pb shocks | Z67: z shocks | AG67: d projections | AO67: g shocks | AU67: r shocks | BA67: pb shocks | BG67: z shocks | BN67: d projections
A68: 6000 random draws from joint normal distribution. | H68: =FirstYear -> 2014 | I68: =H68+1 -> 2015 | J68: =I68+1 -> 2016 | K68: 2017 | L68: 2018 | M68: 2019 | N68: =FirstYear -> 2014 | O68: =N68+1 -> 2015 | P68: =O68+1 -> 2016 | Q68: 2017 | R68: 2018 | S68: 2019 | T68: =FirstYear -> 2014 | U68: =T68+1 -> 2015 | V68: =U68+1 -> 2016 | W68: 2017 | X68: 2018 | Y68: 2019 | Z68: =FirstYear -> 2014 | AA68: =Z68+1 -> 2015 | AB68: =AA68+1 -> 2016 | AC68: 2017 | AD68: 2018 | AE68: 2019 | AG68: =FirstYear -> 2014 | AH68: =AG68+1 -> 2015 | AI68: =AH68+1 -> 2016 | AJ68: 2017 | AK68: 2018 | AL68: 2019 | AO68: =FirstYear -> 2014 | AP68: =AO68+1 -> 2015 | AQ68: =AP68+1 -> 2016 | AR68: 2017 | AS68: 2018 | AT68: 2019 | AU68: =FirstYear -> 2014 | AV68: =AU68+1 -> 2015 | AW68: =AV68+1 -> 2016 | AX68: 2017 | AY68: 2018 | AZ68: 2019 | BA68: =FirstYear -> 2014 | BB68: =BA68+1 -> 2015 | BC68: =BB68+1 -> 2016 | BD68: 2017 | BE68: 2018 | BF68: 2019 | BG68: =FirstYear -> 2014 | BH68: =BG68+1 -> 2015 | BI68: =BH68+1 -> 2016 | BJ68: 2017 | BK68: 2018 | BL68: 2019 | BN68: =FirstYear -> 2014 | BO68: =BN68+1 -> 2015 | BP68: =BO68+1 -> 2016 | BQ68: 2017 | BR68: 2018 | BS68: =BS28 -> 2019
A69: 1 | B69: 4.214584589 | C69: 2.972742581 | D69: 2.445304491 | E69: -11.9256294 | H69: =IF($B$42="On",$B69-$D$15,0) -> 4.212219825 | I69: =IF($B$42="On",$B1069-$D$15,0) -> 1.536301158 | J69: =IF($B$42="On",$B2069-$D$15,0) -> 2.687576635 | K69: =IF($B$42="On",$B3069-$D$15,0) -> -0.6298085864 | L69: =IF($B$42="On",$B4069-$D$15,0) -> -0.06427516545 | M69: =IF($B$42="On",$B5069-$D$15,0) -> -1.567082236 | N69: =IF($B$43="On",$C69-$D$16,0) -> 0.4375947851 | O69: =IF($B$43="On",$C1069-$D$16,0) -> 0.1605758576 | P69: =IF($B$43="On",$C2069-$D$16,0) -> 0.4221364652 | Q69: =IF($B$43="On",$C3069-$D$16,0) -> -0.4218190818 | R69: =IF($B$43="On",$C4069-$D$16,0) -> -0.3259733954 | S69: =IF($B$43="On",$C5069-$D$16,0) -> 0.173457308 | T69: =IF($B$44="On",$D69-$D$17,0) -> 1.247814468 | U69: =IF($B$44="On",$D1069-$D$17,0) -> 2.250062393 | V69: =IF($B$44="On",$D2069-$D$17,0) -> 0.1592847214 | W69: =IF($B$44="On",$D3069-$D$17,0) -> 2.277305166 | X69: =IF($B$44="On",$D4069-$D$17,0) -> 1.752200733 | Y69: =IF($B$44="On",$D5069-$D$17,0) -> -0.6578625751 | Z69: =IF($B$45="On",$E69-$D$18,0) -> -8.885962644 | AA69: =IF($B$45="On",$E1069-$D$18,0) -> 7.321074287 | AB69: =IF($B$45="On",$E2069-$D$18,0) -> 3.39160655 | AC69: =IF($B$45="On",$E3069-$D$18,0) -> -10.36400081 | AD69: =IF($B$45="On",$E4069-$D$18,0) -> -15.21486047 | AE69: =IF($B$45="On",$E5069-$D$18,0) -> 2.897147602 | AG69: =S$53*(1+(T$55+N69)/100)*((1-S$62)+S$62*((1+(T$57+Z69)/100)))/(1+(T$54+H69)/100)-(T$56+T69)+T$58 -> 125.6152466 | AH69: =AG69*(1+(U$55+O69)/100)*((1-T$62)+T$62*((1+(U$57+AA69)/100)))/(1+(U$54+I69)/100)-(U$56+U69)+U$58 -> 122.3139181 | AI69: =AH69*(1+(V$55+P69)/100)*((1-U$62)+U$62*((1+(V$57+AB69)/100)))/(1+(V$54+J69)/100)-(V$56+V69)+V$58 -> 117.9277846 | AJ69: =AI69*(1+(W$55+Q69)/100)*((1-V$62)+V$62*((1+(W$57+AC69)/100)))/(1+(W$54+K69)/100)-(W$56+W69)+W$58 -> 113.128729 | AK69: =AJ69*(1+(X$55+R69)/100)*((1-W$62)+W$62*((1+(X$57+AD69)/100)))/(1+(X$54+L69)/100)-(X$56+X69)+X$58 -> 107.7226078 | AL69: =AK69*(1+(Y$55+S69)/100)*((1-X$62)+X$62*((1+(Y$57+AE69)/100)))/(1+(Y$54+M69)/100)-(Y$56+Y69)+Y$58 -> 106.7516509 | AO69: =IF($B$42="On",MIN($B69-$D$15,$D$42),0) -> 4.212219825 | AP69: =IF($B$42="On",MIN($B1069-$D$15,$D$42),0) -> 1.536301158 | AQ69: =IF($B$42="On",MIN($B2069-$D$15,$D$42),0) -> 2.687576635 | AR69: =IF($B$42="On",MIN($B3069-$D$15,$D$42),0) -> -0.6298085864 | AS69: =IF($B$42="On",MIN($B4069-$D$15,$D$42),0) -> -0.06427516545 | AT69: =IF($B$42="On",MIN($B5069-$D$15,$D$42),0) -> -1.567082236 | AU69: =IF($B$43="On",MAX($C69-$D$16,$D$43),0) -> 0.4375947851 | AV69: =IF($B$43="On",MAX($C1069-$D$16,$D$43),0) -> 0.1605758576 | AW69: =IF($B$43="On",MAX($C2069-$D$16,$D$43),0) -> 0.4221364652 | AX69: =IF($B$43="On",MAX($C3069-$D$16,$D$43),0) -> -0.4218190818 | AY69: =IF($B$43="On",MAX($C4069-$D$16,$D$43),0) -> -0.3259733954 | AZ69: =IF($B$43="On",MAX($C5069-$D$16,$D$43),0) -> 0.173457308 | BA69: =IF($B$44="On",MIN($D69-$D$17,$D$44),0) -> 0 | BB69: =IF($B$44="On",MIN($D1069-$D$17,$D$44),0) -> 0 | BC69: =IF($B$44="On",MIN($D2069-$D$17,$D$44),0) -> 0 | BD69: =IF($B$44="On",MIN($D3069-$D$17,$D$44),0) -> 0 | BE69: =IF($B$44="On",MIN($D4069-$D$17,$D$44),0) -> 0 | BF69: =IF($B$44="On",MIN($D5069-$D$17,$D$44),0) -> -0.6578625751 | BG69: =IF($B$45="On",MAX($E69-$D$18,$D$45),0) -> -8.885962644 | BH69: =IF($B$45="On",MAX($E1069-$D$18,$D$45),0) -> 7.321074287 | BI69: =IF($B$45="On",MAX($E2069-$D$18,$D$45),0) -> 3.39160655 | BJ69: =IF($B$45="On",MAX($E3069-$D$18,$D$45),0) -> -10.36400081 | BK69: =IF($B$45="On",MAX($E4069-$D$18,$D$45),0) -> -15.21486047 | BL69: =IF($B$45="On",MAX($E5069-$D$18,$D$45),0) -> 2.897147602 | BN69: =S$53*(1+(T$55+AU69)/100)*((1-S$62)+S$62*((1+(T$57+BG69)/100)))/(1+(T$54+AO69)/100)-(T$56+BA69)+T$58 -> 126.8630611 | BO69: =BN69*(1+(U$55+AV69)/100)*((1-T$62)+T$62*((1+(U$57+BH69)/100)))/(1+(U$54+AP69)/100)-(U$56+BB69)+U$58 -> 125.8194623 | BP69: =BO69*(1+(V$55+AW69)/100)*((1-U$62)+U$62*((1+(V$57+BI69)/100)))/(1+(V$54+AQ69)/100)-(V$56+BC69)+V$58 -> 121.5751188 | BQ69: 119.1150987 | BR69: 115.5380506 | BS69: 114.8522864
A70: =A69+1 -> 2 | B70: -1.661879223 | C70: 2.856140977 | D70: 1.593087374 | E70: 7.409600572 | H70: =IF($B$42="On",$B70-$D$15,0) -> -1.664243987 | I70: =IF($B$42="On",$B1070-$D$15,0) -> 2.283455805 | J70: =IF($B$42="On",$B2070-$D$15,0) -> 2.906748793 | K70: =IF($B$42="On",$B3070-$D$15,0) -> 3.492195363 | L70: =IF($B$42="On",$B4070-$D$15,0) -> 0.05063180564 | M70: =IF($B$42="On",$B5070-$D$15,0) -> 1.02494531 | N70: =IF($B$43="On",$C70-$D$16,0) -> 0.3209931807 | O70: =IF($B$43="On",$C1070-$D$16,0) -> -0.6429198353 | P70: =IF($B$43="On",$C2070-$D$16,0) -> -0.01212377068 | Q70: =IF($B$43="On",$C3070-$D$16,0) -> 0.4060044474 | R70: =IF($B$43="On",$C4070-$D$16,0) -> -0.1202768981 | S70: =IF($B$43="On",$C5070-$D$16,0) -> -0.1291777059 | T70: =IF($B$44="On",$D70-$D$17,0) -> 0.3955973515 | U70: =IF($B$44="On",$D1070-$D$17,0) -> 0.9123070432 | V70: =IF($B$44="On",$D2070-$D$17,0) -> -0.333797302 | W70: =IF($B$44="On",$D3070-$D$17,0) -> 1.250208593 | X70: =IF($B$44="On",$D4070-$D$17,0) -> 1.514861113 | Y70: =IF($B$44="On",$D5070-$D$17,0) -> 0.5543724876 | Z70: =IF($B$45="On",$E70-$D$18,0) -> 10.44926733 | AA70: =IF($B$45="On",$E1070-$D$18,0) -> -11.68399398 | AB70: =IF($B$45="On",$E2070-$D$18,0) -> -4.248971143 | AC70: =IF($B$45="On",$E3070-$D$18,0) -> -2.513045319 | AD70: =IF($B$45="On",$E4070-$D$18,0) -> 2.631192282 | AE70: =IF($B$45="On",$E5070-$D$18,0) -> 10.29610997 | AG70: =S$53*(1+(T$55+N70)/100)*((1-S$62)+S$62*((1+(T$57+Z70)/100)))/(1+(T$54+H70)/100)-(T$56+T70)+T$58 -> 134.1042792 | AH70: =AG70*(1+(U$55+O70)/100)*((1-T$62)+T$62*((1+(U$57+AA70)/100)))/(1+(U$54+I70)/100)-(U$56+U70)+U$58 -> 130.1686098 | AI70: =AH70*(1+(V$55+P70)/100)*((1-U$62)+U$62*((1+(V$57+AB70)/100)))/(1+(V$54+J70)/100)-(V$56+V70)+V$58 -> 125.4196168 | AJ70: =AI70*(1+(W$55+Q70)/100)*((1-V$62)+V$62*((1+(W$57+AC70)/100)))/(1+(W$54+K70)/100)-(W$56+W70)+W$58 -> 117.7521893 | AK70: =AJ70*(1+(X$55+R70)/100)*((1-W$62)+W$62*((1+(X$57+AD70)/100)))/(1+(X$54+L70)/100)-(X$56+X70)+X$58 -> 112.7464433 | AL70: =AK70*(1+(Y$55+S70)/100)*((1-X$62)+X$62*((1+(Y$57+AE70)/100)))/(1+(Y$54+M70)/100)-(Y$56+Y70)+Y$58 -> 107.4496594 | AO70: =IF($B$42="On",MIN($B70-$D$15,$D$42),0) -> -1.664243987 | AP70: =IF($B$42="On",MIN($B1070-$D$15,$D$42),0) -> 2.283455805 | AQ70: =IF($B$42="On",MIN($B2070-$D$15,$D$42),0) -> 2.906748793 | AR70: =IF($B$42="On",MIN($B3070-$D$15,$D$42),0) -> 3.492195363 | AS70: =IF($B$42="On",MIN($B4070-$D$15,$D$42),0) -> 0.05063180564 | AT70: =IF($B$42="On",MIN($B5070-$D$15,$D$42),0) -> 1.02494531 | AU70: =IF($B$43="On",MAX($C70-$D$16,$D$43),0) -> 0.3209931807 | AV70: =IF($B$43="On",MAX($C1070-$D$16,$D$43),0) -> -0.6429198353 | AW70: =IF($B$43="On",MAX($C2070-$D$16,$D$43),0) -> -0.01212377068 | AX70: =IF($B$43="On",MAX($C3070-$D$16,$D$43),0) -> 0.4060044474 | AY70: =IF($B$43="On",MAX($C4070-$D$16,$D$43),0) -> -0.1202768981 | AZ70: =IF($B$43="On",MAX($C5070-$D$16,$D$43),0) -> -0.1291777059 | BA70: =IF($B$44="On",MIN($D70-$D$17,$D$44),0) -> 0 | BB70: =IF($B$44="On",MIN($D1070-$D$17,$D$44),0) -> 0 | BC70: =IF($B$44="On",MIN($D2070-$D$17,$D$44),0) -> -0.333797302 | BD70: =IF($B$44="On",MIN($D3070-$D$17,$D$44),0) -> 0 | BE70: =IF($B$44="On",MIN($D4070-$D$17,$D$44),0) -> 0 | BF70: =IF($B$44="On",MIN($D5070-$D$17,$D$44),0) -> 0 | BG70: =IF($B$45="On",MAX($E70-$D$18,$D$45),0) -> 10.44926733 | BH70: =IF($B$45="On",MAX($E1070-$D$18,$D$45),0) -> -11.68399398 | BI70: =IF($B$45="On",MAX($E2070-$D$18,$D$45),0) -> -4.248971143 | BJ70: =IF($B$45="On",MAX($E3070-$D$18,$D$45),0) -> -2.513045319 | BK70: =IF($B$45="On",MAX($E4070-$D$18,$D$45),0) -> 2.631192282 | BL70: =IF($B$45="On",MAX($E5070-$D$18,$D$45),0) -> 10.29610997 | BN70: =S$53*(1+(T$55+AU70)/100)*((1-S$62)+S$62*((1+(T$57+BG70)/100)))/(1+(T$54+AO70)/100)-(T$56+BA70)+T$58 -> 134.4998766 | BO70: =BN70*(1+(U$55+AV70)/100)*((1-T$62)+T$62*((1+(U$57+BH70)/100)))/(1+(U$54+AP70)/100)-(U$56+BB70)+U$58 -> 131.4729736 | BP70: =BO70*(1+(V$55+AW70)/100)*((1-U$62)+U$62*((1+(V$57+BI70)/100)))/(1+(V$54+AQ70)/100)-(V$56+BC70)+V$58 -> 126.7092868 | BQ70: =BP70*(1+(W$55+AX70)/100)*((1-V$62)+V$62*((1+(W$57+BJ70)/100)))/(1+(W$54+AR70)/100)-(W$56+BD70)+W$58 -> 120.272535 | BR70: =BQ70*(1+(X$55+AY70)/100)*((1-W$62)+W$62*((1+(X$57+BK70)/100)))/(1+(X$54+AS70)/100)-(X$56+BE70)+X$58 -> 116.8162332 | BS70: =BR70*(1+(Y$55+AZ70)/100)*((1-X$62)+X$62*((1+(Y$57+BL70)/100)))/(1+(Y$54+AT70)/100)-(Y$56+BF70)+Y$58 -> 112.1033239
A71: =A70+1 -> 3 | B71: -1.245130903 | C71: 2.39922483 | D71: 1.518173765 | E71: -2.1061153 | H71: -1.247495667 | I71: -0.9468079402 | J71: -4.194184274 | K71: 1.196574619 | L71: -1.821282702 | M71: -0.1770269703 | N71: -0.1359229654 | O71: -0.3016008472 | P71: -0.6757048779 | Q71: -0.2700122184 | R71: 0.3822470226 | S71: -0.6412687573 | T71: 0.3206837422 | U71: 0.88326089 | V71: -0.6549989602 | W71: 1.418122051 | X71: -1.007049449 | Y71: 1.847321281 | Z71: 0.9335514564 | AA71: -10.52898592 | AB71: -4.422426441 | AC71: -3.544931622 | AD71: 2.172649106 | AE71: -25.54054231 | AG71: 132.9980149 | AH71: 133.8223085 | AI71: =AH71*(1+(V$55+P71)/100)*((1-U$62)+U$62*((1+(V$57+AB71)/100)))/(1+(V$54+J71)/100)-(V$56+V71)+V$58 -> 138.1361933 | AJ71: 132.2420744 | AK71: 133.1444405 | AL71: 127.623295 | AO71: -1.247495667 | AP71: -0.9468079402 | AQ71: -4.194184274 | AR71: 1.196574619 | AS71: -1.821282702 | AT71: -0.1770269703 | AU71: -0.1359229654 | AV71: -0.3016008472 | AW71: -0.6757048779 | AX71: -0.2700122184 | AY71: 0.3822470226 | AZ71: -0.6412687573 | BA71: 0 | BB71: 0 | BC71: -0.6549989602 | BD71: 0 | BE71: -1.007049449 | BF71: 0 | BG71: 0.9335514564 | BH71: -10.52898592 | BI71: -4.422426441 | BJ71: -3.544931622 | BK71: 2.172649106 | BL71: -25.54054231 | BN71: 133.3186986 | BO71: 135.0347663 | BP71: =BO71*(1+(V$55+AW71)/100)*((1-U$62)+U$62*((1+(V$57+BI71)/100)))/(1+(V$54+AQ71)/100)-(V$56+BC71)+V$58 -> 139.414567 | BQ71: 134.9389556 | BR71: 135.9433291 | BS71: 132.309149
A72: 4 | B72: -0.2473345155 | C72: 2.691635639 | D72: 1.562023221 | E72: -1.427980888 | H72: -0.2496992795 | I72: -0.5195537594 | J72: -0.9625422882 | K72: 3.476164567 | L72: -0.3477982489 | M72: 2.716937601 | N72: 0.1564878432 | O72: -0.3049726856 | P72: -0.3403867707 | Q72: -0.1846640468 | R72: 0.7177480573 | S72: 0.3458747635 | T72: 0.364533198 | U72: 0.7106378969 | V72: 1.342351121 | W72: -0.1085203112 | X72: -2.419334089 | Y72: -0.4681767336 | Z72: 1.611685868 | AA72: -8.2710737 | AB72: -5.719141369 | AC72: -6.552970384 | AD72: 23.56366676 | AE72: -5.273330384 | AG72: 131.963759 | AH72: 132.3513174 | AI72: 130.525989 | AJ72: 123.4244709 | AK72: 123.9476165 | AL72: 118.2884372 | AO72: -0.2496992795 | AP72: -0.5195537594 | AQ72: -0.9625422882 | AR72: 3.476164567 | AS72: -0.3477982489 | AT72: 2.716937601 | AU72: 0.1564878432 | AV72: -0.3049726856 | AW72: -0.3403867707 | AX72: -0.1846640468 | AY72: 0.7177480573 | AZ72: 0.3458747635 | BA72: 0 | BB72: 0 | BC72: 0 | BD72: -0.1085203112 | BE72: -2.419334089 | BF72: -0.4681767336 | BG72: 1.611685868 | BH72: -8.2710737 | BI72: -5.719141369 | BJ72: -6.552970384 | BK72: 23.56366676 | BL72: -5.273330384 | BN72: 132.3282922 | BO72: 133.4345583 | BP72: 132.977227 | BQ72: 125.8251467 | BR72: 126.4107373 | BS72: 120.7402777
A73: 5 | B73: 0.3359068145 | C73: 3.245412 | D73: 0.04761411646 | E73: 10.14908763 | H73: 0.3335420504 | I73: -0.03086188341 | J73: -0.551264025 | K73: 2.778203786 | L73: -1.711181859 | M73: 1.079065477 | N73: 0.7102642046 | O73: 0.06708378736 | P73: 0.2581040973 | Q73: 0.1773695606 | R73: 0.1052710226 | S73: -0.3204643302 | T73: -1.149875907 | U73: 0.8263971632 | V73: 1.729197936 | W73: -0.1815668468 | X73: -1.255565876 | Y73: 0.7156844294 | Z73: 13.18875438 | AA73: 8.07193916 | AB73: -6.509069394 | AC73: 4.810257797 | AD73: -10.77201333 | AE73: -13.16292537 | AG73: 133.401787 | AH73: 133.5366071 | AI73: 131.5882891 | AJ73: 125.8586065 | AK73: 126.2740954 | AL73: 120.6105978 | AO73: 0.3335420504 | AP73: -0.03086188341 | AQ73: -0.551264025 | AR73: 2.778203786 | AS73: -1.711181859 | AT73: 1.079065477 | AU73: 0.7102642046 | AV73: 0.06708378736 | AW73: 0.2581040973 | AX73: 0.1773695606 | AY73: 0.1052710226 | AZ73: -0.3204643302 | BA73: -1.149875907 | BB73: 0 | BC73: 0 | BD73: -0.1815668468 | BE73: -1.255565876 | BF73: 0 | BG73: 13.18875438 | BH73: 8.07193916 | BI73: -6.509069394 | BJ73: 4.810257797 | BK73: -10.77201333 | BL73: -13.16292537 | BN73: 133.401787 | BO73: 134.3630043 | BP73: 134.1649086 | BQ73: 128.4079381 | BR73: 128.9098483 | BS73: 123.9748076
A74: 6 | B74: -0.6588176389 | C74: 1.670647826 | D74: 3.134374316 | E74: -8.723838435 | H74: -0.6611824029 | I74: -0.8214161578 | J74: 0.1315808414 | K74: 0.8692608119 | L74: 2.056067501 | M74: 2.750749148 | N74: -0.8644999695 | O74: -0.5718206595 | P74: 0.451341941 | Q74: 0.4168432796 | R74: 0.3160209594 | S74: 0.619664823 | T74: 1.936884293 | U74: -0.03534033398 | V74: -1.631323071 | W74: 0.4934038589 | X74: 0.9184075009 | Y74: 1.750493948 | Z74: -5.684171679 | AA74: -14.21352077 | AB74: 28.98042308 | AC74: 10.96505496 | AD74: 2.242609726 | AE74: 4.342156633 | AG74: 129.6255215 | AH74: 130.7613848 | AI74: 131.4478564 | AJ74: 127.7800881 | AK74: 121.5363566 | AL74: 113.9503067 | AO74: -0.6611824029 | AP74: -0.8214161578 | AQ74: 0.1315808414 | AR74: 0.8692608119 | AS74: 2.056067501 | AT74: 2.750749148 | AU74: -0.8644999695 | AV74: -0.5718206595 | AW74: 0.451341941 | AX74: 0.4168432796 | AY74: 0.3160209594 | AZ74: 0.619664823 | BA74: 0 | BB74: -0.03534033398 | BC74: -1.631323071 | BD74: 0 | BE74: 0 | BF74: 0 | BG74: -5.684171679 | BH74: -14.21352077 | BI74: 28.98042308 | BJ74: 10.96505496 | BK74: 2.242609726 | BL74: 4.342156633 | BN74: 131.5624058 | BO74: 132.7419546 | BP74: 133.4688911 | BQ74: 130.31518 | BR74: 124.9855173 | BS74: 119.1421331
A75: 7 | B75: -2.198403619 | C75: 1.981374292 | D75: 1.614405728 | E75: -7.785677318 | H75: -2.200768383 | I75: -0.7162597694 | J75: -1.758295702 | K75: 3.44437701 | L75: -1.948010901 | M75: 0.05228734041 | N75: -0.5537735036 | O75: -0.08151527282 | P75: 0.4299535111 | Q75: 0.3808048494 | R75: 0.2248544149 | S75: -0.03667809153 | T75: 0.4169157053 | U75: 1.201072305 | V75: -1.266131872 | W75: -0.4275313091 | X75: -1.514600357 | Y75: 1.026970578 | Z75: -4.746010562 | AA75: 6.669705754 | AB75: 5.902461599 | AC75: -9.76178748 | AD75: 10.04504806 | AE75: -4.837882426 | AG75: 133.6840901 | AH75: 134.186624 | AI75: 137.1549541 | AJ75: 131.0161686 | AK75: 132.3456351 | AL75: 128.1197994 | AO75: -2.200768383 | AP75: -0.7162597694 | AQ75: -1.758295702 | AR75: 3.44437701 | AS75: -1.948010901 | AT75: 0.05228734041 | AU75: -0.5537735036 | AV75: -0.08151527282 | AW75: 0.4299535111 | AX75: 0.3808048494 | AY75: 0.2248544149 | AZ75: -0.03667809153 | BA75: 0 | BB75: 0 | BC75: -1.266131872 | BD75: -0.4275313091 | BE75: -1.514600357 | BF75: 0 | BG75: -4.746010562 | BH75: 6.669705754 | BI75: 5.902461599 | BJ75: -9.76178748 | BK75: 10.04504806 | BL75: -4.837882426 | BN75: 134.1010058 | BO75: 135.8156107 | BP75: 138.8485074 | BQ75: 132.6844256 | BR75: 134.0765585 | BS75: 130.9085705
A76: 8 | B76: 0.09120638404 | C76: 2.634353718 | D76: 1.353885954 | E76: -2.435922348 | H76: 0.08884161998 | I76: -1.032712804 | J76: 2.553288995 | K76: 0.1110995174 | L76: -0.1294082233 | M76: -4.420603615 | N76: 0.09920592236 | O76: -0.7054763568 | P76: 0.0408694365 | Q76: 0.5861653362 | R76: 0.2381293737 | S76: -0.3932004967 | T76: 0.1563959313 | U76: 0.08898450015 | V76: 1.213119237 | W76: 0.02850231746 | X76: -0.9030169659 | Y76: -0.8195753331 | Z76: 0.6037444084 | AA76: -15.4304292 | AB76: -6.332562139 | AC76: 10.68143402 | AD76: -0.9053211158 | AE76: -0.4080601065 | AG76: 131.6383083 | AH76: 132.8040315 | AI76: 126.9942923 | AJ76: 124.9159231 | AK76: 123.0935615 | AL76: 125.8863155 | AO76: 0.08884161998 | AP76: -1.032712804 | AQ76: 2.553288995 | AR76: 0.1110995174 | AS76: -0.1294082233 | AT76: -4.420603615 | AU76: 0.09920592236 | AV76: -0.7054763568 | AW76: 0.0408694365 | AX76: 0.5861653362 | AY76: 0.2381293737 | AZ76: -0.3932004967 | BA76: 0 | BB76: 0 | BC76: 0 | BD76: 0 | BE76: -0.9030169659 | BF76: -0.8195753331 | BG76: 0.6037444084 | BH76: -15.4304292 | BI76: -6.332562139 | BJ76: 10.68143402 | BK76: -0.9053211158 | BL76: -0.4080601065 | BN76: 131.7947043 | BO76: 133.0530686 | BP76: 128.4546106 | BQ76: 126.433121 | BR76: 124.6396815 | BS76: 127.5270527
A77: 9 | B77: -3.671485738 | C77: 2.360931555 | D77: 0.7556464994 | E77: -7.416401015 | H77: -3.673850502 | I77: 0.9139750947 | J77: 3.390814085 | K77: -0.2528404895 | L77: -1.419341127 | M77: -0.8402119236 | N77: -0.1742162408 | O77: -0.2680357412 | P77: -0.2579009423 | Q77: -0.3869969899 | R77: 0.9786609998 | S77: -0.4730018042 | T77: -0.4418435236 | U77: 0.8072716685 | V77: 0.6201714439 | W77: 0.6960560402 | X77: -0.7596773934 | Y77: -1.466978651 | Z77: -4.376734259 | AA77: -9.906909995 | AB77: -15.74287157 | AC77: -14.66539526 | AD77: 5.905677772 | AE77: -8.561243979 | AG77: 137.1596488 | AH77: 135.6385574 | AI77: 128.9332929 | AJ77: 125.457483 | AK77: 126.0808039 | AL77: 124.8302511 | AO77: -3.673850502 | AP77: 0.9139750947 | AQ77: 3.390814085 | AR77: -0.2528404895 | AS77: -1.419341127 | AT77: -0.8402119236 | AU77: -0.1742162408 | AV77: -0.2680357412 | AW77: -0.2579009423 | AX77: -0.3869969899 | AY77: 0.9786609998 | AZ77: -0.4730018042 | BA77: -0.4418435236 | BB77: 0 | BC77: 0 | BD77: 0 | BE77: -0.7596773934 | BF77: -1.466978651 | BG77: -4.376734259 | BH77: -9.906909995 | BI77: -15.74287157 | BJ77: -14.66539526 | BK77: 5.905677772 | BL77: -8.561243979 | BN77: 137.1596488 | BO77: 136.4458291 | BP77: 130.3460435 | BQ77: 127.5853321 | BR77: 128.2929525 | BS77: 127.0922672
A78: 10 | B78: -0.2842964286 | C78: 2.555620246 | D78: -0.5646786709 | E78: -6.421196691 | H78: -0.2866611927 | I78: 1.256371358 | J78: 1.200926956 | K78: 1.169886426 | L78: -4.332261845 | M78: 1.362385111 | N78: 0.02047244995 | O78: 0.7843408021 | P78: 0.1061636445 | Q78: -0.2543973671 | R78: -0.2068787414 | S78: 0.7116174751 | T78: -1.762168694 | U78: -0.5813218947 | V78: -0.8489389434 | W78: 1.731650696 | X78: 0.128263564 | Y78: -0.5867150773 | Z78: -3.381529935 | AA78: 7.650444159 | AB78: 1.717221102 | AC78: -11.15265596 | AD78: 3.170999057 | AE78: 15.69158313 | AG78: 133.9644863 | AH78: 134.7349321 | AI78: 132.827696 | AJ78: 126.6732403 | AK78: 128.8615947 | AL78: 125.4520713 | AO78: -0.2866611927 | AP78: 1.256371358 | AQ78: 1.200926956 | AR78: 1.169886426 | AS78: -4.332261845 | AT78: 1.362385111 | AU78: 0.02047244995 | AV78: 0.7843408021 | AW78: 0.1061636445 | AX78: -0.2543973671 | AY78: -0.2068787414 | AZ78: 0.7116174751 | BA78: -1.762168694 | BB78: -0.5813218947 | BC78: -0.8489389434 | BD78: 0 | BE78: 0 | BF78: -0.5867150773 | BG78: -3.381529935 | BH78: 7.650444159 | BI78: 1.717221102 | BJ78: -11.15265596 | BK78: 3.170999057 | BL78: 15.69158313 | BN78: 133.9644863 | BO78: 134.7349321 | BP78: 132.827696 | BQ78: 128.404891 | BR78: 130.8229865 | BS78: 127.4372606
A79: 11 | B79: -0.250444673 | C79: 2.625858573 | D79: 1.389457193 | E79: -1.808286325 | H79: -0.2528094371 | I79: -2.840257033 | J79: -1.049022488 | K79: 6.050059868 | L79: 0.6801737015 | M79: 1.092395563 | N79: 0.09071077761 | O79: -0.5341418541 | P79: -0.173444301 | Q79: 0.5126383632 | R79: 0.120897782 | S79: 0.1238567916 | T79: 0.1919671696 | U79: 0.5754253579 | V79: 0.219943528 | W79: -0.3770918683 | X79: -1.057192563 | Y79: -0.7895127322 | Z79: 1.231380432 | AA79: -7.110687404 | AB79: 0.4687194127 | AC79: -12.00817852 | AD79: 8.152164265 | AE79: -8.592109995 | AG79: 132.0553104 | AH79: 135.4703713 | AI79: 135.1873432 | AJ79: 125.9640264 | AK79: 123.1531237 | AL79: 119.4985059 | AO79: -0.2528094371 | AP79: -2.840257033 | AQ79: -1.049022488 | AR79: 6.050059868 | AS79: 0.6801737015 | AT79: 1.092395563 | AU79: 0.09071077761 | AV79: -0.5341418541 | AW79: -0.173444301 | AX79: 0.5126383632 | AY79: 0.120897782 | AZ79: 0.1238567916 | BA79: 0 | BB79: 0 | BC79: 0 | BD79: -0.3770918683 | BE79: -1.057192563 | BF79: -0.7895127322 | BG79: 1.231380432 | BH79: -7.110687404 | BI79: 0.4687194127 | BJ79: -12.00817852 | BK79: 8.152164265 | BL79: -8.592109995 | BN79: 132.2472775 | BO79: 136.246215 | BP79: 136.2034806 | BQ79: 126.9419592 | BR79: 124.140672 | BS79: 120.4949999
A80: 12 | B80: -1.138453539 | C80: 2.117608171 | D80: 0.1412616952 | E80: -5.033092454 | H80: -1.140818303 | I80: -1.635654299 | J80: -0.8254981833 | K80: -2.381564672 | L80: -1.294147366 | M80: -1.410877141 | N80: -0.4175396253 | O80: 0.4845718785 | P80: -0.1630590244 | Q80: 0.3432727075 | R80: 0.5087622247 | S80: 0.4557758941 | T80: -1.056228328 | U80: 0.6844839217 | V80: -0.969645338 | W80: -0.2532445606 | X80: -1.929931258 | Y80: -2.093934383 | Z80: -1.993425698 | AA80: 16.3231632 | AB80: -4.322028572 | AC80: 6.590614308 | AD80: 10.11800469 | AE80: 8.11797137 | AG80: 133.8588448 | AH80: 136.9215692 | AI80: 137.567035 | AJ80: 139.168782 | AK80: 140.6713642 | AL80: 142.5085547 | AO80: -1.140818303 | AP80: -1.635654299 | AQ80: -0.8254981833 | AR80: -2.381564672 | AS80: -1.294147366 | AT80: -1.410877141 | AU80: -0.4175396253 | AV80: 0.4845718785 | AW80: -0.1630590244 | AX80: 0.3432727075 | AY80: 0.5087622247 | AZ80: 0.4557758941 | BA80: -1.056228328 | BB80: 0 | BC80: -0.969645338 | BD80: -0.2532445606 | BE80: -1.929931258 | BF80: -2.093934383 | BG80: -1.993425698 | BH80: 16.3231632 | BI80: -4.322028572 | BJ80: 6.590614308 | BK80: 10.11800469 | BL80: 8.11797137 | BN80: 133.8588448 | BO80: 137.6060531 | BP80: 138.2679772 | BQ80: 139.8996139 | BR80: 141.4267689 | BS80: 143.2924363
A81: 13 | B81: -3.848106112 | C81: 1.539813393 | D81: 2.514532014 | E81: -22.89981971 | H81: -3.850470876 | I81: -0.08503449213 | J81: -0.4109484509 | K81: 0.1403371023 | L81: -0.320624342 | M81: -0.2364558671 | N81: -0.9953344027 | O81: -0.5192086776 | P81: -0.3522975834 | Q81: -0.3431152261 | R81: -0.5372653106 | S81: -0.03835309796 | T81: 1.317041991 | U81: -3.448861897 | V81: 1.028189849 | W81: 0.1413038671 | X81: 0.2034737196 | Y81: 1.052162466 | Z81: -19.86015295 | AA81: 0.1422822361 | AB81: 0.1461296676 | AC81: -5.979705659 | AD81: -18.57621276 | AE81: 0.9900875644 | AG81: 134.5539698 | AH81: 138.2783435 | AI81: 136.1153787 | AJ81: 132.8157918 | AK81: 129.2747329 | AL81: 125.343085 | AO81: -3.850470876 | AP81: -0.08503449213 | AQ81: -0.4109484509 | AR81: 0.1403371023 | AS81: -0.320624342 | AT81: -0.2364558671 | AU81: -0.9953344027 | AV81: -0.5192086776 | AW81: -0.3522975834 | AX81: -0.3431152261 | AY81: -0.5372653106 | AZ81: -0.03835309796 | BA81: 0 | BB81: -3.448861897 | BC81: 0 | BD81: 0 | BE81: 0 | BF81: 0 | BG81: -19.86015295 | BH81: 0.1422822361 | BI81: 0.1461296676 | BJ81: -5.979705659 | BK81: -18.57621276 | BL81: 0.9900875644 | BN81: 135.8710118 | BO81: 139.6159274 | BP81: 138.5051578 | BQ81: 135.3707412 | BR81: 132.0671868 | BS81: 129.2455969
A82: 14 | B82: 1.258975383 | C82: 2.098207738 | D82: 0.3722892269 | E82: -8.71812123 | H82: 1.256610619 | I82: 6.086926389 | J82: 0.6320092711 | K82: -0.7869139842 | L82: -0.02439334067 | M82: -1.056101701 | N82: -0.4369400582 | O82: 1.111705105 | P82: 0.09925781336 | Q82: 0.7581887097 | R82: 0.2706231326 | S82: -1.011624538 | T82: -0.8252007961 | U82: 0.6413113678 | V82: -0.3547687032 | W82: -1.647110323 | X82: 0.4313182207 | Y82: 0.7609593663 | Z82: -5.678454474 | AA82: 9.097144803 | AB82: 5.674525301 | AC82: 12.08705449 | AD82: 1.417362719 | AE82: -8.657223433 | AG82: 130.3750709 | AH82: 124.2850507 | AI82: 122.5082382 | AJ82: 123.3424499 | AK82: 120.0650876 | AL82: 116.0698892 | AO82: 1.256610619 | AP82: 6.086926389 | AQ82: 0.6320092711 | AR82: -0.7869139842 | AS82: -0.02439334067 | AT82: -1.056101701 | AU82: -0.4369400582 | AV82: 1.111705105 | AW82: 0.09925781336 | AX82: 0.7581887097 | AY82: 0.2706231326 | AZ82: -1.011624538 | BA82: -0.8252007961 | BB82: 0 | BC82: -0.3547687032 | BD82: -1.647110323 | BE82: 0 | BF82: 0 | BG82: -5.678454474 | BH82: 9.097144803 | BI82: 5.674525301 | BJ82: 12.08705449 | BK82: 1.417362719 | BL82: -8.657223433 | BN82: 130.3750709 | BO82: 124.926362 | BP82: 123.1572113 | BQ82: 124.0110486 | BR82: 121.1772585 | BS82: 117.9645604
A83: 15 | B83: -1.874166099 | C83: 2.362612027 | D83: 1.41637131 | E83: -5.723531125 | H83: -1.876530864 | I83: -2.509756798 | J83: -2.274915874 | K83: 0.1809139083 | L83: -1.86314479 | M83: 1.357391815 | N83: -0.1725357687 | O83: -0.3951246377 | P83: 0.0381994769 | Q83: -0.5316515721 | R83: -0.3598021898 | S83: 0.170295008 | T83: 0.2188812866 | U83: -0.09435753953 | V83: 0.5852126766 | W83: -0.1110801674 | X83: -0.8082539705 | Y83: -0.8458847619 | Z83: -2.683864368 | AA83: -7.351864912 | AB83: -0.8005596939 | AC83: -7.287535685 | AD83: -6.429842697 | AE83: 2.39256653 | AG83: 133.9294319 | AH83: 137.815898 | AI83: 139.2795027 | AJ83: 135.9492029 | AK83: 135.8388347 | AL83: 132.0628398 | AO83: -1.876530864 | AP83: -2.509756798 | AQ83: -2.274915874 | AR83: 0.1809139083 | AS83: -1.86314479 | AT83: 1.357391815 | AU83: -0.1725357687 | AV83: -0.3951246377 | AW83: 0.0381994769 | AX83: -0.5316515721 | AY83: -0.3598021898 | AZ83: 0.170295008 | BA83: 0 | BB83: -0.09435753953 | BC83: 0 | BD83: -0.1110801674 | BE83: -0.8082539705 | BF83: -0.8458847619 | BG83: -2.683864368 | BH83: -7.351864912 | BI83: -0.8005596939 | BJ83: -7.287535685 | BK83: -6.429842697 | BL83: 2.39256653 | BN83: 134.1483131 | BO83: 138.0439562 | BP83: 140.1021486 | BQ83: 136.7782056 | BR83: 136.6933755 | BS83: 132.9232804
A84: 16 | B84: 2.905755724 | C84: 2.510321592 | D84: 1.567527108 | E84: -3.909817182 | H84: 2.90339096 | I84: 1.909741439 | J84: 0.5967222368 | K84: 0.2487174952 | L84: 3.714514342 | M84: 1.298397292 | N84: -0.02482620392 | O84: 0.1462847313 | P84: 0.1841048541 | Q84: 0.06649735768 | R84: 0.8854422857 | S84: -0.5908762401 | T84: 0.3700370845 | U84: -1.12002277 | V84: -0.2376186977 | W84: -0.7094624679 | X84: 0.01360765726 | Y84: 0.7546732005 | Z84: -0.8701504254 | AA84: 8.140906797 | AB84: 1.177082925 | AC84: 6.147393909 | AD84: 14.42652755 | AE84: -20.42054982 | AG84: 127.5690833 | AH84: 127.1651795 | AI84: 125.4564326 | AJ84: 123.2716116 | AK84: 116.6665942 | AL84: 110.3589015 | AO84: 2.90339096 | AP84: 1.909741439 | AQ84: 0.5967222368 | AR84: 0.2487174952 | AS84: 3.714514342 | AT84: 1.298397292 | AU84: -0.02482620392 | AV84: 0.1462847313 | AW84: 0.1841048541 | AX84: 0.06649735768 | AY84: 0.8854422857 | AZ84: -0.5908762401 | BA84: 0 | BB84: -1.12002277 | BC84: -0.2376186977 | BD84: -0.7094624679 | BE84: 0 | BF84: 0 | BG84: -0.8701504254 | BH84: 8.140906797 | BI84: 1.177082925 | BJ84: 6.147393909 | BK84: 14.42652755 | BL84: -20.42054982 | BN84: 127.9391204 | BO84: 127.5360845 | BP84: 125.8322087 | BQ84: 123.6522501 | BR84: 117.0562556 | BS84: 111.5032585
A85: 17 | B85: 3.281756287 | C85: 3.382124656 | D85: 1.046186052 | E85: 2.045060502 | H85: 3.279391523 | I85: -0.9191393915 | J85: -4.803366098 | K85: -2.696224025 | L85: 1.630957088 | M85: -2.162930475 | N85: 0.8469768605 | O85: -0.04434592087 | P85: -0.5219424155 | Q85: -0.2363316036 | R85: -0.05203442842 | S85: -0.4886865668 | T85: -0.1513039706 | U85: -2.283362996 | V85: -0.247386185 | W85: -1.281598154 | X85: 0.7817059097 | Y85: -0.2637559535 | Z85: 5.084727258 | AA85: 1.20973437 | AB85: -4.147105725 | AC85: -0.1314358549 | AD85: -6.679055529 | AE85: -6.009009947 | AG85: 128.7028679 | AH85: 132.8748035 | AI85: 137.8284666 | AJ85: 140.1184868 | AK85: 134.0669429 | AL85: 133.6028974 | AO85: 3.279391523 | AP85: -0.9191393915 | AQ85: -4.803366098 | AR85: -2.696224025 | AS85: 1.630957088 | AT85: -2.162930475 | AU85: 0.8469768605 | AV85: -0.04434592087 | AW85: -0.5219424155 | AX85: -0.2363316036 | AY85: -0.05203442842 | AZ85: -0.4886865668 | BA85: -0.1513039706 | BB85: -2.283362996 | BC85: -0.247386185 | BD85: -1.281598154 | BE85: 0 | BF85: -0.2637559535 | BG85: 5.084727258 | BH85: 1.20973437 | BI85: -4.147105725 | BJ85: -0.1314358549 | BK85: -6.679055529 | BL85: -6.009009947 | BN85: 128.7028679 | BO85: 132.8748035 | BP85: 137.8284666 | BQ85: 140.1184868 | BR85: 134.8486489 | BS85: 134.4127768
A86: 18 | B86: 1.295804424 | C86: 3.418371197 | D86: 0.3216969203 | E86: 11.2292075 | H86: 1.29343966 | I86: -0.2020485237 | J86: -2.628282213 | K86: 1.490737442 | L86: 3.417842423 | M86: 1.138084235 | N86: 0.8832234011 | O86: -0.2499011478 | P86: 0.4725111802 | Q86: 0.415619745 | R86: 0.1083984475 | S86: 0.04914796758 | T86: -0.8757931027 | U86: 0.8457066233 | V86: -1.675918389 | W86: 1.186742938 | X86: 1.013527324 | Y86: -1.498859046 | Z86: 14.26887426 | AA86: 3.89889087 | AB86: 20.72774685 | AC86: 1.373884731 | AD86: -5.443897938 | AE86: 13.34658753 | AG86: 132.0617386 | AH86: 131.9624767 | AI86: 136.5220686 | AJ86: 131.3781505 | AK86: 123.069002 | AL86: 119.977684 | AO86: 1.29343966 | AP86: -0.2020485237 | AQ86: -2.628282213 | AR86: 1.490737442 | AS86: 3.417842423 | AT86: 1.138084235 | AU86: 0.8832234011 | AV86: -0.2499011478 | AW86: 0.4725111802 | AX86: 0.415619745 | AY86: 0.1083984475 | AZ86: 0.04914796758 | BA86: -0.8757931027 | BB86: 0 | BC86: -1.675918389 | BD86: 0 | BE86: 0 | BF86: -1.498859046 | BG86: 14.26887426 | BH86: 3.89889087 | BI86: 20.72774685 | BJ86: 1.373884731 | BK86: -5.443897938 | BL86: 13.34658753 | BN86: 132.0617386 | BO86: 132.8081833 | BP86: 137.4094324 | BQ86: 133.4559002 | BR86: 126.1256601 | BS86: 123.0584225
A87: 19 | B87: 1.854867878 | C87: 2.610475024 | D87: 3.808640911 | E87: -5.789973801 | H87: 1.852503114 | I87: -2.110703245 | J87: 0.2051558447 | K87: -0.2852644808 | L87: 4.209489578 | M87: -3.423415913 | N87: 0.07532722802 | O87: 0.1356568385 | P87: 0.1681181426 | Q87: 0.5829986661 | R87: -0.1780014791 | S87: -0.2597980982 | T87: 2.611150888 | U87: -1.430269543 | V87: -0.2770500388 | W87: 0.7554913708 | X87: 0.7137103413 | Y87: -0.1277243049 | Z87: -2.750307045 | AA87: 15.36505768 | AB87: 2.570165565 | AC87: 5.204541375 | AD87: -1.370255751 | AE87: -2.698210334 | AG87: 126.8105016 | AH87: 131.882247 | AI87: 130.7707127 | AJ87: 128.557218 | AK87: 119.2986596 | AL87: 120.0389538 | AO87: 1.852503114 | AP87: -2.110703245 | AQ87: 0.2051558447 | AR87: -0.2852644808 | AS87: 4.209489578 | AT87: -3.423415913 | AU87: 0.07532722802 | AV87: 0.1356568385 | AW87: 0.1681181426 | AX87: 0.5829986661 | AY87: -0.1780014791 | AZ87: -0.2597980982 | BA87: 0 | BB87: -1.430269543 | BC87: -0.2770500388 | BD87: 0 | BE87: 0 | BF87: -0.1277243049 | BG87: -2.750307045 | BH87: 15.36505768 | BI87: 2.570165565 | BJ87: 5.204541375 | BK87: -1.370255751 | BL87: -2.698210334 | BN87: 129.4216525 | BO87: 134.6059192 | BP87: 133.5403951 | BQ87: 132.1471942 | BR87: 123.5063336 | BS87: 124.4643249
A88: 20 | B88: 2.529995886 | C88: 1.414754514 | D88: 0.6613982397 | E88: -30.88706734 | H88: 2.527631122 | I88: 2.641562919 | J88: 0.3324010344 | K88: 1.964285776 | L88: 1.542852267 | M88: -2.257926108 | N88: -1.120393282 | O88: 0.2919094721 | P88: -0.9256486811 | Q88: 0.09052071273 | R88: 0.02384564177 | S88: -0.5175485102 | T88: -0.5360917833 | U88: 1.038408335 | V88: 0.3866037117 | W88: -0.07066961887 | X88: 0.1660648973 | Y88: -0.1333322521 | Z88: -27.84740059 | AA88: -4.140231653 | AB88: -5.290466636 | AC88: 3.597814523 | AD88: 0.7729682081 | AE88: -7.038520572 | AG88: 127.5758799 | AH88: 124.2881229 | AI88: 120.8852824 | AJ88: 115.9982847 | AK88: 110.775141 | AL88: 109.4190866 | AO88: 2.527631122 | AP88: 2.641562919 | AQ88: 0.3324010344 | AR88: 1.964285776 | AS88: 1.542852267 | AT88: -2.257926108 | AU88: -1.120393282 | AV88: 0.2919094721 | AW88: -0.9256486811 | AX88: 0.09052071273 | AY88: 0.02384564177 | AZ88: -0.5175485102 | BA88: -0.5360917833 | BB88: 0 | BC88: 0 | BD88: -0.07066961887 | BE88: 0 | BF88: -0.1333322521 | BG88: -27.84740059 | BH88: -4.140231653 | BI88: -5.290466636 | BJ88: 3.597814523 | BK88: 0.7729682081 | BL88: -7.038520572 | BN88: 127.5758799 | BO88: 125.3265312 | BP88: 122.315309 | BQ88: 117.423106 | BR88: 112.3666359 | BS88: 111.0690596
A89: 21 | B89: -1.394068805 | C89: 2.366747049 | D89: -1.524034901 | E89: -3.119970033 | H89: -1.396433569 | I89: -0.5908056067 | J89: 1.342663555 | K89: -1.259793494 | L89: -2.332946806 | M89: -0.4850118145 | N89: -0.1684007472 | O89: 0.04837333781 | P89: 0.3541216716 | Q89: 0.6317725178 | R89: 0.2412770282 | S89: 0.06387938979 | T89: -2.721524924 | U89: 0.445555678 | V89: -0.2645645126 | W89: -1.149262479 | X89: -1.61921785 | Y89: 1.322274658 | Z89: -0.08030327698 | AA89: -3.525093386 | AB89: -2.07356506 | AC89: 19.91417802 | AD89: 19.22364825 | AE89: 5.217869769 | AG89: 136.2044565 | AH89: 137.5305267 | AI89: 135.1982094 | AJ89: 136.4053916 | AK89: 138.6144522 | AL89: 135.096215 | AO89: -1.396433569 | AP89: -0.5908056067 | AQ89: 1.342663555 | AR89: -1.259793494 | AS89: -2.332946806 | AT89: -0.4850118145 | AU89: -0.1684007472 | AV89: 0.04837333781 | AW89: 0.3541216716 | AX89: 0.6317725178 | AY89: 0.2412770282 | AZ89: 0.06387938979 | BA89: -2.721524924 | BB89: 0 | BC89: -0.2645645126 | BD89: -1.149262479 | BE89: -1.61921785 | BF89: 0 | BG89: -0.08030327698 | BH89: -3.525093386 | BI89: -2.07356506 | BJ89: 19.91417802 | BK89: 19.22364825 | BL89: 5.217869769 | BN89: 136.2044565 | BO89: 137.9760824 | BP89: 135.6470681 | BQ89: 136.8694412 | BR89: 139.0978812 | BS89: 136.91365
A90: 22 | B90: -2.764628867 | C90: 2.294549108 | D90: -0.7282348862 | E90: 2.143572194 | H90: -2.766993631 | I90: 4.889011364 | J90: 1.24721753 | K90: -0.7945442968 | L90: -3.229571543 | M90: -3.905096008 | N90: -0.2405986883 | O90: 0.7585701666 | P90: 0.1913522058 | Q90: 0.1453324927 | R90: -1.219930607 | S90: -0.7965246575 | T90: -1.925724909 | U90: 2.063858151 | V90: -1.445755365 | W90: 1.66677976 | X90: 1.67796901 | Y90: -1.227339026 | Z90: 5.18323895 | AA90: 14.03529496 | AB90: -1.771692851 | AC90: 8.553906367 | AD90: -12.28114282 | AE90: -8.277096124 | AG90: 137.2455411 | AH90: 130.596176 | AI90: 129.3086076 | AJ90: 126.2569761 | AK90: 124.0670905 | AL90: 126.1152943 | AO90: -2.766993631 | AP90: 4.889011364 | AQ90: 1.24721753 | AR90: -0.7945442968 | AS90: -3.229571543 | AT90: -3.905096008 | AU90: -0.2405986883 | AV90: 0.7585701666 | AW90: 0.1913522058 | AX90: 0.1453324927 | AY90: -1.219930607 | AZ90: -0.7965246575 | BA90: -1.925724909 | BB90: 0 | BC90: -1.445755365 | BD90: 0 | BE90: 0 | BF90: -1.227339026 | BG90: 5.18323895 | BH90: 14.03529496 | BI90: -1.771692851 | BJ90: 8.553906367 | BK90: -12.28114282 | BL90: -8.277096124 | BN90: 137.2455411 | BO90: 132.6600341 | BP90: 131.3864218 | BQ90: 130.0519099 | BR90: 129.6780977 | BS90: 132.0148671
A91: 23 | B91: 0.338179137 | C91: 2.034251342 | D91: 2.227479536 | E91: -11.42543284 | H91: 0.3358143729 | I91: -3.14363626 | J91: -2.504720809 | K91: 0.5759136655 | L91: 1.352125445 | M91: -1.459867602 | N91: -0.5008964539 | O91: -0.06889526028 | P91: -0.1218280199 | Q91: -0.4658025183 | R91: 1.102732611 | S91: -0.2474355507 | T91: 1.029989513 | U91: -0.5374192377 | V91: -0.6020957335 | W91: -2.477325758 | X91: -2.029545724 | Y91: -0.4950898324 | Z91: -8.385766082 | AA91: 7.471547935 | AB91: -2.855479026 | AC91: -14.26134945 | AD91: 8.046793542 | AE91: 0.7901415727 | AG91: 129.6584703 | AH91: 135.1196366 | AI91: 137.7683302 | AJ91: 136.3437961 | AK91: 135.0097254 | AL91: 134.1515778 | AO91: 0.3358143729 | AP91: -3.14363626 | AQ91: -2.504720809 | AR91: 0.5759136655 | AS91: 1.352125445 | AT91: -1.459867602 | AU91: -0.5008964539 | AV91: -0.06889526028 | AW91: -0.1218280199 | AX91: -0.4658025183 | AY91: 1.102732611 | AZ91: -0.2474355507 | BA91: 0 | BB91: -0.5374192377 | BC91: -0.6020957335 | BD91: -2.477325758 | BE91: -2.029545724 | BF91: -0.4950898324 | BG91: -8.385766082 | BH91: 7.471547935 | BI91: -2.855479026 | BJ91: -14.26134945 | BK91: 8.046793542 | BL91: 0.7901415727 | BN91: 130.6884598 | BO91: 136.2032224 | BP91: 138.8973303 | BQ91: 137.4778426 | BR91: 136.1582695 | BS91: 135.3359069
A92: 24 | B92: 0.3140120879 | C92: 1.484102998 | D92: 1.755854029 | E92: -19.92068158 | H92: 0.3116473238 | I92: 1.422537858 | J92: -1.807010483 | K92: 2.811031597 | L92: -2.676984969 | M92: 2.459649075 | N92: -1.051044798 | O92: 0.6602532523 | P92: 0.01897256984 | Q92: -0.406854531 | R92: -0.4547318288 | S92: 0.1701748898 | T92: 0.5583640063 | U92: 0.4875300691 | V92: -1.257456146 | W92: -0.1824750417 | X92: -0.880870278 | Y92: 0.1318421821 | Z92: -16.88101483 | AA92: 12.70706545 | AB92: 16.02368772 | AC92: -13.73497267 | AD92: -1.848257347 | AE92: -7.245108969 | AG92: 129.4534817 | AH92: 128.7163969 | AI92: 130.9919316 | AJ92: 124.4942842 | AK92: 125.0418432 | AL92: 118.8746306 | AO92: 0.3116473238 | AP92: 1.422537858 | AQ92: -1.807010483 | AR92: 2.811031597 | AS92: -2.676984969 | AT92: 2.459649075 | AU92: -1.051044798 | AV92: 0.6602532523 | AW92: 0.01897256984 | AX92: -0.406854531 | AY92: -0.4547318288 | AZ92: 0.1701748898 | BA92: 0 | BB92: 0 | BC92: -1.257456146 | BD92: -0.1824750417 | BE92: -0.880870278 | BF92: 0 | BG92: -16.88101483 | BH92: 12.70706545 | BI92: 16.02368772 | BJ92: -13.73497267 | BK92: -1.848257347 | BL92: -7.245108969 | BN92: 130.0118457 | BO92: 129.7690782 | BP92: 132.0825153 | BQ92: 125.566864 | BR92: 126.1555476 | BS92: 120.1159406
A93: 25 | B93: -0.5823031166 | C93: 3.196325478 | D93: 0.9403112508 | E93: 16.17004537 | H93: -0.5846678807 | I93: -3.329777393 | J93: 0.01760040127 | K93: -2.369078111 | L93: 0.5619393975 | M93: 0.273625926 | N93: 0.6611776823 | O93: -0.6353432905 | P93: 0.2850698041 | Q93: -0.4765225156 | R93: 0.4376172741 | S93: -0.3470257522 | T93: -0.2571787722 | U93: -0.7755993083 | V93: -1.633543393 | W93: -0.4786126131 | X93: 0.5655654487 | Y93: -0.009964403602 | Z93: 19.20971213 | AA93: 7.779484389 | AB93: 1.010575066 | AC93: -7.011492862 | AD93: 8.654592047 | AE93: -13.26372475 | AG93: 133.6996999 | AH93: 139.1006891 | AI93: 139.891003 | AJ93: 140.6407853 | AK93: 136.9529841 | AL93: 133.1233572 | AO93: -0.5846678807 | AP93: -3.329777393 | AQ93: 0.01760040127 | AR93: -2.369078111 | AS93: 0.5619393975 | AT93: 0.273625926 | AU93: 0.6611776823 | AV93: -0.6353432905 | AW93: 0.2850698041 | AX93: -0.4765225156 | AY93: 0.4376172741 | AZ93: -0.3470257522 | BA93: -0.2571787722 | BB93: -0.7755993083 | BC93: -1.633543393 | BD93: -0.4786126131 | BE93: 0 | BF93: -0.009964403602 | BG93: 19.20971213 | BH93: 7.779484389 | BI93: 1.010575066 | BJ93: -7.011492862 | BK93: 8.654592047 | BL93: -13.26372475 | BN93: 133.6996999 | BO93: 139.1006891 | BP93: 139.891003 | BQ93: 140.6407853 | BR93: 137.5185496 | BS93: 133.6960261
A94: 26 | B94: -0.8453140739 | C94: 2.114959937 | D94: 3.637078187 | E94: -7.569434711 | H94: -0.847678838 | I94: -0.1383746993 | J94: -3.354803684 | K94: -1.569599958 | L94: 2.929851484 | M94: -2.42830171 | N94: -0.4201878587 | O94: 0.5079011542 | P94: -0.07316595602 | Q94: -0.3433885058 | R94: -0.3193812681 | S94: -0.1433551386 | T94: 2.439588164 | U94: -1.421755554 | V94: -0.107136194 | W94: -2.366064942 | X94: 1.547031255 | Y94: -0.3658925855 | Z94: -4.529767954 | AA94: 6.020056875 | AB94: 10.89985327 | AC94: -6.587066665 | AD94: -12.82440123 | AE94: -0.381858102 | AG94: 129.9563523 | AH94: 132.9785754 | AI94: 136.3142737 | AJ94: 137.8818331 | AK94: 128.9996469 | AL94: 129.2651997 | AO94: -0.847678838 | AP94: -0.1383746993 | AQ94: -3.354803684 | AR94: -1.569599958 | AS94: 2.929851484 | AT94: -2.42830171 | AU94: -0.4201878587 | AV94: 0.5079011542 | AW94: -0.07316595602 | AX94: -0.3433885058 | AY94: -0.3193812681 | AZ94: -0.1433551386 | BA94: 0 | BB94: -1.421755554 | BC94: -0.107136194 | BD94: -2.366064942 | BE94: 0 | BF94: -0.3658925855 | BG94: -4.529767954 | BH94: 6.020056875 | BI94: 10.89985327 | BJ94: -6.587066665 | BK94: -12.82440123 | BL94: -0.381858102 | BN94: 132.3959405 | BO94: 135.4824324 | BP94: 138.9470153 | BQ94: 140.5864054 | BR94: 133.2075376 | BS94: 133.6511721
A95: 27 | B95: -2.293319594 | C95: 2.623420325 | D95: -0.1011034956 | E95: -11.40969 | H95: -2.295684358 | I95: -0.727800657 | J95: 2.199250828 | K95: 1.725942379 | L95: -1.612765059 | M95: 1.673408038 | N95: 0.08827252942 | O95: -0.3659492224 | P95: 0.2537576252 | Q95: 0.7760343501 | R95: -0.3295287211 | S95: -0.5957543794 | T95: -1.298593519 | U95: -1.913136722 | V95: 1.084683863 | W95: 0.1703701951 | X95: -1.221815973 | Y95: 2.235200978 | Z95: -8.370023245 | AA95: -0.7707093196 | AB95: -6.067771116 | AC95: 13.85279981 | AD95: -8.167181126 | AE95: -18.19029267 | AG95: 136.3832733 | AH95: 139.6995376 | AI95: 134.7308 | AJ95: 130.7582216 | AK95: 130.6029781 | AL95: 122.3332422 | AO95: -2.295684358 | AP95: -0.727800657 | AQ95: 2.199250828 | AR95: 1.725942379 | AS95: -1.612765059 | AT95: 1.673408038 | AU95: 0.08827252942 | AV95: -0.3659492224 | AW95: 0.2537576252 | AX95: 0.7760343501 | AY95: -0.3295287211 | AZ95: -0.5957543794 | BA95: -1.298593519 | BB95: -1.913136722 | BC95: 0 | BD95: 0 | BE95: -1.221815973 | BF95: 0 | BG95: -8.370023245 | BH95: -0.7707093196 | BI95: -6.067771116 | BJ95: 13.85279981 | BK95: -8.167181126 | BL95: -18.19029267 | BN95: 136.3832733 | BO95: 139.6995376 | BP95: 135.8154838 | BQ95: 132.0190355 | BR95: 131.8997538 | BS95: 125.8605043
A96: 28 | B96: -1.801724913 | C96: 2.60562839 | D96: 1.638426647 | E96: -0.02730734207 | H96: -1.804089677 | I96: 2.343379825 | J96: 3.594141535 | K96: 0.473322066 | L96: -0.7833678493 | M96: -0.3007647396 | N96: 0.07048059398 | O96: 0.7580799132 | P96: 0.3683590828 | Q96: 0.7274824851 | R96: -0.4181519102 | S96: 0.6075347271 | T96: 0.4409366237 | U96: -1.773498629 | V96: -0.5076919515 | W96: -0.2066339033 | X96: 1.021553907 | Y96: -1.269700164 | Z96: 3.012359414 | AA96: 7.761853592 | AB96: -3.420286976 | AC96: -6.424297395 | AD96: -13.9527619 | AE96: -4.942939218 | AG96: 133.9257659 | AH96: 134.420366 | AI96: 129.4131146 | AJ96: 127.3273198 | AK96: 123.6391932 | AL96: 122.7844568 | AO96: -1.804089677 | AP96: 2.343379825 | AQ96: 3.594141535 | AR96: 0.473322066 | AS96: -0.7833678493 | AT96: -0.3007647396 | AU96: 0.07048059398 | AV96: 0.7580799132 | AW96: 0.3683590828 | AX96: 0.7274824851 | AY96: -0.4181519102 | AZ96: 0.6075347271 | BA96: 0 | BB96: -1.773498629 | BC96: -0.5076919515 | BD96: -0.2066339033 | BE96: 0 | BF96: -1.269700164 | BG96: 3.012359414 | BH96: 7.761853592 | BI96: -3.420286976 | BJ96: -6.424297395 | BK96: -13.9527619 | BL96: -4.942939218 | BN96: 134.3667026 | BO96: 134.8630944 | BP96: 129.84959 | BQ96: 127.7713003 | BR96: 125.1132359 | BS96: 124.2994554
A97: 29 | B97: -0.681059558 | C97: 2.567618609 | D97: -1.584407808 | E97: -5.164584917 | H97: -0.683424322 | I97: 2.011384649 | J97: -4.0174806 | K97: 0.7572803622 | L97: -0.9437038988 | M97: 2.64260482 | N97: 0.03247081293 | O97: -0.4114999148 | P97: 0.4960569991 | Q97: 0.2376554933 | R97: -0.009386233638 | S97: 0.01134704441 | T97: -2.781897831 | U97: 1.110315804 | V97: -1.501670208 | W97: -1.001149208 | X97: -0.5095733286 | Y97: 2.066805719 | Z97: -2.12491816 | AA97: -15.2516617 | AB97: 17.6283446 | AC97: 4.257275386 | AD97: -7.750682174 | AE97: -9.822546701 | AG97: 135.5422343 | AH97: 132.0565848 | AI97: 138.4621603 | AJ97: 136.271085 | AK97: 135.0616417 | AL97: 126.4777191 | AO97: -0.683424322 | AP97: 2.011384649 | AQ97: -4.0174806 | AR97: 0.7572803622 | AS97: -0.9437038988 | AT97: 2.64260482 | AU97: 0.03247081293 | AV97: -0.4114999148 | AW97: 0.4960569991 | AX97: 0.2376554933 | AY97: -0.009386233638 | AZ97: 0.01134704441 | BA97: -2.781897831 | BB97: 0 | BC97: -1.501670208 | BD97: -1.001149208 | BE97: -0.5095733286 | BF97: 0 | BG97: -2.12491816 | BH97: -15.2516617 | BI97: 17.6283446 | BJ97: 4.257275386 | BK97: -7.750682174 | BL97: -9.822546701 | BN97: 135.5422343 | BO97: 133.1669006 | BP97: 139.6441141 | BQ97: 137.464353 | BR97: 136.2845736 | BS97: 129.7587879
A98: 30 | B98: -0.08707663797 | C98: 1.889495845 | D98: 1.365420118 | E98: -18.0278781 | H98: -0.08944140202 | I98: -3.096220488 | J98: -1.141084753 | K98: 0.4169675585 | L98: 4.821704409 | M98: -3.844985867 | N98: -0.645651951 | O98: -0.3175921059 | P98: 0.2385969808 | Q98: -0.2609374384 | R98: 0.247030832 | S98: 0.2106575665 | T98: 0.1679300954 | U98: -1.713764779 | V98: -0.9863485447 | W98: 2.461521391 | X98: -0.5649337702 | Y98: -1.201929211 | Z98: -14.98821134 | AA98: 12.69656548 | AB98: -3.796535328 | AC98: -0.86586544 | AD98: 1.339793542 | AE98: 13.0648947 | AG98: 130.9045003 | AH98: 137.2066014 | AI98: 138.8709467 | AJ98: 133.0096746 | AK98: 124.6967973 | AL98: 127.9610703 | AO98: -0.08944140202 | AP98: -3.096220488 | AQ98: -1.141084753 | AR98: 0.4169675585 | AS98: 4.821704409 | AT98: -3.844985867 | AU98: -0.645651951 | AV98: -0.3175921059 | AW98: 0.2385969808 | AX98: -0.2609374384 | AY98: 0.247030832 | AZ98: 0.2106575665 | BA98: 0 | BB98: -1.713764779 | BC98: -0.9863485447 | BD98: 0 | BE98: -0.5649337702 | BF98: -1.201929211 | BG98: -14.98821134 | BH98: 12.69656548 | BI98: -3.796535328 | BJ98: -0.86586544 | BK98: 1.339793542 | BL98: 13.0648947 | BN98: 131.0724304 | BO98: 137.3827564 | BP98: 139.0526152 | BQ98: 135.6543269 | BR98: 127.2664666 | BS98: 130.68781
A99: 31 | B99: 0.7395762534 | C99: 2.069788107 | D99: 1.242182131 | E99: -22.35357605 | H99: 0.7372114893 | I99: -0.2698328419 | J99: 2.753480154 | K99: 0.5579338009 | L99: -2.466827181 | M99: -1.687574256 | N99: -0.4653596891 | O99: -0.2705605176 | P99: -0.1997067463 | Q99: -0.4865121492 | R99: -0.08796950536 | S99: 0.4609424876 | T99: 0.04469210812 | U99: -0.150442026 | V99: 1.307087005 | W99: 0.9755796148 | X99: 2.437112748 | Y99: 0.5657004423 | Z99: -19.3139093 | AA99: -5.792662258 | AB99: 0.2194734662 | AC99: -12.85505517 | AD99: -2.421113581 | AE99: -0.3715795074 | AG99: 130.1546484 | AH99: 131.0771795 | AI99: 124.6315611 | AJ99: 119.6921647 | AK99: 116.9173339 | AL99: 115.542837 | AO99: 0.7372114893 | AP99: -0.2698328419 | AQ99: 2.753480154 | AR99: 0.5579338009 | AS99: -2.466827181 | AT99: -1.687574256 | AU99: -0.4653596891 | AV99: -0.2705605176 | AW99: -0.1997067463 | AX99: -0.4865121492 | AY99: -0.08796950536 | AZ99: 0.4609424876 | BA99: 0 | BB99: -0.150442026 | BC99: 0 | BD99: 0 | BE99: 0 | BF99: 0 | BG99: -19.3139093 | BH99: -5.792662258 | BI99: 0.2194734662 | BJ99: -12.85505517 | BK99: -2.421113581 | BL99: -0.3715795074 | BN99: 130.1993405 | BO99: 131.1227628 | BP99: 125.983702 | BQ99: 122.0258938 | BR99: 121.781159 | BS99: 121.1700034
A100: 32 | B100: 1.242749905 | C100: 2.785208154 | D100: -0.0728660561 | E100: 6.704738283 | H100: 1.240385141 | I100: 2.47146301 | J100: 3.874798602 | K100: -4.785708714 | L100: -1.397106074 | M100: 2.912321285 | N100: 0.2500603582 | O100: 0.2297914488 | P100: 0.3088640148 | Q100: -0.7842348276 | R100: 0.1622608273 | S100: 0.1691951652 | T100: -1.270356079 | U100: 0.2335606068 | V100: 2.186335484 | W100: -1.414380641 | X100: -0.5505244116 | Y100: -0.6808604026 | Z100: 9.74440504 | AA100: -0.4642492572 | AB100: -9.099765036 | AC100: -9.296749522 | AD100: 4.934157086 | AE100: 4.82891166 | AG100: 131.7185803 | AH100: 129.3588996 | AI100: 121.3146697 | AJ100: 125.1162641 | AK100: 124.4665811 | AL100: 118.5739758 | AO100: 1.240385141 | AP100: 2.47146301 | AQ100: 3.874798602 | AR100: -4.785708714 | AS100: -1.397106074 | AT100: 2.912321285 | AU100: 0.2500603582 | AV100: 0.2297914488 | AW100: 0.3088640148 | AX100: -0.7842348276 | AY100: 0.1622608273 | AZ100: 0.1691951652 | BA100: -1.270356079 | BB100: 0 | BC100: 0 | BD100: -1.414380641 | BE100: -0.5505244116 | BF100: -0.6808604026 | BG100: 9.74440504 | BH100: -0.4642492572 | BI100: -9.099765036 | BJ100: -9.296749522 | BK100: 4.934157086 | BL100: 4.82891166 | BN100: 131.7185803 | BO100: 129.5924602 | BP100: 123.7305187 | BQ100: 127.669616 | BR100: 127.0996548 | BS100: 121.1856037
A101: 33 | B101: -0.5039804144 | C101: 2.33493089 | D101: 2.32998907 | E101: -11.10219261 | H101: -0.5063451784 | I101: -0.8163623322 | J101: -0.1595324985 | K101: -1.22527323 | L101: -0.6975244796 | M101: 3.615894945 | N101: -0.2002169062 | O101: 0.3657584391 | P101: -0.6428404466 | Q101: -0.09010679944 | R101: -0.230497248 | S101: 0.3658741757 | T101: 1.132499047 | U101: -1.593195468 | V101: -0.4844432472 | W101: -1.085406407 | X101: -0.9108876499 | Y101: 1.325446522 | Z101: -8.06252585 | AA101: 5.366889259 | AB101: -3.93396944 | AC101: 4.880576208 | AD101: -5.151299335 | AE101: 1.156419117 | AG101: 131.0828245 | AH101: 135.0324651 | AI101: 133.5925525 | AJ101: 133.6712494 | AK101: 132.1700957 | AL101: 123.5764853 | AO101: -0.5063451784 | AP101: -0.8163623322 | AQ101: -0.1595324985 | AR101: -1.22527323 | AS101: -0.6975244796 | AT101: 3.615894945 | AU101: -0.2002169062 | AV101: 0.3657584391 | AW101: -0.6428404466 | AX101: -0.09010679944 | AY101: -0.230497248 | AZ101: 0.3658741757 | BA101: 0 | BB101: -1.593195468 | BC101: -0.4844432472 | BD101: -1.085406407 | BE101: -0.9108876499 | BF101: 0 | BG101: -8.06252585 | BH101: 5.366889259 | BI101: -3.93396944 | BJ101: 4.880576208 | BK101: -5.151299335 | BL101: 1.156419117 | BN101: 132.2153236 | BO101: 136.2010738 | BP101: 134.7758048 | BQ101: 134.8855988 | BR101: 133.4089244 | BS101: 126.1247473
A102: 34 | B102: -3.616384193 | C102: 2.220773936 | D102: -0.6917612106 | E102: -7.943615389 | H102: -3.618748957 | I102: -2.945790055 | J102: 2.37660776 | K102: -1.986553736 | L102: 2.575921646 | M102: 2.986390767 | N102: -0.3143738595 | O102: -0.1832498864 | P102: 0.05315098085 | Q102: -0.720563812 | R102: -0.06817428605 | S102: 0.5662502343 | T102: -1.889251234 | U102: -1.550277143 | V102: 1.722858127 | W102: 0.7864038075 | X102: 0.4464472203 | Y102: 0.6479255582 | Z102: -4.903948632 | AA102: -3.414623867 | AB102: -5.944469937 | AC102: -9.077833241 | AD102: -12.17539679 | AE102: 9.42048181 | AG102: 138.3386448 | AH102: 144.8081913 | AI102: 138.6628305 | AJ102: 137.213349 | AK102: 130.233574 | AL102: 123.3696999 | AO102: -3.618748957 | AP102: -2.945790055 | AQ102: 2.37660776 | AR102: -1.986553736 | AS102: 2.575921646 | AT102: 2.986390767 | AU102: -0.3143738595 | AV102: -0.1832498864 | AW102: 0.05315098085 | AX102: -0.720563812 | AY102: -0.06817428605 | AZ102: 0.5662502343 | BA102: -1.889251234 | BB102: -1.550277143 | BC102: 0 | BD102: 0 | BE102: 0 | BF102: 0 | BG102: -4.903948632 | BH102: -3.414623867 | BI102: -5.944469937 | BJ102: -9.077833241 | BK102: -12.17539679 | BL102: 9.42048181 | BN102: 138.3386448 | BO102: 144.8081913 | BP102: 140.3856886 | BQ102: 139.7705033 | BR102: 133.2105872 | BS102: 126.9796378
A103: 35 | B103: -1.390319856 | C103: 2.423532466 | D103: 0.6329833157 | E103: -0.4092387738 | H103: -1.39268462 | I103: -2.118727756 | J103: 0.06002711838 | K103: 0.2999823097 | L103: -0.7834167257 | M103: -6.253092384 | N103: -0.1116153298 | O103: 0.07151445933 | P103: -0.5766221516 | Q103: 0.3931681415 | R103: -0.2334177613 | S103: -0.2347848916 | T103: -0.5645067073 | U103: 0.6674913708 | V103: 0.9028871953 | W103: -0.3044128356 | X103: 0.7589298952 | Y103: 1.519948685 | Z103: 2.630427983 | AA103: -6.925562477 | AB103: -3.519357545 | AC103: 11.445827 | AD103: -12.6164887 | AE103: -8.223071821 | AG103: 134.1166905 | AH103: 137.3296795 | AI103: 134.3192353 | AJ103: 132.20691 | AK103: 129.1177165 | AL103: 132.7995234 | AO103: -1.39268462 | AP103: -2.118727756 | AQ103: 0.06002711838 | AR103: 0.2999823097 | AS103: -0.7834167257 | AT103: -6.253092384 | AU103: -0.1116153298 | AV103: 0.07151445933 | AW103: -0.5766221516 | AX103: 0.3931681415 | AY103: -0.2334177613 | AZ103: -0.2347848916 | BA103: -0.5645067073 | BB103: 0 | BC103: 0 | BD103: -0.3044128356 | BE103: 0 | BF103: 0 | BG103: 2.630427983 | BH103: -6.925562477 | BI103: -3.519357545 | BJ103: 11.445827 | BK103: -12.6164887 | BL103: -8.223071821 | BN103: 134.1166905 | BO103: 137.9971709 | BP103: 135.8969478 | BQ103: 133.8092998 | BR103: 131.5126867 | BS103: 136.914054
A104: 36 | B104: 1.178295183 | C104: 3.26831676 | D104: 1.476595187 | E104: 6.281340974 | H104: 1.175930419 | I104: 1.360458413 | J104: 0.9769093646 | K104: -1.480140841 | L104: 0.9126134511 | M104: -0.7624094163 | N104: 0.7331689636 | O104: 0.2802226675 | P104: 0.3556773358 | Q104: -0.5934797978 | R104: -0.1184569867 | S104: 0.1789074769 | T104: 0.2791051644 | U104: -0.1984344747 | V104: 1.323892372 | W104: 0.7628065479 | X104: 2.428809843 | Y104: -1.607173866 | Z104: 9.321007731 | AA104: 0.7475106725 | AB104: -1.867807443 | AC104: -9.116499958 | AD104: -9.392766219 | AE104: 8.48997771 | AG104: 130.8715903 | AH104: 130.431164 | AI104: 126.9307492 | AJ104: 124.6789807 | AK104: 117.7917271 | AL104: 117.1657595 | AO104: 1.175930419 | AP104: 1.360458413 | AQ104: 0.9769093646 | AR104: -1.480140841 | AS104: 0.9126134511 | AT104: -0.7624094163 | AU104: 0.7331689636 | AV104: 0.2802226675 | AW104: 0.3556773358 | AX104: -0.5934797978 | AY104: -0.1184569867 | AZ104: 0.1789074769 | BA104: 0 | BB104: -0.1984344747 | BC104: 0 | BD104: 0 | BE104: 0 | BF104: -1.607173866 | BG104: 9.321007731 | BH104: 0.7475106725 | BI104: -1.867807443 | BJ104: -9.116499958 | BK104: -9.392766219 | BL104: 8.48997771 | BN104: 131.1506954 | BO104: 130.7127948 | BP104: 128.5393814 | BQ104: 127.0888031 | BR104: 122.6428876 | BS104: 122.1539225
A105: 37 | B105: 0.1943437772 | C105: 2.190157425 | D105: 3.489104002 | E105: -18.47246257 | H105: 0.1919790131 | I105: 0.7294423446 | J105: 3.294983765 | K105: 2.718962995 | L105: -0.3384539207 | M105: 4.780640312 | N105: -0.3449903708 | O105: -0.2315283202 | P105: 0.7774629904 | Q105: 0.1292078819 | R105: 0.7651694145 | S105: 0.2509107245 | T105: 2.291613979 | U105: 1.508812723 | V105: -1.448893319 | W105: -0.619456582 | X105: -0.4218036976 | Y105: 1.145091422 | Z105: -15.43279581 | AA105: -6.479796615 | AB105: 8.80995774 | AC105: -3.374564791 | AD105: 8.073798427 | AE105: -18.14199833 | AG105: 128.7906682 | AH105: 126.7827756 | AI105: 123.6799434 | AJ105: 118.4843198 | AK105: 116.9257908 | AL105: 107.314325 | AO105: 0.1919790131 | AP105: 0.7294423446 | AQ105: 3.294983765 | AR105: 2.718962995 | AS105: -0.3384539207 | AT105: 4.780640312 | AU105: -0.3449903708 | AV105: -0.2315283202 | AW105: 0.7774629904 | AX105: 0.1292078819 | AY105: 0.7651694145 | AZ105: 0.2509107245 | BA105: 0 | BB105: 0 | BC105: -1.448893319 | BD105: -0.619456582 | BE105: -0.4218036976 | BF105: 0 | BG105: -15.43279581 | BH105: -6.479796615 | BI105: 8.80995774 | BJ105: -3.374564791 | BK105: 8.073798427 | BL105: -18.14199833 | BN105: 131.0822822 | BO105: 130.6067614 | BP105: 127.4757191 | BQ105: 122.240277 | BR105: 120.7808519 | BS105: 112.2186446
A106: 38 | B106: 1.568254643 | C106: 2.734186439 | D106: 0.9058465791 | E106: -7.187401203 | H106: 1.565889879 | I106: -2.156088144 | J106: 4.573616035 | K106: -2.025162394 | L106: -1.15800486 | M106: -0.06577587578 | N106: 0.1990386429 | O106: 0.03622951849 | P106: -0.2439991095 | Q106: -0.291564557 | R106: 0.3941601634 | S106: 0.1914673049 | T106: -0.2916434439 | U106: -2.298202852 | V106: 1.851009616 | W106: -0.6606226783 | X106: -3.311232202 | Y106: -0.07226162156 | Z106: -4.147734447 | AA106: 6.420571537 | AB106: -10.03300962 | AC106: 10.12078545 | AD106: 18.00336716 | AE106: 7.256311465 | AG106: 130.245712 | AH106: 136.2646142 | AI106: 126.8370362 | AJ106: 127.1040461 | AK106: 129.2585367 | AL106: 126.5220411 | AO106: 1.565889879 | AP106: -2.156088144 | AQ106: 4.573616035 | AR106: -2.025162394 | AS106: -1.15800486 | AT106: -0.06577587578 | AU106: 0.1990386429 | AV106: 0.03622951849 | AW106: -0.2439991095 | AX106: -0.291564557 | AY106: 0.3941601634 | AZ106: 0.1914673049 | BA106: -0.2916434439 | BB106: -2.298202852 | BC106: 0 | BD106: -0.6606226783 | BE106: -3.311232202 | BF106: -0.07226162156 | BG106: -4.147734447 | BH106: 6.420571537 | BI106: -10.03300962 | BJ106: 10.12078545 | BK106: 18.00336716 | BL106: 7.256311465 | BN106: 130.245712 | BO106: 136.2646142 | BP106: 128.6880458 | BQ106: 129.0152403 | BR106: 131.2291233 | BS106: 128.5345669
A107: 39 | B107: -0.243773629 | C107: 1.856730946 | D107: 1.477505319 | E107: -14.62069914 | H107: -0.2461383931 | I107: 1.924412889 | J107: 2.69732216 | K107: 3.713210849 | L107: 0.4773667059 | M107: 1.989320092 | N107: -0.6784168503 | O107: 0.1107337932 | P107: -0.2398194431 | Q107: -0.3230172117 | R107: 0.5169710915 | S107: 0.05179931622 | T107: 0.2800152964 | U107: -2.87272503 | V107: -0.6570693519 | W107: -0.1089705917 | X107: -0.3030045458 | Y107: 0.4617340147 | Z107: -11.58103238 | AA107: 9.286606424 | AB107: -12.95141361 | AC107: -14.33866648 | AD107: 9.021330479 | AE107: -11.84880846 | AG107: 130.9614036 | AH107: 132.254055 | AI107: 127.7785476 | AJ107: 120.2837501 | AK107: 117.3722384 | AL107: 111.3026017 | AO107: -0.2461383931 | AP107: 1.924412889 | AQ107: 2.69732216 | AR107: 3.713210849 | AS107: 0.4773667059 | AT107: 1.989320092 | AU107: -0.6784168503 | AV107: 0.1107337932 | AW107: -0.2398194431 | AX107: -0.3230172117 | AY107: 0.5169710915 | AZ107: 0.05179931622 | BA107: 0 | BB107: -2.87272503 | BC107: -0.6570693519 | BD107: -0.1089705917 | BE107: -0.3030045458 | BF107: 0 | BG107: -11.58103238 | BH107: 9.286606424 | BI107: -12.95141361 | BJ107: -14.33866648 | BK107: 9.021330479 | BL107: -11.84880846 | BN107: 131.2414189 | BO107: 132.53459 | BP107: 128.0558666 | BQ107: 120.5543712 | BR107: 117.6471165 | BS107: 112.0391009
A108: 40 | B108: 0.2072964195 | C108: 2.898233133 | D108: 2.033228702 | E108: -12.90562922 | H108: 0.2049316555 | I108: -0.7630380344 | J108: 3.981465672 | K108: -1.623180503 | L108: -1.074606907 | M108: -1.412522621 | N108: 0.3630853369 | O108: 0.5974524347 | P108: 0.25922021 | Q108: 0.603888499 | R108: 0.6369014871 | S108: -0.005684030531 | T108: 0.8357386792 | U108: -1.581463553 | V108: 2.249527404 | W108: 0.00199898707 | X108: -0.4846848907 | Y108: 0.9637054127 | Z108: -9.865962463 | AA108: 15.52660106 | AB108: 9.231999748 | AC108: 23.28112062 | AD108: 9.432690041 | AE108: -4.024842749 | AG108: 131.1425926 | AH108: 135.3141282 | AI108: 126.9045389 | AJ108: 127.1221358 | AK108: 126.6492596 | AL108: 124.3166975 | AO108: 0.2049316555 | AP108: -0.7630380344 | AQ108: 3.981465672 | AR108: -1.623180503 | AS108: -1.074606907 | AT108: -1.412522621 | AU108: 0.3630853369 | AV108: 0.5974524347 | AW108: 0.25922021 | AX108: 0.603888499 | AY108: 0.6369014871 | AZ108: -0.005684030531 | BA108: 0 | BB108: -1.581463553 | BC108: 0 | BD108: 0 | BE108: -0.4846848907 | BF108: 0 | BG108: -9.865962463 | BH108: 15.52660106 | BI108: 9.231999748 | BJ108: 23.28112062 | BK108: 9.432690041 | BL108: -4.024842749 | BN108: 131.9783313 | BO108: 136.177991 | BP108: 130.0016903 | BQ108: 130.3369005 | BR108: 129.9689493 | BS108: 128.709942
A109: 41 | B109: 0.7323681787 | C109: 2.719576742 | D109: 2.253043587 | E109: 5.998367469 | H109: 0.7300034147 | I109: -1.656346416 | J109: 1.716589351 | K109: -5.001492966 | L109: -2.599616245 | M109: 0.6944839775 | N109: 0.1844289462 | O109: -0.08384594579 | P109: 0.1092706947 | Q109: -0.9463389443 | R109: -0.5641065378 | S109: 0.4954632072 | T109: 1.055553564 | U109: -1.041939111 | V109: -0.6143233203 | W109: -0.7382070329 | X109: -0.5821170581 | Y109: 2.097927404 | Z109: 9.038034225 | AA109: -0.9716440527 | AB109: 5.299399442 | AC109: -5.370205813 | AD109: -16.56319332 | AE109: 9.524927633 | AG109: 129.9871623 | AH109: 133.8978337 | AI109: 131.0785884 | AJ109: 134.8494343 | AK109: 135.2363472 | AL109: 129.8298488 | AO109: 0.7300034147 | AP109: -1.656346416 | AQ109: 1.716589351 | AR109: -5.001492966 | AS109: -2.599616245 | AT109: 0.6944839775 | AU109: 0.1844289462 | AV109: -0.08384594579 | AW109: 0.1092706947 | AX109: -0.9463389443 | AY109: -0.5641065378 | AZ109: 0.4954632072 | BA109: 0 | BB109: -1.041939111 | BC109: -0.6143233203 | BD109: -0.7382070329 | BE109: -0.5821170581 | BF109: 0 | BG109: 9.038034225 | BH109: -0.9716440527 | BI109: 5.299399442 | BJ109: -5.370205813 | BK109: -16.56319332 | BL109: 9.524927633 | BN109: 131.0427158 | BO109: 134.9914872 | BP109: 132.1737355 | BQ109: 136.0076633 | BR109: 136.4367607 | BS109: 133.1481717
A110: 42 | B110: -0.3287361527 | C110: 1.358797793 | D110: 2.66617316 | E110: -29.26850821 | H110: -0.3311009167 | I110: -1.215106032 | J110: -1.329200125 | K110: 0.7626897053 | L110: -1.190448271 | M110: 2.055569436 | N110: -1.176350002 | O110: -0.433581058 | P110: -0.3438833276 | Q110: 0.07107540977 | R110: 0.04615015691 | S110: 0.45590386 | T110: 1.468683137 | U110: 0.8955544836 | V110: -0.6657317896 | W110: 0.3156343747 | X110: 0.3249129811 | Y110: 0.7091835961 | Z110: -26.22884146 | AA110: -12.03077293 | AB110: -0.9538736884 | AC110: 1.105533852 | AD110: -1.807066207 | AE110: 13.41734759 | AG110: 129.2417596 | AH110: 130.1402958 | AI110: 130.7559262 | AJ110: 126.9541075 | AK110: 125.0692869 | AL110: 119.1583038 | AO110: -0.3311009167 | AP110: -1.215106032 | AQ110: -1.329200125 | AR110: 0.7626897053 | AS110: -1.190448271 | AT110: 2.055569436 | AU110: -1.176350002 | AV110: -0.433581058 | AW110: -0.3438833276 | AX110: 0.07107540977 | AY110: 0.04615015691 | AZ110: 0.45590386 | BA110: 0 | BB110: 0 | BC110: -0.6657317896 | BD110: 0 | BE110: 0 | BF110: 0 | BG110: -26.22884146 | BH110: -12.03077293 | BI110: -0.9538736884 | BJ110: 1.105533852 | BK110: -1.807066207 | BL110: 13.41734759 | BN110: 130.7104428 | BO110: 132.5456388 | BP110: 133.2271846 | BQ110: 129.7604949 | BR110: 128.2789894 | BS110: 123.0863753
A111: 43 | B111: -5.23524392 | C111: 2.715886233 | D111: 1.468567114 | E111: 6.276880021 | H111: -5.237608684 | I111: -5.530589002 | J111: -3.175012915 | K111: 0.740107411 | L111: 0.2904694108 | M111: -2.796742044 | N111: 0.1807384376 | O111: -0.3267604123 | P111: -0.4026372226 | Q111: 0.3251875931 | R111: -0.2393325484 | S111: 0.1015084474 | T111: 0.2710770914 | U111: -0.5472174701 | V111: 1.093632882 | W111: 0.6731467439 | X111: -0.1712817079 | Y111: -1.146637659 | Z111: 9.316546777 | AA111: 2.110660181 | AB111: -1.751542478 | AC111: 3.263735806 | AD111: -5.747772016 | AE111: 12.00462296 | AG111: 139.2498278 | AH111: 148.5151561 | AI111: 150.6631066 | AJ111: 147.0692178 | AK111: 143.6280883 | AL111: 146.2114037 | AO111: -5.237608684 | AP111: -5.530589002 | AQ111: -3.175012915 | AR111: 0.740107411 | AS111: 0.2904694108 | AT111: -2.796742044 | AU111: 0.1807384376 | AV111: -0.3267604123 | AW111: -0.4026372226 | AX111: 0.3251875931 | AY111: -0.2393325484 | AZ111: 0.1015084474 | BA111: 0 | BB111: -0.5472174701 | BC111: 0 | BD111: 0 | BE111: -0.1712817079 | BF111: -1.146637659 | BG111: 9.316546777 | BH111: 2.110660181 | BI111: -1.751542478 | BJ111: 3.263735806 | BK111: -5.747772016 | BL111: 12.00462296 | BN111: 139.5209049 | BO111: 148.8067538 | BP111: 152.0618023 | BQ111: 149.1558853 | BR111: 145.7359563 | BS111: 148.42195
A112: 44 | B112: -6.273183541 | C112: 2.228970358 | D112: -1.357156997 | E112: 4.313505338 | H112: -6.275548306 | I112: -3.385733626 | J112: 0.02203969526 | K112: 0.841352079 | L112: -1.359056427 | M112: -1.63574431 | N112: -0.3061774379 | O112: -0.5896896423 | P112: 0.02803837995 | Q112: -0.1367853154 | R112: -0.7239793325 | S112: -0.512570995 | T112: -2.55464702 | U112: -1.95966158 | V112: -2.37621318 | W112: 1.240284525 | X112: -0.131645382 | Y112: 0.3373313193 | Z112: 7.353172094 | AA112: -9.535765453 | AB112: 1.153376304 | AC112: -3.29084041 | AD112: -14.34851966 | AE112: -8.824782895 | AG112: 142.9909753 | AH112: 150.1773482 | AI112: 151.5425654 | AJ112: 146.554467 | AK112: 144.7994928 | AL112: 143.2921 | AO112: -6.275548306 | AP112: -3.385733626 | AQ112: 0.02203969526 | AR112: 0.841352079 | AS112: -1.359056427 | AT112: -1.63574431 | AU112: -0.3061774379 | AV112: -0.5896896423 | AW112: 0.02803837995 | AX112: -0.1367853154 | AY112: -0.7239793325 | AZ112: -0.512570995 | BA112: -2.55464702 | BB112: -1.95966158 | BC112: -2.37621318 | BD112: 0 | BE112: -0.131645382 | BF112: 0 | BG112: 7.353172094 | BH112: -9.535765453 | BI112: 1.153376304 | BJ112: -3.29084041 | BK112: -14.34851966 | BL112: -8.824782895 | BN112: 142.9909753 | BO112: 150.1773482 | BP112: 151.5425654 | BQ112: 147.7947515 | BR112: 146.0670282 | BS112: 144.9353925
A113: 45 | B113: -0.2556672411 | C113: 3.394881579 | D113: 1.438934862 | E113: 9.42235761 | H113: -0.2580320051 | I113: -2.947506334 | J113: 4.341535559 | K113: -2.37421665 | L113: -1.222273483 | M113: -2.062110365 | N113: 0.8597337829 | O113: 0.3241294117 | P113: 0.4033787146 | Q113: -0.9471434854 | R113: -1.355430654 | S113: 0.9457974559 | T113: 0.2414448388 | U113: -3.17548334 | V113: 0.5004395058 | W113: -2.026945163 | X113: 1.290085292 | Y113: -1.278008164 | Z113: 12.46202437 | AA113: 2.137538891 | AB113: 3.234045955 | AC113: -11.56132662 | AD113: -11.41724512 | AE113: 18.20669885 | AG113: 133.0097056 | AH113: 141.537216 | AI113: 134.4788882 | AJ113: 135.9598381 | AK113: 131.5036462 | AL113: 133.7257169 | AO113: -0.2580320051 | AP113: -2.947506334 | AQ113: 4.341535559 | AR113: -2.37421665 | AS113: -1.222273483 | AT113: -2.062110365 | AU113: 0.8597337829 | AV113: 0.3241294117 | AW113: 0.4033787146 | AX113: -0.9471434854 | AY113: -1.355430654 | AZ113: 0.9457974559 | BA113: 0 | BB113: -3.17548334 | BC113: 0 | BD113: -2.026945163 | BE113: 0 | BF113: -1.278008164 | BG113: 12.46202437 | BH113: 2.137538891 | BI113: 3.234045955 | BJ113: -11.56132662 | BK113: -11.41724512 | BL113: 18.20669885 | BN113: 133.2511504 | BO113: 141.7916854 | BP113: 135.2285088 | BQ113: 136.7315977 | BR113: 133.5765062 | BS113: 135.9010945
A114: 46 | B114: -2.348017695 | C114: 1.892154892 | D114: -0.1251500477 | E114: -9.455271097 | H114: -2.350382459 | I114: -2.372941765 | J114: -1.06503433 | K114: -3.139109422 | L114: -0.9142515495 | M114: 2.317989381 | N114: -0.642992904 | O114: -0.03187733753 | P114: -0.09774544003 | Q114: -0.9116589223 | R114: 0.4561400614 | S114: -0.2210466156 | T114: -1.322640071 | U114: 1.491598015 | V114: 2.316138694 | W114: 1.951490912 | X114: -1.766888038 | Y114: 2.563363127 | Z114: -6.415604341 | AA114: 6.652017734 | AB114: 5.605638314 | AC114: -6.043195324 | AD114: -2.41260344 | AE114: -8.68749018 | AG114: 135.516532 | AH114: 138.1876008 | AI114: 136.0069692 | AJ114: 134.6937154 | AK114: 135.2859133 | AL114: 126.3213594 | AO114: -2.350382459 | AP114: -2.372941765 | AQ114: -1.06503433 | AR114: -3.139109422 | AS114: -0.9142515495 | AT114: 2.317989381 | AU114: -0.642992904 | AV114: -0.03187733753 | AW114: -0.09774544003 | AX114: -0.9116589223 | AY114: 0.4561400614 | AZ114: -0.2210466156 | BA114: -1.322640071 | BB114: 0 | BC114: 0 | BD114: 0 | BE114: -1.766888038 | BF114: 0 | BG114: -6.415604341 | BH114: 6.652017734 | BI114: 5.605638314 | BJ114: -6.043195324 | BK114: -2.41260344 | BL114: -8.68749018 | BN114: 135.516532 | BO114: 139.6791988 | BP114: 139.8552044 | BQ114: 140.6393242 | BR114: 141.4050848 | BS114: 134.965833
A115: 47 | B115: -3.222818839 | C115: 2.489149692 | D115: 0.1988922975 | E115: 6.082958862 | H115: -3.225183603 | I115: -1.62181529 | J115: 1.539168553 | K115: -1.704836985 | L115: 0.7979829764 | M115: 1.600616036 | N115: -0.04599810411 | O115: -0.02399476762 | P115: -0.3739157874 | Q115: -0.2843717347 | R115: -0.04891102167 | S115: 0.6440985467 | T115: -0.9985977255 | U115: 0.1955039104 | V115: 0.3295922691 | W115: 1.84595293 | X115: -0.1725152971 | Y115: -0.5524747804 | Z115: 9.122625618 | AA115: -6.282931907 | AB115: -7.570161563 | AC115: -11.90864534 | AD115: 3.933675504 | AE115: 8.995981446 | AG115: 137.2366905 | AH115: 140.2049176 | AI115: 136.0328631 | AJ115: 133.6508181 | AK115: 129.6531698 | AL115: 125.82975 | AO115: -3.225183603 | AP115: -1.62181529 | AQ115: 1.539168553 | AR115: -1.704836985 | AS115: 0.7979829764 | AT115: 1.600616036 | AU115: -0.04599810411 | AV115: -0.02399476762 | AW115: -0.3739157874 | AX115: -0.2843717347 | AY115: -0.04891102167 | AZ115: 0.6440985467 | BA115: -0.9985977255 | BB115: 0 | BC115: 0 | BD115: 0 | BE115: -0.1725152971 | BF115: -0.5524747804 | BG115: 9.122625618 | BH115: -6.282931907 | BI115: -7.570161563 | BJ115: -11.90864534 | BK115: 3.933675504 | BL115: 8.995981446 | BN115: 137.2366905 | BO115: 140.4004215 | BP115: 136.5576441 | BQ115: 136.0369119 | BR115: 132.0559826 | BS115: 128.2545021
A116: 48 | B116: -0.2210161008 | C116: 1.917023753 | D116: 2.563143101 | E116: -7.095320133 | H116: -0.2233808649 | I116: 1.083039938 | J116: -3.719290166 | K116: 1.673284081 | L116: -1.072655731 | M116: -0.5116695894 | N116: -0.6181240429 | O116: -0.9243744009 | P116: 0.1817099582 | Q116: 0.9797484104 | R116: 0.311252465 | S116: -0.05314236551 | T116: 1.365653078 | U116: 0.7322014261 | V116: -0.4486625697 | W116: -1.785144632 | X116: -0.1349144518 | Y116: -0.4487064719 | Z116: -4.055653377 | AA116: -21.71341593 | AB116: 10.26691992 | AC116: 25.85697826 | AD116: 4.375394484 | AE116: -1.560640828 | AG116: 129.9231444 | AH116: 127.3637565 | AI116: 131.5869042 | AJ116: 129.8807964 | AK116: 128.7240076 | AL116: 126.6220423 | AO116: -0.2233808649 | AP116: 1.083039938 | AQ116: -3.719290166 | AR116: 1.673284081 | AS116: -1.072655731 | AT116: -0.5116695894 | AU116: -0.6181240429 | AV116: -0.9243744009 | AW116: 0.1817099582 | AX116: 0.9797484104 | AY116: 0.311252465 | AZ116: -0.05314236551 | BA116: 0 | BB116: 0 | BC116: -0.4486625697 | BD116: -1.785144632 | BE116: -0.1349144518 | BF116: -0.4487064719 | BG116: -4.055653377 | BH116: -21.71341593 | BI116: 10.26691992 | BJ116: 25.85697826 | BK116: 4.375394484 | BL116: -1.560640828 | BN116: 131.2887975 | BO116: 129.4615683 | BP116: 133.8064519 | BQ116: 132.117657 | BR116: 131.0265705 | BS116: 128.9784298
A117: 49 | B117: 1.205687555 | C117: 3.193269325 | D117: 0.4409594987 | E117: 9.822889039 | H117: 1.203322791 | I117: 0.01962510615 | J117: 0.582810608 | K117: -0.06862203582 | L117: 0.8350534235 | M117: 0.2191843156 | N117: 0.6581215292 | O117: 0.795315572 | P117: 0.3603596221 | Q117: 0.2548546623 | R117: 0.854759545 | S117: -0.3595545213 | T117: -0.7565305243 | U117: 0.228149481 | V117: -0.03962174862 | W117: -0.6087439505 | X117: 0.1221329778 | Y117: 0.7051102042 | Z117: 12.8625558 | AA117: 16.81789822 | AB117: 4.419030906 | AC117: -0.6555404597 | AD117: 11.05349818 | AE117: 2.651299321 | AG117: 131.7749369 | AH117: 133.3589559 | AI117: 131.7832999 | AJ117: 130.2426359 | AK117: 127.0301272 | AL117: 122.4141483 | AO117: 1.203322791 | AP117: 0.01962510615 | AQ117: 0.582810608 | AR117: -0.06862203582 | AS117: 0.8350534235 | AT117: 0.2191843156 | AU117: 0.6581215292 | AV117: 0.795315572 | AW117: 0.3603596221 | AX117: 0.2548546623 | AY117: 0.854759545 | AZ117: -0.3595545213 | BA117: -0.7565305243 | BB117: 0 | BC117: -0.03962174862 | BD117: -0.6087439505 | BE117: 0 | BF117: 0 | BG117: 12.8625558 | BH117: 16.81789822 | BI117: 4.419030906 | BJ117: -0.6555404597 | BK117: 11.05349818 | BL117: 2.651299321 | BN117: 131.7749369 | BO117: 133.5871054 | BP117: 132.0148729 | BQ117: 130.4783704 | BR117: 127.3916441 | BS117: 123.4854679
A118: 50 | B118: 2.850307662 | C118: 2.518407751 | D118: 1.692872269 | E118: -13.29411323 | H118: 2.847942898 | I118: 2.374626754 | J118: 7.22655581 | K118: 4.935372989 | L118: 1.137835554 | M118: -0.3440437823 | N118: -0.01674004464 | O118: -0.1458100939 | P118: 0.7004329279 | Q118: 0.696219945 | R118: 0.7768435428 | S118: -0.3681337365 | T118: 0.4953822464 | U118: -0.4670596914 | V118: -0.7233793041 | W118: 1.262476587 | X118: 1.223812691 | Y118: 0.5470551737 | Z118: -10.25444647 | AA118: -13.91038798 | AB118: -4.492610382 | AC118: 10.83299905 | AD118: 18.6737591 | AE118: -6.098812403 | AG118: 127.5247106 | AH118: 125.5302958 | AI118: 117.0978728 | AJ118: 108.2986302 | AK118: 103.2376974 | AL118: 99.04617872 | AO118: 2.847942898 | AP118: 2.374626754 | AQ118: 7.22655581 | AR118: 4.935372989 | AS118: 1.137835554 | AT118: -0.3440437823 | AU118: -0.01674004464 | AV118: -0.1458100939 | AW118: 0.7004329279 | AX118: 0.696219945 | AY118: 0.7768435428 | AZ118: -0.3681337365 | BA118: 0 | BB118: -0.4670596914 | BC118: -0.7233793041 | BD118: 0 | BE118: 0 | BF118: 0 | BG118: -10.25444647 | BH118: -13.91038798 | BI118: -4.492610382 | BJ118: 10.83299905 | BK118: 18.6737591 | BL118: -6.098812403 | BN118: 128.0200928 | BO118: 126.0231983 | BP118: 117.5690246 | BQ118: 110.020111 | BR118: 106.2031706 | BS118: 102.6137222
A119: 51 | B119: 3.052849608 | C119: 3.836229596 | D119: -0.8505355207 | E119: 16.01803072 | H119: 3.050484844 | I119: 1.198599009 | J119: 1.974156984 | K119: -0.3430828007 | L119: 0.6208072148 | M119: -1.152869336 | N119: 1.3010818 | O119: 0.08372686843 | P119: -0.3444048212 | Q119: 0.5504284055 | R119: 0.2898486764 | S119: -0.4835216075 | T119: -2.048025544 | U119: 0.1764806373 | V119: 2.409676637 | W119: 0.1841003442 | X119: 1.309030968 | Y119: 1.815320355 | Z119: 19.05769748 | AA119: 8.121603972 | AB119: -10.98559858 | AC119: 5.335165945 | AD119: 7.115671892 | AE119: -5.633270273 | AG119: 131.4620853 | AH119: 130.6093122 | AI119: 123.859536 | AJ119: 122.0883342 | AK119: 117.1470243 | AL119: 112.7748135 | AO119: 3.050484844 | AP119: 1.198599009 | AQ119: 1.974156984 | AR119: -0.3430828007 | AS119: 0.6208072148 | AT119: -1.152869336 | AU119: 1.3010818 | AV119: 0.08372686843 | AW119: -0.3444048212 | AX119: 0.5504284055 | AY119: 0.2898486764 | AZ119: -0.4835216075 | BA119: -2.048025544 | BB119: 0 | BC119: 0 | BD119: 0 | BE119: 0 | BF119: 0 | BG119: 19.05769748 | BH119: 8.121603972 | BI119: -10.98559858 | BJ119: 5.335165945 | BK119: 7.115671892 | BL119: -5.633270273 | BN119: 131.4620853 | BO119: 130.7857929 | BP119: 126.4447154 | BQ119: 124.9187801 | BR119: 121.320682 | BS119: 118.8707747
A120: 52 | B120: 1.884766666 | C120: 3.041253689 | D120: 0.961847235 | E120: 8.910649539 | H120: 1.882401901 | I120: -3.865769817 | J120: 2.154154979 | K120: 0.172241884 | L120: 1.15747966 | M120: -0.3929107782 | N120: 0.5061058931 | O120: -0.1011690064 | P120: 0.2876607826 | Q120: -0.0178070605 | R120: -0.09500255606 | S120: 0.4427127388 | T120: -0.235642788 | U120: -0.9595354849 | V120: 0.6556679552 | W120: -0.02710479466 | X120: -0.3173649671 | Y120: 0.6097064284 | Z120: 11.9503163 | AA120: 4.058706524 | AB120: 7.370440695 | AC120: 6.629111673 | AD120: 8.461959768 | AE120: 0.6954433425 | AG120: 130.1647112 | AH120: 137.0516619 | AI120: 132.6217958 | AJ120: 129.8384049 | AK120: 125.442231 | AL120: 122.6709345 | AO120: 1.882401901 | AP120: -3.865769817 | AQ120: 2.154154979 | AR120: 0.172241884 | AS120: 1.15747966 | AT120: -0.3929107782 | AU120: 0.5061058931 | AV120: -0.1011690064 | AW120: 0.2876607826 | AX120: -0.0178070605 | AY120: -0.09500255606 | AZ120: 0.4427127388 | BA120: -0.235642788 | BB120: -0.9595354849 | BC120: 0 | BD120: -0.02710479466 | BE120: -0.3173649671 | BF120: 0 | BG120: 11.9503163 | BH120: 4.058706524 | BI120: 7.370440695 | BJ120: 6.629111673 | BK120: 8.461959768 | BL120: 0.6954433425 | BN120: 130.1647112 | BO120: 137.0516619 | BP120: 133.2774638 | BQ120: 130.5025129 | BR120: 126.1083496 | BS120: 123.9648041
A121: 53 | B121: 0.4826168941 | C121: 2.416285814 | D121: 2.383266945 | E121: 2.407791351 | H121: 0.4802521301 | I121: 0.6738632639 | J121: -1.284002448 | K121: 1.428737857 | L121: 1.87637682 | M121: -0.6544547225 | N121: -0.118861982 | O121: 0.7934509747 | P121: 0.7635493451 | Q121: 0.2562783908 | R121: 0.2388258117 | S121: -0.06267774937 | T121: 1.185776922 | U121: 0.1160479567 | V121: -0.4597529701 | W121: -1.717595761 | X121: 0.8600224388 | Y121: -2.447994191 | Z121: 5.447458107 | AA121: 14.70357771 | AB121: 24.98669318 | AC121: 1.173558384 | AD121: 10.98734331 | AE121: -2.269737388 | AG121: 129.8012375 | AH121: 130.5801298 | AI121: 132.3903954 | AJ121: 130.0088556 | AK121: 123.9483325 | AL121: 123.9023984 | AO121: 0.4802521301 | AP121: 0.6738632639 | AQ121: -1.284002448 | AR121: 1.428737857 | AS121: 1.87637682 | AT121: -0.6544547225 | AU121: -0.118861982 | AV121: 0.7934509747 | AW121: 0.7635493451 | AX121: 0.2562783908 | AY121: 0.2388258117 | AZ121: -0.06267774937 | BA121: 0 | BB121: 0 | BC121: -0.4597529701 | BD121: -1.717595761 | BE121: 0 | BF121: -2.447994191 | BG121: 5.447458107 | BH121: 14.70357771 | BI121: 24.98669318 | BJ121: 1.173558384 | BK121: 10.98734331 | BL121: -2.269737388 | BN121: 130.9870144 | BO121: 131.9067851 | BP121: 133.7675133 | BQ121: 131.3903269 | BR121: 126.1888288 | BS121: 126.1983121
A122: 54 | B122: -0.6651373928 | C122: 2.468415455 | D122: 0.3517293209 | E122: -12.60210952 | H122: -0.6675021568 | I122: -3.135376499 | J122: -1.044322703 | K122: 1.261847524 | L122: 2.990885826 | M122: -1.671441072 | N122: -0.0667323408 | O122: -0.2882285136 | P122: 0.4244436683 | Q122: -0.3577244032 | R122: -0.1294389372 | S122: -0.5776884411 | T122: -0.8457607021 | U122: -0.9474978099 | V122: 0.2227073314 | W122: 1.522387669 | X122: 1.506575005 | Y122: -1.328637247 | Z122: -9.562442767 | AA122: -4.211488158 | AB122: -1.109875155 | AC122: -18.10962534 | AD122: -3.729325803 | AE122: -10.898897 | AG122: 133.4551222 | AH122: 139.2121813 | AI122: 139.8500251 | AJ122: 133.6437284 | AK122: 125.0367897 | AL122: 124.5606498 | AO122: -0.6675021568 | AP122: -3.135376499 | AQ122: -1.044322703 | AR122: 1.261847524 | AS122: 2.990885826 | AT122: -1.671441072 | AU122: -0.0667323408 | AV122: -0.2882285136 | AW122: 0.4244436683 | AX122: -0.3577244032 | AY122: -0.1294389372 | AZ122: -0.5776884411 | BA122: -0.8457607021 | BB122: -0.9474978099 | BC122: 0 | BD122: 0 | BE122: 0 | BF122: -1.328637247 | BG122: -9.562442767 | BH122: -4.211488158 | BI122: -1.109875155 | BJ122: -18.10962534 | BK122: -3.729325803 | BL122: -10.898897 | BN122: 133.4551222 | BO122: 139.2121813 | BP122: 140.0727324 | BQ122: 135.3885586 | BR122: 128.2621652 | BS122: 127.8828854
A123: 55 | B123: 3.888780962 | C123: 2.505183639 | D123: 3.105389473 | E123: -15.02606888 | H123: 3.886416198 | I123: -2.361625554 | J123: 0.2033312486 | K123: 3.927733988 | L123: 2.715648046 | M123: -0.9557812939 | N123: -0.02996415667 | O123: -0.6339116697 | P123: -0.01350316361 | Q123: -0.7645959143 | R123: -0.3137000434 | S123: 0.1609005273 | T123: 1.90789945 | U123: 0.7092630644 | V123: 0.550083392 | W123: 1.38523888 | X123: 1.932498613 | Y123: -0.1160582916 | Z123: -11.98640213 | AA123: -2.261681836 | AB123: -4.724116985 | AC123: -13.54408907 | AD123: -21.15767333 | AE123: -6.285278468 | AG123: 124.7821611 | AH123: 126.9828963 | AI123: 124.7360414 | AJ123: 115.0496545 | AK123: 106.3901762 | AL123: 104.1430124 | AO123: 3.886416198 | AP123: -2.361625554 | AQ123: 0.2033312486 | AR123: 3.927733988 | AS123: 2.715648046 | AT123: -0.9557812939 | AU123: -0.02996415667 | AV123: -0.6339116697 | AW123: -0.01350316361 | AX123: -0.7645959143 | AY123: -0.3137000434 | AZ123: 0.1609005273 | BA123: 0 | BB123: 0 | BC123: 0 | BD123: 0 | BE123: 0 | BF123: -0.1160582916 | BG123: -11.98640213 | BH123: -2.261681836 | BI123: -4.724116985 | BJ123: -13.54408907 | BK123: -21.15767333 | BL123: -6.285278468 | BN123: 126.6900606 | BO123: 129.6724275 | BP123: 128.0163148 | BQ123: 119.6156696 | BR123: 112.8243826 | BS123: 110.7705347
A124: 56 | B124: -4.436028356 | C124: 1.817919548 | D124: 2.274816504 | E124: -19.78851151 | H124: -4.438393121 | I124: -3.111081368 | J124: 0.4487277904 | K124: -2.144407086 | L124: -1.150761404 | M124: 0.6237615395 | N124: -0.7172282481 | O124: -0.5897416895 | P124: 0.8414492552 | Q124: -0.2095860358 | R124: -0.08451734966 | S124: -0.5263168651 | T124: 1.077326481 | U124: 0.3526865579 | V124: -0.7850459077 | W124: 1.465803858 | X124: -1.953321307 | Y124: 2.260904597 | Z124: -16.74884475 | AA124: -11.38330406 | AB124: 20.73650481 | AC124: -11.23300879 | AD124: 2.742076686 | AE124: -4.383435352 | AG124: 136.0291206 | AH124: 140.1583246 | AI124: 140.2823008 | AJ124: 139.1499272 | AK124: 139.6460605 | AL124: 132.8472768 | AO124: -4.438393121 | AP124: -3.111081368 | AQ124: 0.4487277904 | AR124: -2.144407086 | AS124: -1.150761404 | AT124: 0.6237615395 | AU124: -0.7172282481 | AV124: -0.5897416895 | AW124: 0.8414492552 | AX124: -0.2095860358 | AY124: -0.08451734966 | AZ124: -0.5263168651 | BA124: 0 | BB124: 0 | BC124: -0.7850459077 | BD124: 0 | BE124: -1.953321307 | BF124: 0 | BG124: -16.74884475 | BH124: -11.38330406 | BI124: 20.73650481 | BJ124: -11.23300879 | BK124: 2.742076686 | BL124: -4.383435352 | BN124: 137.1064471 | BO124: 141.6382722 | BP124: 141.7934545 | BQ124: 142.1791417 | BR124: 142.7547213 | BS124: 138.2395893
A125: 57 | B125: -1.778178201 | C125: 2.351328719 | D125: 1.605260008 | E125: -4.251512419 | H125: -1.780542965 | I125: 5.382362977 | J125: -0.255619621 | K125: -0.377532356 | L125: -4.315479043 | M125: -1.768752353 | N125: -0.183819077 | O125: 0.7807063618 | P125: -0.2991446196 | Q125: 0.2835311247 | R125: -0.3244073914 | S125: 0.2574142182 | T125: 0.4077699846 | U125: -0.1957678256 | V125: -0.08554292495 | W125: -0.5225580638 | X125: -1.700063975 | Y125: 0.7507604634 | Z125: -1.211845663 | AA125: 10.98798976 | AB125: 8.958908165 | AC125: 2.104624143 | AD125: 1.653083066 | AE125: 3.104434432 | AG125: 133.5910367 | AH125: 128.6942183 | AI125: 127.3389776 | AJ125: 126.0647858 | AK125: 129.8701314 | AL125: 128.681413 | AO125: -1.780542965 | AP125: 5.382362977 | AQ125: -0.255619621 | AR125: -0.377532356 | AS125: -4.315479043 | AT125: -1.768752353 | AU125: -0.183819077 | AV125: 0.7807063618 | AW125: -0.2991446196 | AX125: 0.2835311247 | AY125: -0.3244073914 | AZ125: 0.2574142182 | BA125: 0 | BB125: -0.1957678256 | BC125: -0.08554292495 | BD125: -0.5225580638 | BE125: -1.700063975 | BF125: 0 | BG125: -1.211845663 | BH125: 10.98798976 | BI125: 8.958908165 | BJ125: 2.104624143 | BK125: 1.653083066 | BL125: 3.104434432 | BN125: 133.9988066 | BO125: 129.0920086 | BP125: 127.7434929 | BQ125: 126.4779444 | BR125: 130.3069261 | BS125: 129.8861942
A126: 58 | B126: -0.01040784145 | C126: 2.739925378 | D126: -0.4062055338 | E126: -1.768351638 | H126: -0.0127726055 | I126: 0.9201890096 | J126: -0.04160891767 | K126: -2.841137988 | L126: -0.1403864676 | M126: 0.2434642251 | N126: 0.2047775819 | O126: 0.6404667517 | P126: 0.1017709896 | Q126: -0.2294579521 | R126: -0.7225562893 | S126: 0.3787876294 | T126: -1.603695557 | U126: 0.7056572345 | V126: 0.6632578006 | W126: -0.7335734072 | X126: -0.555393794 | Y126: 1.144797518 | Z126: 1.271315118 | AA126: 7.65507618 | AB126: 5.739761115 | AC126: 7.460330764 | AD126: 1.852969144 | AE126: -1.719660352 | AG126: 133.6724364 | AH126: 133.4109979 | AI126: 131.6287561 | AJ126: 133.3326583 | AK126: 130.0728871 | AL126: 125.971897 | AO126: -0.0127726055 | AP126: 0.9201890096 | AQ126: -0.04160891767 | AR126: -2.841137988 | AS126: -0.1403864676 | AT126: 0.2434642251 | AU126: 0.2047775819 | AV126: 0.6404667517 | AW126: 0.1017709896 | AX126: -0.2294579521 | AY126: -0.7225562893 | AZ126: 0.3787876294 | BA126: -1.603695557 | BB126: 0 | BC126: 0 | BD126: -0.7335734072 | BE126: -0.555393794 | BF126: 0 | BG126: 1.271315118 | BH126: 7.65507618 | BI126: 5.739761115 | BJ126: 7.460330764 | BK126: 1.852969144 | BL126: -1.719660352 | BN126: 133.6724364 | BO126: 134.1166551 | BP126: 133.010881 | BQ126: 134.7724079 | BR126: 131.5265823 | BS126: 128.5994867
A127: 59 | B127: -1.6688621 | C127: 1.74225252 | D127: 1.476665616 | E127: -21.94714924 | H127: -1.671226864 | I127: 0.4978453611 | J127: -2.948735318 | K127: -0.803091845 | L127: 1.763826859 | M127: 3.779659503 | N127: -0.7928952755 | O127: 0.2815449 | P127: 0.4103520718 | Q127: -0.2581665687 | R127: -0.4020853067 | S127: 0.1872120301 | T127: 0.2791755926 | U127: 1.737456647 | V127: -1.509491438 | W127: -1.061822635 | X127: 0.4255461813 | Y127: 0.9979750763 | Z127: -18.90748249 | AA127: 6.732947933 | AB127: 7.963272067 | AC127: -10.73951445 | AD127: -4.081324052 | AE127: 6.059258032 | AG127: 132.7656232 | AH127: 131.5495632 | AI127: 136.2898793 | AJ127: 135.6011836 | AK127: 129.276506 | AL127: 120.6286976 | AO127: -1.671226864 | AP127: 0.4978453611 | AQ127: -2.948735318 | AR127: -0.803091845 | AS127: 1.763826859 | AT127: 3.779659503 | AU127: -0.7928952755 | AV127: 0.2815449 | AW127: 0.4103520718 | AX127: -0.2581665687 | AY127: -0.4020853067 | AZ127: 0.1872120301 | BA127: 0 | BB127: 0 | BC127: -1.509491438 | BD127: -1.061822635 | BE127: 0 | BF127: 0 | BG127: -18.90748249 | BH127: 6.732947933 | BI127: 7.963272067 | BJ127: -10.73951445 | BK127: -4.081324052 | BL127: 6.059258032 | BN127: 133.0447988 | BO127: 133.5711254 | BP127: 138.4166654 | BQ127: 137.7711505 | BR127: 131.859337 | BS127: 124.167745
A128: 60 | B128: 0.04741899279 | C128: 2.771085094 | D128: 1.160266217 | E128: 6.372140768 | H128: 0.04505422873 | I128: -0.4155933376 | J128: 0.7698714879 | K128: -0.2587383246 | L128: -3.665516727 | M128: -1.012418703 | N128: 0.2359372986 | O128: 0.6064625114 | P128: 0.7455981548 | Q128: -0.288263028 | R128: -0.9943117277 | S128: -0.0434660986 | T128: -0.0372238061 | U128: 0.01185387464 | V128: -1.235179047 | W128: -1.713585727 | X128: -0.7385888567 | Y128: 1.338004221 | Z128: 9.411807525 | AA128: 19.51003749 | AB128: 3.739809375 | AC128: 1.074194539 | AD128: -4.255536604 | AE128: 6.71406757 | AG128: 132.0678392 | AH128: 134.2163259 | AI128: 134.1066 | AJ128: 133.2490032 | AK128: 134.6537119 | AL128: 131.6054006 | AO128: 0.04505422873 | AP128: -0.4155933376 | AQ128: 0.7698714879 | AR128: -0.2587383246 | AS128: -3.665516727 | AT128: -1.012418703 | AU128: 0.2359372986 | AV128: 0.6064625114 | AW128: 0.7455981548 | AX128: -0.288263028 | AY128: -0.9943117277 | AZ128: -0.0434660986 | BA128: -0.0372238061 | BB128: 0 | BC128: -1.235179047 | BD128: -1.713585727 | BE128: -0.7385888567 | BF128: 0 | BG128: 9.411807525 | BH128: 19.51003749 | BI128: 3.739809375 | BJ128: 1.074194539 | BK128: -4.255536604 | BL128: 6.71406757 | BN128: 132.0678392 | BO128: 134.2281798 | BP128: 134.1186545 | BQ128: 133.2612327 | BR128: 134.6664712 | BS128: 132.9565289
A129: 61 | B129: 4.463018219 | C129: 2.53982612 | D129: 2.32360956 | E129: -11.14127711 | H129: 4.460653455 | I129: 1.076846707 | J129: 2.834125537 | K129: -0.9158878407 | L129: -5.826348597 | M129: -1.009833567 | N129: 0.004678324255 | O129: -0.339222356 | P129: 0.06998462251 | Q129: 0.4862100476 | R129: -1.185856416 | S129: 0.1455636404 | T129: 1.126119537 | U129: 2.15066781 | V129: 1.280286108 | W129: -1.053736172 | X129: -1.386229452 | Y129: 0.1630222448 | Z129: -8.101610353 | AA129: -6.906700714 | AB129: -17.62891207 | AC129: 12.49642439 | AD129: -21.77697813 | AE129: 4.913131397 | AG129: 124.8919138 | AH129: 121.6395154 | AI129: 115.5527223 | AJ129: 115.4232545 | AK129: 119.194661 | AL129: 117.1011188 | AO129: 4.460653455 | AP129: 1.076846707 | AQ129: 2.834125537 | AR129: -0.9158878407 | AS129: -5.826348597 | AT129: -1.009833567 | AU129: 0.004678324255 | AV129: -0.339222356 | AW129: 0.06998462251 | AX129: 0.4862100476 | AY129: -1.185856416 | AZ129: 0.1455636404 | BA129: 0 | BB129: 0 | BC129: 0 | BD129: -1.053736172 | BE129: -1.386229452 | BF129: 0 | BG129: -8.101610353 | BH129: -6.906700714 | BI129: -17.62891207 | BJ129: 12.49642439 | BK129: -21.77697813 | BL129: 4.913131397 | BN129: 126.0180333 | BO129: 124.9228073 | BP129: 120.0841778 | BQ129: 120.085472 | BR129: 124.1594905 | BS129: 122.3801378
A130: 62 | B130: 2.356699995 | C130: 3.059401831 | D130: 1.269449209 | E130: -4.661573825 | H130: 2.354335231 | I130: 0.06802983955 | J130: 0.8420912508 | K130: -0.4384801509 | L130: -0.6309428051 | M130: -1.054663202 | N130: 0.524254035 | O130: 0.1055555746 | P130: 0.01236967802 | Q130: -0.334963494 | R130: 0.1915579581 | S130: 0.2923420974 | T130: 0.07195918636 | U130: 0.7672847937 | V130: -0.9661236644 | W130: 2.074966923 | X130: 1.071823721 | Y130: -1.677039157 | Z130: -1.621907069 | AA130: 1.187864471 | AB130: 3.670066152 | AC130: 5.675600078 | AD130: 16.6716376 | AE130: 7.88327204 | AG130: 129.2650114 | AH130: 129.2924866 | AI130: 127.8068759 | AJ130: 123.2410091 | AK130: 119.9799886 | AL130: 119.9816122 | AO130: 2.354335231 | AP130: 0.06802983955 | AQ130: 0.8420912508 | AR130: -0.4384801509 | AS130: -0.6309428051 | AT130: -1.054663202 | AU130: 0.524254035 | AV130: 0.1055555746 | AW130: 0.01236967802 | AX130: -0.334963494 | AY130: 0.1915579581 | AZ130: 0.2923420974 | BA130: 0 | BB130: 0 | BC130: -0.9661236644 | BD130: 0 | BE130: 0 | BF130: -1.677039157 | BG130: -1.621907069 | BH130: 1.187864471 | BI130: 3.670066152 | BJ130: 5.675600078 | BK130: 16.6716376 | BL130: 7.88327204 | BN130: 129.3369706 | BO130: 130.1331879 | BP130: 128.6551505 | BQ130: 126.1777025 | BR130: 124.0580249 | BS130: 124.1916731
A131: 63 | B131: -2.517835147 | C131: 2.048112448 | D131: 1.178359891 | E131: 1.905956129 | H131: -2.520199911 | I131: 1.134323045 | J131: -0.2765265987 | K131: 4.48137305 | L131: -0.6661991304 | M131: 4.687873168 | N131: -0.4870353479 | O131: -0.02405241003 | P131: -0.04910473436 | Q131: 0.05465165784 | R131: 0.6496039551 | S131: 0.5663393946 | T131: -0.01913013242 | U131: 1.071747153 | V131: 1.887547942 | W131: 2.008426513 | X131: -1.246718529 | Y131: -0.9259142615 | Z131: 4.945622886 | AA131: 6.911948212 | AB131: -1.462411894 | AC131: 5.961520196 | AD131: 21.48342543 | AE131: 8.929127993 | AG131: 134.6600832 | AH131: 132.8831843 | AI131: 129.9833796 | AJ131: 119.8613277 | AK131: 119.4268037 | AL131: 112.2819582 | AO131: -2.520199911 | AP131: 1.134323045 | AQ131: -0.2765265987 | AR131: 4.48137305 | AS131: -0.6661991304 | AT131: 4.687873168 | AU131: -0.4870353479 | AV131: -0.02405241003 | AW131: -0.04910473436 | AX131: 0.05465165784 | AY131: 0.6496039551 | AZ131: 0.5663393946 | BA131: -0.01913013242 | BB131: 0 | BC131: 0 | BD131: 0 | BE131: -1.246718529 | BF131: -0.9259142615 | BG131: 4.945622886 | BH131: 6.911948212 | BI131: -1.462411894 | BJ131: 5.961520196 | BK131: 21.48342543 | BL131: 8.929127993 | BN131: 134.6600832 | BO131: 133.9549315 | BP131: 132.9636782 | BQ131: 124.7676033 | BR131: 124.4732906 | BS131: 117.2223386
A132: 64 | B132: 2.377549121 | C132: 2.44354135 | D132: 2.078256515 | E132: -3.640330699 | H132: 2.375184357 | I132: 5.182310888 | J132: -0.472990884 | K132: -1.810912352 | L132: 0.3589247898 | M132: 1.754232943 | N132: -0.09160644558 | O132: 0.1530422163 | P132: 0.1024040969 | Q132: 0.147866443 | R132: -0.03018413398 | S132: -0.1980209729 | T132: 0.8807664923 | U132: 2.495919807 | V132: 0.4682179961 | W132: -1.398527046 | X132: -0.7887936548 | Y132: -0.5918102917 | Z132: -0.6006639426 | AA132: -19.41873118 | AB132: 10.46130268 | AC132: 0.1632806936 | AD132: -7.228754069 | AE132: -10.59265788 | AG132: 127.651815 | AH132: 119.6874732 | AI132: 118.367027 | AJ132: 119.3559031 | AK132: 116.4149244 | AL132: 111.3824564 | AO132: 2.375184357 | AP132: 5.182310888 | AQ132: -0.472990884 | AR132: -1.810912352 | AS132: 0.3589247898 | AT132: 1.754232943 | AU132: -0.09160644558 | AV132: 0.1530422163 | AW132: 0.1024040969 | AX132: 0.147866443 | AY132: -0.03018413398 | AZ132: -0.1980209729 | BA132: 0 | BB132: 0 | BC132: 0 | BD132: -1.398527046 | BE132: -0.7887936548 | BF132: -0.5918102917 | BG132: -0.6006639426 | BH132: -19.41873118 | BI132: 10.46130268 | BJ132: 0.1632806936 | BK132: -7.228754069 | BL132: -10.59265788 | BN132: 128.5325815 | BO132: 123.0390078 | BP132: 122.2641838 | BQ132: 123.3883133 | BR132: 120.4938514 | BS132: 115.4591213
A133: 65 | B133: 2.279233951 | C133: 2.604085687 | D133: 2.710154931 | E133: -1.473705466 | H133: 2.276869187 | I133: 2.211920743 | J133: -2.54610764 | K133: 2.236640084 | L133: 2.708067681 | M133: 5.421559607 | N133: 0.06893789107 | O133: 0.6890050952 | P133: -0.213300685 | Q133: 0.215825088 | R133: -0.8699750509 | S133: 0.7173986751 | T133: 1.512664908 | U133: 2.912530489 | V133: -1.28301638 | W133: 0.2479959677 | X133: -0.5513870381 | Y133: 0.0814863884 | Z133: 1.56596129 | AA133: 2.763130893 | AB133: 6.618779231 | AC133: 5.070101101 | AD133: -8.196116689 | AE133: 10.69451717 | AG133: =S$53*(1+(T$55+N133)/100)*((1-S$62)+S$62*((1+(T$57+Z133)/100)))/(1+(T$54+H133)/100)-(T$56+T133)+T$58 -> 127.3496101 | AH133: =AG133*(1+(U$55+O133)/100)*((1-T$62)+T$62*((1+(U$57+AA133)/100)))/(1+(U$54+I133)/100)-(U$56+U133)+U$58 -> 123.2092801 | AI133: =AH133*(1+(V$55+P133)/100)*((1-U$62)+U$62*((1+(V$57+AB133)/100)))/(1+(V$54+J133)/100)-(V$56+V133)+V$58 -> 125.9792448 | AJ133: =AI133*(1+(W$55+Q133)/100)*((1-V$62)+V$62*((1+(W$57+AC133)/100)))/(1+(W$54+K133)/100)-(W$56+W133)+W$58 -> 120.5774932 | AK133: =AJ133*(1+(X$55+R133)/100)*((1-W$62)+W$62*((1+(X$57+AD133)/100)))/(1+(X$54+L133)/100)-(X$56+X133)+X$58 -> 113.6884324 | AL133: =AK133*(1+(Y$55+S133)/100)*((1-X$62)+X$62*((1+(Y$57+AE133)/100)))/(1+(Y$54+M133)/100)-(Y$56+Y133)+Y$58 -> 105.0520452 | AO133: 2.276869187 | AP133: 2.211920743 | AQ133: -2.54610764 | AR133: 2.236640084 | AS133: 2.708067681 | AT133: 5.421559607 | AU133: 0.06893789107 | AV133: 0.6890050952 | AW133: -0.213300685 | AX133: 0.215825088 | AY133: -0.8699750509 | AZ133: 0.7173986751 | BA133: 0 | BB133: 0 | BC133: -1.28301638 | BD133: 0 | BE133: -0.5513870381 | BF133: 0 | BG133: 1.56596129 | BH133: 2.763130893 | BI133: 6.618779231 | BJ133: 5.070101101 | BK133: -8.196116689 | BL133: 10.69451717 | BN133: 128.862275 | BO133: 127.6415468 | BP133: 130.5950978 | BQ133: 125.4180355 | BR133: 118.4352845 | BS133: 109.7553252
A134: 66 | B134: -0.1007335572 | C134: 2.430600117 | D134: 0.8802311358 | E134: -6.554533313 | H134: =IF($B$42="On",$B134-$D$15,0) -> -0.1030983212 | I134: =IF($B$42="On",$B1134-$D$15,0) -> 1.2011006 | J134: =IF($B$42="On",$B2134-$D$15,0) -> -4.405239234 | K134: =IF($B$42="On",$B3134-$D$15,0) -> -5.78345695 | L134: =IF($B$42="On",$B4134-$D$15,0) -> 2.227731368 | M134: =IF($B$42="On",$B5134-$D$15,0) -> -1.010057764 | N134: =IF($B$43="On",$C134-$D$16,0) -> -0.1045476793 | O134: =IF($B$43="On",$C1134-$D$16,0) -> -0.1546257599 | P134: =IF($B$43="On",$C2134-$D$16,0) -> 0.03706297981 | Q134: =IF($B$43="On",$C3134-$D$16,0) -> -0.9173689575 | R134: =IF($B$43="On",$C4134-$D$16,0) -> 0.1399092544 | S134: =IF($B$43="On",$C5134-$D$16,0) -> -0.4977480075 | T134: =IF($B$44="On",$D134-$D$17,0) -> -0.3172588872 | U134: =IF($B$44="On",$D1134-$D$17,0) -> 1.875986079 | V134: =IF($B$44="On",$D2134-$D$17,0) -> -1.611977968 | W134: =IF($B$44="On",$D3134-$D$17,0) -> -0.6898429674 | X134: =IF($B$44="On",$D4134-$D$17,0) -> -0.6706341347 | Y134: =IF($B$44="On",$D5134-$D$17,0) -> -0.6285978486 | Z134: =IF($B$45="On",$E134-$D$18,0) -> -3.514866557 | AA134: =IF($B$45="On",$E1134-$D$18,0) -> 4.476626216 | AB134: =IF($B$45="On",$E2134-$D$18,0) -> 4.334314457 | AC134: =IF($B$45="On",$E3134-$D$18,0) -> -3.767320344 | AD134: =IF($B$45="On",$E4134-$D$18,0) -> -3.306767586 | AE134: =IF($B$45="On",$E5134-$D$18,0) -> -5.204773872 | AG134: 132.1083312 | AH134: 129.2495603 | AI134: 135.5225306 | AJ134: 140.7142097 | AK134: 135.5655478 | AL134: 133.8919376 | AO134: =IF($B$42="On",MIN($B134-$D$15,$D$42),0) -> -0.1030983212 | AP134: =IF($B$42="On",MIN($B1134-$D$15,$D$42),0) -> 1.2011006 | AQ134: =IF($B$42="On",MIN($B2134-$D$15,$D$42),0) -> -4.405239234 | AR134: =IF($B$42="On",MIN($B3134-$D$15,$D$42),0) -> -5.78345695 | AS134: =IF($B$42="On",MIN($B4134-$D$15,$D$42),0) -> 2.227731368 | AT134: =IF($B$42="On",MIN($B5134-$D$15,$D$42),0) -> -1.010057764 | AU134: =IF($B$43="On",MAX($C134-$D$16,$D$43),0) -> -0.1045476793 | AV134: =IF($B$43="On",MAX($C1134-$D$16,$D$43),0) -> -0.1546257599 | AW134: =IF($B$43="On",MAX($C2134-$D$16,$D$43),0) -> 0.03706297981 | AX134: =IF($B$43="On",MAX($C3134-$D$16,$D$43),0) -> -0.9173689575 | AY134: =IF($B$43="On",MAX($C4134-$D$16,$D$43),0) -> 0.1399092544 | AZ134: =IF($B$43="On",MAX($C5134-$D$16,$D$43),0) -> -0.4977480075 | BA134: =IF($B$44="On",MIN($D134-$D$17,$D$44),0) -> -0.3172588872 | BB134: =IF($B$44="On",MIN($D1134-$D$17,$D$44),0) -> 0 | BC134: =IF($B$44="On",MIN($D2134-$D$17,$D$44),0) -> -1.611977968 | BD134: =IF($B$44="On",MIN($D3134-$D$17,$D$44),0) -> -0.6898429674 | BE134: =IF($B$44="On",MIN($D4134-$D$17,$D$44),0) -> -0.6706341347 | BF134: =IF($B$44="On",MIN($D5134-$D$17,$D$44),0) -> -0.6285978486 | BG134: =IF($B$45="On",MAX($E134-$D$18,$D$45),0) -> -3.514866557 | BH134: =IF($B$45="On",MAX($E1134-$D$18,$D$45),0) -> 4.476626216 | BI134: =IF($B$45="On",MAX($E2134-$D$18,$D$45),0) -> 4.334314457 | BJ134: =IF($B$45="On",MAX($E3134-$D$18,$D$45),0) -> -3.767320344 | BK134: =IF($B$45="On",MAX($E4134-$D$18,$D$45),0) -> -3.306767586 | BL134: =IF($B$45="On",MAX($E5134-$D$18,$D$45),0) -> -5.204773872 | BN134: =S$53*(1+(T$55+AU134)/100)*((1-S$62)+S$62*((1+(T$57+BG134)/100)))/(1+(T$54+AO134)/100)-(T$56+BA134)+T$58 -> 132.1083312 | BO134: =BN134*(1+(U$55+AV134)/100)*((1-T$62)+T$62*((1+(U$57+BH134)/100)))/(1+(U$54+AP134)/100)-(U$56+BB134)+U$58 -> 131.1255463 | BP134: =BO134*(1+(V$55+AW134)/100)*((1-U$62)+U$62*((1+(V$57+BI134)/100)))/(1+(V$54+AQ134)/100)-(V$56+BC134)+V$58 -> 137.5186589 | BQ134: =BP134*(1+(W$55+AX134)/100)*((1-V$62)+V$62*((1+(W$57+BJ134)/100)))/(1+(W$54+AR134)/100)-(W$56+BD134)+W$58 -> 142.8431872 | BR134: =BQ134*(1+(X$55+AY134)/100)*((1-W$62)+W$62*((1+(X$57+BK134)/100)))/(1+(X$54+AS134)/100)-(X$56+BE134)+X$58 -> 137.6837429 | BS134: =BR134*(1+(Y$55+AZ134)/100)*((1-X$62)+X$62*((1+(Y$57+BL134)/100)))/(1+(Y$54+AT134)/100)-(Y$56+BF134)+Y$58 -> 136.0610308
A135: =A134+1 -> 67 | B135: 0.6082570021 | C135: 1.457997723 | D135: 1.546318222 | E135: -23.78476041 | H135: 0.6058922381 | I135: 2.911108423 | J135: 0.3133329124 | K135: -0.8177424343 | L135: -4.716393338 | M135: 2.814602826 | N135: -1.077150073 | O135: -0.8898567147 | P135: 0.08117985843 | Q135: -0.1747166886 | R135: -0.1074657786 | S135: -0.2542733574 | T135: 0.348828199 | U135: -0.2795950061 | V135: -0.1579687771 | W135: 1.15169867 | X135: -2.864353908 | Y135: 1.96741744 | Z135: -20.74509366 | AA135: -19.31264823 | AB135: 2.586030253 | AC135: -7.275414868 | AD135: 7.678459718 | AE135: 3.439677091 | AG135: 129.2389957 | AH135: 125.4553771 | AI135: 123.8724664 | AJ135: 120.8393171 | AK135: 126.3108964 | AL135: 117.3584482 | AO135: 0.6058922381 | AP135: 2.911108423 | AQ135: 0.3133329124 | AR135: -0.8177424343 | AS135: -4.716393338 | AT135: 2.814602826 | AU135: -1.077150073 | AV135: -0.8898567147 | AW135: 0.08117985843 | AX135: -0.1747166886 | AY135: -0.1074657786 | AZ135: -0.2542733574 | BA135: 0 | BB135: -0.2795950061 | BC135: -0.1579687771 | BD135: 0 | BE135: -2.864353908 | BF135: 0 | BG135: -20.74509366 | BH135: -19.31264823 | BI135: 2.586030253 | BJ135: -7.275414868 | BK135: 7.678459718 | BL135: 3.439677091 | BN135: 129.5878239 | BO135: 125.7981591 | BP135: 124.2203729 | BQ135: 122.3463264 | BR135: 127.9141065 | BS135: 120.9109849
A136: 68 | B136: 0.9199187521 | C136: 3.030677181 | D136: 0.9940174333 | E136: -4.3764351 | H136: 0.917553988 | I136: -1.546875028 | J136: 0.2237381319 | K136: 2.15089193 | L136: 0.6106948045 | M136: 1.907310731 | N136: 0.4955293846 | O136: -0.457802117 | P136: -0.6977368975 | Q136: -0.1997274574 | R136: 0.3824732624 | S136: -0.3412488332 | T136: -0.2034725897 | U136: -1.264336768 | V136: 0.1555093933 | W136: -1.082937851 | X136: 0.1409864631 | Y136: 1.715674406 | Z136: -1.336768343 | AA136: -13.37462784 | AB136: -22.22762497 | AC136: -15.15650957 | AD136: 5.711007164 | AE136: -18.54721969 | AG136: 131.3945779 | AH136: 134.932908 | AI136: 132.2616589 | AJ136: 127.7373201 | AK136: 124.1610713 | AL136: 116.4601159 | AO136: 0.917553988 | AP136: -1.546875028 | AQ136: 0.2237381319 | AR136: 2.15089193 | AS136: 0.6106948045 | AT136: 1.907310731 | AU136: 0.4955293846 | AV136: -0.457802117 | AW136: -0.6977368975 | AX136: -0.1997274574 | AY136: 0.3824732624 | AZ136: -0.3412488332 | BA136: -0.2034725897 | BB136: -1.264336768 | BC136: 0 | BD136: -1.082937851 | BE136: 0 | BF136: 0 | BG136: -1.336768343 | BH136: -13.37462784 | BI136: -22.22762497 | BJ136: -15.15650957 | BK136: 5.711007164 | BL136: -18.54721969 | BN136: 131.3945779 | BO136: 134.932908 | BP136: 132.4171683 | BQ136: 127.8915484 | BR136: 124.458304 | BS136: 118.4720042
A137: 69 | B137: 1.85831196 | C137: 2.556205829 | D137: 0.7577037726 | E137: 2.823439772 | H137: 1.855947196 | I137: 1.973034772 | J137: 2.28440649 | K137: 0.9601709021 | L137: -2.314725447 | M137: 0.507181497 | N137: 0.02105803354 | O137: 0.2111263386 | P137: 0.7894883475 | Q137: 0.306022683 | R137: -0.06727579248 | S137: 0.5646656648 | T137: -0.4397862504 | U137: 0.4158597992 | V137: -1.578191703 | W137: -0.0195351335 | X137: 0.537083557 | Y137: -0.9881836943 | Z137: 5.863106528 | AA137: -6.571269433 | AB137: 19.59157238 | AC137: 3.337084963 | AD137: -5.398311653 | AE137: 0.9335067985 | AG137: 129.7880909 | AH137: 127.8552775 | AI137: 126.1297483 | AJ137: 122.6708522 | AK137: 121.744542 | AL137: 119.510341 | AO137: 1.855947196 | AP137: 1.973034772 | AQ137: 2.28440649 | AR137: 0.9601709021 | AS137: -2.314725447 | AT137: 0.507181497 | AU137: 0.02105803354 | AV137: 0.2111263386 | AW137: 0.7894883475 | AX137: 0.306022683 | AY137: -0.06727579248 | AZ137: 0.5646656648 | BA137: -0.4397862504 | BB137: 0 | BC137: -1.578191703 | BD137: -0.0195351335 | BE137: 0 | BF137: -0.9881836943 | BG137: 5.863106528 | BH137: -6.571269433 | BI137: 19.59157238 | BJ137: 3.337084963 | BK137: -5.398311653 | BL137: 0.9335067985 | BN137: 129.7880909 | BO137: 128.2711373 | BP137: 126.5466252 | BQ137: 123.0911639 | BR137: 122.7181007 | BS137: 120.5025907
A138: 70 | B138: -3.337244929 | C138: 2.171990144 | D138: 0.4189552442 | E138: -1.937983376 | H138: -3.339609693 | I138: -0.6590142081 | J138: -1.966782231 | K138: 0.2034757709 | L138: 0.05265609817 | M138: -0.1902716858 | N138: -0.3631576516 | O138: -0.6286425368 | P138: -0.241734859 | Q138: 0.1790495998 | R138: 0.1730471257 | S138: 0.5866482844 | T138: -0.7785347788 | U138: -0.07292667292 | V138: -0.2287267813 | W138: 0.2353200828 | X138: -0.3612729299 | Y138: -1.562526613 | Z138: 1.10168338 | AA138: -14.80070408 | AB138: -1.99179982 | AC138: -5.983758547 | AD138: 0.4629544894 | AE138: 4.093459779 | AG138: 136.7578668 | AH138: 137.7876425 | AI138: 139.2287128 | AJ138: 136.4943478 | AK138: 134.0137823 | AL138: 133.5617478 | AO138: -3.339609693 | AP138: -0.6590142081 | AQ138: -1.966782231 | AR138: 0.2034757709 | AS138: 0.05265609817 | AT138: -0.1902716858 | AU138: -0.3631576516 | AV138: -0.6286425368 | AW138: -0.241734859 | AX138: 0.1790495998 | AY138: 0.1730471257 | AZ138: 0.5866482844 | BA138: -0.7785347788 | BB138: -0.07292667292 | BC138: -0.2287267813 | BD138: 0 | BE138: -0.3612729299 | BF138: -1.562526613 | BG138: 1.10168338 | BH138: -14.80070408 | BI138: -1.99179982 | BJ138: -5.983758547 | BK138: 0.4629544894 | BL138: 4.093459779 | BN138: 136.7578668 | BO138: 137.7876425 | BP138: 139.2287128 | BQ138: 136.7296679 | BR138: 134.253007 | BS138: 133.8073008
A139: 71 | B139: 3.153955722 | C139: 2.078245875 | D139: 1.859144418 | E139: -7.969069509 | H139: 3.151590958 | I139: 3.246600864 | J139: 3.646512042 | K139: 1.39529509 | L139: 1.040758292 | M139: -2.424568841 | N139: -0.4569019205 | O139: 0.2046024339 | P139: -0.6396476879 | Q139: 0.4586098964 | R139: 0.04538804006 | S139: -0.01071368549 | T139: 0.6616543953 | U139: 1.045111133 | V139: 0.953696118 | W139: 0.171744038 | X139: 1.236691516 | Y139: 2.199019649 | Z139: -4.929402753 | AA139: 15.12349432 | AB139: -6.6154624 | AC139: 3.171187207 | AD139: 1.585690822 | AE139: -3.634314228 | AG139: 126.4202399 | AH139: 122.2904636 | AI139: 114.7555547 | AJ139: 110.6922516 | AK139: 104.9622569 | AL139: 101.7824292 | AO139: 3.151590958 | AP139: 3.246600864 | AQ139: 3.646512042 | AR139: 1.39529509 | AS139: 1.040758292 | AT139: -2.424568841 | AU139: -0.4569019205 | AV139: 0.2046024339 | AW139: -0.6396476879 | AX139: 0.4586098964 | AY139: 0.04538804006 | AZ139: -0.01071368549 | BA139: 0 | BB139: 0 | BC139: 0 | BD139: 0 | BE139: 0 | BF139: 0 | BG139: -4.929402753 | BH139: 15.12349432 | BI139: -6.6154624 | BJ139: 3.171187207 | BK139: 1.585690822 | BL139: -3.634314228 | BN139: 127.0818943 | BO139: 123.9906264 | BP139: 117.3681953 | BQ139: 113.4908906 | BR139: 109.0130942 | BS139: 108.2090013
A140: 72 | B140: 0.3206750476 | C140: 2.864384832 | D140: 1.243150709 | E140: -11.1335629 | H140: 0.3183102836 | I140: 0.1948970475 | J140: 0.7814398978 | K140: -0.7417764096 | L140: 0.6179675395 | M140: 3.244091351 | N140: 0.3292370358 | O140: -0.6967593146 | P140: 0.09549853276 | Q140: 0.9203969336 | R140: -0.2239703005 | S140: -0.4303546671 | T140: 0.04566068552 | U140: 1.778357591 | V140: -0.1583110215 | W140: -2.04918665 | X140: 1.430423454 | Y140: -0.0283148929 | Z140: -8.093896139 | AA140: -17.10498967 | AB140: -6.231793542 | AC140: 22.50684362 | AD140: 0.8251268424 | AE140: -14.82867303 | AG140: 131.7358928 | AH140: 129.5863636 | AI140: 127.4792334 | AJ140: 129.0123847 | AK140: 123.3871595 | AL140: 115.7537587 | AO140: 0.3183102836 | AP140: 0.1948970475 | AQ140: 0.7814398978 | AR140: -0.7417764096 | AS140: 0.6179675395 | AT140: 3.244091351 | AU140: 0.3292370358 | AV140: -0.6967593146 | AW140: 0.09549853276 | AX140: 0.9203969336 | AY140: -0.2239703005 | AZ140: -0.4303546671 | BA140: 0 | BB140: 0 | BC140: -0.1583110215 | BD140: -2.04918665 | BE140: 0 | BF140: -0.0283148929 | BG140: -8.093896139 | BH140: -17.10498967 | BI140: -6.231793542 | BJ140: 22.50684362 | BK140: 0.8251268424 | BL140: -14.82867303 | BN140: 131.7815535 | BO140: 131.4108851 | BP140: 129.3227763 | BQ140: 130.913797 | BR140: 126.732434 | BS140: 119.0420439
A141: 73 | B141: 1.363969851 | C141: 2.46371281 | D141: 0.9053406434 | E141: -10.18010386 | H141: 1.361605087 | I141: 0.1067982831 | J141: -0.2795048659 | K141: -4.202144488 | L141: 1.451098539 | M141: 0.07786071853 | N141: -0.07143498546 | O141: -0.2298581175 | P141: -0.1165358686 | Q141: -0.4325382513 | R141: -0.1563174801 | S141: 0.4144269152 | T141: -0.2921493796 | U141: -0.2309285749 | V141: -0.7432173018 | W141: -1.420228943 | X141: -0.5906227057 | Y141: -1.043029889 | Z141: -7.140437108 | AA141: -1.273649284 | AB141: 7.297133154 | AC141: 2.229418982 | AD141: -5.612323491 | AE141: 11.8914414 | AG141: 130.1702707 | AH141: 130.7303389 | AI141: 130.3355779 | AJ141: 134.3010069 | AK141: 129.7269784 | AL141: 128.06891 | AO141: 1.361605087 | AP141: 0.1067982831 | AQ141: -0.2795048659 | AR141: -4.202144488 | AS141: 1.451098539 | AT141: 0.07786071853 | AU141: -0.07143498546 | AV141: -0.2298581175 | AW141: -0.1165358686 | AX141: -0.4325382513 | AY141: -0.1563174801 | AZ141: 0.4144269152 | BA141: -0.2921493796 | BB141: -0.2309285749 | BC141: -0.7432173018 | BD141: -1.420228943 | BE141: -0.5906227057 | BF141: -1.043029889 | BG141: -7.140437108 | BH141: -1.273649284 | BI141: 7.297133154 | BJ141: 2.229418982 | BK141: -5.612323491 | BL141: 11.8914414 | BN141: 130.1702707 | BO141: 130.7303389 | BP141: 130.3355779 | BQ141: 134.3010069 | BR141: 129.7269784 | BS141: 128.06891
A142: 74 | B142: 1.118712654 | C142: 2.917045789 | D142: -0.04878471276 | E142: 9.354950372 | H142: 1.11634789 | I142: -3.163718196 | J142: -0.9698287884 | K142: 1.137345138 | L142: -0.6011225946 | M142: 3.61322144 | N142: 0.3818979929 | O142: 0.4216843323 | P142: 0.6600557446 | Q142: -0.3919927371 | R142: 0.4654549974 | S142: -0.01725019478 | T142: -1.246274736 | U142: -0.6694961193 | V142: 0.3053069638 | W142: 0.7201938999 | X142: -0.9328257527 | Y142: 3.722574172 | Z142: 12.39461713 | AA142: 9.950172963 | AB142: 5.701356412 | AC142: 0.2717042083 | AD142: 9.58387642 | AE142: 3.177741248 | AG142: 132.0273192 | AH142: 138.4361359 | AI142: 139.1859543 | AJ142: 133.904925 | AK142: 133.2242971 | AL142: 121.736311 | AO142: 1.11634789 | AP142: -3.163718196 | AQ142: -0.9698287884 | AR142: 1.137345138 | AS142: -0.6011225946 | AT142: 3.61322144 | AU142: 0.3818979929 | AV142: 0.4216843323 | AW142: 0.6600557446 | AX142: -0.3919927371 | AY142: 0.4654549974 | AZ142: -0.01725019478 | BA142: -1.246274736 | BB142: -0.6694961193 | BC142: 0 | BD142: 0 | BE142: -0.9328257527 | BF142: 0 | BG142: 12.39461713 | BH142: 9.950172963 | BI142: 5.701356412 | BJ142: 0.2717042083 | BK142: 9.58387642 | BL142: 3.177741248 | BN142: 132.0273192 | BO142: 138.4361359 | BP142: 139.4912612 | BQ142: 134.9303312 | BR142: 134.276453 | BS142: 126.4936213
A143: 75 | B143: -0.8692278985 | C143: 3.018323897 | D143: 2.454066369 | E143: 2.12724978 | H143: -0.8715926626 | I143: -0.5066430064 | J143: -0.1732947899 | K143: 4.595344576 | L143: -1.008384592 | M143: 5.091588598 | N143: 0.4831761015 | O143: 0.01656650618 | P143: 0.7199805332 | Q143: 0.61168842 | R143: -0.3547378166 | S143: 0.5104426028 | T143: 1.256576346 | U143: -0.1799177581 | V143: 0.1279123427 | W143: -0.8759250859 | X143: 0.7317525003 | Y143: 1.448531614 | Z143: 5.166916537 | AA143: -2.980135721 | AB143: 14.3975861 | AC143: 12.91963377 | AD143: -4.415268051 | AE143: 4.052408024 | AG143: 132.3504327 | AH143: 134.0442124 | AI143: 133.8088018 | AJ143: 127.0285785 | AK143: 123.994942 | AL143: 113.8533414 | AO143: -0.8715926626 | AP143: -0.5066430064 | AQ143: -0.1732947899 | AR143: 4.595344576 | AS143: -1.008384592 | AT143: 5.091588598 | AU143: 0.4831761015 | AV143: 0.01656650618 | AW143: 0.7199805332 | AX143: 0.61168842 | AY143: -0.3547378166 | AZ143: 0.5104426028 | BA143: 0 | BB143: -0.1799177581 | BC143: 0 | BD143: -0.8759250859 | BE143: 0 | BF143: 0 | BG143: 5.166916537 | BH143: -2.980135721 | BI143: 14.3975861 | BJ143: 12.91963377 | BK143: -4.415268051 | BL143: 4.052408024 | BN143: 133.6070091 | BO143: 135.3324711 | BP143: 135.2586961 | BQ143: 128.4444654 | BR143: 126.1738438 | BS143: 117.4257139
A144: 76 | B144: -1.711619942 | C144: 2.340954924 | D144: -0.09540181124 | E144: 4.734958515 | H144: -1.713984706 | I144: -2.981672432 | J144: 1.880434563 | K144: 2.748619754 | L144: -1.169394667 | M144: 3.567508134 | N144: -0.1941928714 | O144: -0.4132201352 | P144: 0.628351236 | Q144: -0.2023233796 | R144: -0.9940997487 | S144: 0.3068678727 | T144: -1.292891834 | U144: -0.3066420606 | V144: -0.3439111904 | W144: 0.7619885871 | X144: -1.40992169 | Y144: 1.097377153 | Z144: 7.774625271 | AA144: -9.911641469 | AB144: 13.70147113 | AC144: -1.954903706 | AD144: -4.704446845 | AE144: 0.2722047329 | AG144: 135.18485 | AH144: 139.9911 | AI144: 137.3925526 | AJ144: 130.1955684 | AK144: 128.7567948 | AL144: 120.4215547 | AO144: -1.713984706 | AP144: -2.981672432 | AQ144: 1.880434563 | AR144: 2.748619754 | AS144: -1.169394667 | AT144: 3.567508134 | AU144: -0.1941928714 | AV144: -0.4132201352 | AW144: 0.628351236 | AX144: -0.2023233796 | AY144: -0.9940997487 | AZ144: 0.3068678727 | BA144: -1.292891834 | BB144: -0.3066420606 | BC144: -0.3439111904 | BD144: 0 | BE144: -1.40992169 | BF144: 0 | BG144: 7.774625271 | BH144: -9.911641469 | BI144: 13.70147113 | BJ144: -1.954903706 | BK144: -4.704446845 | BL144: 0.2722047329 | BN144: 135.18485 | BO144: 139.9911 | BP144: 137.3925526 | BQ144: 130.957557 | BR144: 129.5319983 | BS144: 122.2840318
A145: 77 | B145: -1.429844603 | C145: 2.867455364 | D145: -0.6008050935 | E145: 7.385324429 | H145: -1.432209367 | I145: 1.128338148 | J145: 0.0010199747 | K145: 0.3972105151 | L145: 3.013264902 | M145: 0.3907172801 | N145: 0.3323075682 | O145: 0.3679836585 | P145: -0.8507721592 | Q145: 0.08415944041 | R145: -0.2903470981 | S145: 0.4741129718 | T145: -1.798295117 | U145: -0.5345911457 | V145: -0.3324363677 | W145: -1.709449299 | X145: 1.877004685 | Y145: -0.2046220455 | Z145: 10.42499119 | AA145: 0.07517268931 | AB145: -10.56666757 | AC145: 13.52316877 | AD145: -3.982748949 | AE145: 7.913719916 | AG145: 135.9878474 | AH145: 136.3596619 | AI145: 134.2844701 | AJ145: 133.0387497 | AK145: 123.8372972 | AL145: 120.894024 | AO145: -1.432209367 | AP145: 1.128338148 | AQ145: 0.0010199747 | AR145: 0.3972105151 | AS145: 3.013264902 | AT145: 0.3907172801 | AU145: 0.3323075682 | AV145: 0.3679836585 | AW145: -0.8507721592 | AX145: 0.08415944041 | AY145: -0.2903470981 | AZ145: 0.4741129718 | BA145: -1.798295117 | BB145: -0.5345911457 | BC145: -0.3324363677 | BD145: -1.709449299 | BE145: 0 | BF145: -0.2046220455 | BG145: 10.42499119 | BH145: 0.07517268931 | BI145: -10.56666757 | BJ145: 13.52316877 | BK145: -3.982748949 | BL145: 7.913719916 | BN145: 135.9878474 | BO145: 136.3596619 | BP145: 134.2844701 | BQ145: 133.0387497 | BR145: 125.7143019 | BS145: 122.8075847
A146: 78 | B146: 0.4731933166 | C146: 2.936537037 | D146: 1.487829329 | E146: -6.878320275 | H146: 0.4708285526 | I146: 4.782561672 | J146: -0.2313447483 | K146: 1.877728257 | L146: 0.5232114933 | M146: -0.02902072417 | N146: 0.4013892414 | O146: 1.116540099 | P146: 0.6379628043 | Q146: -0.04998453825 | R146: -0.0691371916 | S146: -0.1627875997 | T146: 0.2903393062 | U146: -0.6249065083 | V146: -0.3243735079 | W146: 1.62271679 | X146: -0.08802087164 | Y146: -1.194328476 | Z146: -3.838653519 | AA146: 14.43830613 | AB146: 9.868397186 | AC146: -1.849535849 | AD146: -1.998326911 | AE146: -9.697277401 | AG146: 131.3786299 | AH146: 128.1116132 | AI146: 128.1446659 | AJ146: 121.4705301 | AK146: 117.6086976 | AL146: 115.2908812 | AO146: 0.4708285526 | AP146: 4.782561672 | AQ146: -0.2313447483 | AR146: 1.877728257 | AS146: 0.5232114933 | AT146: -0.02902072417 | AU146: 0.4013892414 | AV146: 1.116540099 | AW146: 0.6379628043 | AX146: -0.04998453825 | AY146: -0.0691371916 | AZ146: -0.1627875997 | BA146: 0 | BB146: -0.6249065083 | BC146: -0.3243735079 | BD146: 0 | BE146: -0.08802087164 | BF146: -1.194328476 | BG146: -3.838653519 | BH146: 14.43830613 | BI146: 9.868397186 | BJ146: -1.849535849 | BK146: -1.998326911 | BL146: -9.697277401 | BN146: 131.6689692 | BO146: 128.3973805 | BP146: 128.4378503 | BQ146: 123.3852101 | BR146: 119.5416113 | BS146: 117.257447
A147: 79 | B147: -0.8246917289 | C147: 3.148014376 | D147: -0.9860774368 | E147: 5.683240839 | H147: -0.827056493 | I147: 3.667344816 | J147: -0.641926367 | K147: 1.867859157 | L147: -0.6701834249 | M147: 1.377392351 | N147: 0.61286658 | O147: 0.4210432486 | P147: -0.4895653665 | Q147: -0.3421527485 | R147: 0.01506274375 | S147: -0.207953395 | T147: -2.18356746 | U147: 2.589096639 | V147: 1.347928545 | W147: -0.1649366938 | X147: 0.1631542503 | Y147: 1.666440502 | Z147: 8.722907596 | AA147: 2.108431291 | AB147: -10.38158213 | AC147: 5.396040502 | AD147: -1.988613944 | AE147: -7.84368053 | AG147: 135.89804 | AH147: 129.8692633 | AI147: 127.3621987 | AJ147: 122.1307603 | AK147: 119.5868388 | AL147: 112.7218664 | AO147: -0.827056493 | AP147: 3.667344816 | AQ147: -0.641926367 | AR147: 1.867859157 | AS147: -0.6701834249 | AT147: 1.377392351 | AU147: 0.61286658 | AV147: 0.4210432486 | AW147: -0.4895653665 | AX147: -0.3421527485 | AY147: 0.01506274375 | AZ147: -0.207953395 | BA147: -2.18356746 | BB147: 0 | BC147: 0 | BD147: -0.1649366938 | BE147: 0 | BF147: 0 | BG147: 8.722907596 | BH147: 2.108431291 | BI147: -10.38158213 | BJ147: 5.396040502 | BK147: -1.988613944 | BL147: -7.84368053 | BN147: 135.89804 | BO147: 132.4583599 | BP147: 131.3482129 | BQ147: 126.0892735 | BR147: 123.7968572 | BS147: 118.6110407
A148: 80 | B148: -5.493644892 | C148: 2.407463724 | D148: -1.645207785 | E148: 6.620878858 | H148: -5.496009656 | I148: -0.202847078 | J148: -0.5742379443 | K148: -1.986430016 | L148: -3.344601536 | M148: 2.978802988 | N148: -0.1276840718 | O148: 0.8129728798 | P148: -0.2708379834 | Q148: -0.7046572936 | R148: 0.3077204136 | S148: 0.5250964616 | T148: -2.842697808 | U148: -2.321823476 | V148: -0.2019417078 | W148: 1.974501949 | X148: 0.1361509056 | Y148: 0.5880820569 | Z148: 9.660545615 | AA148: 6.612778895 | AB148: 2.702025424 | AC148: -2.722701782 | AD148: 0.4080315096 | AE148: 18.13452607 | AG148: 142.3332404 | AH148: 147.1071206 | AI148: 146.6953288 | AJ148: 144.3043222 | AK148: 146.7366413 | AL148: 139.8021218 | AO148: -5.496009656 | AP148: -0.202847078 | AQ148: -0.5742379443 | AR148: -1.986430016 | AS148: -3.344601536 | AT148: 2.978802988 | AU148: -0.1276840718 | AV148: 0.8129728798 | AW148: -0.2708379834 | AX148: -0.7046572936 | AY148: 0.3077204136 | AZ148: 0.5250964616 | BA148: -2.842697808 | BB148: -2.321823476 | BC148: -0.2019417078 | BD148: 0 | BE148: 0 | BF148: 0 | BG148: 9.660545615 | BH148: 6.612778895 | BI148: 2.702025424 | BJ148: -2.722701782 | BK148: 0.4080315096 | BL148: 18.13452607 | BN148: 142.3332404 | BO148: 147.1071206 | BP148: 146.6953288 | BQ148: 146.2788242 | BR148: 148.9523118 | BS148: 142.5939952
A149: 81 | B149: 0.640281538 | C149: 2.902475847 | D149: 2.362290173 | E149: 0.1039623698 | H149: 0.637916774 | I149: 0.05052010797 | J149: 2.150739192 | K149: -3.835554594 | L149: -0.6274054615 | M149: -0.08538549141 | N149: 0.3673280515 | O149: -0.4643251958 | P149: 0.1274161359 | Q149: -0.3091860845 | R149: -0.7492531502 | S149: -0.6598250445 | T149: 1.16480015 | U149: 1.187104027 | V149: 0.5566413062 | W149: -1.138254137 | X149: -1.96376641 | Y149: 0.6609827786 | Z149: 3.143629126 | AA149: -9.235391924 | AB149: -1.08155495 | AC149: -9.232025593 | AD149: -15.32860417 | AE149: -8.681896316 | AG149: 130.2359556 | AH149: 129.1500545 | AI149: 124.6320625 | AJ149: 127.6703481 | AK149: 126.3532652 | AL149: 121.7829405 | AO149: 0.637916774 | AP149: 0.05052010797 | AQ149: 2.150739192 | AR149: -3.835554594 | AS149: -0.6274054615 | AT149: -0.08538549141 | AU149: 0.3673280515 | AV149: -0.4643251958 | AW149: 0.1274161359 | AX149: -0.3091860845 | AY149: -0.7492531502 | AZ149: -0.6598250445 | BA149: 0 | BB149: 0 | BC149: 0 | BD149: -1.138254137 | BE149: -1.96376641 | BF149: 0 | BG149: 3.143629126 | BH149: -9.235391924 | BI149: -1.08155495 | BJ149: -9.232025593 | BK149: -15.32860417 | BL149: -8.681896316 | BN149: 131.4007557 | BO149: 131.5191694 | BP149: 127.5514915 | BQ149: 130.7401074 | BR149: 129.4669244 | BS149: 125.5982518
A150: 82 | B150: -0.1038758392 | C150: 3.213282248 | D150: 1.890554121 | E150: 5.226929127 | H150: -0.1062406033 | I150: -2.734641172 | J150: -0.2381434496 | K150: 2.59579196 | L150: -0.3584543773 | M150: 2.025098377 | N150: 0.678134452 | O150: -0.4927360871 | P150: -0.6816503267 | Q150: -0.2493316853 | R150: 0.2901793003 | S150: 0.1076168795 | T150: 0.6930640981 | U150: -0.5382720505 | V150: 0.261581352 | W150: 0.9589198666 | X150: -1.135648917 | Y150: 1.724722111 | Z150: 8.266595884 | AA150: -10.47074364 | AB150: 0.02807076648 | AC150: -2.354760198 | AD150: -4.225061431 | AE150: 4.369722522 | AG150: 132.1151622 | AH150: 136.5537384 | AI150: 134.442105 | AJ150: 127.2234061 | AK150: 126.0370923 | AL150: 118.7253959 | AO150: -0.1062406033 | AP150: -2.734641172 | AQ150: -0.2381434496 | AR150: 2.59579196 | AS150: -0.3584543773 | AT150: 2.025098377 | AU150: 0.678134452 | AV150: -0.4927360871 | AW150: -0.6816503267 | AX150: -0.2493316853 | AY150: 0.2901793003 | AZ150: 0.1076168795 | BA150: 0 | BB150: -0.5382720505 | BC150: 0 | BD150: 0 | BE150: -1.135648917 | BF150: 0 | BG150: 8.266595884 | BH150: -10.47074364 | BI150: 0.02807076648 | BJ150: -2.354760198 | BK150: -4.225061431 | BL150: 4.369722522 | BN150: 132.8082263 | BO150: 137.2768271 | BP150: 135.4361285 | BQ150: 129.1634687 | BR150: 128.019619 | BS150: 122.432216
A151: 83 | B151: -2.356876257 | C151: 2.105572066 | D151: 0.7245799342 | E151: -14.4505046 | H151: -2.359241021 | I151: 1.98520999 | J151: 0.519076055 | K151: -2.773985983 | L151: -0.6158409981 | M151: -2.962509211 | N151: -0.4295757295 | O151: -0.5273374172 | P151: 0.3627159634 | Q151: 0.006310680418 | R151: -0.3179620571 | S151: 0.3283401601 | T151: -0.4729100888 | U151: -0.2962553543 | V151: -0.4176529735 | W151: -0.2783728991 | X151: 0.04404577226 | Y151: -0.01103993218 | Z151: -11.41083784 | AA151: -23.28518403 | AB151: 8.513903826 | AC151: -1.422171643 | AD151: -2.144691254 | AE151: 3.285770389 | AG151: 134.9619896 | AH151: 132.7673451 | AI151: 131.6484759 | AJ151: 133.1193361 | AK151: 130.426533 | AL151: 131.7631388 | AO151: -2.359241021 | AP151: 1.98520999 | AQ151: 0.519076055 | AR151: -2.773985983 | AS151: -0.6158409981 | AT151: -2.962509211 | AU151: -0.4295757295 | AV151: -0.5273374172 | AW151: 0.3627159634 | AX151: 0.006310680418 | AY151: -0.3179620571 | AZ151: 0.3283401601 | BA151: -0.4729100888 | BB151: -0.2962553543 | BC151: -0.4176529735 | BD151: -0.2783728991 | BE151: 0 | BF151: -0.01103993218 | BG151: -11.41083784 | BH151: -23.28518403 | BI151: 8.513903826 | BJ151: -1.422171643 | BK151: -2.144691254 | BL151: 3.285770389 | BN151: 134.9619896 | BO151: 132.7673451 | BP151: 131.6484759 | BQ151: 133.1193361 | BR151: 130.4705788 | BS151: 131.8095098
A152: 84 | B152: 0.5549781025 | C152: 2.221614768 | D152: 0.4421980665 | E152: -4.023586435 | H152: 0.5526133385 | I152: 3.601081433 | J152: -5.070987022 | K152: 2.579352521 | L152: -0.5359989561 | M152: 0.6325838559 | N152: -0.3135330281 | O152: 0.5113773349 | P152: 0.3179814361 | Q152: -0.0009547027696 | R152: 0.3042375832 | S152: 0.05352849544 | T152: -0.7552919565 | U152: 0.5360077215 | V152: -3.488436913 | W152: 1.179919231 | X152: -1.655363267 | Y152: -1.243921321 | Z152: -0.9839196787 | AA152: 3.558930008 | AB152: 24.77109233 | AC152: -9.298890972 | AD152: 13.43885585 | AE152: -0.6518964507 | AG152: 131.395262 | AH152: 127.6693278 | AI152: 137.033368 | AJ152: 129.9088097 | AK152: 129.5527685 | AL152: 126.9113356 | AO152: 0.5526133385 | AP152: 3.601081433 | AQ152: -5.070987022 | AR152: 2.579352521 | AS152: -0.5359989561 | AT152: 0.6325838559 | AU152: -0.3135330281 | AV152: 0.5113773349 | AW152: 0.3179814361 | AX152: -0.0009547027696 | AY152: 0.3042375832 | AZ152: 0.05352849544 | BA152: -0.7552919565 | BB152: 0 | BC152: -3.488436913 | BD152: 0 | BE152: -1.655363267 | BF152: -1.243921321 | BG152: -0.9839196787 | BH152: 3.558930008 | BI152: 24.77109233 | BJ152: -9.298890972 | BK152: 13.43885585 | BL152: -0.6518964507 | BN152: 131.395262 | BO152: 128.2053355 | BP152: 137.6092272 | BQ152: 131.6585914 | BR152: 131.3442408 | BS152: 128.7259612
A153: 85 | B153: 0.04567720121 | C153: 1.94884395 | D153: 1.942244395 | E153: -13.52585033 | H153: 0.04331243715 | I153: 0.1245489712 | J153: -0.1652864054 | K153: -1.334597758 | L153: 0.8696037183 | M153: -1.283655056 | N153: -0.5863038457 | O153: 0.1279287094 | P153: 0.8339549243 | Q153: -0.07066188205 | R153: 0.7861691786 | S153: 0.4924153088 | T153: 0.7447543719 | U153: -0.8800708648 | V153: -2.468613938 | W153: 0.4434019568 | X153: -0.05799688848 | Y153: -0.8701833882 | Z153: -10.48618358 | AA153: -1.943237551 | AB153: 12.17083273 | AC153: -0.7350837183 | AD153: 11.59311462 | AE153: 5.060415598 | AG153: 130.2257496 | AH153: 131.8744779 | AI153: 134.3170245 | AJ153: 133.0626556 | AK153: 129.939042 | AL153: 130.0238608 | AO153: 0.04331243715 | AP153: 0.1245489712 | AQ153: -0.1652864054 | AR153: -1.334597758 | AS153: 0.8696037183 | AT153: -1.283655056 | AU153: -0.5863038457 | AV153: 0.1279287094 | AW153: 0.8339549243 | AX153: -0.07066188205 | AY153: 0.7861691786 | AZ153: 0.4924153088 | BA153: 0 | BB153: -0.8800708648 | BC153: -2.468613938 | BD153: 0 | BE153: -0.05799688848 | BF153: -0.8701833882 | BG153: -10.48618358 | BH153: -1.943237551 | BI153: 12.17083273 | BJ153: -0.7350837183 | BK153: 11.59311462 | BL153: 5.060415598 | BN153: 130.970504 | BO153: 132.6340545 | BP153: 135.097281 | BQ153: 134.3078465 | BR153: 131.2022471 | BS153: 131.3334799
A154: 86 | B154: -1.888750248 | C154: 2.830398517 | D154: 0.05427067925 | E154: -2.717207323 | H154: -1.891115013 | I154: 0.3200082383 | J154: -0.9259072456 | K154: 1.097478328 | L154: 0.3976245008 | M154: -2.263418972 | N154: 0.2952507212 | O154: -0.3142367478 | P154: 0.2300779934 | Q154: -0.5201794602 | R154: 0.5983867225 | S154: -1.256327223 | T154: -1.143219344 | U154: -0.754086753 | V154: -0.1992243049 | W154: -0.3160378735 | X154: 0.2839153532 | Y154: -0.9246186634 | Z154: 0.3224594334 | AA154: -9.484921884 | AB154: -5.878705995 | AC154: -12.89412648 | AD154: 12.69709916 | AE154: -17.15579514 | AG154: 135.9286101 | AH154: 136.7020759 | AI154: 137.2489232 | AJ154: 132.8864457 | AK154: 129.7982712 | AL154: 128.9707327 | AO154: -1.891115013 | AP154: 0.3200082383 | AQ154: -0.9259072456 | AR154: 1.097478328 | AS154: 0.3976245008 | AT154: -2.263418972 | AU154: 0.2952507212 | AV154: -0.3142367478 | AW154: 0.2300779934 | AX154: -0.5201794602 | AY154: 0.5983867225 | AZ154: -1.256327223 | BA154: -1.143219344 | BB154: -0.754086753 | BC154: -0.1992243049 | BD154: -0.3160378735 | BE154: 0 | BF154: -0.9246186634 | BG154: 0.3224594334 | BH154: -9.484921884 | BI154: -5.878705995 | BJ154: -12.89412648 | BK154: 12.69709916 | BL154: -17.15579514 | BN154: 135.9286101 | BO154: 136.7020759 | BP154: 137.2489232 | BQ154: 132.8864457 | BR154: 130.0821866 | BS154: 129.2629766
A155: 87 | B155: 1.297356068 | C155: 3.327329063 | D155: 0.1302118596 | E155: 6.847982427 | H155: 1.294991304 | I155: -3.651721401 | J155: -1.683676785 | K155: 0.5073601644 | L155: 3.627049211 | M155: -0.3370467794 | N155: 0.7921812673 | O155: 0.06152598063 | P155: 0.05244948285 | Q155: 0.4397772738 | R155: -0.08593080914 | S155: 0.3676566598 | T155: -1.067278163 | U155: -0.2785248424 | V155: -1.497796063 | W155: 0.6082648933 | X155: -0.1655698754 | Y155: -0.8126015444 | Z155: 9.887649184 | AA155: 6.623555062 | AB155: 2.539058595 | AC155: 17.11193227 | AD155: -1.63551608 | AE155: 5.945765333 | AG155: 132.1349985 | AH155: 138.3710287 | AI155: 141.1032247 | AJ155: 137.9572364 | AK155: 130.1920879 | AL155: 128.8008264 | AO155: 1.294991304 | AP155: -3.651721401 | AQ155: -1.683676785 | AR155: 0.5073601644 | AS155: 3.627049211 | AT155: -0.3370467794 | AU155: 0.7921812673 | AV155: 0.06152598063 | AW155: 0.05244948285 | AX155: 0.4397772738 | AY155: -0.08593080914 | AZ155: 0.3676566598 | BA155: -1.067278163 | BB155: -0.2785248424 | BC155: -1.497796063 | BD155: 0 | BE155: -0.1655698754 | BF155: -0.8126015444 | BG155: 9.887649184 | BH155: 6.623555062 | BI155: 2.539058595 | BJ155: 17.11193227 | BK155: -1.63551608 | BL155: 5.945765333 | BN155: 132.1349985 | BO155: 138.3710287 | BP155: 141.1032247 | BQ155: 138.5655013 | BR155: 130.7879011 | BS155: 129.4119974
A156: 88 | B156: 1.45122951 | C156: 2.925602936 | D156: -1.016940901 | E156: 0.1377857999 | H156: 1.448864746 | I156: 2.243572637 | J156: 2.147705586 | K156: -0.22478116 | L156: -0.6293354204 | M156: 1.119739269 | N156: 0.39045514 | O156: -0.2127356643 | P156: 0.280590386 | Q156: -0.646692435 | R156: -0.2436038672 | S156: 0.8097468336 | T156: -2.214430924 | U156: 1.280469 | V156: -0.1337411637 | W156: -1.851021471 | X156: -1.504163948 | Y156: -1.729951218 | Z156: 3.177452556 | AA156: -7.037226736 | AB156: 6.951052591 | AC156: -11.3061496 | AD156: -3.567339282 | AE156: 6.793990079 | AG156: 132.5662719 | AH156: 128.88079 | AI156: 125.2489542 | AJ156: 123.913869 | AK156: 122.7076433 | AL156: 120.7788976 | AO156: 1.448864746 | AP156: 2.243572637 | AQ156: 2.147705586 | AR156: -0.22478116 | AS156: -0.6293354204 | AT156: 1.119739269 | AU156: 0.39045514 | AV156: -0.2127356643 | AW156: 0.280590386 | AX156: -0.646692435 | AY156: -0.2436038672 | AZ156: 0.8097468336 | BA156: -2.214430924 | BB156: 0 | BC156: -0.1337411637 | BD156: -1.851021471 | BE156: -1.504163948 | BF156: -1.729951218 | BG156: 3.177452556 | BH156: -7.037226736 | BI156: 6.951052591 | BJ156: -11.3061496 | BK156: -3.567339282 | BL156: 6.793990079 | BN156: 132.5662719 | BO156: 130.161259 | BP156: 126.5279414 | BQ156: 125.2064533 | BR156: 124.0252236 | BS156: 122.1168903
A157: 89 | B157: 0.5692066135 | C157: 3.17376469 | D157: 1.155220412 | E157: -1.846090918 | H157: 0.5668418494 | I157: 1.848691278 | J157: 0.4271518017 | K157: -2.382830585 | L157: 3.25041594 | M157: -2.405830717 | N157: 0.6386168945 | O157: 0.1237147407 | P157: -0.07363035311 | Q157: 0.04456748307 | R157: 0.4877758265 | S157: -0.3871697414 | T157: -0.04226961124 | U157: -0.8798198843 | V157: -0.2658325415 | W157: -0.4474614296 | X157: 0.5826336456 | Y157: -0.5973709248 | Z157: 1.193575838 | AA157: -9.402521776 | AB157: -4.654902607 | AC157: 1.538194599 | AD157: 4.920290019 | AE157: 1.315774906 | AG157: 131.8870753 | AH157: 131.3027452 | AI157: 129.5653658 | AJ157: 130.6309886 | AK157: 123.4442494 | AL157: 123.3722567 | AO157: 0.5668418494 | AP157: 1.848691278 | AQ157: 0.4271518017 | AR157: -2.382830585 | AS157: 3.25041594 | AT157: -2.405830717 | AU157: 0.6386168945 | AV157: 0.1237147407 | AW157: -0.07363035311 | AX157: 0.04456748307 | AY157: 0.4877758265 | AZ157: -0.3871697414 | BA157: -0.04226961124 | BB157: -0.8798198843 | BC157: -0.2658325415 | BD157: -0.4474614296 | BE157: 0 | BF157: -0.5973709248 | BG157: 1.193575838 | BH157: -9.402521776 | BI157: -4.654902607 | BJ157: 1.538194599 | BK157: 4.920290019 | BL157: 1.315774906 | BN157: 131.8870753 | BO157: 131.3027452 | BP157: 129.5653658 | BQ157: 130.6309886 | BR157: 124.026883 | BS157: 123.9779719
A158: 90 | B158: -2.740936411 | C158: 2.092491208 | D158: 1.959218681 | E158: -20.09053028 | H158: -2.743301175 | I158: -2.332696363 | J158: -0.9078927894 | K158: 1.544770586 | L158: 3.566232129 | M158: -1.108962194 | N158: -0.4426565884 | O158: -0.5024621323 | P158: 0.3612821768 | Q158: -0.504018142 | R158: 0.2618404159 | S158: -0.09888743716 | T158: 0.7617286583 | U158: -0.6751599623 | V158: -1.400330176 | W158: -0.1266575824 | X158: 2.710556735 | Y158: -1.994336689 | Z158: -17.05086353 | AA158: -4.729081782 | AB158: 5.054315305 | AC158: -3.643122266 | AD158: -4.453516681 | AE158: 8.383262076 | AG158: 134.2555138 | AH158: 138.3383634 | AI158: 140.2893907 | AJ158: 135.1471547 | AK158: 125.0878669 | AL158: 125.1532744 | AO158: -2.743301175 | AP158: -2.332696363 | AQ158: -0.9078927894 | AR158: 1.544770586 | AS158: 3.566232129 | AT158: -1.108962194 | AU158: -0.4426565884 | AV158: -0.5024621323 | AW158: 0.3612821768 | AX158: -0.504018142 | AY158: 0.2618404159 | AZ158: -0.09888743716 | BA158: 0 | BB158: -0.6751599623 | BC158: -1.400330176 | BD158: -0.1266575824 | BE158: 0 | BF158: -1.994336689 | BG158: -17.05086353 | BH158: -4.729081782 | BI158: 5.054315305 | BJ158: -3.643122266 | BK158: -4.453516681 | BL158: 8.383262076 | BN158: 135.0172425 | BO158: 139.1297702 | BP158: 141.1046369 | BQ158: 135.9580353 | BR158: 128.5958516 | BS158: 128.7630815
A159: 91 | B159: 2.191619513 | C159: 1.587887475 | D159: 2.498301273 | E159: -25.95250041 | H159: 2.189254749 | I159: -5.550521105 | J159: -0.6087541087 | K159: 1.394760785 | L159: 2.677832424 | M159: 3.452884831 | N159: -0.9472603206 | O159: -0.07902866129 | P159: 0.4590940561 | Q159: 0.6653244297 | R159: 0.1346882544 | S159: 0.07146155984 | T159: 1.30081125 | U159: -0.5427360001 | V159: 0.3226571738 | W159: -0.2877050625 | X159: 0.1122044478 | Y159: 1.403286744 | Z159: -22.91283365 | AA159: 16.18753624 | AB159: 9.48525898 | AC159: 15.06464247 | AD159: -13.840205 | AE159: -9.872119534 | AG159: 126.3898628 | AH159: 135.034574 | AI159: 134.8803422 | AJ159: 131.6582285 | AK159: 125.1994996 | AL159: 116.4584301 | AO159: 2.189254749 | AP159: -5.550521105 | AQ159: -0.6087541087 | AR159: 1.394760785 | AS159: 2.677832424 | AT159: 3.452884831 | AU159: -0.9472603206 | AV159: -0.07902866129 | AW159: 0.4590940561 | AX159: 0.6653244297 | AY159: 0.1346882544 | AZ159: 0.07146155984 | BA159: 0 | BB159: -0.5427360001 | BC159: 0 | BD159: -0.2877050625 | BE159: 0 | BF159: 0 | BG159: -22.91283365 | BH159: 16.18753624 | BI159: 9.48525898 | BJ159: 15.06464247 | BK159: -13.840205 | BL159: -9.872119534 | BN159: 127.6906741 | BO159: 136.4375349 | BP159: 136.6452835 | BQ159: 133.4363576 | BR159: 127.0730876 | BS159: 119.7086964
A160: 92 | B160: 0.5285903634 | C160: 1.952099256 | D160: 1.329935392 | E160: -5.132814939 | H160: 0.5262255993 | I160: -2.499062114 | J160: 2.568804524 | K160: -1.945023486 | L160: 3.511564181 | M160: -0.05490099869 | N160: -0.5830485396 | O160: 0.1385358625 | P160: 0.1078901393 | Q160: -0.2557261854 | R160: 0.5591447915 | S160: -0.4801280019 | T160: 0.1324453688 | U160: -0.7235399377 | V160: 0.8019539401 | W160: -1.084281837 | X160: 0.7928005992 | Y160: -0.4513101743 | Z160: -2.093148182 | AA160: -1.295960507 | AB160: -7.014047722 | AC160: 4.685120409 | AD160: 1.023767994 | AE160: 9.058910336 | AG160: 130.1961833 | AH160: 135.2477233 | AI160: 129.8984829 | AJ160: 130.627429 | AK160: 122.997995 | AL160: 119.6771045 | AO160: 0.5262255993 | AP160: -2.499062114 | AQ160: 2.568804524 | AR160: -1.945023486 | AS160: 3.511564181 | AT160: -0.05490099869 | AU160: -0.5830485396 | AV160: 0.1385358625 | AW160: 0.1078901393 | AX160: -0.2557261854 | AY160: 0.5591447915 | AZ160: -0.4801280019 | BA160: 0 | BB160: -0.7235399377 | BC160: 0 | BD160: -1.084281837 | BE160: 0 | BF160: -0.4513101743 | BG160: -2.093148182 | BH160: -1.295960507 | BI160: -7.014047722 | BJ160: 4.685120409 | BK160: 1.023767994 | BL160: 9.058910336 | BN160: 130.3286287 | BO160: 135.386426 | BP160: 130.838185 | BQ160: 131.5972418 | BR160: 124.7477644 | BS160: 121.4523031
A161: 93 | B161: -2.055287504 | C161: 2.621005837 | D161: 1.074901081 | E161: -3.658463807 | H161: -2.057652268 | I161: -1.282393569 | J161: 4.72748654 | K161: -2.284894829 | L161: 1.93342339 | M161: 1.590073179 | N161: 0.08585804132 | O161: -0.4303208798 | P161: 0.4952663983 | Q161: -0.3557243781 | R161: -0.3058748836 | S161: 0.3092781339 | T161: -0.1225889422 | U161: 0.1551620243 | V161: -0.1005146519 | W161: 0.9001131411 | X161: 1.819389624 | Y161: -1.535215802 | Z161: -0.6187970509 | AA161: -10.75946962 | AB161: 5.692741935 | AC161: -1.106208519 | AD161: -17.44019763 | AE161: 4.801781019 | AG161: 134.8668917 | AH161: 136.7614653 | AI161: 130.0335485 | AJ161: 129.1114153 | AK161: 121.3403683 | AL161: 118.0411024 | AO161: -2.057652268 | AP161: -1.282393569 | AQ161: 4.72748654 | AR161: -2.284894829 | AS161: 1.93342339 | AT161: 1.590073179 | AU161: 0.08585804132 | AV161: -0.4303208798 | AW161: 0.4952663983 | AX161: -0.3557243781 | AY161: -0.3058748836 | AZ161: 0.3092781339 | BA161: -0.1225889422 | BB161: 0 | BC161: -0.1005146519 | BD161: 0 | BE161: 0 | BF161: -1.535215802 | BG161: -0.6187970509 | BH161: -10.75946962 | BI161: 5.692741935 | BJ161: -1.106208519 | BK161: -17.44019763 | BL161: 4.801781019 | BN161: 134.8668917 | BO161: 136.9166274 | BP161: 130.1850664 | BQ161: 130.1682847 | BR161: 124.2097103 | BS161: 120.927594
A162: 94 | B162: -1.396783859 | C162: 2.289592368 | D162: -1.241682356 | E162: 4.2067873 | H162: -1.399148623 | I162: -1.290555111 | J162: 1.197354545 | K162: 1.761117056 | L162: 1.06349242 | M162: -0.7522798963 | N162: -0.2455554279 | O162: 0.9018918013 | P162: 0.1057748522 | Q162: 0.06510858931 | R162: 0.05196410232 | S162: -0.6061314478 | T162: -2.439172379 | U162: -1.749301052 | V162: 0.2821051102 | W162: 0.6284020621 | X162: -2.055286488 | Y162: 0.3435662962 | Z162: 7.246454056 | AA162: 28.74434916 | AB162: -2.938827756 | AC162: -2.182038884 | AD162: -5.574873585 | AE162: -13.67418557 | AG162: 135.8246971 | AH162: 141.4820284 | AI162: 138.4912635 | AJ162: 133.0787504 | AK162: 130.7436246 | AL162: 127.497323 | AO162: -1.399148623 | AP162: -1.290555111 | AQ162: 1.197354545 | AR162: 1.761117056 | AS162: 1.06349242 | AT162: -0.7522798963 | AU162: -0.2455554279 | AV162: 0.9018918013 | AW162: 0.1057748522 | AX162: 0.06510858931 | AY162: 0.05196410232 | AZ162: -0.6061314478 | BA162: -2.439172379 | BB162: -1.749301052 | BC162: 0 | BD162: 0 | BE162: -2.055286488 | BF162: 0 | BG162: 7.246454056 | BH162: 28.74434916 | BI162: -2.938827756 | BJ162: -2.182038884 | BK162: -5.574873585 | BL162: -13.67418557 | BN162: 135.8246971 | BO162: 141.4820284 | BP162: 138.7733686 | BQ162: 133.9887148 | BR162: 131.6584863 | BS162: 128.7743429
A163: 95 | B163: -2.366483463 | C163: 1.872341468 | D163: 2.304389502 | E163: -16.31783504 | H163: -2.368848227 | I163: 0.1720290849 | J163: -1.287205696 | K163: 1.557804131 | L163: 1.970638 | M163: 0.5268409898 | N163: -0.6628063274 | O163: 0.3539347812 | P163: -0.1239729475 | Q163: -0.2125222481 | R163: -0.05329945938 | S163: 0.7271159061 | T163: 1.106899479 | U163: -1.836108965 | V163: 1.727703186 | W163: 0.7931177361 | X163: -0.4700739038 | Y163: -0.9334665145 | Z163: -13.27816828 | AA163: 8.03958219 | AB163: -5.943945348 | AC163: -4.325435016 | AD163: -16.15559377 | AE163: 15.98687773 | AG163: 133.0868173 | AH163: 135.982705 | AI163: 134.6059216 | AJ163: 128.9384945 | AK163: 123.7269731 | AL163: 121.6493276 | AO163: -2.368848227 | AP163: 0.1720290849 | AQ163: -1.287205696 | AR163: 1.557804131 | AS163: 1.970638 | AT163: 0.5268409898 | AU163: -0.6628063274 | AV163: 0.3539347812 | AW163: -0.1239729475 | AX163: -0.2125222481 | AY163: -0.05329945938 | AZ163: 0.7271159061 | BA163: 0 | BB163: -1.836108965 | BC163: 0 | BD163: 0 | BE163: -0.4700739038 | BF163: -0.9334665145 | BG163: -13.27816828 | BH163: 8.03958219 | BI163: -5.943945348 | BJ163: -4.325435016 | BK163: -16.15559377 | BL163: 15.98687773 | BN163: 134.1937167 | BO163: 137.1135819 | BP163: 137.4974955 | BQ163: 132.6155245 | BR163: 127.3876066 | BS163: 125.385365
A164: 96 | B164: -3.816811486 | C164: 1.67451755 | D164: 2.350432745 | E164: -16.23579486 | H164: -3.81917625 | I164: 1.177479305 | J164: 3.077704364 | K164: -2.780589764 | L164: 1.690143014 | M164: 0.04861066841 | N164: -0.8606302454 | O164: -0.1550510044 | P164: -0.07955942065 | Q164: 0.6702485876 | R164: -0.1177546439 | S164: -0.04031851205 | T164: 1.152942722 | U164: 0.4209129066 | V164: -0.230037155 | W164: 1.039436148 | X164: -0.09866657871 | Y164: 0.04164922694 | Z164: -13.19612811 | AA164: 3.021676371 | AB164: -7.323809107 | AC164: 14.14930302 | AD164: -8.548344391 | AE164: 7.400877479 | AG164: 134.8538319 | AH164: 133.4984864 | AI164: 128.305087 | AJ164: 129.1858766 | AK164: 123.8710025 | AL164: 120.4794377 | AO164: -3.81917625 | AP164: 1.177479305 | AQ164: 3.077704364 | AR164: -2.780589764 | AS164: 1.690143014 | AT164: 0.04861066841 | AU164: -0.8606302454 | AV164: -0.1550510044 | AW164: -0.07955942065 | AX164: 0.6702485876 | AY164: -0.1177546439 | AZ164: -0.04031851205 | BA164: 0 | BB164: 0 | BC164: -0.230037155 | BD164: 0 | BE164: -0.09866657871 | BF164: 0 | BG164: -13.19612811 | BH164: 3.021676371 | BI164: -7.323809107 | BJ164: 14.14930302 | BK164: -8.548344391 | BL164: 7.400877479 | BN164: 136.0067746 | BO164: 135.0799399 | BP164: 129.8651344 | BQ164: 131.8636376 | BR164: 126.5424018 | BS164: 123.2401429
A165: 97 | B165: 2.881122287 | C165: 3.134298489 | D165: 1.200096937 | E165: 7.495036178 | H165: 2.878757523 | I165: 3.043244713 | J165: 0.669463438 | K165: 1.271822033 | L165: -1.646680991 | M165: 1.810312614 | N165: 0.5991506935 | O165: -0.2743669849 | P165: 0.04313946693 | Q165: -0.03020499181 | R165: 0.09429884698 | S165: -0.4653241189 | T165: 0.002606913668 | U165: -0.7077698413 | V165: 1.10829125 | W165: 0.7974571085 | X165: -1.001010618 | Y165: 1.392639485 | Z165: 10.53470293 | AA165: -6.498755277 | AB165: 4.890187065 | AC165: -7.382820353 | AD165: 2.94085857 | AE165: -10.18212113 | AG165: 128.7516331 | AH165: 126.0070647 | AI165: 122.6713076 | AJ165: 117.5897773 | AK165: 117.3788561 | AL165: 109.9929488 | AO165: 2.878757523 | AP165: 3.043244713 | AQ165: 0.669463438 | AR165: 1.271822033 | AS165: -1.646680991 | AT165: 1.810312614 | AU165: 0.5991506935 | AV165: -0.2743669849 | AW165: 0.04313946693 | AX165: -0.03020499181 | AY165: 0.09429884698 | AZ165: -0.4653241189 | BA165: 0 | BB165: -0.7077698413 | BC165: 0 | BD165: 0 | BE165: -1.001010618 | BF165: 0 | BG165: 10.53470293 | BH165: -6.498755277 | BI165: 4.890187065 | BJ165: -7.382820353 | BK165: 2.94085857 | BL165: -10.18212113 | BN165: 128.75424 | BO165: 126.0096386 | BP165: 123.7822011 | BQ165: 119.5002432 | BR165: 119.3525987 | BS165: 113.3520407
A166: 98 | B166: 5.024591498 | C166: 3.00679635 | D166: 0.2827926559 | E166: 3.04417142 | H166: 5.022226734 | I166: 1.130646462 | J166: 1.239527528 | K166: -1.585806785 | L166: -2.990710741 | M166: -0.2098565946 | N166: 0.471648554 | O166: 0.5350052986 | P166: 0.682655776 | Q166: -1.378682604 | R166: 0.4073037559 | S166: -0.913649453 | T166: -0.9146973671 | U166: -1.569039625 | V166: 0.05704900649 | W166: 2.163432005 | X166: -2.356323736 | Y166: -0.4813394455 | Z166: 6.083838177 | AA166: 6.904271988 | AB166: 15.10150926 | AC166: -25.24205599 | AD166: 19.7837792 | AE166: -9.510299074 | AG166: 126.815393 | AH166: 128.3146576 | AI166: 126.1348116 | AJ166: 121.6078845 | AK166: 124.9880108 | AL166: 121.3840971 | AO166: 5.022226734 | AP166: 1.130646462 | AQ166: 1.239527528 | AR166: -1.585806785 | AS166: -2.990710741 | AT166: -0.2098565946 | AU166: 0.471648554 | AV166: 0.5350052986 | AW166: 0.682655776 | AX166: -1.378682604 | AY166: 0.4073037559 | AZ166: -0.913649453 | BA166: -0.9146973671 | BB166: -1.569039625 | BC166: 0 | BD166: 0 | BE166: -2.356323736 | BF166: -0.4813394455 | BG166: 6.083838177 | BH166: 6.904271988 | BI166: 15.10150926 | BJ166: -25.24205599 | BK166: 19.7837792 | BL166: -9.510299074 | BN166: 126.815393 | BO166: 128.3146576 | BP166: 126.1918606 | BQ166: 123.8293398 | BR166: 127.321453 | BS166: 123.7450665
A167: 99 | B167: 3.71685232 | C167: 2.680802826 | D167: 2.438153615 | E167: -7.328443255 | H167: 3.714487556 | I167: 0.2826922466 | J167: 1.633148508 | K167: -1.972742272 | L167: -5.183265346 | M167: -0.4446618098 | N167: 0.1456550301 | O167: 0.09866320839 | P167: 0.4633320657 | Q167: -0.3520191855 | R167: -0.03110624437 | S167: 0.3620250231 | T167: 1.240663592 | U167: 1.224090875 | V167: 1.334381748 | W167: 0.3369878417 | X167: -2.087470205 | Y167: 1.178619156 | Z167: -4.288776498 | AA167: 15.77057984 | AB167: 18.35048095 | AC167: -3.865136927 | AD167: 4.263298482 | AE167: 8.416869284 | AG167: 125.8837534 | AH167: 125.1044753 | AI167: 120.8576357 | AJ167: 119.7933428 | AK167: 125.1347111 | AL167: 121.7519741 | AO167: 3.714487556 | AP167: 0.2826922466 | AQ167: 1.633148508 | AR167: -1.972742272 | AS167: -5.183265346 | AT167: -0.4446618098 | AU167: 0.1456550301 | AV167: 0.09866320839 | AW167: 0.4633320657 | AX167: -0.3520191855 | AY167: -0.03110624437 | AZ167: 0.3620250231 | BA167: 0 | BB167: 0 | BC167: 0 | BD167: 0 | BE167: -2.087470205 | BF167: 0 | BG167: -4.288776498 | BH167: 15.77057984 | BI167: 18.35048095 | BJ167: -3.865136927 | BK167: 4.263298482 | BL167: 8.416869284 | BN167: 127.124417 | BO167: 127.5915817 | BP167: 124.693119 | BQ167: 124.0861026 | BR167: 129.7270682 | BS167: 127.6460985
A168: 100 | B168: 0.7299403314 | C168: 2.91249227 | D168: -0.5208511522 | E168: -1.47730125 | H168: 0.7275755673 | I168: 1.523042207 | J168: 0.09073741959 | K168: -1.632513635 | L168: 0.733061607 | M168: -0.09104549766 | N168: 0.3773444742 | O168: -0.08637750273 | P168: 0.2319873893 | Q168: 0.4890248904 | R168: 0.4129109321 | S168: 0.1241517978 | T168: -1.718341175 | U168: 2.169343514 | V168: 0.9690615314 | W168: 0.3069998282 | X168: -0.6440546484 | Y168: -0.523189988 | Z168: 1.562365506 | AA168: -4.962743576 | AB168: 12.02637854 | AC168: 17.08877991 | AD168: 0.2668871896 | AE168: 7.106859622 | AG168: 133.0118553 | AH168: 129.5328655 | AI168: 127.3663213 | AJ168: 127.1618766 | AK168: 124.2466897 | AL168: 121.8034504 | AO168: 0.7275755673 | AP168: 1.523042207 | AQ168: 0.09073741959 | AR168: -1.632513635 | AS168: 0.733061607 | AT168: -0.09104549766 | AU168: 0.3773444742 | AV168: -0.08637750273 | AW168: 0.2319873893 | AX168: 0.4890248904 | AY168: 0.4129109321 | AZ168: 0.1241517978 | BA168: -1.718341175 | BB168: 0 | BC168: 0 | BD168: 0 | BE168: -0.6440546484 | BF168: -0.523189988 | BG168: 1.562365506 | BH168: -4.962743576 | BI168: 12.02637854 | BJ168: 17.08877991 | BK168: 0.2668871896 | BL168: 7.106859622 | BN168: 133.0118553 | BO168: 131.702209 | BP168: 130.5452375 | BQ168: 130.7631078 | BR168: 127.891743 | BS168: 125.5245836
A169: 101 | B169: 3.190954317 | C169: 3.564855656 | D169: -0.9046910243 | E169: 12.8960482 | H169: 3.188589553 | I169: 1.294193921 | J169: 2.644101205 | K169: -2.39756845 | L169: -1.422684838 | M169: -0.8247473624 | N169: 1.02970786 | O169: -0.466627817 | P169: -0.9412151686 | Q169: -0.4398939117 | R169: 0.4826477821 | S169: 0.1589941044 | T169: -2.102181047 | U169: 0.9265693635 | V169: 0.6313022848 | W169: -0.3323882998 | X169: 0.380092707 | Y169: -0.9147077589 | Z169: 15.93571495 | AA169: -6.336617397 | AB169: -16.53025878 | AC169: -4.137547563 | AD169: 0.8386155484 | AE169: 5.371051763 | AG169: 130.9986642 | AH169: 128.5614478 | AI169: 122.0356051 | AJ169: 122.1093988 | AK169: 120.8587419 | AL169: 119.6801262 | AO169: 3.188589553 | AP169: 1.294193921 | AQ169: 2.644101205 | AR169: -2.39756845 | AS169: -1.422684838 | AT169: -0.8247473624 | AU169: 1.02970786 | AV169: -0.466627817 | AW169: -0.9412151686 | AX169: -0.4398939117 | AY169: 0.4826477821 | AZ169: 0.1589941044 | BA169: -2.102181047 | BB169: 0 | BC169: 0 | BD169: -0.3323882998 | BE169: 0 | BF169: -0.9147077589 | BG169: 15.93571495 | BH169: -6.336617397 | BI169: -16.53025878 | BJ169: -4.137547563 | BK169: 0.8386155484 | BL169: 5.371051763 | BN169: 130.9986642 | BO169: 129.4880172 | BP169: 123.5770579 | BQ169: 123.7046485 | BR169: 122.8894248 | BS169: 121.7690518
A170: 102 | B170: 0.8100967362 | C170: 2.782194098 | D170: 0.172143039 | E170: 1.679528288 | H170: 0.8077319721 | I170: 0.9282341911 | J170: -1.348737983 | K170: 0.7287433459 | L170: -0.9413536936 | M170: -2.364594208 | N170: 0.2470463018 | O170: 0.2738499325 | P170: -0.527282275 | Q170: 0.377441091 | R170: -0.2288243344 | S170: -0.2875786871 | T170: -1.025346984 | U170: 1.18524276 | V170: 0.9743895941 | W170: 0.2004373142 | X170: -2.357347763 | Y170: -1.247110803 | Z170: 4.719195044 | AA170: 7.014415803 | AB170: -2.592443 | AC170: 7.919267868 | AD170: 2.059920595 | AE170: -1.095679868 | AG170: 132.0446007 | AH170: 130.7892287 | AI170: 129.5682899 | AJ170: 126.3043848 | AK170: 126.4160291 | AL170: 127.1840552 | AO170: 0.8077319721 | AP170: 0.9282341911 | AQ170: -1.348737983 | AR170: 0.7287433459 | AS170: -0.9413536936 | AT170: -2.364594208 | AU170: 0.2470463018 | AV170: 0.2738499325 | AW170: -0.527282275 | AX170: 0.377441091 | AY170: -0.2288243344 | AZ170: -0.2875786871 | BA170: -1.025346984 | BB170: 0 | BC170: 0 | BD170: 0 | BE170: -2.357347763 | BF170: -1.247110803 | BG170: 4.719195044 | BH170: 7.014415803 | BI170: -2.592443 | BJ170: 7.919267868 | BK170: 2.059920595 | BL170: -1.095679868 | BN170: 132.0446007 | BO170: 131.9744714 | BP170: 131.7584609 | BQ170: 128.7195741 | BR170: 128.885925 | BS170: 129.7532157
A171: 103 | B171: -0.3288776997 | C171: 2.191283321 | D171: 0.891147862 | E171: 3.595703701 | H171: -0.3312424637 | I171: 0.6547444006 | J171: 1.197715084 | K171: 0.8744829534 | L171: 1.342646297 | M171: -1.35599494 | N171: -0.343864475 | O171: -0.1788946304 | P171: -0.04806549571 | Q171: 0.04339399413 | R171: 0.464053949 | S171: -0.1174079908 | T171: -0.306342161 | U171: -0.4195431006 | V171: 0.5675253314 | W171: 0.6801935887 | X171: 1.03836695 | Y171: -0.01767699657 | Z171: 6.635370458 | AA171: -8.986716549 | AB171: -8.14517778 | AC171: -2.196536873 | AD171: 10.6378518 | AE171: 0.7047342351 | AG171: 132.0968008 | AH171: 132.2181257 | AI171: 128.6831189 | AJ171: 124.3237914 | AK171: 119.0069336 | AL171: 117.2000936 | AO171: -0.3312424637 | AP171: 0.6547444006 | AQ171: 1.197715084 | AR171: 0.8744829534 | AS171: 1.342646297 | AT171: -1.35599494 | AU171: -0.343864475 | AV171: -0.1788946304 | AW171: -0.04806549571 | AX171: 0.04339399413 | AY171: 0.464053949 | AZ171: -0.1174079908 | BA171: -0.306342161 | BB171: -0.4195431006 | BC171: 0 | BD171: 0 | BE171: 0 | BF171: -0.01767699657 | BG171: 6.635370458 | BH171: -8.986716549 | BI171: -8.14517778 | BJ171: -2.196536873 | BK171: 10.6378518 | BL171: 0.7047342351 | BN171: 132.0968008 | BO171: 132.2181257 | BP171: 129.2506443 | BQ171: 125.5752084 | BR171: 121.3050534 | BS171: 119.5703432
A172: 104 | B172: -0.0448352606 | C172: 1.399604054 | D172: 4.786234598 | E172: -19.48059317 | H172: -0.04720002465 | I172: 1.573982568 | J172: -3.506239024 | K172: -3.115085818 | L172: -3.236226335 | M172: 1.31894323 | N172: -1.135543741 | O172: -0.2345995726 | P172: -0.2877853432 | Q172: -0.9248631724 | R172: -0.1190573346 | S172: -0.7788892337 | T172: 3.588744575 | U172: 2.432619974 | V172: 0.5832658676 | W172: 1.300828004 | X172: -1.323574858 | Y172: -0.4048982666 | Z172: -16.44092641 | AA172: -16.0398546 | AB172: 10.65818906 | AC172: -11.39500553 | AD172: 5.972381128 | AE172: -20.86724626 | AG172: 126.7931946 | AH172: 122.7798871 | AI172: 124.8305001 | AJ172: 123.6957809 | AK172: 125.8101187 | AL172: 120.4065796 | AO172: -0.04720002465 | AP172: 1.573982568 | AQ172: -3.506239024 | AR172: -3.115085818 | AS172: -3.236226335 | AT172: 1.31894323 | AU172: -1.135543741 | AV172: -0.2345995726 | AW172: -0.2877853432 | AX172: -0.9248631724 | AY172: -0.1190573346 | AZ172: -0.7788892337 | BA172: 0 | BB172: 0 | BC172: 0 | BD172: 0 | BE172: -1.323574858 | BF172: -0.4048982666 | BG172: -16.44092641 | BH172: -16.0398546 | BI172: 10.65818906 | BJ172: -11.39500553 | BK172: 5.972381128 | BL172: -20.86724626 | BN172: 130.3819392 | BO172: 128.8081135 | BP172: 131.748869 | BQ172: 132.1745617 | BR172: 134.6931391 | BS172: 129.2720387
A173: 105 | B173: 0.4921816574 | C173: 2.235914094 | D173: 0.5734748124 | E173: -11.70041402 | H173: 0.4898168934 | I173: 1.899621503 | J173: 3.452998337 | K173: 0.2227428541 | L173: -4.144753445 | M173: 3.761358481 | N173: -0.2992337017 | O173: 0.5626709815 | P173: -0.2696646691 | Q173: -0.3423466629 | R173: 0.06040163301 | S173: 0.4403660222 | T173: -0.6240152106 | U173: 0.2884735027 | V173: 1.594363055 | W173: 0.1971343336 | X173: -1.517477121 | Y173: 0.6805999019 | Z173: -8.660747269 | AA173: 11.48699499 | AB173: 0.3283801221 | AC173: -1.195298763 | AD173: 9.824548585 | AE173: -7.461695467 | AG173: 131.3662112 | AH173: 130.1085745 | AI173: 122.4391167 | AJ173: 118.8477647 | AK173: 122.3073289 | AL173: 114.405543 | AO173: 0.4898168934 | AP173: 1.899621503 | AQ173: 3.452998337 | AR173: 0.2227428541 | AS173: -4.144753445 | AT173: 3.761358481 | AU173: -0.2992337017 | AV173: 0.5626709815 | AW173: -0.2696646691 | AX173: -0.3423466629 | AY173: 0.06040163301 | AZ173: 0.4403660222 | BA173: -0.6240152106 | BB173: 0 | BC173: 0 | BD173: 0 | BE173: -1.517477121 | BF173: 0 | BG173: -8.660747269 | BH173: 11.48699499 | BI173: 0.3283801221 | BJ173: -1.195298763 | BK173: 9.824548585 | BL173: -7.461695467 | BN173: 131.3662112 | BO173: 130.397048 | BP173: 124.3165019 | BQ173: 120.9395101 | BR173: 124.5231333 | BS173: 117.2718469
A174: 106 | B174: -5.048196669 | C174: 2.753914581 | D174: 0.3163001634 | E174: 15.90798535 | H174: -5.050561433 | I174: 2.223941096 | J174: -0.5089170759 | K174: -0.3169398699 | L174: -4.238259906 | M174: -2.416838052 | N174: 0.2187667853 | O174: -0.3088067098 | P174: -0.1671151122 | Q174: 0.4782750154 | R174: -0.7183520455 | S174: 0.4532031453 | T174: -0.8811898596 | U174: 0.5687176005 | V174: 0.3388140585 | W174: 0.6722931877 | X174: -1.508427954 | Y174: -2.354906796 | Z174: 18.94765211 | AA174: -6.337695536 | AB174: -11.76940688 | AC174: 8.602719633 | AD174: -9.903573778 | AE174: 2.982023381 | AG174: 140.1715378 | AH174: 137.0602543 | AI174: 135.9531617 | AJ174: 133.8468688 | AK174: 137.2506356 | AL174: 140.6666558 | AO174: -5.050561433 | AP174: 2.223941096 | AQ174: -0.5089170759 | AR174: -0.3169398699 | AS174: -4.238259906 | AT174: -2.416838052 | AU174: 0.2187667853 | AV174: -0.3088067098 | AW174: -0.1671151122 | AX174: 0.4782750154 | AY174: -0.7183520455 | AZ174: 0.4532031453 | BA174: -0.8811898596 | BB174: 0 | BC174: 0 | BD174: 0 | BE174: -1.508427954 | BF174: -2.354906796 | BG174: 18.94765211 | BH174: -6.337695536 | BI174: -11.76940688 | BJ174: 8.602719633 | BK174: -9.903573778 | BL174: 2.982023381 | BN174: 140.1715378 | BO174: 137.6289719 | BP174: 136.8725115 | BQ174: 135.4593642 | BR174: 138.9474859 | BS174: 142.4453605
A175: 107 | B175: -1.170618009 | C175: 2.403494189 | D175: 0.6321110571 | E175: -4.538142946 | H175: -1.172982773 | I175: -2.607840663 | J175: 1.10558384 | K175: 1.581074195 | L175: -3.484349021 | M175: -4.186251189 | N175: -0.1316536068 | O175: -0.2968938332 | P175: 0.05716603861 | Q175: 0.1304557938 | R175: -0.4983468475 | S175: 0.4157237331 | T175: -0.5653789659 | U175: -0.03251659097 | V175: -0.5592579794 | W175: 1.984400368 | X175: -0.9110104891 | Y175: -1.740595847 | Z175: -1.49847619 | AA175: -9.394317835 | AB175: -2.0648587 | AC175: 0.7088034692 | AD175: 2.734308532 | AE175: 20.82944312 | AG175: 133.7864288 | AH175: 137.8782808 | AI175: 135.7648009 | AJ175: 129.3245877 | AK175: 131.1371071 | AL175: 136.1004027 | AO175: -1.172982773 | AP175: -2.607840663 | AQ175: 1.10558384 | AR175: 1.581074195 | AS175: -3.484349021 | AT175: -4.186251189 | AU175: -0.1316536068 | AV175: -0.2968938332 | AW175: 0.05716603861 | AX175: 0.1304557938 | AY175: -0.4983468475 | AZ175: 0.4157237331 | BA175: -0.5653789659 | BB175: -0.03251659097 | BC175: -0.5592579794 | BD175: 0 | BE175: -0.9110104891 | BF175: -1.740595847 | BG175: -1.49847619 | BH175: -9.394317835 | BI175: -2.0648587 | BJ175: 0.7088034692 | BK175: 2.734308532 | BL175: 20.82944312 | BN175: 133.7864288 | BO175: 137.8782808 | BP175: 135.7648009 | BQ175: 131.308988 | BR175: 133.2136985 | BS175: 138.3160659
A176: 108 | B176: 5.624391547 | C176: 3.128994806 | D176: 2.979737148 | E176: -11.35097492 | H176: 5.622026783 | I176: 6.098483956 | J176: 2.48275385 | K176: -2.739914241 | L176: -2.041140881 | M176: 1.028488234 | N176: 0.5938470104 | O176: 1.220771798 | P176: 0.4403690721 | Q176: -0.8066614849 | R176: -0.5237830654 | S176: 0.09096090779 | T176: 1.782247125 | U176: 0.9299471566 | V176: 0.58745663 | W176: -0.4752715027 | X176: 0.06917888243 | Y176: 2.04378397 | Z176: -8.311308161 | AA176: 19.04993482 | AB176: -3.9410493 | AC176: -2.822103894 | AD176: -24.20622652 | AE176: -9.143631201 | AG176: 123.5340881 | AH176: 117.4587811 | AI176: 112.9205799 | AJ176: 112.8048644 | AK176: 111.1262227 | AL176: 104.5637021 | AO176: 5.622026783 | AP176: 6.098483956 | AQ176: 2.48275385 | AR176: -2.739914241 | AS176: -2.041140881 | AT176: 1.028488234 | AU176: 0.5938470104 | AV176: 1.220771798 | AW176: 0.4403690721 | AX176: -0.8066614849 | AY176: -0.5237830654 | AZ176: 0.09096090779 | BA176: 0 | BB176: 0 | BC176: 0 | BD176: -0.4752715027 | BE176: 0 | BF176: 0 | BG176: -8.311308161 | BH176: 19.04993482 | BI176: -3.9410493 | BJ176: -2.822103894 | BK176: -24.20622652 | BL176: -9.143631201 | BN176: 125.3163352 | BO176: 120.1230449 | BP176: 116.1647172 | BQ176: 116.1618124 | BR176: 114.6564215 | BS176: 110.1707541
A177: 109 | B177: 0.5331006167 | C177: 2.640816203 | D177: 3.329328848 | E177: -14.45312663 | H177: 0.5307358526 | I177: 0.583800749 | J177: -0.07900703764 | K177: 0.2387570347 | L177: -0.06877572747 | M177: 2.841981605 | N177: 0.1056684068 | O177: -0.04250335174 | P177: 0.1090300892 | Q177: -0.4362760077 | R177: -0.1025811892 | S177: -0.4551006262 | T177: 2.131838825 | U177: 0.665923614 | V177: 0.6150965091 | W177: -1.259999813 | X177: 0.4535156963 | Y177: 0.7473399639 | Z177: -11.41345988 | AA177: -3.50376221 | AB177: -0.04157628592 | AC177: -12.63781297 | AD177: -5.457429935 | AE177: -13.94947287 | AG177: 129.0763295 | AH177: 128.3424632 | AI177: 126.5711472 | AJ177: 124.3377466 | AK177: 120.6539511 | AL177: 112.7211298 | AO177: 0.5307358526 | AP177: 0.583800749 | AQ177: -0.07900703764 | AR177: 0.2387570347 | AS177: -0.06877572747 | AT177: 2.841981605 | AU177: 0.1056684068 | AV177: -0.04250335174 | AW177: 0.1090300892 | AX177: -0.4362760077 | AY177: -0.1025811892 | AZ177: -0.4551006262 | BA177: 0 | BB177: 0 | BC177: 0 | BD177: -1.259999813 | BE177: 0 | BF177: 0 | BG177: -11.41345988 | BH177: -3.50376221 | BI177: -0.04157628592 | BJ177: -12.63781297 | BK177: -5.457429935 | BL177: -13.94947287 | BN177: 131.2081683 | BO177: 131.1692143 | BP177: 130.0671812 | BQ177: 127.8620716 | BR177: 124.6849765 | BS177: 117.4451788
A178: 110 | B178: 1.159526407 | C178: 2.298144318 | D178: 0.386799589 | E178: 0.8965855511 | H178: 1.157161643 | I178: -0.1887806261 | J178: -2.317170224 | K178: -0.9785826601 | L178: -2.937008075 | M178: 5.203484923 | N178: -0.2370034775 | O178: -0.3126073972 | P178: 0.1302968245 | Q178: 0.2733271723 | R178: -1.291690582 | S178: 0.1848895903 | T178: -0.810690434 | U178: 1.0119935 | V178: 1.668694267 | W178: -1.587749223 | X178: 0.01677796212 | Y178: 1.615397389 | Z178: 3.936252307 | AA178: -4.409772983 | AB178: 0.02487622584 | AC178: -1.938443769 | AD178: -22.01395873 | AE178: -1.856708182 | AG178: 130.7467968 | AH178: 130.356547 | AI178: 130.609695 | AJ178: 131.2557483 | AK178: 130.4091189 | AL178: 119.4058897 | AO178: 1.157161643 | AP178: -0.1887806261 | AQ178: -2.317170224 | AR178: -0.9785826601 | AS178: -2.937008075 | AT178: 5.203484923 | AU178: -0.2370034775 | AV178: -0.3126073972 | AW178: 0.1302968245 | AX178: 0.2733271723 | AY178: -1.291690582 | AZ178: 0.1848895903 | BA178: -0.810690434 | BB178: 0 | BC178: 0 | BD178: -1.587749223 | BE178: 0 | BF178: 0 | BG178: 3.936252307 | BH178: -4.409772983 | BI178: 0.02487622584 | BJ178: -1.938443769 | BK178: -22.01395873 | BL178: -1.856708182 | BN178: 130.7467968 | BO178: 131.3685405 | BP178: 133.3333779 | BQ178: 134.0540028 | BR178: 133.3153285 | BS178: 123.8421859
A179: 111 | B179: 3.313257142 | C179: 2.740431083 | D179: 0.2643463794 | E179: 0.6124811428 | H179: 3.310892378 | I179: 3.052281801 | J179: -2.330499206 | K179: -2.460388811 | L179: -3.447747137 | M179: -1.235029652 | N179: 0.2052832876 | O179: 0.8589387988 | P179: -0.1772658082 | Q179: -0.6123510238 | R179: -0.3503198367 | S179: 0.8233786675 | T179: -0.9331436436 | U179: -0.9569310577 | V179: -0.6042207905 | W179: 0.4176427025 | X179: -0.1919796975 | Y179: 0.5665495611 | Z179: 3.652147899 | AA179: 5.686360275 | AB179: -0.1560490881 | AC179: -12.4526252 | AD179: 0.5019262649 | AE179: 14.38436777 | AG179: 128.6419805 | AH179: 127.5414186 | AI179: 129.5685119 | AJ179: 129.0144681 | AK179: 130.2380683 | AL179: 129.262654 | AO179: 3.310892378 | AP179: 3.052281801 | AQ179: -2.330499206 | AR179: -2.460388811 | AS179: -3.447747137 | AT179: -1.235029652 | AU179: 0.2052832876 | AV179: 0.8589387988 | AW179: -0.1772658082 | AX179: -0.6123510238 | AY179: -0.3503198367 | AZ179: 0.8233786675 | BA179: -0.9331436436 | BB179: -0.9569310577 | BC179: -0.6042207905 | BD179: 0 | BE179: -0.1919796975 | BF179: 0 | BG179: 3.652147899 | BH179: 5.686360275 | BI179: -0.1560490881 | BJ179: -12.4526252 | BK179: 0.5019262649 | BL179: 14.38436777 | BN179: 128.6419805 | BO179: 127.5414186 | BP179: 129.5685119 | BQ179: 129.4321108 | BR179: 130.6755817 | BS179: 130.2840203
A180: 112 | B180: 0.1915704129 | C180: 2.652888236 | D180: 0.676685428 | E180: -2.130046171 | H180: 0.1892056488 | I180: -1.112764775 | J180: -2.13121509 | K180: 0.3555721212 | L180: 3.894214607 | M180: 0.1762296996 | N180: 0.1177404405 | O180: 0.3939084074 | P180: -0.8059571644 | Q180: -0.382437874 | R180: 1.211024205 | S180: -0.209883483 | T180: -0.520804595 | U180: -2.094225541 | V180: -1.509416223 | W180: -0.9491950416 | X180: -0.2145969048 | Y180: 1.801244732 | Z180: 0.9096205852 | AA180: 9.115759713 | AB180: 5.278989562 | AC180: -6.986607793 | AD180: 20.55857327 | AE180: -2.430525419 | AG180: 132.2038516 | AH180: 137.1334428 | AI180: 139.2860825 | AJ180: 136.7572717 | AK180: 130.4103099 | AL180: 124.9905818 | AO180: 0.1892056488 | AP180: -1.112764775 | AQ180: -2.13121509 | AR180: 0.3555721212 | AS180: 3.894214607 | AT180: 0.1762296996 | AU180: 0.1177404405 | AV180: 0.3939084074 | AW180: -0.8059571644 | AX180: -0.382437874 | AY180: 1.211024205 | AZ180: -0.209883483 | BA180: -0.520804595 | BB180: -2.094225541 | BC180: -1.509416223 | BD180: -0.9491950416 | BE180: -0.2145969048 | BF180: 0 | BG180: 0.9096205852 | BH180: 9.115759713 | BI180: 5.278989562 | BJ180: -6.986607793 | BK180: 20.55857327 | BL180: -2.430525419 | BN180: 132.2038516 | BO180: 137.1334428 | BP180: 139.2860825 | BQ180: 136.7572717 | BR180: 130.4103099 | BS180: 126.7918266
A181: 113 | B181: 0.7941310079 | C181: 3.158654975 | D181: 1.591767444 | E181: -5.551891587 | H181: 0.7917662439 | I181: 3.171022357 | J181: 0.6724354091 | K181: -2.360463986 | L181: -1.276403067 | M181: 1.752530031 | N181: 0.6235071787 | O181: 0.2271628872 | P181: 0.0431971361 | Q181: -0.1298624725 | R181: 0.125550805 | S181: -0.1775349605 | T181: 0.3942774206 | U181: -1.26140526 | V181: 1.282243632 | W181: 0.1268076309 | X181: 0.6081681519 | Y181: 1.479407528 | Z181: -2.51222483 | AA181: -6.93201363 | AB181: 0.6300167529 | AC181: 0.7975342699 | AD181: 10.09764859 | AE181: -8.094997852 | AG181: 131.1290594 | AH181: 129.3816928 | AI181: 125.9054335 | AJ181: 126.0004047 | AK181: 124.0167968 | AL181: 116.9356228 | AO181: 0.7917662439 | AP181: 3.171022357 | AQ181: 0.6724354091 | AR181: -2.360463986 | AS181: -1.276403067 | AT181: 1.752530031 | AU181: 0.6235071787 | AV181: 0.2271628872 | AW181: 0.0431971361 | AX181: -0.1298624725 | AY181: 0.125550805 | AZ181: -0.1775349605 | BA181: 0 | BB181: -1.26140526 | BC181: 0 | BD181: 0 | BE181: 0 | BF181: 0 | BG181: -2.51222483 | BH181: -6.93201363 | BI181: 0.6300167529 | BJ181: 0.7975342699 | BK181: 10.09764859 | BL181: -8.094997852 | BN181: 131.5233368 | BO181: 129.7724052 | BP181: 127.582685 | BQ181: 127.8676003 | BR181: 126.547453 | BS181: 120.9448285
A182: 114 | B182: -5.964459668 | C182: 2.232039051 | D182: 2.081152728 | E182: -4.868549041 | H182: -5.966824432 | I182: -2.18161064 | J182: -1.155533429 | K182: -2.241545882 | L182: 1.580269437 | M182: -4.952336728 | N182: -0.3031087449 | O182: -0.3255185086 | P182: 0.6925861268 | Q182: -0.01365385214 | R182: 1.034407801 | S182: 0.3964280815 | T182: 0.8836627053 | U182: -3.009742411 | V182: -0.485556274 | W182: -0.4794383448 | X182: -0.2493006631 | Y182: -1.506000133 | Z182: -1.828882285 | AA182: -8.720579293 | AB182: 16.94546457 | AC182: 10.13423816 | AD182: 0.3246455425 | AE182: 16.23893323 | AG182: 139.0831213 | AH182: 145.7168251 | AI182: 147.8306445 | AJ182: 149.3464747 | AK182: 145.9642064 | AL182: 152.8962459 | AO182: -5.966824432 | AP182: -2.18161064 | AQ182: -1.155533429 | AR182: -2.241545882 | AS182: 1.580269437 | AT182: -4.952336728 | AU182: -0.3031087449 | AV182: -0.3255185086 | AW182: 0.6925861268 | AX182: -0.01365385214 | AY182: 1.034407801 | AZ182: 0.3964280815 | BA182: 0 | BB182: -3.009742411 | BC182: -0.485556274 | BD182: -0.4794383448 | BE182: -0.2493006631 | BF182: -1.506000133 | BG182: -1.828882285 | BH182: -8.720579293 | BI182: 16.94546457 | BJ182: 10.13423816 | BK182: 0.3246455425 | BL182: 16.23893323 | BN182: 139.966784 | BO182: 146.6350958 | BP182: 148.7819659 | BQ182: 150.3335376 | BR182: 146.9610183 | BS182: 153.9680812
A183: 115 | B183: -0.4948332669 | C183: 2.270674673 | D183: -0.8170411661 | E183: 4.449572041 | H183: -0.497198031 | I183: -1.59702952 | J183: -0.4206195124 | K183: -0.5536807183 | L183: -1.033045151 | M183: 2.7401242 | N183: -0.2644731227 | O183: -0.4658365167 | P183: -0.4865227871 | Q183: -1.338688278 | R183: -1.276574242 | S183: 0.5421404344 | T183: -2.014531189 | U183: 0.4442500455 | V183: -0.1909142296 | W183: 1.445533034 | X183: 1.475938017 | Y183: -1.157322792 | Z183: 7.489238798 | AA183: -16.1621438 | AB183: 4.064969976 | AC183: -18.57555753 | AD183: -35.84291235 | AE183: 6.078064611 | AG183: 134.1338837 | AH183: 136.1081396 | AI183: 134.9571141 | AJ183: 129.9474514 | AK183: 125.0731964 | AL183: 120.3064056 | AO183: -0.497198031 | AP183: -1.59702952 | AQ183: -0.4206195124 | AR183: -0.5536807183 | AS183: -1.033045151 | AT183: 2.7401242 | AU183: -0.2644731227 | AV183: -0.4658365167 | AW183: -0.4865227871 | AX183: -1.338688278 | AY183: -1.276574242 | AZ183: 0.5421404344 | BA183: -2.014531189 | BB183: 0 | BC183: -0.1909142296 | BD183: 0 | BE183: 0 | BF183: -1.157322792 | BG183: 7.489238798 | BH183: -16.1621438 | BI183: 4.064969976 | BJ183: -18.57555753 | BK183: -35.84291235 | BL183: 6.078064611 | BN183: 134.1338837 | BO183: 136.5523896 | BP183: 135.4087879 | BQ183: 131.8478496 | BR183: 128.4745156 | BS183: 123.6978152
A184: 116 | B184: 3.370317205 | C184: 2.976969745 | D184: 2.166567252 | E184: 6.962349689 | H184: 3.367952441 | I184: 3.705452387 | J184: -3.129852012 | K184: -0.6450948836 | L184: 1.326259348 | M184: 5.16502806 | N184: 0.441821949 | O184: 0.2987766024 | P184: 0.03729614246 | Q184: 0.1357367894 | R184: -0.732034549 | S184: 0.1292542978 | T184: 0.9690772289 | U184: 0.5097717891 | V184: -0.5645812082 | W184: 1.717400208 | X184: 1.406576002 | Y184: 1.376212308 | Z184: 10.00201645 | AA184: -9.878570176 | AB184: 6.296507737 | AC184: 7.538183483 | AD184: -11.86425781 | AE184: -1.407838517 | AG184: 126.9630344 | AH184: 122.9254863 | AI184: 126.0429067 | AJ184: 122.658043 | AK184: 115.5534244 | AL184: 105.2055753 | AO184: 3.367952441 | AP184: 3.705452387 | AQ184: -3.129852012 | AR184: -0.6450948836 | AS184: 1.326259348 | AT184: 5.16502806 | AU184: 0.441821949 | AV184: 0.2987766024 | AW184: 0.03729614246 | AX184: 0.1357367894 | AY184: -0.732034549 | AZ184: 0.1292542978 | BA184: 0 | BB184: 0 | BC184: -0.5645812082 | BD184: 0 | BE184: 0 | BF184: 0 | BG184: 10.00201645 | BH184: -9.878570176 | BI184: 6.296507737 | BJ184: 7.538183483 | BK184: -11.86425781 | BL184: -1.407838517 | BN184: 127.9321116 | BO184: 124.3913241 | BP184: 127.5823106 | BQ184: 125.9496574 | BR184: 120.2357439 | BS184: 111.1258533
A185: 117 | B185: -0.8518170725 | C185: 3.057449784 | D185: 1.847914495 | E185: 12.06915112 | H185: -0.8541818366 | I185: 0.4472082415 | J185: 2.617557755 | K185: 3.414852721 | L185: 4.033307029 | M185: -2.373968844 | N185: 0.5223019883 | O185: 0.5277325344 | P185: -0.108929095 | Q185: 0.001621978184 | R185: 0.975069875 | S185: 0.3503478581 | T185: 0.6504244724 | U185: -1.033923373 | V185: -1.001144198 | W185: 0.1821154264 | X185: -1.02954934 | Y185: -0.7897174314 | Z185: 15.10881787 | AA185: 22.62179352 | AB185: -12.14930489 | AC185: -0.08743852304 | AD185: 16.04855438 | AE185: 18.63212155 | AG185: 132.9835132 | AH185: 134.9339175 | AI185: 131.0447355 | AJ185: 123.9498592 | AK185: 118.1149337 | AL185: 118.8660392 | AO185: -0.8541818366 | AP185: 0.4472082415 | AQ185: 2.617557755 | AR185: 3.414852721 | AS185: 4.033307029 | AT185: -2.373968844 | AU185: 0.5223019883 | AV185: 0.5277325344 | AW185: -0.108929095 | AX185: 0.001621978184 | AY185: 0.975069875 | AZ185: 0.3503478581 | BA185: 0 | BB185: -1.033923373 | BC185: -1.001144198 | BD185: 0 | BE185: -1.02954934 | BF185: -0.7897174314 | BG185: 15.10881787 | BH185: 22.62179352 | BI185: -12.14930489 | BJ185: -0.08743852304 | BK185: 16.04855438 | BL185: 18.63212155 | BN185: 133.6339377 | BO185: 135.5977415 | BP185: 131.7022923 | BQ185: 124.7775132 | BR185: 118.93085 | BS185: 119.7200944
A186: 118 | B186: 1.403731036 | C186: 2.279414062 | D186: 2.366720383 | E186: -13.12086443 | H186: 1.401366272 | I186: 1.144442995 | J186: 1.942336896 | K186: 0.103946486 | L186: 0.399012202 | M186: 0.2889669966 | N186: -0.2557337343 | O186: -0.1617727423 | P186: -0.4040720515 | Q186: 0.5382997372 | R186: -0.360577155 | S186: -0.223420101 | T186: 1.16923036 | U186: 2.236418478 | V186: 2.671448259 | W186: -0.6957941163 | X186: -0.7764072784 | Y186: 0.1841765258 | Z186: -10.08119767 | AA186: -9.470715379 | AB186: -13.28809272 | AC186: 18.1434844 | AD186: 7.741815581 | AE186: -1.155250853 | AG186: 128.4217018 | AH186: 125.2419029 | AI186: 118.2260203 | AJ186: 116.6543024 | AK186: 113.2447018 | AL186: 109.0437488 | AO186: 1.401366272 | AP186: 1.144442995 | AQ186: 1.942336896 | AR186: 0.103946486 | AS186: 0.399012202 | AT186: 0.2889669966 | AU186: -0.2557337343 | AV186: -0.1617727423 | AW186: -0.4040720515 | AX186: 0.5382997372 | AY186: -0.360577155 | AZ186: -0.223420101 | BA186: 0 | BB186: 0 | BC186: 0 | BD186: -0.6957941163 | BE186: -0.7764072784 | BF186: 0 | BG186: -10.08119767 | BH186: -9.470715379 | BI186: -13.28809272 | BJ186: 18.1434844 | BK186: 7.741815581 | BL186: -1.155250853 | BN186: 129.5909322 | BO186: 128.6555615 | BP186: 124.2912842 | BQ186: 122.8350037 | BR186: 119.4741806 | BS186: 115.5422798
A187: 119 | B187: -1.548656102 | C187: 2.174879682 | D187: 1.435532157 | E187: -8.50794801 | H187: -1.551020866 | I187: -0.167828625 | J187: -0.4935972283 | K187: -2.132989018 | L187: 1.068949392 | M187: -4.689981952 | N187: -0.360268114 | O187: 0.1837998173 | P187: 0.05530033481 | Q187: -0.144207667 | R187: -0.2975109406 | S187: -0.3627860648 | T187: 0.2380421342 | U187: 1.138776903 | V187: 1.559891637 | W187: -0.1809145815 | X187: -0.242905266 | Y187: -2.277084379 | Z187: -5.468281254 | AA187: 11.35244406 | AB187: 0.1624816886 | AC187: -11.40849497 | AD187: 2.876974276 | AE187: 16.45389751 | AG187: 133.2081509 | AH187: 133.366309 | AI187: 131.2355956 | AJ187: 131.5079135 | AK187: 126.8964008 | AL187: 131.7952428 | AO187: -1.551020866 | AP187: -0.167828625 | AQ187: -0.4935972283 | AR187: -2.132989018 | AS187: 1.068949392 | AT187: -4.689981952 | AU187: -0.360268114 | AV187: 0.1837998173 | AW187: 0.05530033481 | AX187: -0.144207667 | AY187: -0.2975109406 | AZ187: -0.3627860648 | BA187: 0 | BB187: 0 | BC187: 0 | BD187: -0.1809145815 | BE187: -0.242905266 | BF187: -2.277084379 | BG187: -5.468281254 | BH187: 11.35244406 | BI187: 0.1624816886 | BJ187: -11.40849497 | BK187: 2.876974276 | BL187: 16.45389751 | BN187: 133.4461931 | BO187: 134.7487036 | BP187: 134.2094507 | BQ187: 134.5862118 | BR187: 129.9806029 | BS187: 135.0782947
A188: 120 | B188: -2.24634028 | C188: 2.749920718 | D188: 1.341753634 | E188: 10.06164925 | H188: -2.248705044 | I188: 1.519730504 | J188: 0.7479397747 | K188: 4.74146971 | L188: 4.289184606 | M188: 0.6725633634 | N188: 0.2147729225 | O188: 0.5829764692 | P188: 0.1000512837 | Q188: 0.3401558316 | R188: -0.156669591 | S188: 0.09747663001 | T188: 0.1442636107 | U188: 1.158391387 | V188: 0.6149722993 | W188: 0.6995597373 | X188: 1.037270579 | Y188: -0.8154718697 | Z188: 13.10131601 | AA188: 7.8341942 | AB188: -9.131100009 | AC188: -3.849269196 | AD188: -0.2819142507 | AE188: 10.85796984 | AG188: 135.0410974 | AH188: 133.4691328 | AI188: 130.6795435 | AJ188: 121.8872395 | AK188: 112.4186575 | AL188: 109.1311402 | AO188: -2.248705044 | AP188: 1.519730504 | AQ188: 0.7479397747 | AR188: 4.74146971 | AS188: 4.289184606 | AT188: 0.6725633634 | AU188: 0.2147729225 | AV188: 0.5829764692 | AW188: 0.1000512837 | AX188: 0.3401558316 | AY188: -0.156669591 | AZ188: 0.09747663001 | BA188: 0 | BB188: 0 | BC188: 0 | BD188: 0 | BE188: 0 | BF188: -0.8154718697 | BG188: 13.10131601 | BH188: 7.8341942 | BI188: -9.131100009 | BJ188: -3.849269196 | BK188: -0.2819142507 | BL188: 10.85796984 | BN188: 135.185361 | BO188: 134.7732937 | BP188: 132.612765 | BQ188: 124.4671322 | BR188: 115.9654499 | BS188: 112.7238922
A189: 121 | B189: 2.433915151 | C189: 2.36752096 | D189: 2.756061857 | E189: -6.155678667 | H189: 2.431550387 | I189: 0.3870725581 | J189: 1.525280718 | K189: 0.2561598646 | L189: -1.929699779 | M189: 0.3824874267 | N189: -0.1676268359 | O189: 0.1087697498 | P189: 0.9458921305 | Q189: -0.05833362433 | R189: -0.4831920527 | S189: 0.3250209018 | T189: 1.558571834 | U189: -1.134175251 | V189: -1.093000335 | W189: -0.0961577815 | X189: -1.533203508 | Y189: -1.153544906 | Z189: -3.116011911 | AA189: -1.808330098 | AB189: 21.87869241 | AC189: 13.65151679 | AD189: 2.870957721 | AE189: 7.278566388 | AG189: 126.8054932 | AH189: 128.2805282 | AI189: 127.2180181 | AJ189: 124.2770323 | AK189: 124.4635975 | AL189: 122.3090502 | AO189: 2.431550387 | AP189: 0.3870725581 | AQ189: 1.525280718 | AR189: 0.2561598646 | AS189: -1.929699779 | AT189: 0.3824874267 | AU189: -0.1676268359 | AV189: 0.1087697498 | AW189: 0.9458921305 | AX189: -0.05833362433 | AY189: -0.4831920527 | AZ189: 0.3250209018 | BA189: 0 | BB189: -1.134175251 | BC189: -1.093000335 | BD189: -0.0961577815 | BE189: -1.533203508 | BF189: -1.153544906 | BG189: -3.116011911 | BH189: -1.808330098 | BI189: 21.87869241 | BJ189: 13.65151679 | BK189: 2.870957721 | BL189: 7.278566388 | BN189: 128.3640651 | BO189: 129.8656977 | BP189: 128.8212402 | BQ189: 125.898912 | BR189: 126.1345471 | BS189: 124.0102283
A190: 122 | B190: 0.6862522624 | C190: 2.493138573 | D190: -0.9174047311 | E190: 2.194403198 | H190: 0.6838874983 | I190: -4.090432152 | J190: 0.2203843741 | K190: 2.637887746 | L190: -1.351272693 | M190: 1.096660446 | N190: -0.04200922302 | O190: -0.3099441829 | P190: 0.1014015301 | Q190: -0.003877480768 | R190: -0.4309621606 | S190: -0.1682384371 | T190: -2.114894754 | U190: -0.2222568525 | V190: 0.05253245505 | W190: 0.5855797553 | X190: 1.439211386 | Y190: -0.5457309527 | Z190: 5.234069954 | AA190: -5.828716761 | AB190: 19.31219809 | AC190: -9.294796395 | AD190: -4.769868934 | AE190: -11.35320108 | AG190: 132.928541 | AH190: 139.2830282 | AI190: 137.853884 | AJ190: 131.2344945 | AK190: 127.9459768 | AL190: 123.7202772 | AO190: 0.6838874983 | AP190: -4.090432152 | AQ190: 0.2203843741 | AR190: 2.637887746 | AS190: -1.351272693 | AT190: 1.096660446 | AU190: -0.04200922302 | AV190: -0.3099441829 | AW190: 0.1014015301 | AX190: -0.003877480768 | AY190: -0.4309621606 | AZ190: -0.1682384371 | BA190: -2.114894754 | BB190: -0.2222568525 | BC190: 0 | BD190: 0 | BE190: 0 | BF190: -0.5457309527 | BG190: 5.234069954 | BH190: -5.828716761 | BI190: 19.31219809 | BJ190: -9.294796395 | BK190: -4.769868934 | BL190: -11.35320108 | BN190: 132.928541 | BO190: 139.2830282 | BP190: 137.9064165 | BQ190: 131.872029 | BR190: 130.0385467 | BS190: 125.8257396
A191: 123 | B191: -1.291948268 | C191: 1.933556587 | D191: 2.667427667 | E191: -1.014197022 | H191: -1.294313032 | I191: 0.9815700525 | J191: 2.442225504 | K191: 2.245479492 | L191: -0.6617462032 | M191: 0.4062915281 | N191: -0.6015912092 | O191: 0.7898121208 | P191: 0.3967888931 | Q191: 0.0877096443 | R191: 0.7716396226 | S191: 0.09101447132 | T191: 1.469937644 | U191: 0.1823784935 | V191: 0.7005180474 | W191: -0.9292572122 | X191: -1.460575003 | Y191: 0.5621159663 | Z191: 2.025469734 | AA191: 13.41261115 | AB191: 11.27747544 | AC191: 3.458828137 | AD191: 16.19894185 | AE191: 6.028266459 | AG191: 131.3036814 | AH191: 131.6375347 | AI191: 126.941888 | AJ191: 122.5448455 | AK191: 122.5437471 | AL191: 118.3273521 | AO191: -1.294313032 | AP191: 0.9815700525 | AQ191: 2.442225504 | AR191: 2.245479492 | AS191: -0.6617462032 | AT191: 0.4062915281 | AU191: -0.6015912092 | AV191: 0.7898121208 | AW191: 0.3967888931 | AX191: 0.0877096443 | AY191: 0.7716396226 | AZ191: 0.09101447132 | BA191: 0 | BB191: 0 | BC191: 0 | BD191: -0.9292572122 | BE191: -1.460575003 | BF191: 0 | BG191: 2.025469734 | BH191: 13.41261115 | BI191: 11.27747544 | BJ191: 3.458828137 | BK191: 16.19894185 | BL191: 6.028266459 | BN191: 132.773619 | BO191: 133.3160398 | BP191: 129.3160823 | BQ191: 124.9039157 | BR191: 124.9729852 | BS191: 121.3564785
A192: 124 | B192: 0.9482916398 | C192: 3.060942629 | D192: 3.105348895 | E192: -3.376196716 | H192: 0.9459268757 | I192: -1.53949028 | J192: 2.648755684 | K192: -1.885356207 | L192: -4.734872463 | M192: 1.581316195 | N192: 0.5257948333 | O192: 0.009581196324 | P192: 0.7303672736 | Q192: -0.1805465494 | R192: -0.3172272032 | S192: -0.6644287701 | T192: 1.907858872 | U192: 1.380557883 | V192: -1.083944036 | W192: -1.214382855 | X192: 0.4474455212 | Y192: 1.122343234 | Z192: -0.3365299593 | AA192: -1.292222846 | AB192: 6.544268816 | AC192: 12.61905786 | AD192: -0.6603359384 | AE192: -18.11387625 | AG192: 129.2841376 | AH192: 130.7109087 | AI192: 127.9632658 | AJ192: 128.7777915 | AK192: 131.1910753 | AL192: 124.061522 | AO192: 0.9459268757 | AP192: -1.53949028 | AQ192: 2.648755684 | AR192: -1.885356207 | AS192: -4.734872463 | AT192: 1.581316195 | AU192: 0.5257948333 | AV192: 0.009581196324 | AW192: 0.7303672736 | AX192: -0.1805465494 | AY192: -0.3172272032 | AZ192: -0.6644287701 | BA192: 0 | BB192: 0 | BC192: -1.083944036 | BD192: -1.214382855 | BE192: 0 | BF192: 0 | BG192: -0.3365299593 | BH192: -1.292222846 | BI192: 6.544268816 | BJ192: 12.61905786 | BK192: -0.6603359384 | BL192: -18.11387625 | BN192: 131.1919964 | BO192: 134.0676575 | BP192: 131.3144892 | BQ192: 132.2368557 | BR192: 135.3115941 | BS192: 129.2903289
A193: 125 | B193: -3.118911297 | C193: 2.299443833 | D193: -1.929168488 | E193: -2.949628707 | H193: -3.121276061 | I193: -0.5698095165 | J193: 1.650850949 | K193: 1.36944527 | L193: 2.684098608 | M193: 1.117819321 | N193: -0.2357039625 | O193: 0.05679098929 | P193: -0.4498279783 | Q193: 0.4510115053 | R193: -0.4667453094 | S193: 0.1837432172 | T193: -3.126658511 | U193: 0.472129777 | V193: 0.9113503339 | W193: 0.2047364057 | X193: 2.565567012 | Y193: -0.3187134554 | Z193: 0.0900380498 | AA193: 7.438536451 | AB193: -26.17166374 | AC193: 3.892568959 | AD193: -17.58308699 | AE193: 4.330242392 | AG193: 138.9613644 | AH193: 140.315405 | AI193: 135.3053835 | AJ193: 131.3454211 | AK193: 121.6694894 | AL193: 117.5713396 | AO193: -3.121276061 | AP193: -0.5698095165 | AQ193: 1.650850949 | AR193: 1.36944527 | AS193: 2.684098608 | AT193: 1.117819321 | AU193: -0.2357039625 | AV193: 0.05679098929 | AW193: -0.4498279783 | AX193: 0.4510115053 | AY193: -0.4667453094 | AZ193: 0.1837432172 | BA193: -3.126658511 | BB193: 0 | BC193: 0 | BD193: 0 | BE193: 0 | BF193: -0.3187134554 | BG193: 0.0900380498 | BH193: 7.438536451 | BI193: -26.17166374 | BJ193: 3.892568959 | BK193: -17.58308699 | BL193: 4.330242392 | BN193: 138.9613644 | BO193: 140.7875348 | BP193: 136.6872409 | BQ193: 132.9398015 | BR193: 125.8051139 | BS193: 121.7458104
A194: 126 | B194: 1.204229275 | C194: 3.474119397 | D194: 0.3440915737 | E194: 12.67278234 | H194: 1.201864511 | I194: -0.2346239131 | J194: 1.251636362 | K194: 0.1326554921 | L194: 0.6845999274 | M194: -0.7837163649 | N194: 0.9389716008 | O194: -0.01021602416 | P194: -0.03466807573 | Q194: 0.8398689586 | R194: 0.3366030759 | S194: 0.4952413878 | T194: -0.8533984493 | U194: 0.9539869291 | V194: -1.00569325 | W194: 0.534937116 | X194: -1.066208608 | Y194: -2.273918794 | Z194: 15.7124491 | AA194: 8.990974239 | AB194: -2.372963615 | AC194: 19.04076196 | AD194: 4.666960452 | AE194: 7.151697643 | AG194: 132.2324194 | AH194: 132.3872059 | AI194: 130.3734688 | AJ194: 128.151882 | AK194: 125.6366799 | AL194: 126.3222029 | AO194: 1.201864511 | AP194: -0.2346239131 | AQ194: 1.251636362 | AR194: 0.1326554921 | AS194: 0.6845999274 | AT194: -0.7837163649 | AU194: 0.9389716008 | AV194: -0.01021602416 | AW194: -0.03466807573 | AX194: 0.8398689586 | AY194: 0.3366030759 | AZ194: 0.4952413878 | BA194: -0.8533984493 | BB194: 0 | BC194: -1.00569325 | BD194: 0 | BE194: -1.066208608 | BF194: -2.273918794 | BG194: 15.7124491 | BH194: 8.990974239 | BI194: -2.372963615 | BJ194: 19.04076196 | BK194: 4.666960452 | BL194: 7.151697643 | BN194: 132.2324194 | BO194: 133.3411928 | BP194: 131.3317578 | BQ194: 129.6659169 | BR194: 127.1687344 | BS194: 127.902685
A195: 127 | B195: 1.644361599 | C195: 2.528983441 | D195: 0.4445493674 | E195: -5.416768702 | H195: 1.641996835 | I195: 0.3593761984 | J195: -1.945077106 | K195: 0.4038754058 | L195: -4.164362687 | M195: -1.030871324 | N195: -0.006164355037 | O195: 0.735518837 | P195: 0.07168813949 | Q195: -0.08661921705 | R195: -1.032436686 | S195: -0.2732934691 | T195: -0.7529406556 | U195: -1.204339775 | V195: -0.4145244039 | W195: -1.089337271 | X195: 0.2167606483 | Y195: -2.691134003 | Z195: -2.377101946 | AA195: 10.46972809 | AB195: 2.744162694 | AC195: -6.305712131 | AD195: -23.79796289 | AE195: -7.448518409 | AG195: 130.3461908 | AH195: 132.7961154 | AI195: 134.6378852 | AJ195: 132.5413895 | AK195: 133.6175524 | AL195: 134.287505 | AO195: 1.641996835 | AP195: 0.3593761984 | AQ195: -1.945077106 | AR195: 0.4038754058 | AS195: -4.164362687 | AT195: -1.030871324 | AU195: -0.006164355037 | AV195: 0.735518837 | AW195: 0.07168813949 | AX195: -0.08661921705 | AY195: -1.032436686 | AZ195: -0.2732934691 | BA195: -0.7529406556 | BB195: -1.204339775 | BC195: -0.4145244039 | BD195: -1.089337271 | BE195: 0 | BF195: -2.691134003 | BG195: -2.377101946 | BH195: 10.46972809 | BI195: 2.744162694 | BJ195: -6.305712131 | BK195: -23.79796289 | BL195: -7.448518409 | BN195: 130.3461908 | BO195: 132.7961154 | BP195: 134.6378852 | BQ195: 132.5413895 | BR195: 133.8343131 | BS195: 134.510006
A196: 128 | B196: 2.830360254 | C196: 2.457972132 | D196: 1.242907476 | E196: 2.352574847 | H196: 2.82799549 | I196: 3.748851053 | J196: -4.490423324 | K196: 1.890047613 | L196: 0.4258520951 | M196: 3.779519192 | N196: -0.07717566407 | O196: 0.4916875589 | P196: -0.7134691626 | Q196: -0.2989837894 | R196: 0.3477633656 | S196: 0.3587680449 | T196: 0.04541745262 | U196: 1.309563318 | V196: 1.95761532 | W196: 0.9338971603 | X196: -1.415626314 | Y196: 0.4139403141 | Z196: 5.392241603 | AA196: 6.762559216 | AB196: -7.729976369 | AC196: -24.76526246 | AD196: 6.50905224 | AE196: -6.867507674 | AG196: 127.9242307 | AH196: 123.2577288 | AI196: 124.7351141 | AJ196: 118.4484885 | AK196: 116.4847668 | AL196: 108.8183183 | AO196: 2.82799549 | AP196: 3.748851053 | AQ196: -4.490423324 | AR196: 1.890047613 | AS196: 0.4258520951 | AT196: 3.779519192 | AU196: -0.07717566407 | AV196: 0.4916875589 | AW196: -0.7134691626 | AX196: -0.2989837894 | AY196: 0.3477633656 | AZ196: 0.3587680449 | BA196: 0 | BB196: 0 | BC196: 0 | BD196: 0 | BE196: -1.415626314 | BF196: 0 | BG196: 5.392241603 | BH196: 6.762559216 | BI196: -7.729976369 | BJ196: -24.76526246 | BK196: 6.50905224 | BL196: -6.867507674 | BN196: 127.9696482 | BO196: 124.6121651 | BP196: 128.1246513 | BQ196: 122.7492307 | BR196: 120.8482249 | BS196: 113.5323057
A197: 129 | B197: -1.115134958 | C197: 3.195613289 | D197: 0.482308635 | E197: 1.340193807 | H197: -1.117499722 | I197: -1.013346742 | J197: 0.4280043733 | K197: -2.678470333 | L197: 1.183519554 | M197: -0.3036315805 | N197: 0.6604654928 | O197: 0.4048762828 | P197: -0.5738816776 | Q197: -0.3511939743 | R197: 0.6948178863 | S197: -0.06544488353 | T197: -0.715181388 | U197: -0.7249625176 | V197: 1.842364695 | W197: -1.492664429 | X197: -0.6777554424 | Y197: -0.0698748895 | Z197: 4.379860563 | AA197: 2.08663218 | AB197: -5.05696116 | AC197: 10.8439428 | AD197: 26.66659506 | AE197: -12.17720424 | AG197: =S$53*(1+(T$55+N197)/100)*((1-S$62)+S$62*((1+(T$57+Z197)/100)))/(1+(T$54+H197)/100)-(T$56+T197)+T$58 -> 134.8952462 | AH197: =AG197*(1+(U$55+O197)/100)*((1-T$62)+T$62*((1+(U$57+AA197)/100)))/(1+(U$54+I197)/100)-(U$56+U197)+U$58 -> 138.4260421 | AI197: =AH197*(1+(V$55+P197)/100)*((1-U$62)+U$62*((1+(V$57+AB197)/100)))/(1+(V$54+J197)/100)-(V$56+V197)+V$58 -> 133.9844818 | AJ197: =AI197*(1+(W$55+Q197)/100)*((1-V$62)+V$62*((1+(W$57+AC197)/100)))/(1+(W$54+K197)/100)-(W$56+W197)+W$58 -> 136.1504961 | AK197: =AJ197*(1+(X$55+R197)/100)*((1-W$62)+W$62*((1+(X$57+AD197)/100)))/(1+(X$54+L197)/100)-(X$56+X197)+X$58 -> 133.1474125 | AL197: =AK197*(1+(Y$55+S197)/100)*((1-X$62)+X$62*((1+(Y$57+AE197)/100)))/(1+(Y$54+M197)/100)-(Y$56+Y197)+Y$58 -> 130.4728281 | AO197: -1.117499722 | AP197: -1.013346742 | AQ197: 0.4280043733 | AR197: -2.678470333 | AS197: 1.183519554 | AT197: -0.3036315805 | AU197: 0.6604654928 | AV197: 0.4048762828 | AW197: -0.5738816776 | AX197: -0.3511939743 | AY197: 0.6948178863 | AZ197: -0.06544488353 | BA197: -0.715181388 | BB197: -0.7249625176 | BC197: 0 | BD197: -1.492664429 | BE197: -0.6777554424 | BF197: -0.0698748895 | BG197: 4.379860563 | BH197: 2.08663218 | BI197: -5.05696116 | BJ197: 10.8439428 | BK197: 26.66659506 | BL197: -12.17720424 | BN197: 134.8952462 | BO197: 138.4260421 | BP197: 135.8268465 | BQ197: 138.0642401 | BR197: 135.0811976 | BS197: 132.447501
A198: 130 | B198: -0.5473369676 | C198: 2.299410591 | D198: 2.307923959 | E198: -17.02197471 | H198: =IF($B$42="On",$B198-$D$15,0) -> -0.5497017316 | I198: =IF($B$42="On",$B1198-$D$15,0) -> -0.1687374978 | J198: =IF($B$42="On",$B2198-$D$15,0) -> -2.2990794 | K198: =IF($B$42="On",$B3198-$D$15,0) -> 2.237016617 | L198: =IF($B$42="On",$B4198-$D$15,0) -> 1.114054341 | M198: =IF($B$42="On",$B5198-$D$15,0) -> 2.304003493 | N198: =IF($B$43="On",$C198-$D$16,0) -> -0.2357372048 | O198: =IF($B$43="On",$C1198-$D$16,0) -> -0.06008176352 | P198: =IF($B$43="On",$C2198-$D$16,0) -> 0.654907621 | Q198: =IF($B$43="On",$C3198-$D$16,0) -> 0.2905010719 | R198: =IF($B$43="On",$C4198-$D$16,0) -> 0.5729644336 | S198: =IF($B$43="On",$C5198-$D$16,0) -> -0.4161834408 | T198: =IF($B$44="On",$D198-$D$17,0) -> 1.110433936 | U198: =IF($B$44="On",$D1198-$D$17,0) -> -1.781247466 | V198: =IF($B$44="On",$D2198-$D$17,0) -> -1.444012842 | W198: =IF($B$44="On",$D3198-$D$17,0) -> -0.7976802893 | X198: =IF($B$44="On",$D4198-$D$17,0) -> -1.489607912 | Y198: =IF($B$44="On",$D5198-$D$17,0) -> -0.1687489351 | Z198: =IF($B$45="On",$E198-$D$18,0) -> -13.98230796 | AA198: =IF($B$45="On",$E1198-$D$18,0) -> -0.3290889736 | AB198: =IF($B$45="On",$E2198-$D$18,0) -> 8.733870727 | AC198: =IF($B$45="On",$E3198-$D$18,0) -> 5.966984959 | AD198: =IF($B$45="On",$E4198-$D$18,0) -> 10.10614293 | AE198: =IF($B$45="On",$E5198-$D$18,0) -> -13.77791925 | AG198: 131.1179085 | AH198: 133.8304178 | AI198: 138.0292034 | AJ198: 133.711243 | AK198: 131.4270858 | AL198: 124.9885139 | AO198: =IF($B$42="On",MIN($B198-$D$15,$D$42),0) -> -0.5497017316 | AP198: =IF($B$42="On",MIN($B1198-$D$15,$D$42),0) -> -0.1687374978 | AQ198: =IF($B$42="On",MIN($B2198-$D$15,$D$42),0) -> -2.2990794 | AR198: =IF($B$42="On",MIN($B3198-$D$15,$D$42),0) -> 2.237016617 | AS198: =IF($B$42="On",MIN($B4198-$D$15,$D$42),0) -> 1.114054341 | AT198: =IF($B$42="On",MIN($B5198-$D$15,$D$42),0) -> 2.304003493 | AU198: =IF($B$43="On",MAX($C198-$D$16,$D$43),0) -> -0.2357372048 | AV198: =IF($B$43="On",MAX($C1198-$D$16,$D$43),0) -> -0.06008176352 | AW198: =IF($B$43="On",MAX($C2198-$D$16,$D$43),0) -> 0.654907621 | AX198: =IF($B$43="On",MAX($C3198-$D$16,$D$43),0) -> 0.2905010719 | AY198: =IF($B$43="On",MAX($C4198-$D$16,$D$43),0) -> 0.5729644336 | AZ198: =IF($B$43="On",MAX($C5198-$D$16,$D$43),0) -> -0.4161834408 | BA198: =IF($B$44="On",MIN($D198-$D$17,$D$44),0) -> 0 | BB198: =IF($B$44="On",MIN($D1198-$D$17,$D$44),0) -> -1.781247466 | BC198: =IF($B$44="On",MIN($D2198-$D$17,$D$44),0) -> -1.444012842 | BD198: =IF($B$44="On",MIN($D3198-$D$17,$D$44),0) -> -0.7976802893 | BE198: =IF($B$44="On",MIN($D4198-$D$17,$D$44),0) -> -1.489607912 | BF198: =IF($B$44="On",MIN($D5198-$D$17,$D$44),0) -> -0.1687489351 | BG198: =IF($B$45="On",MAX($E198-$D$18,$D$45),0) -> -13.98230796 | BH198: =IF($B$45="On",MAX($E1198-$D$18,$D$45),0) -> -0.3290889736 | BI198: =IF($B$45="On",MAX($E2198-$D$18,$D$45),0) -> 8.733870727 | BJ198: =IF($B$45="On",MAX($E3198-$D$18,$D$45),0) -> 5.966984959 | BK198: =IF($B$45="On",MAX($E4198-$D$18,$D$45),0) -> 10.10614293 | BL198: =IF($B$45="On",MAX($E5198-$D$18,$D$45),0) -> -13.77791925 | BN198: =S$53*(1+(T$55+AU198)/100)*((1-S$62)+S$62*((1+(T$57+BG198)/100)))/(1+(T$54+AO198)/100)-(T$56+BA198)+T$58 -> 132.2283425 | BO198: =BN198*(1+(U$55+AV198)/100)*((1-T$62)+T$62*((1+(U$57+BH198)/100)))/(1+(U$54+AP198)/100)-(U$56+BB198)+U$58 -> 134.9641785 | BP198: =BO198*(1+(V$55+AW198)/100)*((1-U$62)+U$62*((1+(V$57+BI198)/100)))/(1+(V$54+AQ198)/100)-(V$56+BC198)+V$58 -> 139.2169386 | BQ198: =BP198*(1+(W$55+AX198)/100)*((1-V$62)+V$62*((1+(W$57+BJ198)/100)))/(1+(W$54+AR198)/100)-(W$56+BD198)+W$58 -> 134.8938325 | BR198: =BQ198*(1+(X$55+AY198)/100)*((1-W$62)+W$62*((1+(X$57+BK198)/100)))/(1+(X$54+AS198)/100)-(X$56+BE198)+X$58 -> 132.6214637 | BS198: =BR198*(1+(Y$55+AZ198)/100)*((1-X$62)+X$62*((1+(Y$57+BL198)/100)))/(1+(Y$54+AT198)/100)-(Y$56+BF198)+Y$58 -> 126.1733713
A199: =A198+1 -> 131 | B199: 1.959858715 | C199: 2.484953907 | D199: 2.185879213 | E199: -10.15033806 | H199: 1.957493951 | I199: 1.459977882 | J199: 3.934161096 | K199: -2.304190145 | L199: -0.3877832172 | M199: -0.3301344542 | N199: -0.05019388931 | O199: 0.2455326518 | P199: 0.2784466253 | Q199: -0.8831337617 | R199: 0.736339262 | S199: -0.3345783335 | T199: 0.9883891903 | U199: -1.453854132 | V199: 1.468298961 | W199: -1.513954734 | X199: -2.559053455 | Y199: -1.06521016 | Z199: -7.110671308 | AA199: 0.2596946912 | AB199: 1.445266143 | AC199: -17.61398205 | AD199: 8.837027846 | AE199: 14.65848386 | AG199: 128.1373371 | AH199: 128.7582037 | AI199: 121.3335799 | AJ199: 121.9034106 | AK199: 122.598656 | AL199: 120.4021494 | AO199: 1.957493951 | AP199: 1.459977882 | AQ199: 3.934161096 | AR199: -2.304190145 | AS199: -0.3877832172 | AT199: -0.3301344542 | AU199: -0.05019388931 | AV199: 0.2455326518 | AW199: 0.2784466253 | AX199: -0.8831337617 | AY199: 0.736339262 | AZ199: -0.3345783335 | BA199: 0 | BB199: -1.453854132 | BC199: 0 | BD199: -1.513954734 | BE199: -2.559053455 | BF199: -1.06521016 | BG199: -7.110671308 | BH199: 0.2596946912 | BI199: 1.445266143 | BJ199: -17.61398205 | BK199: 8.837027846 | BL199: 14.65848386 | BN199: 129.1257263 | BO199: 129.7542303 | BP199: 123.7798048 | BQ199: 124.421682 | BR199: 125.1839175 | BS199: 123.0358692
A200: 132 | B200: -0.4637277758 | C200: 2.310539939 | D200: 0.7943538308 | E200: -25.31291273 | H200: -0.4660925399 | I200: -0.9214246788 | J200: 0.2161565548 | K200: 1.667555258 | L200: 3.895947014 | M200: 2.172087126 | N200: -0.2246078571 | O200: 0.1657202062 | P200: -0.09958771061 | Q200: 0.4072370122 | R200: 0.2256050912 | S200: -0.1531327793 | T200: -0.4031361922 | U200: -0.6537255687 | V200: 0.2453329841 | W200: -0.2924466049 | X200: 2.510403058 | Y200: 2.309283118 | Z200: -22.27324597 | AA200: 12.20676599 | AB200: -9.559396577 | AC200: -2.548800144 | AD200: 1.408389887 | AE200: -10.45940172 | AG200: 132.5318675 | AH200: 135.4665977 | AI200: 133.5201843 | AJ200: 129.6022712 | AK200: 119.3914374 | AL200: 111.0257292 | AO200: -0.4660925399 | AP200: -0.9214246788 | AQ200: 0.2161565548 | AR200: 1.667555258 | AS200: 3.895947014 | AT200: 2.172087126 | AU200: -0.2246078571 | AV200: 0.1657202062 | AW200: -0.09958771061 | AX200: 0.4072370122 | AY200: 0.2256050912 | AZ200: -0.1531327793 | BA200: -0.4031361922 | BB200: -0.6537255687 | BC200: 0 | BD200: -0.2924466049 | BE200: 0 | BF200: 0 | BG200: -22.27324597 | BH200: 12.20676599 | BI200: -9.559396577 | BJ200: -2.548800144 | BK200: 1.408389887 | BL200: -10.45940172 | BN200: 132.5318675 | BO200: 135.4665977 | BP200: 133.7655173 | BQ200: 129.8481688 | BR200: 122.1428167 | BS200: 116.074945
A201: 133 | B201: 0.1910651642 | C201: 2.37532112 | D201: 0.9063268023 | E201: -10.80889601 | H201: 0.1887004002 | I201: -1.396086186 | J201: -1.264014061 | K201: -0.5379405613 | L201: -0.264819932 | M201: 0.2917274579 | N201: -0.1598266758 | O201: 0.6426826683 | P201: 0.1509153512 | Q201: -0.4983233108 | R201: 0.8719983598 | S201: -0.6204168891 | T201: -0.2911632207 | U201: -0.06450100591 | V201: -1.104651956 | W201: 1.05188118 | X201: 1.382103846 | Y201: 1.316348237 | Z201: -7.769229255 | AA201: 15.6701239 | AB201: -5.188763287 | AC201: -4.758902031 | AD201: 23.83117499 | AE201: -16.45286537 | AG201: 131.6167592 | AH201: 135.2140513 | AI201: 136.9873056 | AJ201: 133.5054634 | AK201: 130.580626 | AL201: 124.9693189 | AO201: 0.1887004002 | AP201: -1.396086186 | AQ201: -1.264014061 | AR201: -0.5379405613 | AS201: -0.264819932 | AT201: 0.2917274579 | AU201: -0.1598266758 | AV201: 0.6426826683 | AW201: 0.1509153512 | AX201: -0.4983233108 | AY201: 0.8719983598 | AZ201: -0.6204168891 | BA201: -0.2911632207 | BB201: -0.06450100591 | BC201: -1.104651956 | BD201: 0 | BE201: 0 | BF201: 0 | BG201: -7.769229255 | BH201: 15.6701239 | BI201: -5.188763287 | BJ201: -4.758902031 | BK201: 23.83117499 | BL201: -16.45286537 | BN201: 131.6167592 | BO201: 135.2140513 | BP201: 136.9873056 | BQ201: 134.5573446 | BR201: 133.0426908 | BS201: 128.7715786
A202: 134 | B202: -1.730638975 | C202: 2.907690894 | D202: 0.6651087662 | E202: 7.827956733 | H202: -1.733003739 | I202: -3.217638288 | J202: -2.546848688 | K202: 3.643890065 | L202: -2.673426186 | M202: 0.4993786167 | N202: 0.372543098 | O202: 0.1044297871 | P202: -0.2716082204 | Q202: 0.7589764465 | R202: -0.4887292315 | S202: -0.150439826 | T202: -0.5323812568 | U202: -0.9881848569 | V202: -0.3715951996 | W202: 1.325737253 | X202: 0.4915128421 | Y202: -0.4468529729 | Z202: 10.86762349 | AA202: -2.53822605 | AB202: -6.017205176 | AC202: 6.151800009 | AD202: -7.21018066 | AE202: -0.9205235176 | AG202: 135.1967536 | AH202: 141.7450531 | AI202: 144.2885709 | AJ202: 136.5394623 | AK202: 136.1243419 | AL202: 132.678361 | AO202: -1.733003739 | AP202: -3.217638288 | AQ202: -2.546848688 | AR202: 3.643890065 | AS202: -2.673426186 | AT202: 0.4993786167 | AU202: 0.372543098 | AV202: 0.1044297871 | AW202: -0.2716082204 | AX202: 0.7589764465 | AY202: -0.4887292315 | AZ202: -0.150439826 | BA202: -0.5323812568 | BB202: -0.9881848569 | BC202: -0.3715951996 | BD202: 0 | BE202: 0 | BF202: -0.4468529729 | BG202: 10.86762349 | BH202: -2.53822605 | BI202: -6.017205176 | BJ202: 6.151800009 | BK202: -7.21018066 | BL202: -0.9205235176 | BN202: 135.1967536 | BO202: 141.7450531 | BP202: 144.2885709 | BQ202: 137.8651995 | BR202: 137.9919169 | BS202: 134.568805
A203: 135 | B203: 2.880402941 | C203: 2.835370402 | D203: 2.040387664 | E203: -9.634976142 | H203: 2.878038177 | I203: -1.931084517 | J203: 2.002148201 | K203: 0.7292634812 | L203: 2.707599952 | M203: -0.5565195561 | N203: 0.3002226058 | O203: 0.9156562055 | P203: 0.1035380459 | Q203: -0.6150750695 | R203: 0.3645891872 | S203: -0.1851925553 | T203: 0.8428976405 | U203: -0.6680615276 | V203: 1.77938473 | W203: 1.236200276 | X203: -1.204684339 | Y203: 1.871420317 | Z203: -6.595309386 | AA203: 33.51544634 | AB203: 3.918328832 | AC203: -21.10590104 | AD203: 0.5130509232 | AE203: -12.5464468 | AG203: 127.5368321 | AH203: 132.6425442 | AI203: 127.0524781 | AJ203: 121.489195 | AK203: 116.6769945 | AL203: 111.8734155 | AO203: 2.878038177 | AP203: -1.931084517 | AQ203: 2.002148201 | AR203: 0.7292634812 | AS203: 2.707599952 | AT203: -0.5565195561 | AU203: 0.3002226058 | AV203: 0.9156562055 | AW203: 0.1035380459 | AX203: -0.6150750695 | AY203: 0.3645891872 | AZ203: -0.1851925553 | BA203: 0 | BB203: -0.6680615276 | BC203: 0 | BD203: 0 | BE203: -1.204684339 | BF203: 0 | BG203: -6.595309386 | BH203: 33.51544634 | BI203: 3.918328832 | BJ203: -21.10590104 | BK203: 0.5130509232 | BL203: -12.5464468 | BN203: 128.3797297 | BO203: 133.5268197 | BP203: 129.7148432 | BQ203: 125.3917538 | BR203: 120.5503136 | BS203: 117.7053818
A204: 136 | B204: 1.47469078 | C204: 2.51503449 | D204: 3.34234854 | E204: 3.271632283 | H204: 1.472326016 | I204: 0.565241584 | J204: -2.153894725 | K204: -3.960384734 | L204: -0.3900919981 | M204: -1.073223272 | N204: -0.02011330542 | O204: -0.1448455623 | P204: 0.4124573588 | Q204: 0.01854597909 | R204: -0.1099150885 | S204: -0.5219614898 | T204: 2.144858517 | U204: -0.4821034199 | V204: -0.7805106119 | W204: -0.6573532444 | X204: 0.2672264481 | Y204: -1.024945246 | Z204: 6.311299039 | AA204: 2.653234258 | AB204: 12.99229089 | AC204: 1.935021174 | AD204: 7.443116389 | AE204: 2.920547815 | AG204: 127.6531202 | AH204: 127.9426819 | AI204: 130.687294 | AJ204: 134.1720841 | AK204: 131.2464879 | AL204: 129.9184903 | AO204: 1.472326016 | AP204: 0.565241584 | AQ204: -2.153894725 | AR204: -3.960384734 | AS204: -0.3900919981 | AT204: -1.073223272 | AU204: -0.02011330542 | AV204: -0.1448455623 | AW204: 0.4124573588 | AX204: 0.01854597909 | AY204: -0.1099150885 | AZ204: -0.5219614898 | BA204: 0 | BB204: -0.4821034199 | BC204: -0.7805106119 | BD204: -0.6573532444 | BE204: 0 | BF204: -1.024945246 | BG204: 6.311299039 | BH204: 2.653234258 | BI204: 12.99229089 | BJ204: 1.935021174 | BK204: 7.443116389 | BL204: 2.920547815 | BN204: 129.7979787 | BO204: 130.1149378 | BP204: 132.9542982 | BQ204: 136.5665019 | BR204: 133.9518236 | BS204: 132.689926
A205: 137 | B205: 2.184912086 | C205: 3.030296078 | D205: 2.141425266 | E205: 8.98493345 | H205: 2.182547322 | I205: -2.909308464 | J205: 3.380956067 | K205: -0.2658169962 | L205: -0.4064539899 | M205: -1.76569984 | N205: 0.4951482823 | O205: -0.1254781907 | P205: 0.3589794368 | Q205: 0.3436875737 | R205: 0.1502544818 | S205: 0.1633044585 | T205: 0.9439352429 | U205: 0.6571609804 | V205: 1.434282812 | W205: -1.374487518 | X205: 0.2414165754 | Y205: -1.457552212 | Z205: 12.02460021 | AA205: 9.534948716 | AB205: 4.745252622 | AC205: 13.58669824 | AD205: 7.110179248 | AE205: 14.8116459 | AG205: 128.5794661 | AH205: 132.391571 | AI205: 125.7255307 | AJ205: 125.2017299 | AK205: 122.4814437 | AL205: 123.0898151 | AO205: 2.182547322 | AP205: -2.909308464 | AQ205: 3.380956067 | AR205: -0.2658169962 | AS205: -0.4064539899 | AT205: -1.76569984 | AU205: 0.4951482823 | AV205: -0.1254781907 | AW205: 0.3589794368 | AX205: 0.3436875737 | AY205: 0.1502544818 | AZ205: 0.1633044585 | BA205: 0 | BB205: 0 | BC205: 0 | BD205: -1.374487518 | BE205: 0 | BF205: -1.457552212 | BG205: 12.02460021 | BH205: 9.534948716 | BI205: 4.745252622 | BJ205: 13.58669824 | BK205: 7.110179248 | BL205: 14.8116459 | BN205: 129.5234013 | BO205: 134.0388613 | BP205: 128.787005 | BQ205: 128.3269869 | BR205: 125.9137109 | BS205: 126.6540845
A206: 138 | B206: -3.748474923 | C206: 2.409898137 | D206: 0.9561015316 | E206: 17.00051701 | H206: -3.750839687 | I206: -3.011452489 | J206: 0.6197117692 | K206: 0.6245085619 | L206: 3.770820021 | M206: -2.311362124 | N206: -0.1252496591 | O206: 0.2410607854 | P206: 0.3371260636 | Q206: -0.02573540471 | R206: 0.8575365521 | S206: -0.5609197744 | T206: -0.2413884914 | U206: -1.945510989 | V206: -0.910682206 | W206: -0.9964680599 | X206: -1.120560027 | Y206: -1.185003878 | Z206: 20.04018376 | AA206: 5.230483846 | AB206: -0.5131745245 | AC206: -5.021921704 | AD206: 12.4707893 | AE206: -3.045813059 | AG206: 137.1373539 | AH206: 144.6355651 | AI206: 144.0138566 | AJ206: 141.688661 | AK206: 135.8834452 | AL206: 136.518172 | AO206: -3.750839687 | AP206: -3.011452489 | AQ206: 0.6197117692 | AR206: 0.6245085619 | AS206: 3.770820021 | AT206: -2.311362124 | AU206: -0.1252496591 | AV206: 0.2410607854 | AW206: 0.3371260636 | AX206: -0.02573540471 | AY206: 0.8575365521 | AZ206: -0.5609197744 | BA206: -0.2413884914 | BB206: -1.945510989 | BC206: -0.910682206 | BD206: -0.9964680599 | BE206: -1.120560027 | BF206: -1.185003878 | BG206: 20.04018376 | BH206: 5.230483846 | BI206: -0.5131745245 | BJ206: -5.021921704 | BK206: 12.4707893 | BL206: -3.045813059 | BN206: 137.1373539 | BO206: 144.6355651 | BP206: 144.0138566 | BQ206: 141.688661 | BR206: 135.8834452 | BS206: 136.518172
A207: 139 | B207: -3.70468296 | C207: 1.991889529 | D207: 0.7792517242 | E207: -6.606057253 | H207: -3.707047724 | I207: -1.449657208 | J207: 1.151881253 | K207: -3.199535031 | L207: 0.5646408077 | M207: 0.0344954885 | N207: -0.5432582667 | O207: 0.475380625 | P207: -0.3639436829 | Q207: -0.4976535315 | R207: -0.05349409157 | S207: 0.01040597552 | T207: -0.4182382988 | U207: -2.048380529 | V207: 2.304297403 | W207: 1.250548532 | X207: 0.3353053849 | Y207: 1.400447011 | Z207: -3.566390497 | AA207: 13.63194823 | AB207: -7.911650507 | AC207: -11.46813371 | AD207: -0.1309867593 | AE207: 1.115651016 | AG207: 136.6886789 | AH207: 142.3226901 | AI207: 136.724802 | AJ207: 136.8034433 | AK207: 132.629176 | AL207: 128.1203328 | AO207: -3.707047724 | AP207: -1.449657208 | AQ207: 1.151881253 | AR207: -3.199535031 | AS207: 0.5646408077 | AT207: 0.0344954885 | AU207: -0.5432582667 | AV207: 0.475380625 | AW207: -0.3639436829 | AX207: -0.4976535315 | AY207: -0.05349409157 | AZ207: 0.01040597552 | BA207: -0.4182382988 | BB207: -2.048380529 | BC207: 0 | BD207: 0 | BE207: 0 | BF207: 0 | BG207: -3.566390497 | BH207: 13.63194823 | BI207: -7.911650507 | BJ207: -11.46813371 | BK207: -0.1309867593 | BL207: 1.115651016 | BN207: 136.6886789 | BO207: 142.3226901 | BP207: 139.0290994 | BQ207: 140.4568293 | BR207: 136.651721 | BS207: 133.6176715
A208: 140 | B208: 1.337503096 | C208: 3.766469442 | D208: 0.4777407566 | E208: 13.37018849 | H208: 1.335138332 | I208: -0.3635787161 | J208: 2.836281809 | K208: 1.655054548 | L208: -0.8313182458 | M208: 2.157767457 | N208: 1.231321646 | O208: -0.2247970234 | P208: 0.3359794013 | Q208: -0.2719415687 | R208: 0.6981864065 | S208: -0.2090484239 | T208: -0.7197492664 | U208: -0.8342552441 | V208: -1.625633366 | W208: 2.883470549 | X208: -0.750280107 | Y208: -0.110836805 | Z208: 16.40985524 | AA208: -3.218719964 | AB208: 3.343725402 | AC208: -4.991102943 | AD208: 10.33439845 | AE208: -12.58508632 | AG208: 132.2942359 | AH208: 134.1295598 | AI208: 131.1671295 | AJ208: 123.219382 | AK208: 122.6519982 | AL208: 116.6434133 | AO208: 1.335138332 | AP208: -0.3635787161 | AQ208: 2.836281809 | AR208: 1.655054548 | AS208: -0.8313182458 | AT208: 2.157767457 | AU208: 1.231321646 | AV208: -0.2247970234 | AW208: 0.3359794013 | AX208: -0.2719415687 | AY208: 0.6981864065 | AZ208: -0.2090484239 | BA208: -0.7197492664 | BB208: -0.8342552441 | BC208: -1.625633366 | BD208: 0 | BE208: -0.750280107 | BF208: -0.110836805 | BG208: 16.40985524 | BH208: -3.218719964 | BI208: 3.343725402 | BJ208: -4.991102943 | BK208: 10.33439845 | BL208: -12.58508632 | BN208: 132.2942359 | BO208: 134.1295598 | BP208: 131.1671295 | BQ208: 126.1028526 | BR208: 125.6241348 | BS208: 119.601987
A209: 141 | B209: -0.7526388433 | C209: 2.051785842 | D209: 1.894749282 | E209: -16.98431043 | H209: -0.7550036073 | I209: -0.7369366811 | J209: 1.144024462 | K209: 0.07529954411 | L209: 2.671732629 | M209: 4.044845796 | N209: -0.4833619537 | O209: 0.2434478456 | P209: -0.1170773036 | Q209: -0.412451082 | R209: 0.7128327329 | S209: 0.7965165914 | T209: 0.6972592585 | U209: -0.1465916386 | V209: 1.641586495 | W209: 0.5339842381 | X209: 0.3145619679 | Y209: 1.044753072 | Z209: -13.94464367 | AA209: 2.556181028 | AB209: -3.520837322 | AC209: 5.601372636 | AD209: 8.878623977 | AE209: 2.616299088 | AG209: 131.4894114 | AH209: 133.7368532 | AI209: 129.115536 | AJ209: 125.3487194 | AK209: 119.4506687 | AL209: 111.3103776 | AO209: -0.7550036073 | AP209: -0.7369366811 | AQ209: 1.144024462 | AR209: 0.07529954411 | AS209: 2.671732629 | AT209: 4.044845796 | AU209: -0.4833619537 | AV209: 0.2434478456 | AW209: -0.1170773036 | AX209: -0.412451082 | AY209: 0.7128327329 | AZ209: 0.7965165914 | BA209: 0 | BB209: -0.1465916386 | BC209: 0 | BD209: 0 | BE209: 0 | BF209: 0 | BG209: -13.94464367 | BH209: 2.556181028 | BI209: -3.520837322 | BJ209: 5.601372636 | BK209: 8.878623977 | BL209: 2.616299088 | BN209: 132.1866706 | BO209: 134.4549204 | BP209: 131.4786083 | BQ209: 128.2692907 | BR209: 122.6746915 | BS209: 115.537701
A210: 142 | B210: -2.747514703 | C210: 2.117844952 | D210: 0.04959708655 | E210: -4.642035492 | H210: -2.749879467 | I210: -2.251714782 | J210: 0.09038387978 | K210: -0.3501875695 | L210: -2.608490007 | M210: -2.731810255 | N210: -0.4173028441 | O210: 0.24527809 | P210: -0.05160977501 | Q210: -0.1062236113 | R210: -0.1507678069 | S210: -0.08367536573 | T210: -1.147892936 | U210: -1.1614348 | V210: 0.185118763 | W210: 0.4588127714 | X210: 0.324201612 | Y210: -0.6722238686 | Z210: -1.602368736 | AA210: 15.08479993 | AB210: -1.384410817 | AC210: -9.127036338 | AD210: -0.7721295938 | AE210: -0.4651497854 | AG210: 136.2082367 | AH210: 141.7711137 | AI210: 140.2200727 | AJ210: 137.6601541 | AK210: 137.8318932 | AL210: 139.3039219 | AO210: -2.749879467 | AP210: -2.251714782 | AQ210: 0.09038387978 | AR210: -0.3501875695 | AS210: -2.608490007 | AT210: -2.731810255 | AU210: -0.4173028441 | AV210: 0.24527809 | AW210: -0.05160977501 | AX210: -0.1062236113 | AY210: -0.1507678069 | AZ210: -0.08367536573 | BA210: -1.147892936 | BB210: -1.1614348 | BC210: 0 | BD210: 0 | BE210: 0 | BF210: -0.6722238686 | BG210: -1.602368736 | BH210: 15.08479993 | BI210: -1.384410817 | BJ210: -9.127036338 | BK210: -0.7721295938 | BL210: -0.4651497854 | BN210: 136.2082367 | BO210: 141.7711137 | BP210: 140.4051915 | BQ210: 138.3072759 | BR210: 138.8295536 | BS210: 140.3476141
A211: 143 | B211: 4.058219017 | C211: 2.598367669 | D211: 1.011798952 | E211: -17.61032329 | H211: 4.055854253 | I211: 1.126476575 | J211: -2.179431757 | K211: 2.711463282 | L211: -0.3410454752 | M211: -0.8983358376 | N211: 0.06321987287 | O211: -0.008071183204 | P211: 0.5530897101 | Q211: 1.073505166 | R211: 0.8437503618 | S211: 0.04216113818 | T211: -0.1856910715 | U211: -0.6397285942 | V211: -0.6449312335 | W211: -0.2046093719 | X211: -2.410088173 | Y211: 1.832955715 | Z211: -14.57065653 | AA211: -2.077792952 | AB211: -8.596589985 | AC211: 28.33389248 | AD211: 23.03349017 | AE211: -8.649551311 | AG211: 126.7796696 | AH211: 126.6785555 | AI211: 129.4467614 | AJ211: 124.9591115 | AK211: 125.6601628 | AL211: 121.8200614 | AO211: 4.055854253 | AP211: 1.126476575 | AQ211: -2.179431757 | AR211: 2.711463282 | AS211: -0.3410454752 | AT211: -0.8983358376 | AU211: 0.06321987287 | AV211: -0.008071183204 | AW211: 0.5530897101 | AX211: 1.073505166 | AY211: 0.8437503618 | AZ211: 0.04216113818 | BA211: -0.1856910715 | BB211: -0.6397285942 | BC211: -0.6449312335 | BD211: -0.2046093719 | BE211: -2.410088173 | BF211: 0 | BG211: -14.57065653 | BH211: -2.077792952 | BI211: -8.596589985 | BJ211: 28.33389248 | BK211: 23.03349017 | BL211: -8.649551311 | BN211: 126.7796696 | BO211: 126.6785555 | BP211: 129.4467614 | BQ211: 124.9591115 | BR211: 125.6601628 | BS211: 123.6530171
